Workbook

Sheet Optimum Thermique
J5: COGENoptitherm | L5: =VLOOKUP(version,Translations,indice_trad,FALSE) -> version du : | M5: 2022-02-21
L6: Kies uw taal / Choisissez votre langue : | M6: FR
F7: =VLOOKUP(description_1,Translations,indice_trad,FALSE) -> Outil pour le bon dimensionnement d’une installation de cogénération
F8: =VLOOKUP(description_2,Translations,indice_trad,FALSE) -> au sens de l'Arrêté du Gouvernement de la Région de Bruxelles-Capitale du 17 décembre 2015 relatif à la promotion de l'électricité verte et de l'Arrêté du Gouvernement de la Région de Bruxelles-Capitale du 26 novembre 2020 fixant des conditions d’exploitation applicables aux installations de cogénération
J9: =VLOOKUP(instruction_1,Translations,indice_trad,FALSE) -> Utile pour déterminer la gamme de puissances thermiques "bien dimensionnées" afin de bénéficier du coefficient multiplicateur des Certificats Verts (logement collectif)
I10: … Entrez le nom du projet … | J10: =VLOOKUP(Instruction_2,Translations,indice_trad,FALSE) -> Utile pour déterminer la gamme de puissances nominales absorbées "bien dimensionnées" pour le permis d'enviornnement (hors logement collectif)
J11: =VLOOKUP(instruction_3,Translations,indice_trad,FALSE) -> Tâche réalisée par le Spécialiste Cogénération du service Facilitateur Bâtiment Durable de la Région de Bruxelles-Capitale
J12: =VLOOKUP(name_project,Translations,indice_trad,FALSE) -> … entrez le nom du projet …
I13: =VLOOKUP(name_project,Translations,indice_trad,FALSE) -> … entrez le nom du projet …
F15: facilitateur@environnement.brussels | M15: https://environnement.brussels/
G17: 0.8 | J17: =VLOOKUP(legend_filling,Translations,indice_trad,FALSE) -> A compléter
J18: =VLOOKUP(legend_temp_result,Translations,indice_trad,FALSE) -> Résultat intermédiaire | L18: =VLOOKUP(Translations!A23,Translations,indice_trad,FALSE) -> RESULTATS
G19: 0.1 | J19: =VLOOKUP(legent_result,Translations,indice_trad,FALSE) -> Résultat final
B20: =VLOOKUP(rdmt_heat_season,Translations,indice_trad,FALSE) -> Rendement saisonnier chaufferie : | G20: 0.8 | L20: =VLOOKUP(results_graph_warning,Translations,indice_trad,FALSE) -> Attention : ne pas oublier d'exécuter les calculs
G21: 0.1
B22: =VLOOKUP(cut_heat_need_URE,Translations,indice_trad,FALSE) -> Réduction des besoins thermiques par mesures URE planifiées : | G22: 0.3
A25: 3 | B25: =VLOOKUP(weekly_thermal_profil_choice,Translations,indice_trad,FALSE) -> Choix du profil thermique hebdomadaire :
J26: =VLOOKUP(monthly_bill_1,Translations,indice_trad,FALSE) -> Factures ou relevés
F27: =VLOOKUP(Translations!A19,Translations,indice_trad,FALSE) -> Profil type | J27: =VLOOKUP(monthly_bill_2,Translations,indice_trad,FALSE) -> mensuels combustible :
H28: =VLOOKUP(power_heat,Translations,indice_trad,FALSE) -> kW chaleur
B29: =F29 -> Lundi | C29: =G29 -> 00:00:00 | F29: =VLOOKUP(Monday,Translations,indice_trad,FALSE) -> Lundi | G29: 00:00:00 | H29: =Données!F31 -> 122.4 | I29: =VLOOKUP(year_,Translations,indice_trad,FALSE) -> Année :
C30: =G30 -> 00:15:00 | G30: 00:15:00 | H30: =Données!F32 -> 122.4
C31: =G31 -> 00:30:00 | G31: 00:30:00 | H31: =Données!F33 -> 122.4
C32: 00:45:00 | G32: 00:45:00 | H32: =Données!F34 -> 122.4 | I32: =VLOOKUP(januari,Translations,indice_trad,FALSE)&" :" -> Janvier : | J32: 20472.37031
C33: 01:00:00 | G33: 01:00:00 | H33: =Données!F35 -> 124.92 | I33: =VLOOKUP(februari,Translations,indice_trad,FALSE)&" :" -> Février : | J33: 14494.43818
C34: 01:15:00 | G34: 01:15:00 | H34: =Données!F36 -> 124.92 | I34: =VLOOKUP(march,Translations,indice_trad,FALSE)&" :" -> Mars : | J34: 5227.086324
C35: 01:30:00 | G35: 01:30:00 | H35: =Données!F37 -> 124.92 | I35: =VLOOKUP(april,Translations,indice_trad,FALSE)&" :" -> Avril : | J35: 1687.384663
C36: 01:45:00 | G36: 01:45:00 | H36: =Données!F38 -> 124.92 | I36: =VLOOKUP(mai,Translations,indice_trad,FALSE)&" :" -> Mai : | J36: 1053.029526
C37: 02:00:00 | G37: 02:00:00 | H37: =Données!F39 -> 123.48 | I37: =VLOOKUP(june,Translations,indice_trad,FALSE)&" :" -> Juin : | J37: 1705.83863
C38: 02:15:00 | G38: 02:15:00 | H38: =Données!F40 -> 123.48 | I38: =VLOOKUP(july,Translations,indice_trad,FALSE)&" :" -> Juillet : | J38: 974.600164
C39: 02:30:00 | G39: 02:30:00 | H39: =Données!F41 -> 123.48 | I39: =VLOOKUP(august,Translations,indice_trad,FALSE)&" :" -> Août : | J39: 1057.643018
C40: 02:45:00 | G40: 02:45:00 | H40: =Données!F42 -> 123.48 | I40: =VLOOKUP(september,Translations,indice_trad,FALSE)&" :" -> Septembre : | J40: 3606.597293
C41: 03:00:00 | G41: 03:00:00 | H41: =Données!F43 -> 126 | I41: =VLOOKUP(october,Translations,indice_trad,FALSE)&" :" -> Octobre : | J41: 1777.347755
C42: 03:15:00 | G42: 03:15:00 | H42: =Données!F44 -> 126 | I42: =VLOOKUP(november,Translations,indice_trad,FALSE)&" :" -> Novembre : | J42: 9081.658807
C43: 03:30:00 | G43: 03:30:00 | H43: =Données!F45 -> 126 | I43: =VLOOKUP(december,Translations,indice_trad,FALSE)&" :" -> Décembre : | J43: 17612.00533 | L43: =VLOOKUP(prod_therm_max_full_charge_no_stock,Translations,indice_trad,FALSE) -> Production thermique maximale par cogénération à pleine charge et sans stockage : | S43: ='Profils extrapolés 1h'!G4 -> 20212.76602 | T43: kWh th.
C44: 03:45:00 | G44: 03:45:00 | H44: =Données!F46 -> 126 | J44: =SUM(J32:J43) -> 78750
C45: 04:00:00 | G45: 04:00:00 | H45: =Données!F47 -> 132.12 | L45: =VLOOKUP(pui_therm_max,Translations,indice_trad,FALSE) -> Puissance thermique correspondant à la production maximale : | S45: ='Profils extrapolés 1h'!G8 -> 9.183446625 | T45: kW th.
C46: 04:15:00 | G46: 04:15:00 | H46: =Données!F48 -> 132.12
C47: 04:30:00 | G47: 04:30:00 | H47: =Données!F49 -> 132.12 | L47: =VLOOKUP(prod_therm_min_good_conception_CV,Translations,indice_trad,FALSE) -> Production thermique minimale pour le "bon dimensionnement" : | S47: =90%*S43 -> 18191.48942 | T47: kWh th.
C48: 04:45:00 | G48: 04:45:00 | H48: =Données!F50 -> 132.12
C49: 05:00:00 | G49: 05:00:00 | H49: =Données!F51 -> 141.84 | L49: =VLOOKUP(power_range_good_conception_CV,Translations,indice_trad,FALSE) -> Gamme de puissances thermiques "bien dimensionnées" pour les certificats verts : | R49: Pmin = | S49: ='Profils extrapolés 1h'!G14 -> 6.789399332 | T49: kW th.
C50: 05:15:00 | G50: 05:15:00 | H50: =Données!F52 -> 141.84
C51: 05:30:00 | G51: 05:30:00 | H51: =Données!F53 -> 141.84 | R51: Pmax = | S51: ='Profils extrapolés 1h'!G11 -> 11.41228583 | T51: kW th.
C52: 05:45:00 | G52: 05:45:00 | H52: =Données!F54 -> 141.84
C53: 06:00:00 | G53: 06:00:00 | H53: =Données!F55 -> 152.28 | L53: =VLOOKUP(power_range_good_conception_PE,Translations,indice_trad,FALSE) -> Gamme de puissances nominales absorbées "bien dimensionnées" pour le permis d'environnment : | R53: Pmin = | S53: =S49/O55 -> 12.12392738 | T53: kW
C54: 06:15:00 | G54: 06:15:00 | H54: =Données!F56 -> 152.28
C55: 06:30:00 | G55: 06:30:00 | H55: =Données!F57 -> 152.28 | N55: =VLOOKUP(yield_type_default,Translations,indice_trad,FALSE) -> Rendement type (par défaut) : | O55: 0.56 | R55: Pmax = | S55: =S51/O55 -> 20.37908185 | T55: kW
C56: 06:45:00 | G56: 06:45:00 | H56: =Données!F58 -> 152.28 | N56: =VLOOKUP(to_modif_if_need,Translations,indice_trad,FALSE) -> (à adapter au besoin)
C57: 07:00:00 | G57: 07:00:00 | H57: =Données!F59 -> 170.28
C58: 07:15:00 | G58: 07:15:00 | H58: =Données!F60 -> 170.28
C59: 07:30:00 | G59: 07:30:00 | H59: =Données!F61 -> 170.28
C60: 07:45:00 | G60: 07:45:00 | H60: =Données!F62 -> 170.28
C61: 08:00:00 | G61: 08:00:00 | H61: =Données!F63 -> 169.2
C62: 08:15:00 | G62: 08:15:00 | H62: =Données!F64 -> 169.2
C63: 08:30:00 | G63: 08:30:00 | H63: =Données!F65 -> 169.2
C64: 08:45:00 | G64: 08:45:00 | H64: =Données!F66 -> 169.2
C65: 09:00:00 | G65: 09:00:00 | H65: =Données!F67 -> 169.2
C66: 09:15:00 | G66: 09:15:00 | H66: =Données!F68 -> 169.2
C67: 09:30:00 | G67: 09:30:00 | H67: =Données!F69 -> 169.2
C68: 09:45:00 | G68: 09:45:00 | H68: =Données!F70 -> 169.2
C69: 10:00:00 | G69: 10:00:00 | H69: =Données!F71 -> 169.2
C70: 10:15:00 | G70: 10:15:00 | H70: =Données!F72 -> 169.2
C71: 10:30:00 | G71: 10:30:00 | H71: =Données!F73 -> 169.2
C72: 10:45:00 | G72: 10:45:00 | H72: =Données!F74 -> 169.2
C73: 11:00:00 | G73: 11:00:00 | H73: =Données!F75 -> 165.96
C74: 11:15:00 | G74: 11:15:00 | H74: =Données!F76 -> 165.96
C75: 11:30:00 | G75: 11:30:00 | H75: =Données!F77 -> 165.96
C76: 11:45:00 | G76: 11:45:00 | H76: =Données!F78 -> 165.96
C77: 12:00:00 | G77: 12:00:00 | H77: =Données!F79 -> 161.28
C78: 12:15:00 | G78: 12:15:00 | H78: =Données!F80 -> 161.28
C79: 12:30:00 | G79: 12:30:00 | H79: =Données!F81 -> 161.28
C80: 12:45:00 | G80: 12:45:00 | H80: =Données!F82 -> 161.28
C81: 13:00:00 | G81: 13:00:00 | H81: =Données!F83 -> 157.68
C82: 13:15:00 | G82: 13:15:00 | H82: =Données!F84 -> 157.68
C83: 13:30:00 | G83: 13:30:00 | H83: =Données!F85 -> 157.68
C84: 13:45:00 | G84: 13:45:00 | H84: =Données!F86 -> 157.68
C85: 14:00:00 | G85: 14:00:00 | H85: =Données!F87 -> 157.32
C86: 14:15:00 | G86: 14:15:00 | H86: =Données!F88 -> 157.32
C87: 14:30:00 | G87: 14:30:00 | H87: =Données!F89 -> 157.32
C88: 14:45:00 | G88: 14:45:00 | H88: =Données!F90 -> 157.32
C89: 15:00:00 | G89: 15:00:00 | H89: =Données!F91 -> 159.12
C90: 15:15:00 | G90: 15:15:00 | H90: =Données!F92 -> 159.12
C91: 15:30:00 | G91: 15:30:00 | H91: =Données!F93 -> 159.12
C92: 15:45:00 | G92: 15:45:00 | H92: =Données!F94 -> 159.12
C93: 16:00:00 | G93: 16:00:00 | H93: =Données!F95 -> 157.32
C94: 16:15:00 | G94: 16:15:00 | H94: =Données!F96 -> 157.32
C95: =G95 -> 16:30:00 | G95: 16:30:00 | H95: =Données!F97 -> 157.32
C96: 16:45:00 | G96: 16:45:00 | H96: =Données!F98 -> 157.32
C97: 17:00:00 | G97: 17:00:00 | H97: =Données!F99 -> 160.2
C98: 17:15:00 | G98: 17:15:00 | H98: =Données!F100 -> 160.2
C99: 17:30:00 | G99: 17:30:00 | H99: =Données!F101 -> 160.2
C100: 17:45:00 | G100: 17:45:00 | H100: =Données!F102 -> 160.2
C101: 18:00:00 | G101: 18:00:00 | H101: =Données!F103 -> 169.56
C102: 18:15:00 | G102: 18:15:00 | H102: =Données!F104 -> 169.56
C103: 18:30:00 | G103: 18:30:00 | H103: =Données!F105 -> 169.56
C104: 18:45:00 | G104: 18:45:00 | H104: =Données!F106 -> 169.56
C105: 19:00:00 | G105: 19:00:00 | H105: =Données!F107 -> 161.28
C106: 19:15:00 | G106: 19:15:00 | H106: =Données!F108 -> 161.28
C107: 19:30:00 | G107: 19:30:00 | H107: =Données!F109 -> 161.28
C108: 19:45:00 | G108: 19:45:00 | H108: =Données!F110 -> 161.28
C109: 20:00:00 | G109: 20:00:00 | H109: =Données!F111 -> 152.64
C110: 20:15:00 | G110: 20:15:00 | H110: =Données!F112 -> 152.64
C111: 20:30:00 | G111: 20:30:00 | H111: =Données!F113 -> 152.64
C112: 20:45:00 | G112: 20:45:00 | H112: =Données!F114 -> 152.64
C113: 21:00:00 | G113: 21:00:00 | H113: =Données!F115 -> 153
C114: 21:15:00 | G114: 21:15:00 | H114: =Données!F116 -> 153
C115: 21:30:00 | G115: 21:30:00 | H115: =Données!F117 -> 153
C116: 21:45:00 | G116: 21:45:00 | H116: =Données!F118 -> 153
C117: 22:00:00 | G117: 22:00:00 | H117: =Données!F119 -> 122.76
C118: 22:15:00 | G118: 22:15:00 | H118: =Données!F120 -> 122.76
C119: 22:30:00 | G119: 22:30:00 | H119: =Données!F121 -> 122.76
C120: 22:45:00 | G120: 22:45:00 | H120: =Données!F122 -> 122.76
C121: 23:00:00 | G121: 23:00:00 | H121: =Données!F123 -> 120.96
C122: 23:15:00 | G122: 23:15:00 | H122: =Données!F124 -> 120.96
C123: 23:30:00 | G123: 23:30:00 | H123: =Données!F125 -> 120.96
C124: 23:45:00 | G124: 23:45:00 | H124: =Données!F126 -> 120.96
B125: =F125 -> Mardi | C125: 1 | F125: =VLOOKUP(Tuesday,Translations,indice_trad,FALSE) -> Mardi | G125: 1 | H125: =Données!F127 -> 128.35
C126: 1.010416667 | G126: 1.010416667 | H126: =Données!F128 -> 128.35
C127: 1.020833333 | G127: 1.020833333 | H127: =Données!F129 -> 128.35
C128: 1.03125 | G128: 1.03125 | H128: =Données!F130 -> 128.35
C129: 1.041666667 | G129: 1.041666667 | H129: =Données!F131 -> 130.9925
C130: 1.052083333 | G130: 1.052083333 | H130: =Données!F132 -> 130.9925
C131: 1.0625 | G131: 1.0625 | H131: =Données!F133 -> 130.9925
C132: 1.072916667 | G132: 1.072916667 | H132: =Données!F134 -> 130.9925
C133: 1.083333333 | G133: 1.083333333 | H133: =Données!F135 -> 129.4825
C134: 1.09375 | G134: 1.09375 | H134: =Données!F136 -> 129.4825
C135: 1.104166667 | G135: 1.104166667 | H135: =Données!F137 -> 129.4825
C136: 1.114583333 | G136: 1.114583333 | H136: =Données!F138 -> 129.4825
C137: 1.125 | G137: 1.125 | H137: =Données!F139 -> 132.125
C138: 1.135416667 | G138: 1.135416667 | H138: =Données!F140 -> 132.125
C139: 1.145833333 | G139: 1.145833333 | H139: =Données!F141 -> 132.125
C140: 1.15625 | G140: 1.15625 | H140: =Données!F142 -> 132.125
C141: 1.166666667 | G141: 1.166666667 | H141: =Données!F143 -> 138.5425
C142: 1.177083333 | G142: 1.177083333 | H142: =Données!F144 -> 138.5425
C143: 1.1875 | G143: 1.1875 | H143: =Données!F145 -> 138.5425
C144: 1.197916667 | G144: 1.197916667 | H144: =Données!F146 -> 138.5425
C145: 1.208333333 | G145: 1.208333333 | H145: =Données!F147 -> 148.735
C146: 1.21875 | G146: 1.21875 | H146: =Données!F148 -> 148.735
C147: 1.229166667 | G147: 1.229166667 | H147: =Données!F149 -> 148.735
C148: 1.239583333 | G148: 1.239583333 | H148: =Données!F150 -> 148.735
C149: 1.25 | G149: 1.25 | H149: =Données!F151 -> 159.6825
C150: 1.260416667 | G150: 1.260416667 | H150: =Données!F152 -> 159.6825
C151: 1.270833333 | G151: 1.270833333 | H151: =Données!F153 -> 159.6825
C152: 1.28125 | G152: 1.28125 | H152: =Données!F154 -> 159.6825
C153: 1.291666667 | G153: 1.291666667 | H153: =Données!F155 -> 178.5575
C154: 1.302083333 | G154: 1.302083333 | H154: =Données!F156 -> 178.5575
C155: 1.3125 | G155: 1.3125 | H155: =Données!F157 -> 178.5575
C156: 1.322916667 | G156: 1.322916667 | H156: =Données!F158 -> 178.5575
C157: 1.333333333 | G157: 1.333333333 | H157: =Données!F159 -> 177.425
C158: 1.34375 | G158: 1.34375 | H158: =Données!F160 -> 177.425
C159: =G159 -> 1.354166667 | G159: 1.354166667 | H159: =Données!F161 -> 177.425
C160: 1.364583333 | G160: 1.364583333 | H160: =Données!F162 -> 177.425
C161: 1.375 | G161: 1.375 | H161: =Données!F163 -> 177.425
C162: 1.385416667 | G162: 1.385416667 | H162: =Données!F164 -> 177.425
C163: 1.395833333 | G163: 1.395833333 | H163: =Données!F165 -> 177.425
C164: 1.40625 | G164: 1.40625 | H164: =Données!F166 -> 177.425
C165: 1.416666667 | G165: 1.416666667 | H165: =Données!F167 -> 177.425
C166: 1.427083333 | G166: 1.427083333 | H166: =Données!F168 -> 177.425
C167: 1.4375 | G167: 1.4375 | H167: =Données!F169 -> 177.425
C168: 1.447916667 | G168: 1.447916667 | H168: =Données!F170 -> 177.425
C169: 1.458333333 | G169: 1.458333333 | H169: =Données!F171 -> 174.0275
C170: 1.46875 | G170: 1.46875 | H170: =Données!F172 -> 174.0275
C171: 1.479166667 | G171: 1.479166667 | H171: =Données!F173 -> 174.0275
C172: 1.489583333 | G172: 1.489583333 | H172: =Données!F174 -> 174.0275
C173: 1.5 | G173: 1.5 | H173: =Données!F175 -> 169.12
C174: 1.510416667 | G174: 1.510416667 | H174: =Données!F176 -> 169.12
C175: 1.520833333 | G175: 1.520833333 | H175: =Données!F177 -> 169.12
C176: 1.53125 | G176: 1.53125 | H176: =Données!F178 -> 169.12
C177: 1.541666667 | G177: 1.541666667 | H177: =Données!F179 -> 165.345
C178: 1.552083333 | G178: 1.552083333 | H178: =Données!F180 -> 165.345
C179: 1.5625 | G179: 1.5625 | H179: =Données!F181 -> 165.345
C180: 1.572916667 | G180: 1.572916667 | H180: =Données!F182 -> 165.345
C181: 1.583333333 | G181: 1.583333333 | H181: =Données!F183 -> 164.9675
C182: 1.59375 | G182: 1.59375 | H182: =Données!F184 -> 164.9675
C183: 1.604166667 | G183: 1.604166667 | H183: =Données!F185 -> 164.9675
C184: 1.614583333 | G184: 1.614583333 | H184: =Données!F186 -> 164.9675
C185: 1.625 | G185: 1.625 | H185: =Données!F187 -> 166.855
C186: 1.635416667 | G186: 1.635416667 | H186: =Données!F188 -> 166.855
C187: 1.645833333 | G187: 1.645833333 | H187: =Données!F189 -> 166.855
C188: 1.65625 | G188: 1.65625 | H188: =Données!F190 -> 166.855
C189: 1.666666667 | G189: 1.666666667 | H189: =Données!F191 -> 164.9675
C190: 1.677083333 | G190: 1.677083333 | H190: =Données!F192 -> 164.9675
C191: 1.6875 | G191: 1.6875 | H191: =Données!F193 -> 164.9675
C192: 1.697916667 | G192: 1.697916667 | H192: =Données!F194 -> 164.9675
C193: 1.708333333 | G193: 1.708333333 | H193: =Données!F195 -> 167.9875
C194: 1.71875 | G194: 1.71875 | H194: =Données!F196 -> 167.9875
C195: 1.729166667 | G195: 1.729166667 | H195: =Données!F197 -> 167.9875
C196: 1.739583333 | G196: 1.739583333 | H196: =Données!F198 -> 167.9875
C197: 1.75 | G197: 1.75 | H197: =Données!F199 -> 177.8025
C198: 1.760416667 | G198: 1.760416667 | H198: =Données!F200 -> 177.8025
C199: 1.770833333 | G199: 1.770833333 | H199: =Données!F201 -> 177.8025
C200: 1.78125 | G200: 1.78125 | H200: =Données!F202 -> 177.8025
C201: 1.791666667 | G201: 1.791666667 | H201: =Données!F203 -> 169.12
C202: 1.802083333 | G202: 1.802083333 | H202: =Données!F204 -> 169.12
C203: 1.8125 | G203: 1.8125 | H203: =Données!F205 -> 169.12
C204: 1.822916667 | G204: 1.822916667 | H204: =Données!F206 -> 169.12
C205: 1.833333333 | G205: 1.833333333 | H205: =Données!F207 -> 160.06
C206: 1.84375 | G206: 1.84375 | H206: =Données!F208 -> 160.06
C207: 1.854166667 | G207: 1.854166667 | H207: =Données!F209 -> 160.06
C208: 1.864583333 | G208: 1.864583333 | H208: =Données!F210 -> 160.06
... 492 more rows

Sheet Graphiques
A2: =VLOOKUP(graph_profil_therm_extra,Translations,indice_trad,FALSE)&Données!$C$15&"" -> Profil thermique extrapolé - … entrez le nom du projet …
A24: =VLOOKUP(graph_profil_therm_weekly,Translations,indice_trad,FALSE)&Données!$C$15&"" -> Profil thermique hebdomadaire - … entrez le nom du projet …
A46: =VLOOKUP(graph_sign_energ,Translations,indice_trad,FALSE)&Données!$C$15&"" -> Signature énergétique - … entrez le nom du projet …
A67: =VLOOKUP(graph_cons_combust,Translations,indice_trad,FALSE)&Données!$C$15&"" -> Consommations en combustible… entrez le nom du projet …

Sheet Profils extrapolés 1h
A1: =VLOOKUP(Prof1_dates,Translations,indice_trad,FALSE) -> dates | C1: =VLOOKUP(Prof14_prof_elec,Translations,indice_trad,FALSE) -> profil élec | D1: =VLOOKUP(Prof14_prof_heat,Translations,indice_trad,FALSE) -> profil chaleur | F1: =VLOOKUP(Prof1_sum_kwh_elec,Translations,indice_trad,FALSE) -> somme kWh élec | G1: =VLOOKUP(Prof1_sum_kwh_gaz,Translations,indice_trad,FALSE) -> somme kWh gaz | H1: =VLOOKUP(monotone_decr,Translations,indice_trad,FALSE) -> Monotone Decr | I1: =VLOOKUP(prod_therm_extra_1,Translations,indice_trad,FALSE) -> Prod therm | J1: =VLOOKUP(prod_min,Translations,indice_trad,FALSE) -> Prod Min | K1: =VLOOKUP(prod_dimenssion_goods,Translations,indice_trad,FALSE) -> Prod des bien dimensionnées | L1: =VLOOKUP(power_dimenssion_goods,Translations,indice_trad,FALSE) -> Puiss bien dimensionnées
A2: ='Profils extrapolés 1-4h'!A4 -> 1/01/2022 0:00 | B2: 1 | C2: =AVERAGE(INDEX('Profils extrapolés 1-4h'!$I$4:$I$35139,(B2-1)*4+1),INDEX('Profils extrapolés 1-4h'!$I$4:$I$35139,(B2-1)*4+2),INDEX('Profils extrapolés 1-4h'!$I$4:$I$35139,(B2-1)*4+3),INDEX('Profils extrapolés 1-4h'!$I$4:$I$35139,(B2-1)*4+4)) -> 0 | D2: =AVERAGE(INDEX('Profils extrapolés 1-4h'!$G$4:$G$35139,(B2-1)*4+1),INDEX('Profils extrapolés 1-4h'!$G$4:$G$35139,(B2-1)*4+2),INDEX('Profils extrapolés 1-4h'!$G$4:$G$35139,(B2-1)*4+3),INDEX('Profils extrapolés 1-4h'!$G$4:$G$35139,(B2-1)*4+4)) -> 4.700265395 | E2: =jan -> Janvier | F2: =SUM(C2:C8785) -> 0 | G2: =SUM(D2:D8785) -> 43589.19553 | H2: 25.63362686 | I2: =B2*H2 -> 25.63362686 | J2: =$G$5 -> 18191.48942 | K2: =IF(I2>=J2,I2,0) -> 0 | L2: =IF(K2=0,"",H2) -> 
A3: =A2+1/24 -> 2022-01-01T01:00:00 | B3: 2 | C3: =AVERAGE(INDEX('Profils extrapolés 1-4h'!$I$4:$I$35139,(B3-1)*4+1),INDEX('Profils extrapolés 1-4h'!$I$4:$I$35139,(B3-1)*4+2),INDEX('Profils extrapolés 1-4h'!$I$4:$I$35139,(B3-1)*4+3),INDEX('Profils extrapolés 1-4h'!$I$4:$I$35139,(B3-1)*4+4)) -> 0 | D3: =AVERAGE(INDEX('Profils extrapolés 1-4h'!$G$4:$G$35139,(B3-1)*4+1),INDEX('Profils extrapolés 1-4h'!$G$4:$G$35139,(B3-1)*4+2),INDEX('Profils extrapolés 1-4h'!$G$4:$G$35139,(B3-1)*4+3),INDEX('Profils extrapolés 1-4h'!$G$4:$G$35139,(B3-1)*4+4)) -> 4.797035565 | E3: Janvier | H3: 25.52523943 | I3: =B3*H3 -> 51.05047886 | J3: =$G$5 -> 18191.48942 | K3: =IF(I3>=J3,I3,0) -> 0 | L3: =IF(K3=0,"",H3) -> 
A4: =A3+1/24 -> 2022-01-01T02:00:00 | B4: 3 | C4: =AVERAGE(INDEX('Profils extrapolés 1-4h'!$I$4:$I$35139,(B4-1)*4+1),INDEX('Profils extrapolés 1-4h'!$I$4:$I$35139,(B4-1)*4+2),INDEX('Profils extrapolés 1-4h'!$I$4:$I$35139,(B4-1)*4+3),INDEX('Profils extrapolés 1-4h'!$I$4:$I$35139,(B4-1)*4+4)) -> 0 | D4: =AVERAGE(INDEX('Profils extrapolés 1-4h'!$G$4:$G$35139,(B4-1)*4+1),INDEX('Profils extrapolés 1-4h'!$G$4:$G$35139,(B4-1)*4+2),INDEX('Profils extrapolés 1-4h'!$G$4:$G$35139,(B4-1)*4+3),INDEX('Profils extrapolés 1-4h'!$G$4:$G$35139,(B4-1)*4+4)) -> 4.741738325 | E4: Janvier | F4: =VLOOKUP(max_prod_th,Translations,indice_trad,FALSE) -> Max Prod th | G4: =MAX(I2:I8785) -> 20212.76602 | H4: 25.47104572 | I4: =B4*H4 -> 76.41313715 | J4: =$G$5 -> 18191.48942 | K4: =IF(I4>=J4,I4,0) -> 0 | L4: =IF(K4=0,"",H4) ->  | R4: =N3+1/24 -> 01:00:00 | S4: 1728 | T4: =AVERAGE(INDEX('Profils extrapolés 1-4h'!$I$4:$I$35043,(B1729-1)*4+1),INDEX('Profils extrapolés 1-4h'!$I$4:$I$35043,(B1729-1)*4+2),INDEX('Profils extrapolés 1-4h'!$I$4:$I$35043,(B1729-1)*4+3),INDEX('Profils extrapolés 1-4h'!$I$4:$I$35043,(B1729-1)*4+4)) -> 0 | U4: =AVERAGE(INDEX('Profils extrapolés 1-4h'!$G$4:$G$35043,(B1729-1)*4+1),INDEX('Profils extrapolés 1-4h'!$G$4:$G$35043,(B1729-1)*4+2),INDEX('Profils extrapolés 1-4h'!$G$4:$G$35043,(B1729-1)*4+3),INDEX('Profils extrapolés 1-4h'!$G$4:$G$35043,(B1729-1)*4+4)) -> 2.109043137
A5: 2022-01-01T03:00:00 | B5: 4 | C5: =AVERAGE(INDEX('Profils extrapolés 1-4h'!$I$4:$I$35139,(B5-1)*4+1),INDEX('Profils extrapolés 1-4h'!$I$4:$I$35139,(B5-1)*4+2),INDEX('Profils extrapolés 1-4h'!$I$4:$I$35139,(B5-1)*4+3),INDEX('Profils extrapolés 1-4h'!$I$4:$I$35139,(B5-1)*4+4)) -> 0 | D5: =AVERAGE(INDEX('Profils extrapolés 1-4h'!$G$4:$G$35139,(B5-1)*4+1),INDEX('Profils extrapolés 1-4h'!$G$4:$G$35139,(B5-1)*4+2),INDEX('Profils extrapolés 1-4h'!$G$4:$G$35139,(B5-1)*4+3),INDEX('Profils extrapolés 1-4h'!$G$4:$G$35139,(B5-1)*4+4)) -> 4.838508495 | E5: Janvier | F5: =VLOOKUP(prct_90_max_prod_th,Translations,indice_trad,FALSE) -> 90% Max Prod th | G5: =90%*G4 -> 18191.48942 | H5: 25.47104572 | I5: 101.8841829 | J5: 18191.48942 | K5: 0
A6: 2022-01-01T04:00:00 | B6: 5 | C6: =AVERAGE(INDEX('Profils extrapolés 1-4h'!$I$4:$I$35139,(B6-1)*4+1),INDEX('Profils extrapolés 1-4h'!$I$4:$I$35139,(B6-1)*4+2),INDEX('Profils extrapolés 1-4h'!$I$4:$I$35139,(B6-1)*4+3),INDEX('Profils extrapolés 1-4h'!$I$4:$I$35139,(B6-1)*4+4)) -> 0 | D6: =AVERAGE(INDEX('Profils extrapolés 1-4h'!$G$4:$G$35139,(B6-1)*4+1),INDEX('Profils extrapolés 1-4h'!$G$4:$G$35139,(B6-1)*4+2),INDEX('Profils extrapolés 1-4h'!$G$4:$G$35139,(B6-1)*4+3),INDEX('Profils extrapolés 1-4h'!$G$4:$G$35139,(B6-1)*4+4)) -> 5.073521765 | E6: Janvier | H6: 25.47104572 | I6: 127.3552286 | J6: 18191.48942 | K6: 0
A7: 2022-01-01T05:00:00 | B7: 6 | C7: =AVERAGE(INDEX('Profils extrapolés 1-4h'!$I$4:$I$35139,(B7-1)*4+1),INDEX('Profils extrapolés 1-4h'!$I$4:$I$35139,(B7-1)*4+2),INDEX('Profils extrapolés 1-4h'!$I$4:$I$35139,(B7-1)*4+3),INDEX('Profils extrapolés 1-4h'!$I$4:$I$35139,(B7-1)*4+4)) -> 0 | D7: =AVERAGE(INDEX('Profils extrapolés 1-4h'!$G$4:$G$35139,(B7-1)*4+1),INDEX('Profils extrapolés 1-4h'!$G$4:$G$35139,(B7-1)*4+2),INDEX('Profils extrapolés 1-4h'!$G$4:$G$35139,(B7-1)*4+3),INDEX('Profils extrapolés 1-4h'!$G$4:$G$35139,(B7-1)*4+4)) -> 5.446778135 | E7: Janvier | F7: =VLOOKUP(num_max,Translations,indice_trad,FALSE) -> Numéro corresp à MAX | G7: =MATCH(G4,I2:I8785,0) -> 2201 | H7: 24.98330229 | I7: 149.8998137 | J7: 18191.48942 | K7: 0
A8: 2022-01-01T06:00:00 | B8: 7 | C8: =AVERAGE(INDEX('Profils extrapolés 1-4h'!$I$4:$I$35139,(B8-1)*4+1),INDEX('Profils extrapolés 1-4h'!$I$4:$I$35139,(B8-1)*4+2),INDEX('Profils extrapolés 1-4h'!$I$4:$I$35139,(B8-1)*4+3),INDEX('Profils extrapolés 1-4h'!$I$4:$I$35139,(B8-1)*4+4)) -> 0 | D8: =AVERAGE(INDEX('Profils extrapolés 1-4h'!$G$4:$G$35139,(B8-1)*4+1),INDEX('Profils extrapolés 1-4h'!$G$4:$G$35139,(B8-1)*4+2),INDEX('Profils extrapolés 1-4h'!$G$4:$G$35139,(B8-1)*4+3),INDEX('Profils extrapolés 1-4h'!$G$4:$G$35139,(B8-1)*4+4)) -> 5.847683124 | E8: Janvier | F8: =VLOOKUP(power_corres_max,Translations,indice_trad,FALSE) -> Puis corresp à MAX | G8: =INDEX(H2:H8785,G7) -> 9.183446625 | H8: 24.65940044 | I8: 172.615803 | J8: 18191.48942 | K8: 0
A9: 2022-01-01T07:00:00 | B9: 8 | C9: =AVERAGE(INDEX('Profils extrapolés 1-4h'!$I$4:$I$35139,(B9-1)*4+1),INDEX('Profils extrapolés 1-4h'!$I$4:$I$35139,(B9-1)*4+2),INDEX('Profils extrapolés 1-4h'!$I$4:$I$35139,(B9-1)*4+3),INDEX('Profils extrapolés 1-4h'!$I$4:$I$35139,(B9-1)*4+4)) -> 0 | D9: =AVERAGE(INDEX('Profils extrapolés 1-4h'!$G$4:$G$35139,(B9-1)*4+1),INDEX('Profils extrapolés 1-4h'!$G$4:$G$35139,(B9-1)*4+2),INDEX('Profils extrapolés 1-4h'!$G$4:$G$35139,(B9-1)*4+3),INDEX('Profils extrapolés 1-4h'!$G$4:$G$35139,(B9-1)*4+4)) -> 6.538898624 | E9: Janvier | H9: 24.55513236 | I9: 196.4410589 | J9: 18191.48942 | K9: 0
A10: 2022-01-01T08:00:00 | B10: 9 | C10: =AVERAGE(INDEX('Profils extrapolés 1-4h'!$I$4:$I$35139,(B10-1)*4+1),INDEX('Profils extrapolés 1-4h'!$I$4:$I$35139,(B10-1)*4+2),INDEX('Profils extrapolés 1-4h'!$I$4:$I$35139,(B10-1)*4+3),INDEX('Profils extrapolés 1-4h'!$I$4:$I$35139,(B10-1)*4+4)) -> 0 | D10: =AVERAGE(INDEX('Profils extrapolés 1-4h'!$G$4:$G$35139,(B10-1)*4+1),INDEX('Profils extrapolés 1-4h'!$G$4:$G$35139,(B10-1)*4+2),INDEX('Profils extrapolés 1-4h'!$G$4:$G$35139,(B10-1)*4+3),INDEX('Profils extrapolés 1-4h'!$G$4:$G$35139,(B10-1)*4+4)) -> 6.497425694 | E10: Janvier | H10: 24.50299832 | I10: 220.5269849 | J10: 18191.48942 | K10: 0
A11: 2022-01-01T09:00:00 | B11: 10 | C11: =AVERAGE(INDEX('Profils extrapolés 1-4h'!$I$4:$I$35139,(B11-1)*4+1),INDEX('Profils extrapolés 1-4h'!$I$4:$I$35139,(B11-1)*4+2),INDEX('Profils extrapolés 1-4h'!$I$4:$I$35139,(B11-1)*4+3),INDEX('Profils extrapolés 1-4h'!$I$4:$I$35139,(B11-1)*4+4)) -> 0 | D11: =AVERAGE(INDEX('Profils extrapolés 1-4h'!$G$4:$G$35139,(B11-1)*4+1),INDEX('Profils extrapolés 1-4h'!$G$4:$G$35139,(B11-1)*4+2),INDEX('Profils extrapolés 1-4h'!$G$4:$G$35139,(B11-1)*4+3),INDEX('Profils extrapolés 1-4h'!$G$4:$G$35139,(B11-1)*4+4)) -> 6.497425694 | E11: Janvier | F11: =VLOOKUP(power_maximum,Translations,indice_trad,FALSE) -> Puis max | G11: =MAX(L1:L8785) -> 11.41228583 | H11: 24.50299832 | I11: 245.0299832 | J11: 18191.48942 | K11: 0
A12: 2022-01-01T10:00:00 | B12: 11 | C12: =AVERAGE(INDEX('Profils extrapolés 1-4h'!$I$4:$I$35139,(B12-1)*4+1),INDEX('Profils extrapolés 1-4h'!$I$4:$I$35139,(B12-1)*4+2),INDEX('Profils extrapolés 1-4h'!$I$4:$I$35139,(B12-1)*4+3),INDEX('Profils extrapolés 1-4h'!$I$4:$I$35139,(B12-1)*4+4)) -> 0 | D12: =AVERAGE(INDEX('Profils extrapolés 1-4h'!$G$4:$G$35139,(B12-1)*4+1),INDEX('Profils extrapolés 1-4h'!$G$4:$G$35139,(B12-1)*4+2),INDEX('Profils extrapolés 1-4h'!$G$4:$G$35139,(B12-1)*4+3),INDEX('Profils extrapolés 1-4h'!$G$4:$G$35139,(B12-1)*4+4)) -> 6.497425694 | E12: Janvier | H12: 24.50299832 | I12: 269.5329815 | J12: 18191.48942 | K12: 0
A13: 2022-01-01T11:00:00 | B13: 12 | C13: =AVERAGE(INDEX('Profils extrapolés 1-4h'!$I$4:$I$35139,(B13-1)*4+1),INDEX('Profils extrapolés 1-4h'!$I$4:$I$35139,(B13-1)*4+2),INDEX('Profils extrapolés 1-4h'!$I$4:$I$35139,(B13-1)*4+3),INDEX('Profils extrapolés 1-4h'!$I$4:$I$35139,(B13-1)*4+4)) -> 0 | D13: =AVERAGE(INDEX('Profils extrapolés 1-4h'!$G$4:$G$35139,(B13-1)*4+1),INDEX('Profils extrapolés 1-4h'!$G$4:$G$35139,(B13-1)*4+2),INDEX('Profils extrapolés 1-4h'!$G$4:$G$35139,(B13-1)*4+3),INDEX('Profils extrapolés 1-4h'!$G$4:$G$35139,(B13-1)*4+4)) -> 6.373006904 | E13: Janvier | H13: 24.278784 | I13: 291.345408 | J13: 18191.48942 | K13: 0
A14: 2022-01-01T12:00:00 | B14: 13 | C14: =AVERAGE(INDEX('Profils extrapolés 1-4h'!$I$4:$I$35139,(B14-1)*4+1),INDEX('Profils extrapolés 1-4h'!$I$4:$I$35139,(B14-1)*4+2),INDEX('Profils extrapolés 1-4h'!$I$4:$I$35139,(B14-1)*4+3),INDEX('Profils extrapolés 1-4h'!$I$4:$I$35139,(B14-1)*4+4)) -> 0 | D14: =AVERAGE(INDEX('Profils extrapolés 1-4h'!$G$4:$G$35139,(B14-1)*4+1),INDEX('Profils extrapolés 1-4h'!$G$4:$G$35139,(B14-1)*4+2),INDEX('Profils extrapolés 1-4h'!$G$4:$G$35139,(B14-1)*4+3),INDEX('Profils extrapolés 1-4h'!$G$4:$G$35139,(B14-1)*4+4)) -> 6.193290874 | E14: Janvier | F14: =VLOOKUP(power_minimum,Translations,indice_trad,FALSE) -> Puis min | G14: =MIN(L2:L8785) -> 6.789399332 | H14: 24.278784 | I14: 315.624192 | J14: 18191.48942 | K14: 0
A15: 2022-01-01T13:00:00 | B15: 14 | C15: =AVERAGE(INDEX('Profils extrapolés 1-4h'!$I$4:$I$35139,(B15-1)*4+1),INDEX('Profils extrapolés 1-4h'!$I$4:$I$35139,(B15-1)*4+2),INDEX('Profils extrapolés 1-4h'!$I$4:$I$35139,(B15-1)*4+3),INDEX('Profils extrapolés 1-4h'!$I$4:$I$35139,(B15-1)*4+4)) -> 0 | D15: =AVERAGE(INDEX('Profils extrapolés 1-4h'!$G$4:$G$35139,(B15-1)*4+1),INDEX('Profils extrapolés 1-4h'!$G$4:$G$35139,(B15-1)*4+2),INDEX('Profils extrapolés 1-4h'!$G$4:$G$35139,(B15-1)*4+3),INDEX('Profils extrapolés 1-4h'!$G$4:$G$35139,(B15-1)*4+4)) -> 6.055047774 | E15: Janvier | H15: 24.11620286 | I15: 337.62684 | J15: 18191.48942 | K15: 0
A16: 2022-01-01T14:00:00 | B16: 15 | C16: =AVERAGE(INDEX('Profils extrapolés 1-4h'!$I$4:$I$35139,(B16-1)*4+1),INDEX('Profils extrapolés 1-4h'!$I$4:$I$35139,(B16-1)*4+2),INDEX('Profils extrapolés 1-4h'!$I$4:$I$35139,(B16-1)*4+3),INDEX('Profils extrapolés 1-4h'!$I$4:$I$35139,(B16-1)*4+4)) -> 0 | D16: =AVERAGE(INDEX('Profils extrapolés 1-4h'!$G$4:$G$35139,(B16-1)*4+1),INDEX('Profils extrapolés 1-4h'!$G$4:$G$35139,(B16-1)*4+2),INDEX('Profils extrapolés 1-4h'!$G$4:$G$35139,(B16-1)*4+3),INDEX('Profils extrapolés 1-4h'!$G$4:$G$35139,(B16-1)*4+4)) -> 6.041223464 | E16: Janvier | F16: =VLOOKUP(warning_do_use_sheet,Translations,indice_trad,FALSE) -> Attention : ne pas utiliser cette feuille ! | H16: 24.03379197 | I16: 360.5068795 | J16: 18191.48942 | K16: 0
A17: 2022-01-01T15:00:00 | B17: 16 | C17: =AVERAGE(INDEX('Profils extrapolés 1-4h'!$I$4:$I$35139,(B17-1)*4+1),INDEX('Profils extrapolés 1-4h'!$I$4:$I$35139,(B17-1)*4+2),INDEX('Profils extrapolés 1-4h'!$I$4:$I$35139,(B17-1)*4+3),INDEX('Profils extrapolés 1-4h'!$I$4:$I$35139,(B17-1)*4+4)) -> 0 | D17: =AVERAGE(INDEX('Profils extrapolés 1-4h'!$G$4:$G$35139,(B17-1)*4+1),INDEX('Profils extrapolés 1-4h'!$G$4:$G$35139,(B17-1)*4+2),INDEX('Profils extrapolés 1-4h'!$G$4:$G$35139,(B17-1)*4+3),INDEX('Profils extrapolés 1-4h'!$G$4:$G$35139,(B17-1)*4+4)) -> 6.110345014 | E17: Janvier | H17: 24.00397364 | I17: 384.0635782 | J17: 18191.48942 | K17: 0
A18: 2022-01-01T16:00:00 | B18: 17 | C18: =AVERAGE(INDEX('Profils extrapolés 1-4h'!$I$4:$I$35139,(B18-1)*4+1),INDEX('Profils extrapolés 1-4h'!$I$4:$I$35139,(B18-1)*4+2),INDEX('Profils extrapolés 1-4h'!$I$4:$I$35139,(B18-1)*4+3),INDEX('Profils extrapolés 1-4h'!$I$4:$I$35139,(B18-1)*4+4)) -> 0 | D18: =AVERAGE(INDEX('Profils extrapolés 1-4h'!$G$4:$G$35139,(B18-1)*4+1),INDEX('Profils extrapolés 1-4h'!$G$4:$G$35139,(B18-1)*4+2),INDEX('Profils extrapolés 1-4h'!$G$4:$G$35139,(B18-1)*4+3),INDEX('Profils extrapolés 1-4h'!$G$4:$G$35139,(B18-1)*4+4)) -> 6.041223464 | E18: Janvier | H18: 23.97950616 | I18: 407.6516047 | J18: 18191.48942 | K18: 0
A19: 2022-01-01T17:00:00 | B19: 18 | C19: =AVERAGE(INDEX('Profils extrapolés 1-4h'!$I$4:$I$35139,(B19-1)*4+1),INDEX('Profils extrapolés 1-4h'!$I$4:$I$35139,(B19-1)*4+2),INDEX('Profils extrapolés 1-4h'!$I$4:$I$35139,(B19-1)*4+3),INDEX('Profils extrapolés 1-4h'!$I$4:$I$35139,(B19-1)*4+4)) -> 0 | D19: =AVERAGE(INDEX('Profils extrapolés 1-4h'!$G$4:$G$35139,(B19-1)*4+1),INDEX('Profils extrapolés 1-4h'!$G$4:$G$35139,(B19-1)*4+2),INDEX('Profils extrapolés 1-4h'!$G$4:$G$35139,(B19-1)*4+3),INDEX('Profils extrapolés 1-4h'!$G$4:$G$35139,(B19-1)*4+4)) -> 6.151817944 | E19: Janvier | H19: 23.95362172 | I19: 431.1651909 | J19: 18191.48942 | K19: 0
A20: 2022-01-01T18:00:00 | B20: 19 | C20: =AVERAGE(INDEX('Profils extrapolés 1-4h'!$I$4:$I$35139,(B20-1)*4+1),INDEX('Profils extrapolés 1-4h'!$I$4:$I$35139,(B20-1)*4+2),INDEX('Profils extrapolés 1-4h'!$I$4:$I$35139,(B20-1)*4+3),INDEX('Profils extrapolés 1-4h'!$I$4:$I$35139,(B20-1)*4+4)) -> 0 | D20: =AVERAGE(INDEX('Profils extrapolés 1-4h'!$G$4:$G$35139,(B20-1)*4+1),INDEX('Profils extrapolés 1-4h'!$G$4:$G$35139,(B20-1)*4+2),INDEX('Profils extrapolés 1-4h'!$G$4:$G$35139,(B20-1)*4+3),INDEX('Profils extrapolés 1-4h'!$G$4:$G$35139,(B20-1)*4+4)) -> 6.511250004 | E20: Janvier | H20: 23.92873062 | I20: 454.6458817 | J20: 18191.48942 | K20: 0
A21: 2022-01-01T19:00:00 | B21: 20 | C21: =AVERAGE(INDEX('Profils extrapolés 1-4h'!$I$4:$I$35139,(B21-1)*4+1),INDEX('Profils extrapolés 1-4h'!$I$4:$I$35139,(B21-1)*4+2),INDEX('Profils extrapolés 1-4h'!$I$4:$I$35139,(B21-1)*4+3),INDEX('Profils extrapolés 1-4h'!$I$4:$I$35139,(B21-1)*4+4)) -> 0 | D21: =AVERAGE(INDEX('Profils extrapolés 1-4h'!$G$4:$G$35139,(B21-1)*4+1),INDEX('Profils extrapolés 1-4h'!$G$4:$G$35139,(B21-1)*4+2),INDEX('Profils extrapolés 1-4h'!$G$4:$G$35139,(B21-1)*4+3),INDEX('Profils extrapolés 1-4h'!$G$4:$G$35139,(B21-1)*4+4)) -> 6.193290874 | E21: Janvier | H21: 23.90247692 | I21: 478.0495384 | J21: 18191.48942 | K21: 0
A22: 2022-01-01T20:00:00 | B22: 21 | C22: =AVERAGE(INDEX('Profils extrapolés 1-4h'!$I$4:$I$35139,(B22-1)*4+1),INDEX('Profils extrapolés 1-4h'!$I$4:$I$35139,(B22-1)*4+2),INDEX('Profils extrapolés 1-4h'!$I$4:$I$35139,(B22-1)*4+3),INDEX('Profils extrapolés 1-4h'!$I$4:$I$35139,(B22-1)*4+4)) -> 0 | D22: =AVERAGE(INDEX('Profils extrapolés 1-4h'!$G$4:$G$35139,(B22-1)*4+1),INDEX('Profils extrapolés 1-4h'!$G$4:$G$35139,(B22-1)*4+2),INDEX('Profils extrapolés 1-4h'!$G$4:$G$35139,(B22-1)*4+3),INDEX('Profils extrapolés 1-4h'!$G$4:$G$35139,(B22-1)*4+4)) -> 5.861507434 | E22: Janvier | H22: 23.8781129 | I22: 501.4403708 | J22: 18191.48942 | K22: 0
A23: 2022-01-01T21:00:00 | B23: 22 | C23: =AVERAGE(INDEX('Profils extrapolés 1-4h'!$I$4:$I$35139,(B23-1)*4+1),INDEX('Profils extrapolés 1-4h'!$I$4:$I$35139,(B23-1)*4+2),INDEX('Profils extrapolés 1-4h'!$I$4:$I$35139,(B23-1)*4+3),INDEX('Profils extrapolés 1-4h'!$I$4:$I$35139,(B23-1)*4+4)) -> 0 | D23: =AVERAGE(INDEX('Profils extrapolés 1-4h'!$G$4:$G$35139,(B23-1)*4+1),INDEX('Profils extrapolés 1-4h'!$G$4:$G$35139,(B23-1)*4+2),INDEX('Profils extrapolés 1-4h'!$G$4:$G$35139,(B23-1)*4+3),INDEX('Profils extrapolés 1-4h'!$G$4:$G$35139,(B23-1)*4+4)) -> 5.875331744 | E23: Janvier | H23: 23.85172856 | I23: 524.7380283 | J23: 18191.48942 | K23: 0
A24: 2022-01-01T22:00:00 | B24: 23 | C24: =AVERAGE(INDEX('Profils extrapolés 1-4h'!$I$4:$I$35139,(B24-1)*4+1),INDEX('Profils extrapolés 1-4h'!$I$4:$I$35139,(B24-1)*4+2),INDEX('Profils extrapolés 1-4h'!$I$4:$I$35139,(B24-1)*4+3),INDEX('Profils extrapolés 1-4h'!$I$4:$I$35139,(B24-1)*4+4)) -> 0 | D24: =AVERAGE(INDEX('Profils extrapolés 1-4h'!$G$4:$G$35139,(B24-1)*4+1),INDEX('Profils extrapolés 1-4h'!$G$4:$G$35139,(B24-1)*4+2),INDEX('Profils extrapolés 1-4h'!$G$4:$G$35139,(B24-1)*4+3),INDEX('Profils extrapolés 1-4h'!$G$4:$G$35139,(B24-1)*4+4)) -> 4.714089705 | E24: Janvier | H24: 23.85172856 | I24: 548.5897569 | J24: 18191.48942 | K24: 0
A25: 2022-01-01T23:00:00 | B25: 24 | C25: =AVERAGE(INDEX('Profils extrapolés 1-4h'!$I$4:$I$35139,(B25-1)*4+1),INDEX('Profils extrapolés 1-4h'!$I$4:$I$35139,(B25-1)*4+2),INDEX('Profils extrapolés 1-4h'!$I$4:$I$35139,(B25-1)*4+3),INDEX('Profils extrapolés 1-4h'!$I$4:$I$35139,(B25-1)*4+4)) -> 0 | D25: =AVERAGE(INDEX('Profils extrapolés 1-4h'!$G$4:$G$35139,(B25-1)*4+1),INDEX('Profils extrapolés 1-4h'!$G$4:$G$35139,(B25-1)*4+2),INDEX('Profils extrapolés 1-4h'!$G$4:$G$35139,(B25-1)*4+3),INDEX('Profils extrapolés 1-4h'!$G$4:$G$35139,(B25-1)*4+4)) -> 4.644968155 | E25: Janvier | H25: 23.85172856 | I25: 572.4414855 | J25: 18191.48942 | K25: 0
A26: 2022-01-02 | B26: 25 | C26: =AVERAGE(INDEX('Profils extrapolés 1-4h'!$I$4:$I$35139,(B26-1)*4+1),INDEX('Profils extrapolés 1-4h'!$I$4:$I$35139,(B26-1)*4+2),INDEX('Profils extrapolés 1-4h'!$I$4:$I$35139,(B26-1)*4+3),INDEX('Profils extrapolés 1-4h'!$I$4:$I$35139,(B26-1)*4+4)) -> 0 | D26: =AVERAGE(INDEX('Profils extrapolés 1-4h'!$G$4:$G$35139,(B26-1)*4+1),INDEX('Profils extrapolés 1-4h'!$G$4:$G$35139,(B26-1)*4+2),INDEX('Profils extrapolés 1-4h'!$G$4:$G$35139,(B26-1)*4+3),INDEX('Profils extrapolés 1-4h'!$G$4:$G$35139,(B26-1)*4+4)) -> 5.023879188 | E26: Janvier | H26: 23.82755205 | I26: 595.6888013 | J26: 18191.48942 | K26: 0
A27: 2022-01-02T01:00:00 | B27: 26 | C27: =AVERAGE(INDEX('Profils extrapolés 1-4h'!$I$4:$I$35139,(B27-1)*4+1),INDEX('Profils extrapolés 1-4h'!$I$4:$I$35139,(B27-1)*4+2),INDEX('Profils extrapolés 1-4h'!$I$4:$I$35139,(B27-1)*4+3),INDEX('Profils extrapolés 1-4h'!$I$4:$I$35139,(B27-1)*4+4)) -> 0 | D27: =AVERAGE(INDEX('Profils extrapolés 1-4h'!$G$4:$G$35139,(B27-1)*4+1),INDEX('Profils extrapolés 1-4h'!$G$4:$G$35139,(B27-1)*4+2),INDEX('Profils extrapolés 1-4h'!$G$4:$G$35139,(B27-1)*4+3),INDEX('Profils extrapolés 1-4h'!$G$4:$G$35139,(B27-1)*4+4)) -> 5.127311995 | E27: Janvier | H27: 23.82741627 | I27: 619.5128229 | J27: 18191.48942 | K27: 0
A28: 2022-01-02T02:00:00 | B28: 27 | C28: =AVERAGE(INDEX('Profils extrapolés 1-4h'!$I$4:$I$35139,(B28-1)*4+1),INDEX('Profils extrapolés 1-4h'!$I$4:$I$35139,(B28-1)*4+2),INDEX('Profils extrapolés 1-4h'!$I$4:$I$35139,(B28-1)*4+3),INDEX('Profils extrapolés 1-4h'!$I$4:$I$35139,(B28-1)*4+4)) -> 0 | D28: =AVERAGE(INDEX('Profils extrapolés 1-4h'!$G$4:$G$35139,(B28-1)*4+1),INDEX('Profils extrapolés 1-4h'!$G$4:$G$35139,(B28-1)*4+2),INDEX('Profils extrapolés 1-4h'!$G$4:$G$35139,(B28-1)*4+3),INDEX('Profils extrapolés 1-4h'!$G$4:$G$35139,(B28-1)*4+4)) -> 5.068207534 | E28: Janvier | H28: 23.82741627 | I28: 643.3402392 | J28: 18191.48942 | K28: 0
A29: 2022-01-02T03:00:00 | B29: 28 | C29: =AVERAGE(INDEX('Profils extrapolés 1-4h'!$I$4:$I$35139,(B29-1)*4+1),INDEX('Profils extrapolés 1-4h'!$I$4:$I$35139,(B29-1)*4+2),INDEX('Profils extrapolés 1-4h'!$I$4:$I$35139,(B29-1)*4+3),INDEX('Profils extrapolés 1-4h'!$I$4:$I$35139,(B29-1)*4+4)) -> 0 | D29: =AVERAGE(INDEX('Profils extrapolés 1-4h'!$G$4:$G$35139,(B29-1)*4+1),INDEX('Profils extrapolés 1-4h'!$G$4:$G$35139,(B29-1)*4+2),INDEX('Profils extrapolés 1-4h'!$G$4:$G$35139,(B29-1)*4+3),INDEX('Profils extrapolés 1-4h'!$G$4:$G$35139,(B29-1)*4+4)) -> 5.171640341 | E29: Janvier | H29: 23.82741627 | I29: 667.1676555 | J29: 18191.48942 | K29: 0
A30: 2022-01-02T04:00:00 | B30: 29 | C30: =AVERAGE(INDEX('Profils extrapolés 1-4h'!$I$4:$I$35139,(B30-1)*4+1),INDEX('Profils extrapolés 1-4h'!$I$4:$I$35139,(B30-1)*4+2),INDEX('Profils extrapolés 1-4h'!$I$4:$I$35139,(B30-1)*4+3),INDEX('Profils extrapolés 1-4h'!$I$4:$I$35139,(B30-1)*4+4)) -> 0 | D30: =AVERAGE(INDEX('Profils extrapolés 1-4h'!$G$4:$G$35139,(B30-1)*4+1),INDEX('Profils extrapolés 1-4h'!$G$4:$G$35139,(B30-1)*4+2),INDEX('Profils extrapolés 1-4h'!$G$4:$G$35139,(B30-1)*4+3),INDEX('Profils extrapolés 1-4h'!$G$4:$G$35139,(B30-1)*4+4)) -> 5.4228343 | E30: Janvier | H30: 23.77696277 | I30: 689.5319203 | J30: 18191.48942 | K30: 0
A31: 2022-01-02T05:00:00 | B31: 30 | C31: =AVERAGE(INDEX('Profils extrapolés 1-4h'!$I$4:$I$35139,(B31-1)*4+1),INDEX('Profils extrapolés 1-4h'!$I$4:$I$35139,(B31-1)*4+2),INDEX('Profils extrapolés 1-4h'!$I$4:$I$35139,(B31-1)*4+3),INDEX('Profils extrapolés 1-4h'!$I$4:$I$35139,(B31-1)*4+4)) -> 0 | D31: =AVERAGE(INDEX('Profils extrapolés 1-4h'!$G$4:$G$35139,(B31-1)*4+1),INDEX('Profils extrapolés 1-4h'!$G$4:$G$35139,(B31-1)*4+2),INDEX('Profils extrapolés 1-4h'!$G$4:$G$35139,(B31-1)*4+3),INDEX('Profils extrapolés 1-4h'!$G$4:$G$35139,(B31-1)*4+4)) -> 5.821789412 | E31: Janvier | H31: 23.77696277 | I31: 713.3088831 | J31: 18191.48942 | K31: 0
A32: 2022-01-02T06:00:00 | B32: 31 | C32: =AVERAGE(INDEX('Profils extrapolés 1-4h'!$I$4:$I$35139,(B32-1)*4+1),INDEX('Profils extrapolés 1-4h'!$I$4:$I$35139,(B32-1)*4+2),INDEX('Profils extrapolés 1-4h'!$I$4:$I$35139,(B32-1)*4+3),INDEX('Profils extrapolés 1-4h'!$I$4:$I$35139,(B32-1)*4+4)) -> 0 | D32: =AVERAGE(INDEX('Profils extrapolés 1-4h'!$G$4:$G$35139,(B32-1)*4+1),INDEX('Profils extrapolés 1-4h'!$G$4:$G$35139,(B32-1)*4+2),INDEX('Profils extrapolés 1-4h'!$G$4:$G$35139,(B32-1)*4+3),INDEX('Profils extrapolés 1-4h'!$G$4:$G$35139,(B32-1)*4+4)) -> 6.250296755 | E32: Janvier | H32: 23.77696277 | I32: 737.0858459 | J32: 18191.48942 | K32: 0
A33: 2022-01-02T07:00:00 | B33: 32 | C33: =AVERAGE(INDEX('Profils extrapolés 1-4h'!$I$4:$I$35139,(B33-1)*4+1),INDEX('Profils extrapolés 1-4h'!$I$4:$I$35139,(B33-1)*4+2),INDEX('Profils extrapolés 1-4h'!$I$4:$I$35139,(B33-1)*4+3),INDEX('Profils extrapolés 1-4h'!$I$4:$I$35139,(B33-1)*4+4)) -> 0 | D33: =AVERAGE(INDEX('Profils extrapolés 1-4h'!$G$4:$G$35139,(B33-1)*4+1),INDEX('Profils extrapolés 1-4h'!$G$4:$G$35139,(B33-1)*4+2),INDEX('Profils extrapolés 1-4h'!$G$4:$G$35139,(B33-1)*4+3),INDEX('Profils extrapolés 1-4h'!$G$4:$G$35139,(B33-1)*4+4)) -> 6.989102518 | E33: Janvier | H33: 23.73684686 | I33: 759.5790995 | J33: 18191.48942 | K33: 0
A34: 2022-01-02T08:00:00 | B34: 33 | C34: =AVERAGE(INDEX('Profils extrapolés 1-4h'!$I$4:$I$35139,(B34-1)*4+1),INDEX('Profils extrapolés 1-4h'!$I$4:$I$35139,(B34-1)*4+2),INDEX('Profils extrapolés 1-4h'!$I$4:$I$35139,(B34-1)*4+3),INDEX('Profils extrapolés 1-4h'!$I$4:$I$35139,(B34-1)*4+4)) -> 0 | D34: =AVERAGE(INDEX('Profils extrapolés 1-4h'!$G$4:$G$35139,(B34-1)*4+1),INDEX('Profils extrapolés 1-4h'!$G$4:$G$35139,(B34-1)*4+2),INDEX('Profils extrapolés 1-4h'!$G$4:$G$35139,(B34-1)*4+3),INDEX('Profils extrapolés 1-4h'!$G$4:$G$35139,(B34-1)*4+4)) -> 6.944774172 | E34: Janvier | H34: 23.68265314 | I34: 781.5275538 | J34: 18191.48942 | K34: 0
A35: 2022-01-02T09:00:00 | B35: 34 | C35: =AVERAGE(INDEX('Profils extrapolés 1-4h'!$I$4:$I$35139,(B35-1)*4+1),INDEX('Profils extrapolés 1-4h'!$I$4:$I$35139,(B35-1)*4+2),INDEX('Profils extrapolés 1-4h'!$I$4:$I$35139,(B35-1)*4+3),INDEX('Profils extrapolés 1-4h'!$I$4:$I$35139,(B35-1)*4+4)) -> 0 | D35: =AVERAGE(INDEX('Profils extrapolés 1-4h'!$G$4:$G$35139,(B35-1)*4+1),INDEX('Profils extrapolés 1-4h'!$G$4:$G$35139,(B35-1)*4+2),INDEX('Profils extrapolés 1-4h'!$G$4:$G$35139,(B35-1)*4+3),INDEX('Profils extrapolés 1-4h'!$G$4:$G$35139,(B35-1)*4+4)) -> 6.944774172 | E35: Janvier | H35: 23.68265314 | I35: 805.2102069 | J35: 18191.48942 | K35: 0
A36: 2022-01-02T10:00:00 | B36: 35 | C36: =AVERAGE(INDEX('Profils extrapolés 1-4h'!$I$4:$I$35139,(B36-1)*4+1),INDEX('Profils extrapolés 1-4h'!$I$4:$I$35139,(B36-1)*4+2),INDEX('Profils extrapolés 1-4h'!$I$4:$I$35139,(B36-1)*4+3),INDEX('Profils extrapolés 1-4h'!$I$4:$I$35139,(B36-1)*4+4)) -> 0 | D36: =AVERAGE(INDEX('Profils extrapolés 1-4h'!$G$4:$G$35139,(B36-1)*4+1),INDEX('Profils extrapolés 1-4h'!$G$4:$G$35139,(B36-1)*4+2),INDEX('Profils extrapolés 1-4h'!$G$4:$G$35139,(B36-1)*4+3),INDEX('Profils extrapolés 1-4h'!$G$4:$G$35139,(B36-1)*4+4)) -> 6.944774172 | E36: Janvier | H36: 23.64248022 | I36: 827.4868077 | J36: 18191.48942 | K36: 0
A37: 2022-01-02T11:00:00 | B37: 36 | C37: =AVERAGE(INDEX('Profils extrapolés 1-4h'!$I$4:$I$35139,(B37-1)*4+1),INDEX('Profils extrapolés 1-4h'!$I$4:$I$35139,(B37-1)*4+2),INDEX('Profils extrapolés 1-4h'!$I$4:$I$35139,(B37-1)*4+3),INDEX('Profils extrapolés 1-4h'!$I$4:$I$35139,(B37-1)*4+4)) -> 0 | D37: =AVERAGE(INDEX('Profils extrapolés 1-4h'!$G$4:$G$35139,(B37-1)*4+1),INDEX('Profils extrapolés 1-4h'!$G$4:$G$35139,(B37-1)*4+2),INDEX('Profils extrapolés 1-4h'!$G$4:$G$35139,(B37-1)*4+3),INDEX('Profils extrapolés 1-4h'!$G$4:$G$35139,(B37-1)*4+4)) -> 6.811789135 | E37: Janvier | H37: 23.54251202 | I37: 847.5304326 | J37: 18191.48942 | K37: 0
A38: 2022-01-02T12:00:00 | B38: 37 | C38: =AVERAGE(INDEX('Profils extrapolés 1-4h'!$I$4:$I$35139,(B38-1)*4+1),INDEX('Profils extrapolés 1-4h'!$I$4:$I$35139,(B38-1)*4+2),INDEX('Profils extrapolés 1-4h'!$I$4:$I$35139,(B38-1)*4+3),INDEX('Profils extrapolés 1-4h'!$I$4:$I$35139,(B38-1)*4+4)) -> 0 | D38: =AVERAGE(INDEX('Profils extrapolés 1-4h'!$G$4:$G$35139,(B38-1)*4+1),INDEX('Profils extrapolés 1-4h'!$G$4:$G$35139,(B38-1)*4+2),INDEX('Profils extrapolés 1-4h'!$G$4:$G$35139,(B38-1)*4+3),INDEX('Profils extrapolés 1-4h'!$G$4:$G$35139,(B38-1)*4+4)) -> 6.619699637 | E38: Janvier | H38: 23.54039768 | I38: 870.9947143 | J38: 18191.48942 | K38: 0
A39: 2022-01-02T13:00:00 | B39: 38 | C39: =AVERAGE(INDEX('Profils extrapolés 1-4h'!$I$4:$I$35139,(B39-1)*4+1),INDEX('Profils extrapolés 1-4h'!$I$4:$I$35139,(B39-1)*4+2),INDEX('Profils extrapolés 1-4h'!$I$4:$I$35139,(B39-1)*4+3),INDEX('Profils extrapolés 1-4h'!$I$4:$I$35139,(B39-1)*4+4)) -> 0 | D39: =AVERAGE(INDEX('Profils extrapolés 1-4h'!$G$4:$G$35139,(B39-1)*4+1),INDEX('Profils extrapolés 1-4h'!$G$4:$G$35139,(B39-1)*4+2),INDEX('Profils extrapolés 1-4h'!$G$4:$G$35139,(B39-1)*4+3),INDEX('Profils extrapolés 1-4h'!$G$4:$G$35139,(B39-1)*4+4)) -> 6.471938484 | E39: Janvier | H39: 23.49252791 | I39: 892.7160607 | J39: 18191.48942 | K39: 0
A40: 2022-01-02T14:00:00 | B40: 39 | C40: =AVERAGE(INDEX('Profils extrapolés 1-4h'!$I$4:$I$35139,(B40-1)*4+1),INDEX('Profils extrapolés 1-4h'!$I$4:$I$35139,(B40-1)*4+2),INDEX('Profils extrapolés 1-4h'!$I$4:$I$35139,(B40-1)*4+3),INDEX('Profils extrapolés 1-4h'!$I$4:$I$35139,(B40-1)*4+4)) -> 0 | D40: =AVERAGE(INDEX('Profils extrapolés 1-4h'!$G$4:$G$35139,(B40-1)*4+1),INDEX('Profils extrapolés 1-4h'!$G$4:$G$35139,(B40-1)*4+2),INDEX('Profils extrapolés 1-4h'!$G$4:$G$35139,(B40-1)*4+3),INDEX('Profils extrapolés 1-4h'!$G$4:$G$35139,(B40-1)*4+4)) -> 6.457162369 | E40: Janvier | H40: 23.49252791 | I40: 916.2085887 | J40: 18191.48942 | K40: 0
A41: 2022-01-02T15:00:00 | B41: 40 | C41: =AVERAGE(INDEX('Profils extrapolés 1-4h'!$I$4:$I$35139,(B41-1)*4+1),INDEX('Profils extrapolés 1-4h'!$I$4:$I$35139,(B41-1)*4+2),INDEX('Profils extrapolés 1-4h'!$I$4:$I$35139,(B41-1)*4+3),INDEX('Profils extrapolés 1-4h'!$I$4:$I$35139,(B41-1)*4+4)) -> 0 | D41: =AVERAGE(INDEX('Profils extrapolés 1-4h'!$G$4:$G$35139,(B41-1)*4+1),INDEX('Profils extrapolés 1-4h'!$G$4:$G$35139,(B41-1)*4+2),INDEX('Profils extrapolés 1-4h'!$G$4:$G$35139,(B41-1)*4+3),INDEX('Profils extrapolés 1-4h'!$G$4:$G$35139,(B41-1)*4+4)) -> 6.531042945 | E41: Janvier | H41: 23.49252791 | I41: 939.7011166 | J41: 18191.48942 | K41: 0
A42: 2022-01-02T16:00:00 | B42: 41 | C42: =AVERAGE(INDEX('Profils extrapolés 1-4h'!$I$4:$I$35139,(B42-1)*4+1),INDEX('Profils extrapolés 1-4h'!$I$4:$I$35139,(B42-1)*4+2),INDEX('Profils extrapolés 1-4h'!$I$4:$I$35139,(B42-1)*4+3),INDEX('Profils extrapolés 1-4h'!$I$4:$I$35139,(B42-1)*4+4)) -> 0 | D42: =AVERAGE(INDEX('Profils extrapolés 1-4h'!$G$4:$G$35139,(B42-1)*4+1),INDEX('Profils extrapolés 1-4h'!$G$4:$G$35139,(B42-1)*4+2),INDEX('Profils extrapolés 1-4h'!$G$4:$G$35139,(B42-1)*4+3),INDEX('Profils extrapolés 1-4h'!$G$4:$G$35139,(B42-1)*4+4)) -> 6.457162369 | E42: Janvier | H42: 23.46721294 | I42: 962.1557304 | J42: 18191.48942 | K42: 0
A43: 2022-01-02T17:00:00 | B43: 42 | C43: =AVERAGE(INDEX('Profils extrapolés 1-4h'!$I$4:$I$35139,(B43-1)*4+1),INDEX('Profils extrapolés 1-4h'!$I$4:$I$35139,(B43-1)*4+2),INDEX('Profils extrapolés 1-4h'!$I$4:$I$35139,(B43-1)*4+3),INDEX('Profils extrapolés 1-4h'!$I$4:$I$35139,(B43-1)*4+4)) -> 0 | D43: =AVERAGE(INDEX('Profils extrapolés 1-4h'!$G$4:$G$35139,(B43-1)*4+1),INDEX('Profils extrapolés 1-4h'!$G$4:$G$35139,(B43-1)*4+2),INDEX('Profils extrapolés 1-4h'!$G$4:$G$35139,(B43-1)*4+3),INDEX('Profils extrapolés 1-4h'!$G$4:$G$35139,(B43-1)*4+4)) -> 6.575371291 | E43: Janvier | H43: 23.44086112 | I43: 984.5161669 | J43: 18191.48942 | K43: 0
A44: 2022-01-02T18:00:00 | B44: 43 | C44: =AVERAGE(INDEX('Profils extrapolés 1-4h'!$I$4:$I$35139,(B44-1)*4+1),INDEX('Profils extrapolés 1-4h'!$I$4:$I$35139,(B44-1)*4+2),INDEX('Profils extrapolés 1-4h'!$I$4:$I$35139,(B44-1)*4+3),INDEX('Profils extrapolés 1-4h'!$I$4:$I$35139,(B44-1)*4+4)) -> 0 | D44: =AVERAGE(INDEX('Profils extrapolés 1-4h'!$G$4:$G$35139,(B44-1)*4+1),INDEX('Profils extrapolés 1-4h'!$G$4:$G$35139,(B44-1)*4+2),INDEX('Profils extrapolés 1-4h'!$G$4:$G$35139,(B44-1)*4+3),INDEX('Profils extrapolés 1-4h'!$G$4:$G$35139,(B44-1)*4+4)) -> 6.959550287 | E44: Janvier | H44: 23.39499333 | I44: 1005.984713 | J44: 18191.48942 | K44: 0
A45: 2022-01-02T19:00:00 | B45: 44 | C45: =AVERAGE(INDEX('Profils extrapolés 1-4h'!$I$4:$I$35139,(B45-1)*4+1),INDEX('Profils extrapolés 1-4h'!$I$4:$I$35139,(B45-1)*4+2),INDEX('Profils extrapolés 1-4h'!$I$4:$I$35139,(B45-1)*4+3),INDEX('Profils extrapolés 1-4h'!$I$4:$I$35139,(B45-1)*4+4)) -> 0 | D45: =AVERAGE(INDEX('Profils extrapolés 1-4h'!$G$4:$G$35139,(B45-1)*4+1),INDEX('Profils extrapolés 1-4h'!$G$4:$G$35139,(B45-1)*4+2),INDEX('Profils extrapolés 1-4h'!$G$4:$G$35139,(B45-1)*4+3),INDEX('Profils extrapolés 1-4h'!$G$4:$G$35139,(B45-1)*4+4)) -> 6.619699637 | E45: Janvier | H45: 23.39109283 | I45: 1029.208085 | J45: 18191.48942 | K45: 0
A46: 2022-01-02T20:00:00 | B46: 45 | C46: =AVERAGE(INDEX('Profils extrapolés 1-4h'!$I$4:$I$35139,(B46-1)*4+1),INDEX('Profils extrapolés 1-4h'!$I$4:$I$35139,(B46-1)*4+2),INDEX('Profils extrapolés 1-4h'!$I$4:$I$35139,(B46-1)*4+3),INDEX('Profils extrapolés 1-4h'!$I$4:$I$35139,(B46-1)*4+4)) -> 0 | D46: =AVERAGE(INDEX('Profils extrapolés 1-4h'!$G$4:$G$35139,(B46-1)*4+1),INDEX('Profils extrapolés 1-4h'!$G$4:$G$35139,(B46-1)*4+2),INDEX('Profils extrapolés 1-4h'!$G$4:$G$35139,(B46-1)*4+3),INDEX('Profils extrapolés 1-4h'!$G$4:$G$35139,(B46-1)*4+4)) -> 6.26507287 | E46: Janvier | H46: 23.39109283 | I46: 1052.599178 | J46: 18191.48942 | K46: 0
A47: 2022-01-02T21:00:00 | B47: 46 | C47: =AVERAGE(INDEX('Profils extrapolés 1-4h'!$I$4:$I$35139,(B47-1)*4+1),INDEX('Profils extrapolés 1-4h'!$I$4:$I$35139,(B47-1)*4+2),INDEX('Profils extrapolés 1-4h'!$I$4:$I$35139,(B47-1)*4+3),INDEX('Profils extrapolés 1-4h'!$I$4:$I$35139,(B47-1)*4+4)) -> 0 | D47: =AVERAGE(INDEX('Profils extrapolés 1-4h'!$G$4:$G$35139,(B47-1)*4+1),INDEX('Profils extrapolés 1-4h'!$G$4:$G$35139,(B47-1)*4+2),INDEX('Profils extrapolés 1-4h'!$G$4:$G$35139,(B47-1)*4+3),INDEX('Profils extrapolés 1-4h'!$G$4:$G$35139,(B47-1)*4+4)) -> 6.279848986 | E47: Janvier | H47: 23.39109283 | I47: 1075.99027 | J47: 18191.48942 | K47: 0
A48: 2022-01-02T22:00:00 | B48: 47 | C48: =AVERAGE(INDEX('Profils extrapolés 1-4h'!$I$4:$I$35139,(B48-1)*4+1),INDEX('Profils extrapolés 1-4h'!$I$4:$I$35139,(B48-1)*4+2),INDEX('Profils extrapolés 1-4h'!$I$4:$I$35139,(B48-1)*4+3),INDEX('Profils extrapolés 1-4h'!$I$4:$I$35139,(B48-1)*4+4)) -> 0 | D48: =AVERAGE(INDEX('Profils extrapolés 1-4h'!$G$4:$G$35139,(B48-1)*4+1),INDEX('Profils extrapolés 1-4h'!$G$4:$G$35139,(B48-1)*4+2),INDEX('Profils extrapolés 1-4h'!$G$4:$G$35139,(B48-1)*4+3),INDEX('Profils extrapolés 1-4h'!$G$4:$G$35139,(B48-1)*4+4)) -> 5.038655304 | E48: Janvier | H48: 23.37114659 | I48: 1098.44389 | J48: 18191.48942 | K48: 0
A49: 2022-01-02T23:00:00 | B49: 48 | C49: =AVERAGE(INDEX('Profils extrapolés 1-4h'!$I$4:$I$35139,(B49-1)*4+1),INDEX('Profils extrapolés 1-4h'!$I$4:$I$35139,(B49-1)*4+2),INDEX('Profils extrapolés 1-4h'!$I$4:$I$35139,(B49-1)*4+3),INDEX('Profils extrapolés 1-4h'!$I$4:$I$35139,(B49-1)*4+4)) -> 0 | D49: =AVERAGE(INDEX('Profils extrapolés 1-4h'!$G$4:$G$35139,(B49-1)*4+1),INDEX('Profils extrapolés 1-4h'!$G$4:$G$35139,(B49-1)*4+2),INDEX('Profils extrapolés 1-4h'!$G$4:$G$35139,(B49-1)*4+3),INDEX('Profils extrapolés 1-4h'!$G$4:$G$35139,(B49-1)*4+4)) -> 4.964774727 | E49: Janvier | H49: 23.36798582 | I49: 1121.663319 | J49: 18191.48942 | K49: 0
A50: 2022-01-03 | B50: 49 | C50: =AVERAGE(INDEX('Profils extrapolés 1-4h'!$I$4:$I$35139,(B50-1)*4+1),INDEX('Profils extrapolés 1-4h'!$I$4:$I$35139,(B50-1)*4+2),INDEX('Profils extrapolés 1-4h'!$I$4:$I$35139,(B50-1)*4+3),INDEX('Profils extrapolés 1-4h'!$I$4:$I$35139,(B50-1)*4+4)) -> 0 | D50: =AVERAGE(INDEX('Profils extrapolés 1-4h'!$G$4:$G$35139,(B50-1)*4+1),INDEX('Profils extrapolés 1-4h'!$G$4:$G$35139,(B50-1)*4+2),INDEX('Profils extrapolés 1-4h'!$G$4:$G$35139,(B50-1)*4+3),INDEX('Profils extrapolés 1-4h'!$G$4:$G$35139,(B50-1)*4+4)) -> 7.572337809 | E50: Janvier | H50: 23.35604946 | I50: 1144.446424 | J50: 18191.48942 | K50: 0
A51: 2022-01-03T01:00:00 | B51: 50 | C51: =AVERAGE(INDEX('Profils extrapolés 1-4h'!$I$4:$I$35139,(B51-1)*4+1),INDEX('Profils extrapolés 1-4h'!$I$4:$I$35139,(B51-1)*4+2),INDEX('Profils extrapolés 1-4h'!$I$4:$I$35139,(B51-1)*4+3),INDEX('Profils extrapolés 1-4h'!$I$4:$I$35139,(B51-1)*4+4)) -> 0 | D51: =AVERAGE(INDEX('Profils extrapolés 1-4h'!$G$4:$G$35139,(B51-1)*4+1),INDEX('Profils extrapolés 1-4h'!$G$4:$G$35139,(B51-1)*4+2),INDEX('Profils extrapolés 1-4h'!$G$4:$G$35139,(B51-1)*4+3),INDEX('Profils extrapolés 1-4h'!$G$4:$G$35139,(B51-1)*4+4)) -> 7.728238882 | E51: Janvier | H51: 23.35604946 | I51: 1167.802473 | J51: 18191.48942 | K51: 0
A52: 2022-01-03T02:00:00 | B52: 51 | C52: =AVERAGE(INDEX('Profils extrapolés 1-4h'!$I$4:$I$35139,(B52-1)*4+1),INDEX('Profils extrapolés 1-4h'!$I$4:$I$35139,(B52-1)*4+2),INDEX('Profils extrapolés 1-4h'!$I$4:$I$35139,(B52-1)*4+3),INDEX('Profils extrapolés 1-4h'!$I$4:$I$35139,(B52-1)*4+4)) -> 0 | D52: =AVERAGE(INDEX('Profils extrapolés 1-4h'!$G$4:$G$35139,(B52-1)*4+1),INDEX('Profils extrapolés 1-4h'!$G$4:$G$35139,(B52-1)*4+2),INDEX('Profils extrapolés 1-4h'!$G$4:$G$35139,(B52-1)*4+3),INDEX('Profils extrapolés 1-4h'!$G$4:$G$35139,(B52-1)*4+4)) -> 7.639152554 | E52: Janvier | H52: 23.35011734 | I52: 1190.855985 | J52: 18191.48942 | K52: 0
A53: 2022-01-03T03:00:00 | B53: 52 | C53: =AVERAGE(INDEX('Profils extrapolés 1-4h'!$I$4:$I$35139,(B53-1)*4+1),INDEX('Profils extrapolés 1-4h'!$I$4:$I$35139,(B53-1)*4+2),INDEX('Profils extrapolés 1-4h'!$I$4:$I$35139,(B53-1)*4+3),INDEX('Profils extrapolés 1-4h'!$I$4:$I$35139,(B53-1)*4+4)) -> 0 | D53: =AVERAGE(INDEX('Profils extrapolés 1-4h'!$G$4:$G$35139,(B53-1)*4+1),INDEX('Profils extrapolés 1-4h'!$G$4:$G$35139,(B53-1)*4+2),INDEX('Profils extrapolés 1-4h'!$G$4:$G$35139,(B53-1)*4+3),INDEX('Profils extrapolés 1-4h'!$G$4:$G$35139,(B53-1)*4+4)) -> 7.795053627 | E53: Janvier | H53: 23.32165923 | I53: 1212.72628 | J53: 18191.48942 | K53: 0
A54: 2022-01-03T04:00:00 | B54: 53 | C54: =AVERAGE(INDEX('Profils extrapolés 1-4h'!$I$4:$I$35139,(B54-1)*4+1),INDEX('Profils extrapolés 1-4h'!$I$4:$I$35139,(B54-1)*4+2),INDEX('Profils extrapolés 1-4h'!$I$4:$I$35139,(B54-1)*4+3),INDEX('Profils extrapolés 1-4h'!$I$4:$I$35139,(B54-1)*4+4)) -> 0 | D54: =AVERAGE(INDEX('Profils extrapolés 1-4h'!$G$4:$G$35139,(B54-1)*4+1),INDEX('Profils extrapolés 1-4h'!$G$4:$G$35139,(B54-1)*4+2),INDEX('Profils extrapolés 1-4h'!$G$4:$G$35139,(B54-1)*4+3),INDEX('Profils extrapolés 1-4h'!$G$4:$G$35139,(B54-1)*4+4)) -> 8.173670517 | E54: Janvier | H54: 23.31837226 | I54: 1235.87373 | J54: 18191.48942 | K54: 0
A55: 2022-01-03T05:00:00 | B55: 54 | C55: =AVERAGE(INDEX('Profils extrapolés 1-4h'!$I$4:$I$35139,(B55-1)*4+1),INDEX('Profils extrapolés 1-4h'!$I$4:$I$35139,(B55-1)*4+2),INDEX('Profils extrapolés 1-4h'!$I$4:$I$35139,(B55-1)*4+3),INDEX('Profils extrapolés 1-4h'!$I$4:$I$35139,(B55-1)*4+4)) -> 0 | D55: =AVERAGE(INDEX('Profils extrapolés 1-4h'!$G$4:$G$35139,(B55-1)*4+1),INDEX('Profils extrapolés 1-4h'!$G$4:$G$35139,(B55-1)*4+2),INDEX('Profils extrapolés 1-4h'!$G$4:$G$35139,(B55-1)*4+3),INDEX('Profils extrapolés 1-4h'!$G$4:$G$35139,(B55-1)*4+4)) -> 8.775003226 | E55: Janvier | H55: 23.31837226 | I55: 1259.192102 | J55: 18191.48942 | K55: 0
A56: 2022-01-03T06:00:00 | B56: 55 | C56: =AVERAGE(INDEX('Profils extrapolés 1-4h'!$I$4:$I$35139,(B56-1)*4+1),INDEX('Profils extrapolés 1-4h'!$I$4:$I$35139,(B56-1)*4+2),INDEX('Profils extrapolés 1-4h'!$I$4:$I$35139,(B56-1)*4+3),INDEX('Profils extrapolés 1-4h'!$I$4:$I$35139,(B56-1)*4+4)) -> 0 | D56: =AVERAGE(INDEX('Profils extrapolés 1-4h'!$G$4:$G$35139,(B56-1)*4+1),INDEX('Profils extrapolés 1-4h'!$G$4:$G$35139,(B56-1)*4+2),INDEX('Profils extrapolés 1-4h'!$G$4:$G$35139,(B56-1)*4+3),INDEX('Profils extrapolés 1-4h'!$G$4:$G$35139,(B56-1)*4+4)) -> 9.420879098 | E56: Janvier | H56: 23.31837226 | I56: 1282.510474 | J56: 18191.48942 | K56: 0
A57: 2022-01-03T07:00:00 | B57: 56 | C57: =AVERAGE(INDEX('Profils extrapolés 1-4h'!$I$4:$I$35139,(B57-1)*4+1),INDEX('Profils extrapolés 1-4h'!$I$4:$I$35139,(B57-1)*4+2),INDEX('Profils extrapolés 1-4h'!$I$4:$I$35139,(B57-1)*4+3),INDEX('Profils extrapolés 1-4h'!$I$4:$I$35139,(B57-1)*4+4)) -> 0 | D57: =AVERAGE(INDEX('Profils extrapolés 1-4h'!$G$4:$G$35139,(B57-1)*4+1),INDEX('Profils extrapolés 1-4h'!$G$4:$G$35139,(B57-1)*4+2),INDEX('Profils extrapolés 1-4h'!$G$4:$G$35139,(B57-1)*4+3),INDEX('Profils extrapolés 1-4h'!$G$4:$G$35139,(B57-1)*4+4)) -> 10.53445819 | E57: Janvier | H57: 23.25138535 | I57: 1302.077579 | J57: 18191.48942 | K57: 0
A58: 2022-01-03T08:00:00 | B58: 57 | C58: =AVERAGE(INDEX('Profils extrapolés 1-4h'!$I$4:$I$35139,(B58-1)*4+1),INDEX('Profils extrapolés 1-4h'!$I$4:$I$35139,(B58-1)*4+2),INDEX('Profils extrapolés 1-4h'!$I$4:$I$35139,(B58-1)*4+3),INDEX('Profils extrapolés 1-4h'!$I$4:$I$35139,(B58-1)*4+4)) -> 0 | D58: =AVERAGE(INDEX('Profils extrapolés 1-4h'!$G$4:$G$35139,(B58-1)*4+1),INDEX('Profils extrapolés 1-4h'!$G$4:$G$35139,(B58-1)*4+2),INDEX('Profils extrapolés 1-4h'!$G$4:$G$35139,(B58-1)*4+3),INDEX('Profils extrapolés 1-4h'!$G$4:$G$35139,(B58-1)*4+4)) -> 10.46764344 | E58: Janvier | H58: 23.20201935 | I58: 1322.515103 | J58: 18191.48942 | K58: 0
A59: 2022-01-03T09:00:00 | B59: 58 | C59: =AVERAGE(INDEX('Profils extrapolés 1-4h'!$I$4:$I$35139,(B59-1)*4+1),INDEX('Profils extrapolés 1-4h'!$I$4:$I$35139,(B59-1)*4+2),INDEX('Profils extrapolés 1-4h'!$I$4:$I$35139,(B59-1)*4+3),INDEX('Profils extrapolés 1-4h'!$I$4:$I$35139,(B59-1)*4+4)) -> 0 | D59: =AVERAGE(INDEX('Profils extrapolés 1-4h'!$G$4:$G$35139,(B59-1)*4+1),INDEX('Profils extrapolés 1-4h'!$G$4:$G$35139,(B59-1)*4+2),INDEX('Profils extrapolés 1-4h'!$G$4:$G$35139,(B59-1)*4+3),INDEX('Profils extrapolés 1-4h'!$G$4:$G$35139,(B59-1)*4+4)) -> 10.46764344 | E59: Janvier | H59: 23.20201935 | I59: 1345.717122 | J59: 18191.48942 | K59: 0
A60: 2022-01-03T10:00:00 | B60: 59 | C60: =AVERAGE(INDEX('Profils extrapolés 1-4h'!$I$4:$I$35139,(B60-1)*4+1),INDEX('Profils extrapolés 1-4h'!$I$4:$I$35139,(B60-1)*4+2),INDEX('Profils extrapolés 1-4h'!$I$4:$I$35139,(B60-1)*4+3),INDEX('Profils extrapolés 1-4h'!$I$4:$I$35139,(B60-1)*4+4)) -> 0 | D60: =AVERAGE(INDEX('Profils extrapolés 1-4h'!$G$4:$G$35139,(B60-1)*4+1),INDEX('Profils extrapolés 1-4h'!$G$4:$G$35139,(B60-1)*4+2),INDEX('Profils extrapolés 1-4h'!$G$4:$G$35139,(B60-1)*4+3),INDEX('Profils extrapolés 1-4h'!$G$4:$G$35139,(B60-1)*4+4)) -> 10.46764344 | E60: Janvier | H60: 23.20201935 | I60: 1368.919141 | J60: 18191.48942 | K60: 0
A61: 2022-01-03T11:00:00 | B61: 60 | C61: =AVERAGE(INDEX('Profils extrapolés 1-4h'!$I$4:$I$35139,(B61-1)*4+1),INDEX('Profils extrapolés 1-4h'!$I$4:$I$35139,(B61-1)*4+2),INDEX('Profils extrapolés 1-4h'!$I$4:$I$35139,(B61-1)*4+3),INDEX('Profils extrapolés 1-4h'!$I$4:$I$35139,(B61-1)*4+4)) -> 0 | D61: =AVERAGE(INDEX('Profils extrapolés 1-4h'!$G$4:$G$35139,(B61-1)*4+1),INDEX('Profils extrapolés 1-4h'!$G$4:$G$35139,(B61-1)*4+2),INDEX('Profils extrapolés 1-4h'!$G$4:$G$35139,(B61-1)*4+3),INDEX('Profils extrapolés 1-4h'!$G$4:$G$35139,(B61-1)*4+4)) -> 10.26719921 | E61: Janvier | H61: 23.19964734 | I61: 1391.978841 | J61: 18191.48942 | K61: 0
A62: 2022-01-03T12:00:00 | B62: 61 | C62: =AVERAGE(INDEX('Profils extrapolés 1-4h'!$I$4:$I$35139,(B62-1)*4+1),INDEX('Profils extrapolés 1-4h'!$I$4:$I$35139,(B62-1)*4+2),INDEX('Profils extrapolés 1-4h'!$I$4:$I$35139,(B62-1)*4+3),INDEX('Profils extrapolés 1-4h'!$I$4:$I$35139,(B62-1)*4+4)) -> 0 | D62: =AVERAGE(INDEX('Profils extrapolés 1-4h'!$G$4:$G$35139,(B62-1)*4+1),INDEX('Profils extrapolés 1-4h'!$G$4:$G$35139,(B62-1)*4+2),INDEX('Profils extrapolés 1-4h'!$G$4:$G$35139,(B62-1)*4+3),INDEX('Profils extrapolés 1-4h'!$G$4:$G$35139,(B62-1)*4+4)) -> 9.977668642 | E62: Janvier | H62: 23.10128921 | I62: 1409.178642 | J62: 18191.48942 | K62: 0
A63: 2022-01-03T13:00:00 | B63: 62 | C63: =AVERAGE(INDEX('Profils extrapolés 1-4h'!$I$4:$I$35139,(B63-1)*4+1),INDEX('Profils extrapolés 1-4h'!$I$4:$I$35139,(B63-1)*4+2),INDEX('Profils extrapolés 1-4h'!$I$4:$I$35139,(B63-1)*4+3),INDEX('Profils extrapolés 1-4h'!$I$4:$I$35139,(B63-1)*4+4)) -> 0 | D63: =AVERAGE(INDEX('Profils extrapolés 1-4h'!$G$4:$G$35139,(B63-1)*4+1),INDEX('Profils extrapolés 1-4h'!$G$4:$G$35139,(B63-1)*4+2),INDEX('Profils extrapolés 1-4h'!$G$4:$G$35139,(B63-1)*4+3),INDEX('Profils extrapolés 1-4h'!$G$4:$G$35139,(B63-1)*4+4)) -> 9.754952825 | E63: Janvier | H63: 23.04324523 | I63: 1428.681204 | J63: 18191.48942 | K63: 0
A64: 2022-01-03T14:00:00 | B64: 63 | C64: =AVERAGE(INDEX('Profils extrapolés 1-4h'!$I$4:$I$35139,(B64-1)*4+1),INDEX('Profils extrapolés 1-4h'!$I$4:$I$35139,(B64-1)*4+2),INDEX('Profils extrapolés 1-4h'!$I$4:$I$35139,(B64-1)*4+3),INDEX('Profils extrapolés 1-4h'!$I$4:$I$35139,(B64-1)*4+4)) -> 0 | D64: =AVERAGE(INDEX('Profils extrapolés 1-4h'!$G$4:$G$35139,(B64-1)*4+1),INDEX('Profils extrapolés 1-4h'!$G$4:$G$35139,(B64-1)*4+2),INDEX('Profils extrapolés 1-4h'!$G$4:$G$35139,(B64-1)*4+3),INDEX('Profils extrapolés 1-4h'!$G$4:$G$35139,(B64-1)*4+4)) -> 9.732681243 | E64: Janvier | H64: 23.042671 | I64: 1451.688273 | J64: 18191.48942 | K64: 0
A65: 2022-01-03T15:00:00 | B65: 64 | C65: =AVERAGE(INDEX('Profils extrapolés 1-4h'!$I$4:$I$35139,(B65-1)*4+1),INDEX('Profils extrapolés 1-4h'!$I$4:$I$35139,(B65-1)*4+2),INDEX('Profils extrapolés 1-4h'!$I$4:$I$35139,(B65-1)*4+3),INDEX('Profils extrapolés 1-4h'!$I$4:$I$35139,(B65-1)*4+4)) -> 0 | D65: =AVERAGE(INDEX('Profils extrapolés 1-4h'!$G$4:$G$35139,(B65-1)*4+1),INDEX('Profils extrapolés 1-4h'!$G$4:$G$35139,(B65-1)*4+2),INDEX('Profils extrapolés 1-4h'!$G$4:$G$35139,(B65-1)*4+3),INDEX('Profils extrapolés 1-4h'!$G$4:$G$35139,(B65-1)*4+4)) -> 9.844039152 | E65: Janvier | H65: 23.03232857 | I65: 1474.069029 | J65: 18191.48942 | K65: 0
A66: 2022-01-03T16:00:00 | B66: 65 | C66: =AVERAGE(INDEX('Profils extrapolés 1-4h'!$I$4:$I$35139,(B66-1)*4+1),INDEX('Profils extrapolés 1-4h'!$I$4:$I$35139,(B66-1)*4+2),INDEX('Profils extrapolés 1-4h'!$I$4:$I$35139,(B66-1)*4+3),INDEX('Profils extrapolés 1-4h'!$I$4:$I$35139,(B66-1)*4+4)) -> 0 | D66: =AVERAGE(INDEX('Profils extrapolés 1-4h'!$G$4:$G$35139,(B66-1)*4+1),INDEX('Profils extrapolés 1-4h'!$G$4:$G$35139,(B66-1)*4+2),INDEX('Profils extrapolés 1-4h'!$G$4:$G$35139,(B66-1)*4+3),INDEX('Profils extrapolés 1-4h'!$G$4:$G$35139,(B66-1)*4+4)) -> 9.732681243 | E66: =jan -> Janvier | H66: 23.00360934 | I66: 1495.234607 | J66: 18191.48942 | K66: 0
A67: 2022-01-03T17:00:00 | B67: 66 | C67: =AVERAGE(INDEX('Profils extrapolés 1-4h'!$I$4:$I$35139,(B67-1)*4+1),INDEX('Profils extrapolés 1-4h'!$I$4:$I$35139,(B67-1)*4+2),INDEX('Profils extrapolés 1-4h'!$I$4:$I$35139,(B67-1)*4+3),INDEX('Profils extrapolés 1-4h'!$I$4:$I$35139,(B67-1)*4+4)) -> 0 | D67: =AVERAGE(INDEX('Profils extrapolés 1-4h'!$G$4:$G$35139,(B67-1)*4+1),INDEX('Profils extrapolés 1-4h'!$G$4:$G$35139,(B67-1)*4+2),INDEX('Profils extrapolés 1-4h'!$G$4:$G$35139,(B67-1)*4+3),INDEX('Profils extrapolés 1-4h'!$G$4:$G$35139,(B67-1)*4+4)) -> 9.910853897 | E67: Janvier | H67: 22.97813486 | I67: 1516.556901 | J67: 18191.48942 | K67: 0
A68: =A67+1/24 -> 2022-01-03T18:00:00 | B68: 67 | C68: =AVERAGE(INDEX('Profils extrapolés 1-4h'!$I$4:$I$35139,(B68-1)*4+1),INDEX('Profils extrapolés 1-4h'!$I$4:$I$35139,(B68-1)*4+2),INDEX('Profils extrapolés 1-4h'!$I$4:$I$35139,(B68-1)*4+3),INDEX('Profils extrapolés 1-4h'!$I$4:$I$35139,(B68-1)*4+4)) -> 0 | D68: =AVERAGE(INDEX('Profils extrapolés 1-4h'!$G$4:$G$35139,(B68-1)*4+1),INDEX('Profils extrapolés 1-4h'!$G$4:$G$35139,(B68-1)*4+2),INDEX('Profils extrapolés 1-4h'!$G$4:$G$35139,(B68-1)*4+3),INDEX('Profils extrapolés 1-4h'!$G$4:$G$35139,(B68-1)*4+4)) -> 10.48991502 | E68: Janvier | H68: 22.9547694 | I68: =B68*H68 -> 1537.96955 | J68: =$G$5 -> 18191.48942 | K68: =IF(I68>=J68,I68,0) -> 0 | L68: =IF(K68=0,"",H68) -> 
A69: 2022-01-03T19:00:00 | B69: 68 | C69: =AVERAGE(INDEX('Profils extrapolés 1-4h'!$I$4:$I$35139,(B69-1)*4+1),INDEX('Profils extrapolés 1-4h'!$I$4:$I$35139,(B69-1)*4+2),INDEX('Profils extrapolés 1-4h'!$I$4:$I$35139,(B69-1)*4+3),INDEX('Profils extrapolés 1-4h'!$I$4:$I$35139,(B69-1)*4+4)) -> 0 | D69: =AVERAGE(INDEX('Profils extrapolés 1-4h'!$G$4:$G$35139,(B69-1)*4+1),INDEX('Profils extrapolés 1-4h'!$G$4:$G$35139,(B69-1)*4+2),INDEX('Profils extrapolés 1-4h'!$G$4:$G$35139,(B69-1)*4+3),INDEX('Profils extrapolés 1-4h'!$G$4:$G$35139,(B69-1)*4+4)) -> 9.977668642 | E69: Janvier | H69: 22.9547694 | I69: 1560.924319 | J69: 18191.48942 | K69: 0
A70: 2022-01-03T20:00:00 | B70: 69 | C70: =AVERAGE(INDEX('Profils extrapolés 1-4h'!$I$4:$I$35139,(B70-1)*4+1),INDEX('Profils extrapolés 1-4h'!$I$4:$I$35139,(B70-1)*4+2),INDEX('Profils extrapolés 1-4h'!$I$4:$I$35139,(B70-1)*4+3),INDEX('Profils extrapolés 1-4h'!$I$4:$I$35139,(B70-1)*4+4)) -> 0 | D70: =AVERAGE(INDEX('Profils extrapolés 1-4h'!$G$4:$G$35139,(B70-1)*4+1),INDEX('Profils extrapolés 1-4h'!$G$4:$G$35139,(B70-1)*4+2),INDEX('Profils extrapolés 1-4h'!$G$4:$G$35139,(B70-1)*4+3),INDEX('Profils extrapolés 1-4h'!$G$4:$G$35139,(B70-1)*4+4)) -> 9.443150679 | E70: Janvier | H70: 22.9547694 | I70: 1583.879089 | J70: 18191.48942 | K70: 0
A71: 2022-01-03T21:00:00 | B71: 70 | C71: =AVERAGE(INDEX('Profils extrapolés 1-4h'!$I$4:$I$35139,(B71-1)*4+1),INDEX('Profils extrapolés 1-4h'!$I$4:$I$35139,(B71-1)*4+2),INDEX('Profils extrapolés 1-4h'!$I$4:$I$35139,(B71-1)*4+3),INDEX('Profils extrapolés 1-4h'!$I$4:$I$35139,(B71-1)*4+4)) -> 0 | D71: =AVERAGE(INDEX('Profils extrapolés 1-4h'!$G$4:$G$35139,(B71-1)*4+1),INDEX('Profils extrapolés 1-4h'!$G$4:$G$35139,(B71-1)*4+2),INDEX('Profils extrapolés 1-4h'!$G$4:$G$35139,(B71-1)*4+3),INDEX('Profils extrapolés 1-4h'!$G$4:$G$35139,(B71-1)*4+4)) -> 9.465422261 | E71: Janvier | H71: 22.94317829 | I71: 1606.02248 | J71: 18191.48942 | K71: 0
A72: 2022-01-03T22:00:00 | B72: 71 | C72: =AVERAGE(INDEX('Profils extrapolés 1-4h'!$I$4:$I$35139,(B72-1)*4+1),INDEX('Profils extrapolés 1-4h'!$I$4:$I$35139,(B72-1)*4+2),INDEX('Profils extrapolés 1-4h'!$I$4:$I$35139,(B72-1)*4+3),INDEX('Profils extrapolés 1-4h'!$I$4:$I$35139,(B72-1)*4+4)) -> 0 | D72: =AVERAGE(INDEX('Profils extrapolés 1-4h'!$G$4:$G$35139,(B72-1)*4+1),INDEX('Profils extrapolés 1-4h'!$G$4:$G$35139,(B72-1)*4+2),INDEX('Profils extrapolés 1-4h'!$G$4:$G$35139,(B72-1)*4+3),INDEX('Profils extrapolés 1-4h'!$G$4:$G$35139,(B72-1)*4+4)) -> 7.594609391 | E72: Janvier | H72: 22.92394114 | I72: 1627.599821 | J72: 18191.48942 | K72: 0
A73: 2022-01-03T23:00:00 | B73: 72 | C73: =AVERAGE(INDEX('Profils extrapolés 1-4h'!$I$4:$I$35139,(B73-1)*4+1),INDEX('Profils extrapolés 1-4h'!$I$4:$I$35139,(B73-1)*4+2),INDEX('Profils extrapolés 1-4h'!$I$4:$I$35139,(B73-1)*4+3),INDEX('Profils extrapolés 1-4h'!$I$4:$I$35139,(B73-1)*4+4)) -> 0 | D73: =AVERAGE(INDEX('Profils extrapolés 1-4h'!$G$4:$G$35139,(B73-1)*4+1),INDEX('Profils extrapolés 1-4h'!$G$4:$G$35139,(B73-1)*4+2),INDEX('Profils extrapolés 1-4h'!$G$4:$G$35139,(B73-1)*4+3),INDEX('Profils extrapolés 1-4h'!$G$4:$G$35139,(B73-1)*4+4)) -> 7.483251482 | E73: Janvier | H73: 22.87185024 | I73: 1646.773217 | J73: 18191.48942 | K73: 0
A74: 2022-01-04 | B74: 73 | C74: =AVERAGE(INDEX('Profils extrapolés 1-4h'!$I$4:$I$35139,(B74-1)*4+1),INDEX('Profils extrapolés 1-4h'!$I$4:$I$35139,(B74-1)*4+2),INDEX('Profils extrapolés 1-4h'!$I$4:$I$35139,(B74-1)*4+3),INDEX('Profils extrapolés 1-4h'!$I$4:$I$35139,(B74-1)*4+4)) -> 0 | D74: =AVERAGE(INDEX('Profils extrapolés 1-4h'!$G$4:$G$35139,(B74-1)*4+1),INDEX('Profils extrapolés 1-4h'!$G$4:$G$35139,(B74-1)*4+2),INDEX('Profils extrapolés 1-4h'!$G$4:$G$35139,(B74-1)*4+3),INDEX('Profils extrapolés 1-4h'!$G$4:$G$35139,(B74-1)*4+4)) -> 10.47474902 | E74: Janvier | H74: 22.83470907 | I74: 1666.933762 | J74: 18191.48942 | K74: 0
A75: 2022-01-04T01:00:00 | B75: 74 | C75: =AVERAGE(INDEX('Profils extrapolés 1-4h'!$I$4:$I$35139,(B75-1)*4+1),INDEX('Profils extrapolés 1-4h'!$I$4:$I$35139,(B75-1)*4+2),INDEX('Profils extrapolés 1-4h'!$I$4:$I$35139,(B75-1)*4+3),INDEX('Profils extrapolés 1-4h'!$I$4:$I$35139,(B75-1)*4+4)) -> 0 | D75: =AVERAGE(INDEX('Profils extrapolés 1-4h'!$G$4:$G$35139,(B75-1)*4+1),INDEX('Profils extrapolés 1-4h'!$G$4:$G$35139,(B75-1)*4+2),INDEX('Profils extrapolés 1-4h'!$G$4:$G$35139,(B75-1)*4+3),INDEX('Profils extrapolés 1-4h'!$G$4:$G$35139,(B75-1)*4+4)) -> 10.69040561 | E75: Janvier | H75: 22.78257503 | I75: 1685.910552 | J75: 18191.48942 | K75: 0
A76: 2022-01-04T02:00:00 | B76: 75 | C76: =AVERAGE(INDEX('Profils extrapolés 1-4h'!$I$4:$I$35139,(B76-1)*4+1),INDEX('Profils extrapolés 1-4h'!$I$4:$I$35139,(B76-1)*4+2),INDEX('Profils extrapolés 1-4h'!$I$4:$I$35139,(B76-1)*4+3),INDEX('Profils extrapolés 1-4h'!$I$4:$I$35139,(B76-1)*4+4)) -> 0 | D76: =AVERAGE(INDEX('Profils extrapolés 1-4h'!$G$4:$G$35139,(B76-1)*4+1),INDEX('Profils extrapolés 1-4h'!$G$4:$G$35139,(B76-1)*4+2),INDEX('Profils extrapolés 1-4h'!$G$4:$G$35139,(B76-1)*4+3),INDEX('Profils extrapolés 1-4h'!$G$4:$G$35139,(B76-1)*4+4)) -> 10.56717327 | E76: Janvier | H76: 22.78257503 | I76: 1708.693127 | J76: 18191.48942 | K76: 0
A77: 2022-01-04T03:00:00 | B77: 76 | C77: =AVERAGE(INDEX('Profils extrapolés 1-4h'!$I$4:$I$35139,(B77-1)*4+1),INDEX('Profils extrapolés 1-4h'!$I$4:$I$35139,(B77-1)*4+2),INDEX('Profils extrapolés 1-4h'!$I$4:$I$35139,(B77-1)*4+3),INDEX('Profils extrapolés 1-4h'!$I$4:$I$35139,(B77-1)*4+4)) -> 0 | D77: =AVERAGE(INDEX('Profils extrapolés 1-4h'!$G$4:$G$35139,(B77-1)*4+1),INDEX('Profils extrapolés 1-4h'!$G$4:$G$35139,(B77-1)*4+2),INDEX('Profils extrapolés 1-4h'!$G$4:$G$35139,(B77-1)*4+3),INDEX('Profils extrapolés 1-4h'!$G$4:$G$35139,(B77-1)*4+4)) -> 10.78282987 | E77: Janvier | H77: 22.75772536 | I77: 1729.587127 | J77: 18191.48942 | K77: 0
A78: 2022-01-04T04:00:00 | B78: 77 | C78: =AVERAGE(INDEX('Profils extrapolés 1-4h'!$I$4:$I$35139,(B78-1)*4+1),INDEX('Profils extrapolés 1-4h'!$I$4:$I$35139,(B78-1)*4+2),INDEX('Profils extrapolés 1-4h'!$I$4:$I$35139,(B78-1)*4+3),INDEX('Profils extrapolés 1-4h'!$I$4:$I$35139,(B78-1)*4+4)) -> 0 | D78: =AVERAGE(INDEX('Profils extrapolés 1-4h'!$G$4:$G$35139,(B78-1)*4+1),INDEX('Profils extrapolés 1-4h'!$G$4:$G$35139,(B78-1)*4+2),INDEX('Profils extrapolés 1-4h'!$G$4:$G$35139,(B78-1)*4+3),INDEX('Profils extrapolés 1-4h'!$G$4:$G$35139,(B78-1)*4+4)) -> 11.30656732 | E78: Janvier | H78: 22.73526467 | I78: 1750.61538 | J78: 18191.48942 | K78: 0
A79: 2022-01-04T05:00:00 | B79: 78 | C79: =AVERAGE(INDEX('Profils extrapolés 1-4h'!$I$4:$I$35139,(B79-1)*4+1),INDEX('Profils extrapolés 1-4h'!$I$4:$I$35139,(B79-1)*4+2),INDEX('Profils extrapolés 1-4h'!$I$4:$I$35139,(B79-1)*4+3),INDEX('Profils extrapolés 1-4h'!$I$4:$I$35139,(B79-1)*4+4)) -> 0 | D79: =AVERAGE(INDEX('Profils extrapolés 1-4h'!$G$4:$G$35139,(B79-1)*4+1),INDEX('Profils extrapolés 1-4h'!$G$4:$G$35139,(B79-1)*4+2),INDEX('Profils extrapolés 1-4h'!$G$4:$G$35139,(B79-1)*4+3),INDEX('Profils extrapolés 1-4h'!$G$4:$G$35139,(B79-1)*4+4)) -> 12.13838562 | E79: Janvier | H79: 22.73526467 | I79: 1773.350644 | J79: 18191.48942 | K79: 0
A80: 2022-01-04T06:00:00 | B80: 79 | C80: =AVERAGE(INDEX('Profils extrapolés 1-4h'!$I$4:$I$35139,(B80-1)*4+1),INDEX('Profils extrapolés 1-4h'!$I$4:$I$35139,(B80-1)*4+2),INDEX('Profils extrapolés 1-4h'!$I$4:$I$35139,(B80-1)*4+3),INDEX('Profils extrapolés 1-4h'!$I$4:$I$35139,(B80-1)*4+4)) -> 0 | D80: =AVERAGE(INDEX('Profils extrapolés 1-4h'!$G$4:$G$35139,(B80-1)*4+1),INDEX('Profils extrapolés 1-4h'!$G$4:$G$35139,(B80-1)*4+2),INDEX('Profils extrapolés 1-4h'!$G$4:$G$35139,(B80-1)*4+3),INDEX('Profils extrapolés 1-4h'!$G$4:$G$35139,(B80-1)*4+4)) -> 13.0318201 | E80: Janvier | H80: 22.7120904 | I80: 1794.255142 | J80: 18191.48942 | K80: 0
A81: 2022-01-04T07:00:00 | B81: 80 | C81: =AVERAGE(INDEX('Profils extrapolés 1-4h'!$I$4:$I$35139,(B81-1)*4+1),INDEX('Profils extrapolés 1-4h'!$I$4:$I$35139,(B81-1)*4+2),INDEX('Profils extrapolés 1-4h'!$I$4:$I$35139,(B81-1)*4+3),INDEX('Profils extrapolés 1-4h'!$I$4:$I$35139,(B81-1)*4+4)) -> 0 | D81: =AVERAGE(INDEX('Profils extrapolés 1-4h'!$G$4:$G$35139,(B81-1)*4+1),INDEX('Profils extrapolés 1-4h'!$G$4:$G$35139,(B81-1)*4+2),INDEX('Profils extrapolés 1-4h'!$G$4:$G$35139,(B81-1)*4+3),INDEX('Profils extrapolés 1-4h'!$G$4:$G$35139,(B81-1)*4+4)) -> 14.57222437 | E81: Janvier | H81: 22.7120904 | I81: 1816.967232 | J81: 18191.48942 | K81: 0
A82: 2022-01-04T08:00:00 | B82: 81 | C82: =AVERAGE(INDEX('Profils extrapolés 1-4h'!$I$4:$I$35139,(B82-1)*4+1),INDEX('Profils extrapolés 1-4h'!$I$4:$I$35139,(B82-1)*4+2),INDEX('Profils extrapolés 1-4h'!$I$4:$I$35139,(B82-1)*4+3),INDEX('Profils extrapolés 1-4h'!$I$4:$I$35139,(B82-1)*4+4)) -> 0 | D82: =AVERAGE(INDEX('Profils extrapolés 1-4h'!$G$4:$G$35139,(B82-1)*4+1),INDEX('Profils extrapolés 1-4h'!$G$4:$G$35139,(B82-1)*4+2),INDEX('Profils extrapolés 1-4h'!$G$4:$G$35139,(B82-1)*4+3),INDEX('Profils extrapolés 1-4h'!$G$4:$G$35139,(B82-1)*4+4)) -> 14.47980011 | E82: Janvier | H82: 22.66399856 | I82: 1835.783883 | J82: 18191.48942 | K82: 0
A83: 2022-01-04T09:00:00 | B83: 82 | C83: =AVERAGE(INDEX('Profils extrapolés 1-4h'!$I$4:$I$35139,(B83-1)*4+1),INDEX('Profils extrapolés 1-4h'!$I$4:$I$35139,(B83-1)*4+2),INDEX('Profils extrapolés 1-4h'!$I$4:$I$35139,(B83-1)*4+3),INDEX('Profils extrapolés 1-4h'!$I$4:$I$35139,(B83-1)*4+4)) -> 0 | D83: =AVERAGE(INDEX('Profils extrapolés 1-4h'!$G$4:$G$35139,(B83-1)*4+1),INDEX('Profils extrapolés 1-4h'!$G$4:$G$35139,(B83-1)*4+2),INDEX('Profils extrapolés 1-4h'!$G$4:$G$35139,(B83-1)*4+3),INDEX('Profils extrapolés 1-4h'!$G$4:$G$35139,(B83-1)*4+4)) -> 14.47980011 | E83: Janvier | H83: 22.66399856 | I83: 1858.447882 | J83: 18191.48942 | K83: 0
A84: 2022-01-04T10:00:00 | B84: 83 | C84: =AVERAGE(INDEX('Profils extrapolés 1-4h'!$I$4:$I$35139,(B84-1)*4+1),INDEX('Profils extrapolés 1-4h'!$I$4:$I$35139,(B84-1)*4+2),INDEX('Profils extrapolés 1-4h'!$I$4:$I$35139,(B84-1)*4+3),INDEX('Profils extrapolés 1-4h'!$I$4:$I$35139,(B84-1)*4+4)) -> 0 | D84: =AVERAGE(INDEX('Profils extrapolés 1-4h'!$G$4:$G$35139,(B84-1)*4+1),INDEX('Profils extrapolés 1-4h'!$G$4:$G$35139,(B84-1)*4+2),INDEX('Profils extrapolés 1-4h'!$G$4:$G$35139,(B84-1)*4+3),INDEX('Profils extrapolés 1-4h'!$G$4:$G$35139,(B84-1)*4+4)) -> 14.47980011 | E84: Janvier | H84: 22.58301959 | I84: 1874.390626 | J84: 18191.48942 | K84: 0
A85: 2022-01-04T11:00:00 | B85: 84 | C85: =AVERAGE(INDEX('Profils extrapolés 1-4h'!$I$4:$I$35139,(B85-1)*4+1),INDEX('Profils extrapolés 1-4h'!$I$4:$I$35139,(B85-1)*4+2),INDEX('Profils extrapolés 1-4h'!$I$4:$I$35139,(B85-1)*4+3),INDEX('Profils extrapolés 1-4h'!$I$4:$I$35139,(B85-1)*4+4)) -> 0 | D85: =AVERAGE(INDEX('Profils extrapolés 1-4h'!$G$4:$G$35139,(B85-1)*4+1),INDEX('Profils extrapolés 1-4h'!$G$4:$G$35139,(B85-1)*4+2),INDEX('Profils extrapolés 1-4h'!$G$4:$G$35139,(B85-1)*4+3),INDEX('Profils extrapolés 1-4h'!$G$4:$G$35139,(B85-1)*4+4)) -> 14.20252734 | E85: Janvier | H85: 22.56000051 | I85: 1895.040043 | J85: 18191.48942 | K85: 0
A86: 2022-01-04T12:00:00 | B86: 85 | C86: =AVERAGE(INDEX('Profils extrapolés 1-4h'!$I$4:$I$35139,(B86-1)*4+1),INDEX('Profils extrapolés 1-4h'!$I$4:$I$35139,(B86-1)*4+2),INDEX('Profils extrapolés 1-4h'!$I$4:$I$35139,(B86-1)*4+3),INDEX('Profils extrapolés 1-4h'!$I$4:$I$35139,(B86-1)*4+4)) -> 0 | D86: =AVERAGE(INDEX('Profils extrapolés 1-4h'!$G$4:$G$35139,(B86-1)*4+1),INDEX('Profils extrapolés 1-4h'!$G$4:$G$35139,(B86-1)*4+2),INDEX('Profils extrapolés 1-4h'!$G$4:$G$35139,(B86-1)*4+3),INDEX('Profils extrapolés 1-4h'!$G$4:$G$35139,(B86-1)*4+4)) -> 13.80202223 | E86: Janvier | H86: 22.51520999 | I86: 1913.792849 | J86: 18191.48942 | K86: 0
A87: 2022-01-04T13:00:00 | B87: 86 | C87: =AVERAGE(INDEX('Profils extrapolés 1-4h'!$I$4:$I$35139,(B87-1)*4+1),INDEX('Profils extrapolés 1-4h'!$I$4:$I$35139,(B87-1)*4+2),INDEX('Profils extrapolés 1-4h'!$I$4:$I$35139,(B87-1)*4+3),INDEX('Profils extrapolés 1-4h'!$I$4:$I$35139,(B87-1)*4+4)) -> 0 | D87: =AVERAGE(INDEX('Profils extrapolés 1-4h'!$G$4:$G$35139,(B87-1)*4+1),INDEX('Profils extrapolés 1-4h'!$G$4:$G$35139,(B87-1)*4+2),INDEX('Profils extrapolés 1-4h'!$G$4:$G$35139,(B87-1)*4+3),INDEX('Profils extrapolés 1-4h'!$G$4:$G$35139,(B87-1)*4+4)) -> 13.49394138 | E87: Janvier | H87: 22.51223071 | I87: 1936.051841 | J87: 18191.48942 | K87: 0
A88: 2022-01-04T14:00:00 | B88: 87 | C88: =AVERAGE(INDEX('Profils extrapolés 1-4h'!$I$4:$I$35139,(B88-1)*4+1),INDEX('Profils extrapolés 1-4h'!$I$4:$I$35139,(B88-1)*4+2),INDEX('Profils extrapolés 1-4h'!$I$4:$I$35139,(B88-1)*4+3),INDEX('Profils extrapolés 1-4h'!$I$4:$I$35139,(B88-1)*4+4)) -> 0 | D88: =AVERAGE(INDEX('Profils extrapolés 1-4h'!$G$4:$G$35139,(B88-1)*4+1),INDEX('Profils extrapolés 1-4h'!$G$4:$G$35139,(B88-1)*4+2),INDEX('Profils extrapolés 1-4h'!$G$4:$G$35139,(B88-1)*4+3),INDEX('Profils extrapolés 1-4h'!$G$4:$G$35139,(B88-1)*4+4)) -> 13.46313329 | E88: Janvier | H88: 22.47193011 | I88: 1955.05792 | J88: 18191.48942 | K88: 0
A89: 2022-01-04T15:00:00 | B89: 88 | C89: =AVERAGE(INDEX('Profils extrapolés 1-4h'!$I$4:$I$35139,(B89-1)*4+1),INDEX('Profils extrapolés 1-4h'!$I$4:$I$35139,(B89-1)*4+2),INDEX('Profils extrapolés 1-4h'!$I$4:$I$35139,(B89-1)*4+3),INDEX('Profils extrapolés 1-4h'!$I$4:$I$35139,(B89-1)*4+4)) -> 0 | D89: =AVERAGE(INDEX('Profils extrapolés 1-4h'!$G$4:$G$35139,(B89-1)*4+1),INDEX('Profils extrapolés 1-4h'!$G$4:$G$35139,(B89-1)*4+2),INDEX('Profils extrapolés 1-4h'!$G$4:$G$35139,(B89-1)*4+3),INDEX('Profils extrapolés 1-4h'!$G$4:$G$35139,(B89-1)*4+4)) -> 13.61717372 | E89: Janvier | H89: 22.45471614 | I89: 1976.01502 | J89: 18191.48942 | K89: 0
A90: 2022-01-04T16:00:00 | B90: 89 | C90: =AVERAGE(INDEX('Profils extrapolés 1-4h'!$I$4:$I$35139,(B90-1)*4+1),INDEX('Profils extrapolés 1-4h'!$I$4:$I$35139,(B90-1)*4+2),INDEX('Profils extrapolés 1-4h'!$I$4:$I$35139,(B90-1)*4+3),INDEX('Profils extrapolés 1-4h'!$I$4:$I$35139,(B90-1)*4+4)) -> 0 | D90: =AVERAGE(INDEX('Profils extrapolés 1-4h'!$G$4:$G$35139,(B90-1)*4+1),INDEX('Profils extrapolés 1-4h'!$G$4:$G$35139,(B90-1)*4+2),INDEX('Profils extrapolés 1-4h'!$G$4:$G$35139,(B90-1)*4+3),INDEX('Profils extrapolés 1-4h'!$G$4:$G$35139,(B90-1)*4+4)) -> 13.46313329 | E90: Janvier | H90: 22.43077452 | I90: 1996.338932 | J90: 18191.48942 | K90: 0
A91: 2022-01-04T17:00:00 | B91: 90 | C91: =AVERAGE(INDEX('Profils extrapolés 1-4h'!$I$4:$I$35139,(B91-1)*4+1),INDEX('Profils extrapolés 1-4h'!$I$4:$I$35139,(B91-1)*4+2),INDEX('Profils extrapolés 1-4h'!$I$4:$I$35139,(B91-1)*4+3),INDEX('Profils extrapolés 1-4h'!$I$4:$I$35139,(B91-1)*4+4)) -> 0 | D91: =AVERAGE(INDEX('Profils extrapolés 1-4h'!$G$4:$G$35139,(B91-1)*4+1),INDEX('Profils extrapolés 1-4h'!$G$4:$G$35139,(B91-1)*4+2),INDEX('Profils extrapolés 1-4h'!$G$4:$G$35139,(B91-1)*4+3),INDEX('Profils extrapolés 1-4h'!$G$4:$G$35139,(B91-1)*4+4)) -> 13.70959798 | E91: Janvier | H91: 22.40791062 | I91: 2016.711956 | J91: 18191.48942 | K91: 0
A92: 2022-01-04T18:00:00 | B92: 91 | C92: =AVERAGE(INDEX('Profils extrapolés 1-4h'!$I$4:$I$35139,(B92-1)*4+1),INDEX('Profils extrapolés 1-4h'!$I$4:$I$35139,(B92-1)*4+2),INDEX('Profils extrapolés 1-4h'!$I$4:$I$35139,(B92-1)*4+3),INDEX('Profils extrapolés 1-4h'!$I$4:$I$35139,(B92-1)*4+4)) -> 0 | D92: =AVERAGE(INDEX('Profils extrapolés 1-4h'!$G$4:$G$35139,(B92-1)*4+1),INDEX('Profils extrapolés 1-4h'!$G$4:$G$35139,(B92-1)*4+2),INDEX('Profils extrapolés 1-4h'!$G$4:$G$35139,(B92-1)*4+3),INDEX('Profils extrapolés 1-4h'!$G$4:$G$35139,(B92-1)*4+4)) -> 14.5106082 | E92: Janvier | H92: 22.39287767 | I92: 2037.751868 | J92: 18191.48942 | K92: 0
A93: 2022-01-04T19:00:00 | B93: 92 | C93: =AVERAGE(INDEX('Profils extrapolés 1-4h'!$I$4:$I$35139,(B93-1)*4+1),INDEX('Profils extrapolés 1-4h'!$I$4:$I$35139,(B93-1)*4+2),INDEX('Profils extrapolés 1-4h'!$I$4:$I$35139,(B93-1)*4+3),INDEX('Profils extrapolés 1-4h'!$I$4:$I$35139,(B93-1)*4+4)) -> 0 | D93: =AVERAGE(INDEX('Profils extrapolés 1-4h'!$G$4:$G$35139,(B93-1)*4+1),INDEX('Profils extrapolés 1-4h'!$G$4:$G$35139,(B93-1)*4+2),INDEX('Profils extrapolés 1-4h'!$G$4:$G$35139,(B93-1)*4+3),INDEX('Profils extrapolés 1-4h'!$G$4:$G$35139,(B93-1)*4+4)) -> 13.80202223 | E93: Janvier | H93: 22.39287767 | I93: 2060.144746 | J93: 18191.48942 | K93: 0
A94: 2022-01-04T20:00:00 | B94: 93 | C94: =AVERAGE(INDEX('Profils extrapolés 1-4h'!$I$4:$I$35139,(B94-1)*4+1),INDEX('Profils extrapolés 1-4h'!$I$4:$I$35139,(B94-1)*4+2),INDEX('Profils extrapolés 1-4h'!$I$4:$I$35139,(B94-1)*4+3),INDEX('Profils extrapolés 1-4h'!$I$4:$I$35139,(B94-1)*4+4)) -> 0 | D94: =AVERAGE(INDEX('Profils extrapolés 1-4h'!$G$4:$G$35139,(B94-1)*4+1),INDEX('Profils extrapolés 1-4h'!$G$4:$G$35139,(B94-1)*4+2),INDEX('Profils extrapolés 1-4h'!$G$4:$G$35139,(B94-1)*4+3),INDEX('Profils extrapolés 1-4h'!$G$4:$G$35139,(B94-1)*4+4)) -> 13.06262818 | E94: Janvier | H94: 22.37691138 | I94: 2081.052758 | J94: 18191.48942 | K94: 0
A95: 2022-01-04T21:00:00 | B95: 94 | C95: =AVERAGE(INDEX('Profils extrapolés 1-4h'!$I$4:$I$35139,(B95-1)*4+1),INDEX('Profils extrapolés 1-4h'!$I$4:$I$35139,(B95-1)*4+2),INDEX('Profils extrapolés 1-4h'!$I$4:$I$35139,(B95-1)*4+3),INDEX('Profils extrapolés 1-4h'!$I$4:$I$35139,(B95-1)*4+4)) -> 0 | D95: =AVERAGE(INDEX('Profils extrapolés 1-4h'!$G$4:$G$35139,(B95-1)*4+1),INDEX('Profils extrapolés 1-4h'!$G$4:$G$35139,(B95-1)*4+2),INDEX('Profils extrapolés 1-4h'!$G$4:$G$35139,(B95-1)*4+3),INDEX('Profils extrapolés 1-4h'!$G$4:$G$35139,(B95-1)*4+4)) -> 13.09343627 | E95: Janvier | H95: 22.36046286 | I95: 2101.883509 | J95: 18191.48942 | K95: 0
A96: 2022-01-04T22:00:00 | B96: 95 | C96: =AVERAGE(INDEX('Profils extrapolés 1-4h'!$I$4:$I$35139,(B96-1)*4+1),INDEX('Profils extrapolés 1-4h'!$I$4:$I$35139,(B96-1)*4+2),INDEX('Profils extrapolés 1-4h'!$I$4:$I$35139,(B96-1)*4+3),INDEX('Profils extrapolés 1-4h'!$I$4:$I$35139,(B96-1)*4+4)) -> 0 | D96: =AVERAGE(INDEX('Profils extrapolés 1-4h'!$G$4:$G$35139,(B96-1)*4+1),INDEX('Profils extrapolés 1-4h'!$G$4:$G$35139,(B96-1)*4+2),INDEX('Profils extrapolés 1-4h'!$G$4:$G$35139,(B96-1)*4+3),INDEX('Profils extrapolés 1-4h'!$G$4:$G$35139,(B96-1)*4+4)) -> 10.5055571 | E96: Janvier | H96: 22.35977019 | I96: 2124.178168 | J96: 18191.48942 | K96: 0
A97: 2022-01-04T23:00:00 | B97: 96 | C97: =AVERAGE(INDEX('Profils extrapolés 1-4h'!$I$4:$I$35139,(B97-1)*4+1),INDEX('Profils extrapolés 1-4h'!$I$4:$I$35139,(B97-1)*4+2),INDEX('Profils extrapolés 1-4h'!$I$4:$I$35139,(B97-1)*4+3),INDEX('Profils extrapolés 1-4h'!$I$4:$I$35139,(B97-1)*4+4)) -> 0 | D97: =AVERAGE(INDEX('Profils extrapolés 1-4h'!$G$4:$G$35139,(B97-1)*4+1),INDEX('Profils extrapolés 1-4h'!$G$4:$G$35139,(B97-1)*4+2),INDEX('Profils extrapolés 1-4h'!$G$4:$G$35139,(B97-1)*4+3),INDEX('Profils extrapolés 1-4h'!$G$4:$G$35139,(B97-1)*4+4)) -> 10.35151667 | E97: Janvier | H97: 22.32940201 | I97: 2143.622593 | J97: 18191.48942 | K97: 0
A98: 2022-01-05 | B98: 97 | C98: =AVERAGE(INDEX('Profils extrapolés 1-4h'!$I$4:$I$35139,(B98-1)*4+1),INDEX('Profils extrapolés 1-4h'!$I$4:$I$35139,(B98-1)*4+2),INDEX('Profils extrapolés 1-4h'!$I$4:$I$35139,(B98-1)*4+3),INDEX('Profils extrapolés 1-4h'!$I$4:$I$35139,(B98-1)*4+4)) -> 0 | D98: =AVERAGE(INDEX('Profils extrapolés 1-4h'!$G$4:$G$35139,(B98-1)*4+1),INDEX('Profils extrapolés 1-4h'!$G$4:$G$35139,(B98-1)*4+2),INDEX('Profils extrapolés 1-4h'!$G$4:$G$35139,(B98-1)*4+3),INDEX('Profils extrapolés 1-4h'!$G$4:$G$35139,(B98-1)*4+4)) -> 13.61987057 | E98: Janvier | H98: 22.32940201 | I98: 2165.951995 | J98: 18191.48942 | K98: 0
A99: 2022-01-05T01:00:00 | B99: 98 | C99: =AVERAGE(INDEX('Profils extrapolés 1-4h'!$I$4:$I$35139,(B99-1)*4+1),INDEX('Profils extrapolés 1-4h'!$I$4:$I$35139,(B99-1)*4+2),INDEX('Profils extrapolés 1-4h'!$I$4:$I$35139,(B99-1)*4+3),INDEX('Profils extrapolés 1-4h'!$I$4:$I$35139,(B99-1)*4+4)) -> 0 | D99: =AVERAGE(INDEX('Profils extrapolés 1-4h'!$G$4:$G$35139,(B99-1)*4+1),INDEX('Profils extrapolés 1-4h'!$G$4:$G$35139,(B99-1)*4+2),INDEX('Profils extrapolés 1-4h'!$G$4:$G$35139,(B99-1)*4+3),INDEX('Profils extrapolés 1-4h'!$G$4:$G$35139,(B99-1)*4+4)) -> 13.90027967 | E99: Janvier | H99: 22.32940201 | I99: 2188.281397 | J99: 18191.48942 | K99: 0
A100: 2022-01-05T02:00:00 | B100: 99 | C100: =AVERAGE(INDEX('Profils extrapolés 1-4h'!$I$4:$I$35139,(B100-1)*4+1),INDEX('Profils extrapolés 1-4h'!$I$4:$I$35139,(B100-1)*4+2),INDEX('Profils extrapolés 1-4h'!$I$4:$I$35139,(B100-1)*4+3),INDEX('Profils extrapolés 1-4h'!$I$4:$I$35139,(B100-1)*4+4)) -> 0 | D100: =AVERAGE(INDEX('Profils extrapolés 1-4h'!$G$4:$G$35139,(B100-1)*4+1),INDEX('Profils extrapolés 1-4h'!$G$4:$G$35139,(B100-1)*4+2),INDEX('Profils extrapolés 1-4h'!$G$4:$G$35139,(B100-1)*4+3),INDEX('Profils extrapolés 1-4h'!$G$4:$G$35139,(B100-1)*4+4)) -> 13.7400459 | E100: Janvier | H100: 22.31229722 | I100: 2208.917425 | J100: 18191.48942 | K100: 0
A101: 2022-01-05T03:00:00 | B101: 100 | C101: =AVERAGE(INDEX('Profils extrapolés 1-4h'!$I$4:$I$35139,(B101-1)*4+1),INDEX('Profils extrapolés 1-4h'!$I$4:$I$35139,(B101-1)*4+2),INDEX('Profils extrapolés 1-4h'!$I$4:$I$35139,(B101-1)*4+3),INDEX('Profils extrapolés 1-4h'!$I$4:$I$35139,(B101-1)*4+4)) -> 0 | D101: =AVERAGE(INDEX('Profils extrapolés 1-4h'!$G$4:$G$35139,(B101-1)*4+1),INDEX('Profils extrapolés 1-4h'!$G$4:$G$35139,(B101-1)*4+2),INDEX('Profils extrapolés 1-4h'!$G$4:$G$35139,(B101-1)*4+3),INDEX('Profils extrapolés 1-4h'!$G$4:$G$35139,(B101-1)*4+4)) -> 14.020455 | E101: Janvier | H101: 22.31229722 | I101: 2231.229722 | J101: 18191.48942 | K101: 0
A102: 2022-01-05T04:00:00 | B102: 101 | C102: =AVERAGE(INDEX('Profils extrapolés 1-4h'!$I$4:$I$35139,(B102-1)*4+1),INDEX('Profils extrapolés 1-4h'!$I$4:$I$35139,(B102-1)*4+2),INDEX('Profils extrapolés 1-4h'!$I$4:$I$35139,(B102-1)*4+3),INDEX('Profils extrapolés 1-4h'!$I$4:$I$35139,(B102-1)*4+4)) -> 0 | D102: =AVERAGE(INDEX('Profils extrapolés 1-4h'!$G$4:$G$35139,(B102-1)*4+1),INDEX('Profils extrapolés 1-4h'!$G$4:$G$35139,(B102-1)*4+2),INDEX('Profils extrapolés 1-4h'!$G$4:$G$35139,(B102-1)*4+3),INDEX('Profils extrapolés 1-4h'!$G$4:$G$35139,(B102-1)*4+4)) -> 14.70144852 | E102: Janvier | H102: 22.31229722 | I102: 2253.542019 | J102: 18191.48942 | K102: 0
A103: 2022-01-05T05:00:00 | B103: 102 | C103: =AVERAGE(INDEX('Profils extrapolés 1-4h'!$I$4:$I$35139,(B103-1)*4+1),INDEX('Profils extrapolés 1-4h'!$I$4:$I$35139,(B103-1)*4+2),INDEX('Profils extrapolés 1-4h'!$I$4:$I$35139,(B103-1)*4+3),INDEX('Profils extrapolés 1-4h'!$I$4:$I$35139,(B103-1)*4+4)) -> 0 | D103: =AVERAGE(INDEX('Profils extrapolés 1-4h'!$G$4:$G$35139,(B103-1)*4+1),INDEX('Profils extrapolés 1-4h'!$G$4:$G$35139,(B103-1)*4+2),INDEX('Profils extrapolés 1-4h'!$G$4:$G$35139,(B103-1)*4+3),INDEX('Profils extrapolés 1-4h'!$G$4:$G$35139,(B103-1)*4+4)) -> 15.78302648 | E103: Janvier | H103: 22.29619062 | I103: 2274.211443 | J103: 18191.48942 | K103: 0
A104: 2022-01-05T06:00:00 | B104: 103 | C104: =AVERAGE(INDEX('Profils extrapolés 1-4h'!$I$4:$I$35139,(B104-1)*4+1),INDEX('Profils extrapolés 1-4h'!$I$4:$I$35139,(B104-1)*4+2),INDEX('Profils extrapolés 1-4h'!$I$4:$I$35139,(B104-1)*4+3),INDEX('Profils extrapolés 1-4h'!$I$4:$I$35139,(B104-1)*4+4)) -> 0 | D104: =AVERAGE(INDEX('Profils extrapolés 1-4h'!$G$4:$G$35139,(B104-1)*4+1),INDEX('Profils extrapolés 1-4h'!$G$4:$G$35139,(B104-1)*4+2),INDEX('Profils extrapolés 1-4h'!$G$4:$G$35139,(B104-1)*4+3),INDEX('Profils extrapolés 1-4h'!$G$4:$G$35139,(B104-1)*4+4)) -> 16.94472132 | E104: Janvier | H104: 22.29619062 | I104: 2296.507634 | J104: 18191.48942 | K104: 0
A105: 2022-01-05T07:00:00 | B105: 104 | C105: =AVERAGE(INDEX('Profils extrapolés 1-4h'!$I$4:$I$35139,(B105-1)*4+1),INDEX('Profils extrapolés 1-4h'!$I$4:$I$35139,(B105-1)*4+2),INDEX('Profils extrapolés 1-4h'!$I$4:$I$35139,(B105-1)*4+3),INDEX('Profils extrapolés 1-4h'!$I$4:$I$35139,(B105-1)*4+4)) -> 0 | D105: =AVERAGE(INDEX('Profils extrapolés 1-4h'!$G$4:$G$35139,(B105-1)*4+1),INDEX('Profils extrapolés 1-4h'!$G$4:$G$35139,(B105-1)*4+2),INDEX('Profils extrapolés 1-4h'!$G$4:$G$35139,(B105-1)*4+3),INDEX('Profils extrapolés 1-4h'!$G$4:$G$35139,(B105-1)*4+4)) -> 18.94764347 | E105: Janvier | H105: 22.28162005 | I105: 2317.288486 | J105: 18191.48942 | K105: 0
A106: 2022-01-05T08:00:00 | B106: 105 | C106: =AVERAGE(INDEX('Profils extrapolés 1-4h'!$I$4:$I$35139,(B106-1)*4+1),INDEX('Profils extrapolés 1-4h'!$I$4:$I$35139,(B106-1)*4+2),INDEX('Profils extrapolés 1-4h'!$I$4:$I$35139,(B106-1)*4+3),INDEX('Profils extrapolés 1-4h'!$I$4:$I$35139,(B106-1)*4+4)) -> 0 | D106: =AVERAGE(INDEX('Profils extrapolés 1-4h'!$G$4:$G$35139,(B106-1)*4+1),INDEX('Profils extrapolés 1-4h'!$G$4:$G$35139,(B106-1)*4+2),INDEX('Profils extrapolés 1-4h'!$G$4:$G$35139,(B106-1)*4+3),INDEX('Profils extrapolés 1-4h'!$G$4:$G$35139,(B106-1)*4+4)) -> 18.82746814 | E106: Janvier | H106: 22.26536244 | I106: 2337.863057 | J106: 18191.48942 | K106: 0
A107: 2022-01-05T09:00:00 | B107: 106 | C107: =AVERAGE(INDEX('Profils extrapolés 1-4h'!$I$4:$I$35139,(B107-1)*4+1),INDEX('Profils extrapolés 1-4h'!$I$4:$I$35139,(B107-1)*4+2),INDEX('Profils extrapolés 1-4h'!$I$4:$I$35139,(B107-1)*4+3),INDEX('Profils extrapolés 1-4h'!$I$4:$I$35139,(B107-1)*4+4)) -> 0 | D107: =AVERAGE(INDEX('Profils extrapolés 1-4h'!$G$4:$G$35139,(B107-1)*4+1),INDEX('Profils extrapolés 1-4h'!$G$4:$G$35139,(B107-1)*4+2),INDEX('Profils extrapolés 1-4h'!$G$4:$G$35139,(B107-1)*4+3),INDEX('Profils extrapolés 1-4h'!$G$4:$G$35139,(B107-1)*4+4)) -> 18.82746814 | E107: Janvier | H107: 22.24292537 | I107: 2357.750089 | J107: 18191.48942 | K107: 0
A108: 2022-01-05T10:00:00 | B108: 107 | C108: =AVERAGE(INDEX('Profils extrapolés 1-4h'!$I$4:$I$35139,(B108-1)*4+1),INDEX('Profils extrapolés 1-4h'!$I$4:$I$35139,(B108-1)*4+2),INDEX('Profils extrapolés 1-4h'!$I$4:$I$35139,(B108-1)*4+3),INDEX('Profils extrapolés 1-4h'!$I$4:$I$35139,(B108-1)*4+4)) -> 0 | D108: =AVERAGE(INDEX('Profils extrapolés 1-4h'!$G$4:$G$35139,(B108-1)*4+1),INDEX('Profils extrapolés 1-4h'!$G$4:$G$35139,(B108-1)*4+2),INDEX('Profils extrapolés 1-4h'!$G$4:$G$35139,(B108-1)*4+3),INDEX('Profils extrapolés 1-4h'!$G$4:$G$35139,(B108-1)*4+4)) -> 18.82746814 | E108: Janvier | H108: 22.22778108 | I108: 2378.372576 | J108: 18191.48942 | K108: 0
A109: 2022-01-05T11:00:00 | B109: 108 | C109: =AVERAGE(INDEX('Profils extrapolés 1-4h'!$I$4:$I$35139,(B109-1)*4+1),INDEX('Profils extrapolés 1-4h'!$I$4:$I$35139,(B109-1)*4+2),INDEX('Profils extrapolés 1-4h'!$I$4:$I$35139,(B109-1)*4+3),INDEX('Profils extrapolés 1-4h'!$I$4:$I$35139,(B109-1)*4+4)) -> 0 | D109: =AVERAGE(INDEX('Profils extrapolés 1-4h'!$G$4:$G$35139,(B109-1)*4+1),INDEX('Profils extrapolés 1-4h'!$G$4:$G$35139,(B109-1)*4+2),INDEX('Profils extrapolés 1-4h'!$G$4:$G$35139,(B109-1)*4+3),INDEX('Profils extrapolés 1-4h'!$G$4:$G$35139,(B109-1)*4+4)) -> 18.46694215 | E109: Janvier | H109: 22.22687399 | I109: 2400.502391 | J109: 18191.48942 | K109: 0
A110: 2022-01-05T12:00:00 | B110: 109 | C110: =AVERAGE(INDEX('Profils extrapolés 1-4h'!$I$4:$I$35139,(B110-1)*4+1),INDEX('Profils extrapolés 1-4h'!$I$4:$I$35139,(B110-1)*4+2),INDEX('Profils extrapolés 1-4h'!$I$4:$I$35139,(B110-1)*4+3),INDEX('Profils extrapolés 1-4h'!$I$4:$I$35139,(B110-1)*4+4)) -> 0 | D110: =AVERAGE(INDEX('Profils extrapolés 1-4h'!$G$4:$G$35139,(B110-1)*4+1),INDEX('Profils extrapolés 1-4h'!$G$4:$G$35139,(B110-1)*4+2),INDEX('Profils extrapolés 1-4h'!$G$4:$G$35139,(B110-1)*4+3),INDEX('Profils extrapolés 1-4h'!$G$4:$G$35139,(B110-1)*4+4)) -> 17.94618239 | E110: Janvier | H110: 22.22687399 | I110: 2422.729265 | J110: 18191.48942 | K110: 0
A111: 2022-01-05T13:00:00 | B111: 110 | C111: =AVERAGE(INDEX('Profils extrapolés 1-4h'!$I$4:$I$35139,(B111-1)*4+1),INDEX('Profils extrapolés 1-4h'!$I$4:$I$35139,(B111-1)*4+2),INDEX('Profils extrapolés 1-4h'!$I$4:$I$35139,(B111-1)*4+3),INDEX('Profils extrapolés 1-4h'!$I$4:$I$35139,(B111-1)*4+4)) -> 0 | D111: =AVERAGE(INDEX('Profils extrapolés 1-4h'!$G$4:$G$35139,(B111-1)*4+1),INDEX('Profils extrapolés 1-4h'!$G$4:$G$35139,(B111-1)*4+2),INDEX('Profils extrapolés 1-4h'!$G$4:$G$35139,(B111-1)*4+3),INDEX('Profils extrapolés 1-4h'!$G$4:$G$35139,(B111-1)*4+4)) -> 17.54559797 | E111: Janvier | H111: 22.2051241 | I111: 2442.56365 | J111: 18191.48942 | K111: 0
A112: 2022-01-05T14:00:00 | B112: 111 | C112: =AVERAGE(INDEX('Profils extrapolés 1-4h'!$I$4:$I$35139,(B112-1)*4+1),INDEX('Profils extrapolés 1-4h'!$I$4:$I$35139,(B112-1)*4+2),INDEX('Profils extrapolés 1-4h'!$I$4:$I$35139,(B112-1)*4+3),INDEX('Profils extrapolés 1-4h'!$I$4:$I$35139,(B112-1)*4+4)) -> 0 | D112: =AVERAGE(INDEX('Profils extrapolés 1-4h'!$G$4:$G$35139,(B112-1)*4+1),INDEX('Profils extrapolés 1-4h'!$G$4:$G$35139,(B112-1)*4+2),INDEX('Profils extrapolés 1-4h'!$G$4:$G$35139,(B112-1)*4+3),INDEX('Profils extrapolés 1-4h'!$G$4:$G$35139,(B112-1)*4+4)) -> 17.50553952 | E112: Janvier | H112: 22.18740602 | I112: 2462.802068 | J112: 18191.48942 | K112: 0
A113: 2022-01-05T15:00:00 | B113: 112 | C113: =AVERAGE(INDEX('Profils extrapolés 1-4h'!$I$4:$I$35139,(B113-1)*4+1),INDEX('Profils extrapolés 1-4h'!$I$4:$I$35139,(B113-1)*4+2),INDEX('Profils extrapolés 1-4h'!$I$4:$I$35139,(B113-1)*4+3),INDEX('Profils extrapolés 1-4h'!$I$4:$I$35139,(B113-1)*4+4)) -> 0 | D113: =AVERAGE(INDEX('Profils extrapolés 1-4h'!$G$4:$G$35139,(B113-1)*4+1),INDEX('Profils extrapolés 1-4h'!$G$4:$G$35139,(B113-1)*4+2),INDEX('Profils extrapolés 1-4h'!$G$4:$G$35139,(B113-1)*4+3),INDEX('Profils extrapolés 1-4h'!$G$4:$G$35139,(B113-1)*4+4)) -> 17.70583174 | E113: Janvier | H113: 22.17703273 | I113: 2483.827665 | J113: 18191.48942 | K113: 0
A114: 2022-01-05T16:00:00 | B114: 113 | C114: =AVERAGE(INDEX('Profils extrapolés 1-4h'!$I$4:$I$35139,(B114-1)*4+1),INDEX('Profils extrapolés 1-4h'!$I$4:$I$35139,(B114-1)*4+2),INDEX('Profils extrapolés 1-4h'!$I$4:$I$35139,(B114-1)*4+3),INDEX('Profils extrapolés 1-4h'!$I$4:$I$35139,(B114-1)*4+4)) -> 0 | D114: =AVERAGE(INDEX('Profils extrapolés 1-4h'!$G$4:$G$35139,(B114-1)*4+1),INDEX('Profils extrapolés 1-4h'!$G$4:$G$35139,(B114-1)*4+2),INDEX('Profils extrapolés 1-4h'!$G$4:$G$35139,(B114-1)*4+3),INDEX('Profils extrapolés 1-4h'!$G$4:$G$35139,(B114-1)*4+4)) -> 17.50553952 | E114: Janvier | H114: 22.17703273 | I114: 2506.004698 | J114: 18191.48942 | K114: 0
A115: 2022-01-05T17:00:00 | B115: 114 | C115: =AVERAGE(INDEX('Profils extrapolés 1-4h'!$I$4:$I$35139,(B115-1)*4+1),INDEX('Profils extrapolés 1-4h'!$I$4:$I$35139,(B115-1)*4+2),INDEX('Profils extrapolés 1-4h'!$I$4:$I$35139,(B115-1)*4+3),INDEX('Profils extrapolés 1-4h'!$I$4:$I$35139,(B115-1)*4+4)) -> 0 | D115: =AVERAGE(INDEX('Profils extrapolés 1-4h'!$G$4:$G$35139,(B115-1)*4+1),INDEX('Profils extrapolés 1-4h'!$G$4:$G$35139,(B115-1)*4+2),INDEX('Profils extrapolés 1-4h'!$G$4:$G$35139,(B115-1)*4+3),INDEX('Profils extrapolés 1-4h'!$G$4:$G$35139,(B115-1)*4+4)) -> 17.82600707 | E115: Janvier | H115: 22.17121715 | I115: 2527.518755 | J115: 18191.48942 | K115: 0
A116: 2022-01-05T18:00:00 | B116: 115 | C116: =AVERAGE(INDEX('Profils extrapolés 1-4h'!$I$4:$I$35139,(B116-1)*4+1),INDEX('Profils extrapolés 1-4h'!$I$4:$I$35139,(B116-1)*4+2),INDEX('Profils extrapolés 1-4h'!$I$4:$I$35139,(B116-1)*4+3),INDEX('Profils extrapolés 1-4h'!$I$4:$I$35139,(B116-1)*4+4)) -> 0 | D116: =AVERAGE(INDEX('Profils extrapolés 1-4h'!$G$4:$G$35139,(B116-1)*4+1),INDEX('Profils extrapolés 1-4h'!$G$4:$G$35139,(B116-1)*4+2),INDEX('Profils extrapolés 1-4h'!$G$4:$G$35139,(B116-1)*4+3),INDEX('Profils extrapolés 1-4h'!$G$4:$G$35139,(B116-1)*4+4)) -> 18.86752658 | E116: Janvier | H116: 22.15810573 | I116: 2548.182159 | J116: 18191.48942 | K116: 0
A117: 2022-01-05T19:00:00 | B117: 116 | C117: =AVERAGE(INDEX('Profils extrapolés 1-4h'!$I$4:$I$35139,(B117-1)*4+1),INDEX('Profils extrapolés 1-4h'!$I$4:$I$35139,(B117-1)*4+2),INDEX('Profils extrapolés 1-4h'!$I$4:$I$35139,(B117-1)*4+3),INDEX('Profils extrapolés 1-4h'!$I$4:$I$35139,(B117-1)*4+4)) -> 0 | D117: =AVERAGE(INDEX('Profils extrapolés 1-4h'!$G$4:$G$35139,(B117-1)*4+1),INDEX('Profils extrapolés 1-4h'!$G$4:$G$35139,(B117-1)*4+2),INDEX('Profils extrapolés 1-4h'!$G$4:$G$35139,(B117-1)*4+3),INDEX('Profils extrapolés 1-4h'!$G$4:$G$35139,(B117-1)*4+4)) -> 17.94618239 | E117: Janvier | H117: 22.15696656 | I117: 2570.208122 | J117: 18191.48942 | K117: 0
A118: 2022-01-05T20:00:00 | B118: 117 | C118: =AVERAGE(INDEX('Profils extrapolés 1-4h'!$I$4:$I$35139,(B118-1)*4+1),INDEX('Profils extrapolés 1-4h'!$I$4:$I$35139,(B118-1)*4+2),INDEX('Profils extrapolés 1-4h'!$I$4:$I$35139,(B118-1)*4+3),INDEX('Profils extrapolés 1-4h'!$I$4:$I$35139,(B118-1)*4+4)) -> 0 | D118: =AVERAGE(INDEX('Profils extrapolés 1-4h'!$G$4:$G$35139,(B118-1)*4+1),INDEX('Profils extrapolés 1-4h'!$G$4:$G$35139,(B118-1)*4+2),INDEX('Profils extrapolés 1-4h'!$G$4:$G$35139,(B118-1)*4+3),INDEX('Profils extrapolés 1-4h'!$G$4:$G$35139,(B118-1)*4+4)) -> 16.98477977 | E118: Janvier | H118: 22.15442747 | I118: 2592.068013 | J118: 18191.48942 | K118: 0
A119: 2022-01-05T21:00:00 | B119: 118 | C119: =AVERAGE(INDEX('Profils extrapolés 1-4h'!$I$4:$I$35139,(B119-1)*4+1),INDEX('Profils extrapolés 1-4h'!$I$4:$I$35139,(B119-1)*4+2),INDEX('Profils extrapolés 1-4h'!$I$4:$I$35139,(B119-1)*4+3),INDEX('Profils extrapolés 1-4h'!$I$4:$I$35139,(B119-1)*4+4)) -> 0 | D119: =AVERAGE(INDEX('Profils extrapolés 1-4h'!$G$4:$G$35139,(B119-1)*4+1),INDEX('Profils extrapolés 1-4h'!$G$4:$G$35139,(B119-1)*4+2),INDEX('Profils extrapolés 1-4h'!$G$4:$G$35139,(B119-1)*4+3),INDEX('Profils extrapolés 1-4h'!$G$4:$G$35139,(B119-1)*4+4)) -> 17.02483821 | E119: Janvier | H119: 22.15442747 | I119: 2614.222441 | J119: 18191.48942 | K119: 0
A120: 2022-01-05T22:00:00 | B120: 119 | C120: =AVERAGE(INDEX('Profils extrapolés 1-4h'!$I$4:$I$35139,(B120-1)*4+1),INDEX('Profils extrapolés 1-4h'!$I$4:$I$35139,(B120-1)*4+2),INDEX('Profils extrapolés 1-4h'!$I$4:$I$35139,(B120-1)*4+3),INDEX('Profils extrapolés 1-4h'!$I$4:$I$35139,(B120-1)*4+4)) -> 0 | D120: =AVERAGE(INDEX('Profils extrapolés 1-4h'!$G$4:$G$35139,(B120-1)*4+1),INDEX('Profils extrapolés 1-4h'!$G$4:$G$35139,(B120-1)*4+2),INDEX('Profils extrapolés 1-4h'!$G$4:$G$35139,(B120-1)*4+3),INDEX('Profils extrapolés 1-4h'!$G$4:$G$35139,(B120-1)*4+4)) -> 13.65992901 | E120: Janvier | H120: 22.14688577 | I120: 2635.479407 | J120: 18191.48942 | K120: 0
A121: 2022-01-05T23:00:00 | B121: 120 | C121: =AVERAGE(INDEX('Profils extrapolés 1-4h'!$I$4:$I$35139,(B121-1)*4+1),INDEX('Profils extrapolés 1-4h'!$I$4:$I$35139,(B121-1)*4+2),INDEX('Profils extrapolés 1-4h'!$I$4:$I$35139,(B121-1)*4+3),INDEX('Profils extrapolés 1-4h'!$I$4:$I$35139,(B121-1)*4+4)) -> 0 | D121: =AVERAGE(INDEX('Profils extrapolés 1-4h'!$G$4:$G$35139,(B121-1)*4+1),INDEX('Profils extrapolés 1-4h'!$G$4:$G$35139,(B121-1)*4+2),INDEX('Profils extrapolés 1-4h'!$G$4:$G$35139,(B121-1)*4+3),INDEX('Profils extrapolés 1-4h'!$G$4:$G$35139,(B121-1)*4+4)) -> 13.4596368 | E121: Janvier | H121: 22.140299 | I121: 2656.83588 | J121: 18191.48942 | K121: 0
A122: 2022-01-06 | B122: 121 | C122: =AVERAGE(INDEX('Profils extrapolés 1-4h'!$I$4:$I$35139,(B122-1)*4+1),INDEX('Profils extrapolés 1-4h'!$I$4:$I$35139,(B122-1)*4+2),INDEX('Profils extrapolés 1-4h'!$I$4:$I$35139,(B122-1)*4+3),INDEX('Profils extrapolés 1-4h'!$I$4:$I$35139,(B122-1)*4+4)) -> 0 | D122: =AVERAGE(INDEX('Profils extrapolés 1-4h'!$G$4:$G$35139,(B122-1)*4+1),INDEX('Profils extrapolés 1-4h'!$G$4:$G$35139,(B122-1)*4+2),INDEX('Profils extrapolés 1-4h'!$G$4:$G$35139,(B122-1)*4+3),INDEX('Profils extrapolés 1-4h'!$G$4:$G$35139,(B122-1)*4+4)) -> 13.53896712 | E122: Janvier | H122: 22.140299 | I122: 2678.976179 | J122: 18191.48942 | K122: 0
A123: 2022-01-06T01:00:00 | B123: 122 | C123: =AVERAGE(INDEX('Profils extrapolés 1-4h'!$I$4:$I$35139,(B123-1)*4+1),INDEX('Profils extrapolés 1-4h'!$I$4:$I$35139,(B123-1)*4+2),INDEX('Profils extrapolés 1-4h'!$I$4:$I$35139,(B123-1)*4+3),INDEX('Profils extrapolés 1-4h'!$I$4:$I$35139,(B123-1)*4+4)) -> 0 | D123: =AVERAGE(INDEX('Profils extrapolés 1-4h'!$G$4:$G$35139,(B123-1)*4+1),INDEX('Profils extrapolés 1-4h'!$G$4:$G$35139,(B123-1)*4+2),INDEX('Profils extrapolés 1-4h'!$G$4:$G$35139,(B123-1)*4+3),INDEX('Profils extrapolés 1-4h'!$G$4:$G$35139,(B123-1)*4+4)) -> 13.81771056 | E123: Janvier | H123: 22.140299 | I123: 2701.116477 | J123: 18191.48942 | K123: 0
A124: 2022-01-06T02:00:00 | B124: 123 | C124: =AVERAGE(INDEX('Profils extrapolés 1-4h'!$I$4:$I$35139,(B124-1)*4+1),INDEX('Profils extrapolés 1-4h'!$I$4:$I$35139,(B124-1)*4+2),INDEX('Profils extrapolés 1-4h'!$I$4:$I$35139,(B124-1)*4+3),INDEX('Profils extrapolés 1-4h'!$I$4:$I$35139,(B124-1)*4+4)) -> 0 | D124: =AVERAGE(INDEX('Profils extrapolés 1-4h'!$G$4:$G$35139,(B124-1)*4+1),INDEX('Profils extrapolés 1-4h'!$G$4:$G$35139,(B124-1)*4+2),INDEX('Profils extrapolés 1-4h'!$G$4:$G$35139,(B124-1)*4+3),INDEX('Profils extrapolés 1-4h'!$G$4:$G$35139,(B124-1)*4+4)) -> 13.65842859 | E124: Janvier | H124: 22.1241445 | I124: 2721.269774 | J124: 18191.48942 | K124: 0
A125: 2022-01-06T03:00:00 | B125: 124 | C125: =AVERAGE(INDEX('Profils extrapolés 1-4h'!$I$4:$I$35139,(B125-1)*4+1),INDEX('Profils extrapolés 1-4h'!$I$4:$I$35139,(B125-1)*4+2),INDEX('Profils extrapolés 1-4h'!$I$4:$I$35139,(B125-1)*4+3),INDEX('Profils extrapolés 1-4h'!$I$4:$I$35139,(B125-1)*4+4)) -> 0 | D125: =AVERAGE(INDEX('Profils extrapolés 1-4h'!$G$4:$G$35139,(B125-1)*4+1),INDEX('Profils extrapolés 1-4h'!$G$4:$G$35139,(B125-1)*4+2),INDEX('Profils extrapolés 1-4h'!$G$4:$G$35139,(B125-1)*4+3),INDEX('Profils extrapolés 1-4h'!$G$4:$G$35139,(B125-1)*4+4)) -> 13.93717203 | E125: Janvier | H125: 22.1241445 | I125: 2743.393918 | J125: 18191.48942 | K125: 0
A126: 2022-01-06T04:00:00 | B126: 125 | C126: =AVERAGE(INDEX('Profils extrapolés 1-4h'!$I$4:$I$35139,(B126-1)*4+1),INDEX('Profils extrapolés 1-4h'!$I$4:$I$35139,(B126-1)*4+2),INDEX('Profils extrapolés 1-4h'!$I$4:$I$35139,(B126-1)*4+3),INDEX('Profils extrapolés 1-4h'!$I$4:$I$35139,(B126-1)*4+4)) -> 0 | D126: =AVERAGE(INDEX('Profils extrapolés 1-4h'!$G$4:$G$35139,(B126-1)*4+1),INDEX('Profils extrapolés 1-4h'!$G$4:$G$35139,(B126-1)*4+2),INDEX('Profils extrapolés 1-4h'!$G$4:$G$35139,(B126-1)*4+3),INDEX('Profils extrapolés 1-4h'!$G$4:$G$35139,(B126-1)*4+4)) -> 14.61412039 | E126: Janvier | H126: 22.1241445 | I126: 2765.518063 | J126: 18191.48942 | K126: 0
A127: 2022-01-06T05:00:00 | B127: 126 | C127: =AVERAGE(INDEX('Profils extrapolés 1-4h'!$I$4:$I$35139,(B127-1)*4+1),INDEX('Profils extrapolés 1-4h'!$I$4:$I$35139,(B127-1)*4+2),INDEX('Profils extrapolés 1-4h'!$I$4:$I$35139,(B127-1)*4+3),INDEX('Profils extrapolés 1-4h'!$I$4:$I$35139,(B127-1)*4+4)) -> 0 | D127: =AVERAGE(INDEX('Profils extrapolés 1-4h'!$G$4:$G$35139,(B127-1)*4+1),INDEX('Profils extrapolés 1-4h'!$G$4:$G$35139,(B127-1)*4+2),INDEX('Profils extrapolés 1-4h'!$G$4:$G$35139,(B127-1)*4+3),INDEX('Profils extrapolés 1-4h'!$G$4:$G$35139,(B127-1)*4+4)) -> 15.68927366 | E127: Janvier | H127: 22.11596738 | I127: 2786.61189 | J127: 18191.48942 | K127: 0
A128: 2022-01-06T06:00:00 | B128: 127 | C128: =AVERAGE(INDEX('Profils extrapolés 1-4h'!$I$4:$I$35139,(B128-1)*4+1),INDEX('Profils extrapolés 1-4h'!$I$4:$I$35139,(B128-1)*4+2),INDEX('Profils extrapolés 1-4h'!$I$4:$I$35139,(B128-1)*4+3),INDEX('Profils extrapolés 1-4h'!$I$4:$I$35139,(B128-1)*4+4)) -> 0 | D128: =AVERAGE(INDEX('Profils extrapolés 1-4h'!$G$4:$G$35139,(B128-1)*4+1),INDEX('Profils extrapolés 1-4h'!$G$4:$G$35139,(B128-1)*4+2),INDEX('Profils extrapolés 1-4h'!$G$4:$G$35139,(B128-1)*4+3),INDEX('Profils extrapolés 1-4h'!$G$4:$G$35139,(B128-1)*4+4)) -> 16.84406792 | E128: Janvier | H128: 22.11596738 | I128: 2808.727857 | J128: 18191.48942 | K128: 0
A129: 2022-01-06T07:00:00 | B129: 128 | C129: =AVERAGE(INDEX('Profils extrapolés 1-4h'!$I$4:$I$35139,(B129-1)*4+1),INDEX('Profils extrapolés 1-4h'!$I$4:$I$35139,(B129-1)*4+2),INDEX('Profils extrapolés 1-4h'!$I$4:$I$35139,(B129-1)*4+3),INDEX('Profils extrapolés 1-4h'!$I$4:$I$35139,(B129-1)*4+4)) -> 0 | D129: =AVERAGE(INDEX('Profils extrapolés 1-4h'!$G$4:$G$35139,(B129-1)*4+1),INDEX('Profils extrapolés 1-4h'!$G$4:$G$35139,(B129-1)*4+2),INDEX('Profils extrapolés 1-4h'!$G$4:$G$35139,(B129-1)*4+3),INDEX('Profils extrapolés 1-4h'!$G$4:$G$35139,(B129-1)*4+4)) -> 18.83509249 | E129: Janvier | H129: 22.10751645 | I129: 2829.762105 | J129: 18191.48942 | K129: 0
A130: 2022-01-06T08:00:00 | B130: 129 | C130: =AVERAGE(INDEX('Profils extrapolés 1-4h'!$I$4:$I$35139,(B130-1)*4+1),INDEX('Profils extrapolés 1-4h'!$I$4:$I$35139,(B130-1)*4+2),INDEX('Profils extrapolés 1-4h'!$I$4:$I$35139,(B130-1)*4+3),INDEX('Profils extrapolés 1-4h'!$I$4:$I$35139,(B130-1)*4+4)) -> 0 | D130: =AVERAGE(INDEX('Profils extrapolés 1-4h'!$G$4:$G$35139,(B130-1)*4+1),INDEX('Profils extrapolés 1-4h'!$G$4:$G$35139,(B130-1)*4+2),INDEX('Profils extrapolés 1-4h'!$G$4:$G$35139,(B130-1)*4+3),INDEX('Profils extrapolés 1-4h'!$G$4:$G$35139,(B130-1)*4+4)) -> 18.71563102 | E130: =jan -> Janvier | H130: 22.10751645 | I130: 2851.869622 | J130: 18191.48942 | K130: 0
A131: 2022-01-06T09:00:00 | B131: 130 | C131: =AVERAGE(INDEX('Profils extrapolés 1-4h'!$I$4:$I$35139,(B131-1)*4+1),INDEX('Profils extrapolés 1-4h'!$I$4:$I$35139,(B131-1)*4+2),INDEX('Profils extrapolés 1-4h'!$I$4:$I$35139,(B131-1)*4+3),INDEX('Profils extrapolés 1-4h'!$I$4:$I$35139,(B131-1)*4+4)) -> 0 | D131: =AVERAGE(INDEX('Profils extrapolés 1-4h'!$G$4:$G$35139,(B131-1)*4+1),INDEX('Profils extrapolés 1-4h'!$G$4:$G$35139,(B131-1)*4+2),INDEX('Profils extrapolés 1-4h'!$G$4:$G$35139,(B131-1)*4+3),INDEX('Profils extrapolés 1-4h'!$G$4:$G$35139,(B131-1)*4+4)) -> 18.71563102 | E131: Janvier | H131: 22.10483253 | I131: 2873.628228 | J131: 18191.48942 | K131: 0
A132: =A131+1/24 -> 2022-01-06T10:00:00 | B132: 131 | C132: =AVERAGE(INDEX('Profils extrapolés 1-4h'!$I$4:$I$35139,(B132-1)*4+1),INDEX('Profils extrapolés 1-4h'!$I$4:$I$35139,(B132-1)*4+2),INDEX('Profils extrapolés 1-4h'!$I$4:$I$35139,(B132-1)*4+3),INDEX('Profils extrapolés 1-4h'!$I$4:$I$35139,(B132-1)*4+4)) -> 0 | D132: =AVERAGE(INDEX('Profils extrapolés 1-4h'!$G$4:$G$35139,(B132-1)*4+1),INDEX('Profils extrapolés 1-4h'!$G$4:$G$35139,(B132-1)*4+2),INDEX('Profils extrapolés 1-4h'!$G$4:$G$35139,(B132-1)*4+3),INDEX('Profils extrapolés 1-4h'!$G$4:$G$35139,(B132-1)*4+4)) -> 18.71563102 | E132: Janvier | H132: 22.09322272 | I132: =B132*H132 -> 2894.212177 | J132: =$G$5 -> 18191.48942 | K132: =IF(I132>=J132,I132,0) -> 0 | L132: =IF(K132=0,"",H132) -> 
A133: 2022-01-06T11:00:00 | B133: 132 | C133: =AVERAGE(INDEX('Profils extrapolés 1-4h'!$I$4:$I$35139,(B133-1)*4+1),INDEX('Profils extrapolés 1-4h'!$I$4:$I$35139,(B133-1)*4+2),INDEX('Profils extrapolés 1-4h'!$I$4:$I$35139,(B133-1)*4+3),INDEX('Profils extrapolés 1-4h'!$I$4:$I$35139,(B133-1)*4+4)) -> 0 | D133: =AVERAGE(INDEX('Profils extrapolés 1-4h'!$G$4:$G$35139,(B133-1)*4+1),INDEX('Profils extrapolés 1-4h'!$G$4:$G$35139,(B133-1)*4+2),INDEX('Profils extrapolés 1-4h'!$G$4:$G$35139,(B133-1)*4+3),INDEX('Profils extrapolés 1-4h'!$G$4:$G$35139,(B133-1)*4+4)) -> 18.35724659 | E133: Janvier | H133: 22.09297306 | I133: 2916.272444 | J133: 18191.48942 | K133: 0
A134: 2022-01-06T12:00:00 | B134: 133 | C134: =AVERAGE(INDEX('Profils extrapolés 1-4h'!$I$4:$I$35139,(B134-1)*4+1),INDEX('Profils extrapolés 1-4h'!$I$4:$I$35139,(B134-1)*4+2),INDEX('Profils extrapolés 1-4h'!$I$4:$I$35139,(B134-1)*4+3),INDEX('Profils extrapolés 1-4h'!$I$4:$I$35139,(B134-1)*4+4)) -> 0 | D134: =AVERAGE(INDEX('Profils extrapolés 1-4h'!$G$4:$G$35139,(B134-1)*4+1),INDEX('Profils extrapolés 1-4h'!$G$4:$G$35139,(B134-1)*4+2),INDEX('Profils extrapolés 1-4h'!$G$4:$G$35139,(B134-1)*4+3),INDEX('Profils extrapolés 1-4h'!$G$4:$G$35139,(B134-1)*4+4)) -> 17.8395802 | E134: Janvier | H134: 22.07803331 | I134: 2936.378431 | J134: 18191.48942 | K134: 0
A135: 2022-01-06T13:00:00 | B135: 134 | C135: =AVERAGE(INDEX('Profils extrapolés 1-4h'!$I$4:$I$35139,(B135-1)*4+1),INDEX('Profils extrapolés 1-4h'!$I$4:$I$35139,(B135-1)*4+2),INDEX('Profils extrapolés 1-4h'!$I$4:$I$35139,(B135-1)*4+3),INDEX('Profils extrapolés 1-4h'!$I$4:$I$35139,(B135-1)*4+4)) -> 0 | D135: =AVERAGE(INDEX('Profils extrapolés 1-4h'!$G$4:$G$35139,(B135-1)*4+1),INDEX('Profils extrapolés 1-4h'!$G$4:$G$35139,(B135-1)*4+2),INDEX('Profils extrapolés 1-4h'!$G$4:$G$35139,(B135-1)*4+3),INDEX('Profils extrapolés 1-4h'!$G$4:$G$35139,(B135-1)*4+4)) -> 17.44137529 | E135: Janvier | H135: 22.05269849 | I135: 2955.061597 | J135: 18191.48942 | K135: 0
A136: 2022-01-06T14:00:00 | B136: 135 | C136: =AVERAGE(INDEX('Profils extrapolés 1-4h'!$I$4:$I$35139,(B136-1)*4+1),INDEX('Profils extrapolés 1-4h'!$I$4:$I$35139,(B136-1)*4+2),INDEX('Profils extrapolés 1-4h'!$I$4:$I$35139,(B136-1)*4+3),INDEX('Profils extrapolés 1-4h'!$I$4:$I$35139,(B136-1)*4+4)) -> 0 | D136: =AVERAGE(INDEX('Profils extrapolés 1-4h'!$G$4:$G$35139,(B136-1)*4+1),INDEX('Profils extrapolés 1-4h'!$G$4:$G$35139,(B136-1)*4+2),INDEX('Profils extrapolés 1-4h'!$G$4:$G$35139,(B136-1)*4+3),INDEX('Profils extrapolés 1-4h'!$G$4:$G$35139,(B136-1)*4+4)) -> 17.4015548 | E136: Janvier | H136: 21.99980529 | I136: 2969.973714 | J136: 18191.48942 | K136: 0
A137: 2022-01-06T15:00:00 | B137: 136 | C137: =AVERAGE(INDEX('Profils extrapolés 1-4h'!$I$4:$I$35139,(B137-1)*4+1),INDEX('Profils extrapolés 1-4h'!$I$4:$I$35139,(B137-1)*4+2),INDEX('Profils extrapolés 1-4h'!$I$4:$I$35139,(B137-1)*4+3),INDEX('Profils extrapolés 1-4h'!$I$4:$I$35139,(B137-1)*4+4)) -> 0 | D137: =AVERAGE(INDEX('Profils extrapolés 1-4h'!$G$4:$G$35139,(B137-1)*4+1),INDEX('Profils extrapolés 1-4h'!$G$4:$G$35139,(B137-1)*4+2),INDEX('Profils extrapolés 1-4h'!$G$4:$G$35139,(B137-1)*4+3),INDEX('Profils extrapolés 1-4h'!$G$4:$G$35139,(B137-1)*4+4)) -> 17.60065725 | E137: Janvier | H137: 21.99758092 | I137: 2991.671005 | J137: 18191.48942 | K137: 0
A138: 2022-01-06T16:00:00 | B138: 137 | C138: =AVERAGE(INDEX('Profils extrapolés 1-4h'!$I$4:$I$35139,(B138-1)*4+1),INDEX('Profils extrapolés 1-4h'!$I$4:$I$35139,(B138-1)*4+2),INDEX('Profils extrapolés 1-4h'!$I$4:$I$35139,(B138-1)*4+3),INDEX('Profils extrapolés 1-4h'!$I$4:$I$35139,(B138-1)*4+4)) -> 0 | D138: =AVERAGE(INDEX('Profils extrapolés 1-4h'!$G$4:$G$35139,(B138-1)*4+1),INDEX('Profils extrapolés 1-4h'!$G$4:$G$35139,(B138-1)*4+2),INDEX('Profils extrapolés 1-4h'!$G$4:$G$35139,(B138-1)*4+3),INDEX('Profils extrapolés 1-4h'!$G$4:$G$35139,(B138-1)*4+4)) -> 17.4015548 | E138: Janvier | H138: 21.96786938 | I138: 3009.598105 | J138: 18191.48942 | K138: 0
A139: 2022-01-06T17:00:00 | B139: 138 | C139: =AVERAGE(INDEX('Profils extrapolés 1-4h'!$I$4:$I$35139,(B139-1)*4+1),INDEX('Profils extrapolés 1-4h'!$I$4:$I$35139,(B139-1)*4+2),INDEX('Profils extrapolés 1-4h'!$I$4:$I$35139,(B139-1)*4+3),INDEX('Profils extrapolés 1-4h'!$I$4:$I$35139,(B139-1)*4+4)) -> 0 | D139: =AVERAGE(INDEX('Profils extrapolés 1-4h'!$G$4:$G$35139,(B139-1)*4+1),INDEX('Profils extrapolés 1-4h'!$G$4:$G$35139,(B139-1)*4+2),INDEX('Profils extrapolés 1-4h'!$G$4:$G$35139,(B139-1)*4+3),INDEX('Profils extrapolés 1-4h'!$G$4:$G$35139,(B139-1)*4+4)) -> 17.72011873 | E139: Janvier | H139: 21.95551095 | I139: 3029.86051 | J139: 18191.48942 | K139: 0
A140: 2022-01-06T18:00:00 | B140: 139 | C140: =AVERAGE(INDEX('Profils extrapolés 1-4h'!$I$4:$I$35139,(B140-1)*4+1),INDEX('Profils extrapolés 1-4h'!$I$4:$I$35139,(B140-1)*4+2),INDEX('Profils extrapolés 1-4h'!$I$4:$I$35139,(B140-1)*4+3),INDEX('Profils extrapolés 1-4h'!$I$4:$I$35139,(B140-1)*4+4)) -> 0 | D140: =AVERAGE(INDEX('Profils extrapolés 1-4h'!$G$4:$G$35139,(B140-1)*4+1),INDEX('Profils extrapolés 1-4h'!$G$4:$G$35139,(B140-1)*4+2),INDEX('Profils extrapolés 1-4h'!$G$4:$G$35139,(B140-1)*4+3),INDEX('Profils extrapolés 1-4h'!$G$4:$G$35139,(B140-1)*4+4)) -> 18.75545151 | E140: Janvier | H140: 21.95309657 | I140: 3051.480424 | J140: 18191.48942 | K140: 0
A141: 2022-01-06T19:00:00 | B141: 140 | C141: =AVERAGE(INDEX('Profils extrapolés 1-4h'!$I$4:$I$35139,(B141-1)*4+1),INDEX('Profils extrapolés 1-4h'!$I$4:$I$35139,(B141-1)*4+2),INDEX('Profils extrapolés 1-4h'!$I$4:$I$35139,(B141-1)*4+3),INDEX('Profils extrapolés 1-4h'!$I$4:$I$35139,(B141-1)*4+4)) -> 0 | D141: =AVERAGE(INDEX('Profils extrapolés 1-4h'!$G$4:$G$35139,(B141-1)*4+1),INDEX('Profils extrapolés 1-4h'!$G$4:$G$35139,(B141-1)*4+2),INDEX('Profils extrapolés 1-4h'!$G$4:$G$35139,(B141-1)*4+3),INDEX('Profils extrapolés 1-4h'!$G$4:$G$35139,(B141-1)*4+4)) -> 17.8395802 | E141: Janvier | H141: 21.95309657 | I141: 3073.43352 | J141: 18191.48942 | K141: 0
A142: 2022-01-06T20:00:00 | B142: 141 | C142: =AVERAGE(INDEX('Profils extrapolés 1-4h'!$I$4:$I$35139,(B142-1)*4+1),INDEX('Profils extrapolés 1-4h'!$I$4:$I$35139,(B142-1)*4+2),INDEX('Profils extrapolés 1-4h'!$I$4:$I$35139,(B142-1)*4+3),INDEX('Profils extrapolés 1-4h'!$I$4:$I$35139,(B142-1)*4+4)) -> 0 | D142: =AVERAGE(INDEX('Profils extrapolés 1-4h'!$G$4:$G$35139,(B142-1)*4+1),INDEX('Profils extrapolés 1-4h'!$G$4:$G$35139,(B142-1)*4+2),INDEX('Profils extrapolés 1-4h'!$G$4:$G$35139,(B142-1)*4+3),INDEX('Profils extrapolés 1-4h'!$G$4:$G$35139,(B142-1)*4+4)) -> 16.88388841 | E142: Janvier | H142: 21.95309657 | I142: 3095.386617 | J142: 18191.48942 | K142: 0
A143: 2022-01-06T21:00:00 | B143: 142 | C143: =AVERAGE(INDEX('Profils extrapolés 1-4h'!$I$4:$I$35139,(B143-1)*4+1),INDEX('Profils extrapolés 1-4h'!$I$4:$I$35139,(B143-1)*4+2),INDEX('Profils extrapolés 1-4h'!$I$4:$I$35139,(B143-1)*4+3),INDEX('Profils extrapolés 1-4h'!$I$4:$I$35139,(B143-1)*4+4)) -> 0 | D143: =AVERAGE(INDEX('Profils extrapolés 1-4h'!$G$4:$G$35139,(B143-1)*4+1),INDEX('Profils extrapolés 1-4h'!$G$4:$G$35139,(B143-1)*4+2),INDEX('Profils extrapolés 1-4h'!$G$4:$G$35139,(B143-1)*4+3),INDEX('Profils extrapolés 1-4h'!$G$4:$G$35139,(B143-1)*4+4)) -> 16.9237089 | E143: Janvier | H143: 21.92919264 | I143: 3113.945355 | J143: 18191.48942 | K143: 0
A144: 2022-01-06T22:00:00 | B144: 143 | C144: =AVERAGE(INDEX('Profils extrapolés 1-4h'!$I$4:$I$35139,(B144-1)*4+1),INDEX('Profils extrapolés 1-4h'!$I$4:$I$35139,(B144-1)*4+2),INDEX('Profils extrapolés 1-4h'!$I$4:$I$35139,(B144-1)*4+3),INDEX('Profils extrapolés 1-4h'!$I$4:$I$35139,(B144-1)*4+4)) -> 0 | D144: =AVERAGE(INDEX('Profils extrapolés 1-4h'!$G$4:$G$35139,(B144-1)*4+1),INDEX('Profils extrapolés 1-4h'!$G$4:$G$35139,(B144-1)*4+2),INDEX('Profils extrapolés 1-4h'!$G$4:$G$35139,(B144-1)*4+3),INDEX('Profils extrapolés 1-4h'!$G$4:$G$35139,(B144-1)*4+4)) -> 13.57878761 | E144: Janvier | H144: 21.90181772 | I144: 3131.959934 | J144: 18191.48942 | K144: 0
A145: 2022-01-06T23:00:00 | B145: 144 | C145: =AVERAGE(INDEX('Profils extrapolés 1-4h'!$I$4:$I$35139,(B145-1)*4+1),INDEX('Profils extrapolés 1-4h'!$I$4:$I$35139,(B145-1)*4+2),INDEX('Profils extrapolés 1-4h'!$I$4:$I$35139,(B145-1)*4+3),INDEX('Profils extrapolés 1-4h'!$I$4:$I$35139,(B145-1)*4+4)) -> 0 | D145: =AVERAGE(INDEX('Profils extrapolés 1-4h'!$G$4:$G$35139,(B145-1)*4+1),INDEX('Profils extrapolés 1-4h'!$G$4:$G$35139,(B145-1)*4+2),INDEX('Profils extrapolés 1-4h'!$G$4:$G$35139,(B145-1)*4+3),INDEX('Profils extrapolés 1-4h'!$G$4:$G$35139,(B145-1)*4+4)) -> 13.37968515 | E145: Janvier | H145: 21.89303665 | I145: 3152.597278 | J145: 18191.48942 | K145: 0
A146: 2022-01-07 | B146: 145 | C146: =AVERAGE(INDEX('Profils extrapolés 1-4h'!$I$4:$I$35139,(B146-1)*4+1),INDEX('Profils extrapolés 1-4h'!$I$4:$I$35139,(B146-1)*4+2),INDEX('Profils extrapolés 1-4h'!$I$4:$I$35139,(B146-1)*4+3),INDEX('Profils extrapolés 1-4h'!$I$4:$I$35139,(B146-1)*4+4)) -> 0 | D146: =AVERAGE(INDEX('Profils extrapolés 1-4h'!$G$4:$G$35139,(B146-1)*4+1),INDEX('Profils extrapolés 1-4h'!$G$4:$G$35139,(B146-1)*4+2),INDEX('Profils extrapolés 1-4h'!$G$4:$G$35139,(B146-1)*4+3),INDEX('Profils extrapolés 1-4h'!$G$4:$G$35139,(B146-1)*4+4)) -> 13.23557919 | E146: Janvier | H146: 21.88504047 | I146: 3173.330867 | J146: 18191.48942 | K146: 0
A147: 2022-01-07T01:00:00 | B147: 146 | C147: =AVERAGE(INDEX('Profils extrapolés 1-4h'!$I$4:$I$35139,(B147-1)*4+1),INDEX('Profils extrapolés 1-4h'!$I$4:$I$35139,(B147-1)*4+2),INDEX('Profils extrapolés 1-4h'!$I$4:$I$35139,(B147-1)*4+3),INDEX('Profils extrapolés 1-4h'!$I$4:$I$35139,(B147-1)*4+4)) -> 0 | D147: =AVERAGE(INDEX('Profils extrapolés 1-4h'!$G$4:$G$35139,(B147-1)*4+1),INDEX('Profils extrapolés 1-4h'!$G$4:$G$35139,(B147-1)*4+2),INDEX('Profils extrapolés 1-4h'!$G$4:$G$35139,(B147-1)*4+3),INDEX('Profils extrapolés 1-4h'!$G$4:$G$35139,(B147-1)*4+4)) -> 13.50807641 | E147: Janvier | H147: 21.88029083 | I147: 3194.522462 | J147: 18191.48942 | K147: 0
A148: 2022-01-07T02:00:00 | B148: 147 | C148: =AVERAGE(INDEX('Profils extrapolés 1-4h'!$I$4:$I$35139,(B148-1)*4+1),INDEX('Profils extrapolés 1-4h'!$I$4:$I$35139,(B148-1)*4+2),INDEX('Profils extrapolés 1-4h'!$I$4:$I$35139,(B148-1)*4+3),INDEX('Profils extrapolés 1-4h'!$I$4:$I$35139,(B148-1)*4+4)) -> 0 | D148: =AVERAGE(INDEX('Profils extrapolés 1-4h'!$G$4:$G$35139,(B148-1)*4+1),INDEX('Profils extrapolés 1-4h'!$G$4:$G$35139,(B148-1)*4+2),INDEX('Profils extrapolés 1-4h'!$G$4:$G$35139,(B148-1)*4+3),INDEX('Profils extrapolés 1-4h'!$G$4:$G$35139,(B148-1)*4+4)) -> 13.35236371 | E148: Janvier | H148: 21.88029083 | I148: 3216.402753 | J148: 18191.48942 | K148: 0
A149: 2022-01-07T03:00:00 | B149: 148 | C149: =AVERAGE(INDEX('Profils extrapolés 1-4h'!$I$4:$I$35139,(B149-1)*4+1),INDEX('Profils extrapolés 1-4h'!$I$4:$I$35139,(B149-1)*4+2),INDEX('Profils extrapolés 1-4h'!$I$4:$I$35139,(B149-1)*4+3),INDEX('Profils extrapolés 1-4h'!$I$4:$I$35139,(B149-1)*4+4)) -> 0 | D149: =AVERAGE(INDEX('Profils extrapolés 1-4h'!$G$4:$G$35139,(B149-1)*4+1),INDEX('Profils extrapolés 1-4h'!$G$4:$G$35139,(B149-1)*4+2),INDEX('Profils extrapolés 1-4h'!$G$4:$G$35139,(B149-1)*4+3),INDEX('Profils extrapolés 1-4h'!$G$4:$G$35139,(B149-1)*4+4)) -> 13.62486093 | E149: Janvier | H149: 21.8626758 | I149: 3235.676019 | J149: 18191.48942 | K149: 0
A150: 2022-01-07T04:00:00 | B150: 149 | C150: =AVERAGE(INDEX('Profils extrapolés 1-4h'!$I$4:$I$35139,(B150-1)*4+1),INDEX('Profils extrapolés 1-4h'!$I$4:$I$35139,(B150-1)*4+2),INDEX('Profils extrapolés 1-4h'!$I$4:$I$35139,(B150-1)*4+3),INDEX('Profils extrapolés 1-4h'!$I$4:$I$35139,(B150-1)*4+4)) -> 0 | D150: =AVERAGE(INDEX('Profils extrapolés 1-4h'!$G$4:$G$35139,(B150-1)*4+1),INDEX('Profils extrapolés 1-4h'!$G$4:$G$35139,(B150-1)*4+2),INDEX('Profils extrapolés 1-4h'!$G$4:$G$35139,(B150-1)*4+3),INDEX('Profils extrapolés 1-4h'!$G$4:$G$35139,(B150-1)*4+4)) -> 14.28663989 | E150: Janvier | H150: 21.84305255 | I150: 3254.61483 | J150: 18191.48942 | K150: 0
A151: 2022-01-07T05:00:00 | B151: 150 | C151: =AVERAGE(INDEX('Profils extrapolés 1-4h'!$I$4:$I$35139,(B151-1)*4+1),INDEX('Profils extrapolés 1-4h'!$I$4:$I$35139,(B151-1)*4+2),INDEX('Profils extrapolés 1-4h'!$I$4:$I$35139,(B151-1)*4+3),INDEX('Profils extrapolés 1-4h'!$I$4:$I$35139,(B151-1)*4+4)) -> 0 | D151: =AVERAGE(INDEX('Profils extrapolés 1-4h'!$G$4:$G$35139,(B151-1)*4+1),INDEX('Profils extrapolés 1-4h'!$G$4:$G$35139,(B151-1)*4+2),INDEX('Profils extrapolés 1-4h'!$G$4:$G$35139,(B151-1)*4+3),INDEX('Profils extrapolés 1-4h'!$G$4:$G$35139,(B151-1)*4+4)) -> 15.33770059 | E151: Janvier | H151: 21.84305255 | I151: 3276.457883 | J151: 18191.48942 | K151: 0
A152: 2022-01-07T06:00:00 | B152: 151 | C152: =AVERAGE(INDEX('Profils extrapolés 1-4h'!$I$4:$I$35139,(B152-1)*4+1),INDEX('Profils extrapolés 1-4h'!$I$4:$I$35139,(B152-1)*4+2),INDEX('Profils extrapolés 1-4h'!$I$4:$I$35139,(B152-1)*4+3),INDEX('Profils extrapolés 1-4h'!$I$4:$I$35139,(B152-1)*4+4)) -> 0 | D152: =AVERAGE(INDEX('Profils extrapolés 1-4h'!$G$4:$G$35139,(B152-1)*4+1),INDEX('Profils extrapolés 1-4h'!$G$4:$G$35139,(B152-1)*4+2),INDEX('Profils extrapolés 1-4h'!$G$4:$G$35139,(B152-1)*4+3),INDEX('Profils extrapolés 1-4h'!$G$4:$G$35139,(B152-1)*4+4)) -> 16.46661764 | E152: Janvier | H152: 21.81977139 | I152: 3294.785479 | J152: 18191.48942 | K152: 0
A153: 2022-01-07T07:00:00 | B153: 152 | C153: =AVERAGE(INDEX('Profils extrapolés 1-4h'!$I$4:$I$35139,(B153-1)*4+1),INDEX('Profils extrapolés 1-4h'!$I$4:$I$35139,(B153-1)*4+2),INDEX('Profils extrapolés 1-4h'!$I$4:$I$35139,(B153-1)*4+3),INDEX('Profils extrapolés 1-4h'!$I$4:$I$35139,(B153-1)*4+4)) -> 0 | D153: =AVERAGE(INDEX('Profils extrapolés 1-4h'!$G$4:$G$35139,(B153-1)*4+1),INDEX('Profils extrapolés 1-4h'!$G$4:$G$35139,(B153-1)*4+2),INDEX('Profils extrapolés 1-4h'!$G$4:$G$35139,(B153-1)*4+3),INDEX('Profils extrapolés 1-4h'!$G$4:$G$35139,(B153-1)*4+4)) -> 18.41302634 | E153: Janvier | H153: 21.81625823 | I153: 3316.071251 | J153: 18191.48942 | K153: 0
A154: 2022-01-07T08:00:00 | B154: 153 | C154: =AVERAGE(INDEX('Profils extrapolés 1-4h'!$I$4:$I$35139,(B154-1)*4+1),INDEX('Profils extrapolés 1-4h'!$I$4:$I$35139,(B154-1)*4+2),INDEX('Profils extrapolés 1-4h'!$I$4:$I$35139,(B154-1)*4+3),INDEX('Profils extrapolés 1-4h'!$I$4:$I$35139,(B154-1)*4+4)) -> 0 | D154: =AVERAGE(INDEX('Profils extrapolés 1-4h'!$G$4:$G$35139,(B154-1)*4+1),INDEX('Profils extrapolés 1-4h'!$G$4:$G$35139,(B154-1)*4+2),INDEX('Profils extrapolés 1-4h'!$G$4:$G$35139,(B154-1)*4+3),INDEX('Profils extrapolés 1-4h'!$G$4:$G$35139,(B154-1)*4+4)) -> 18.29624182 | E154: Janvier | H154: 21.81625823 | I154: 3337.88751 | J154: 18191.48942 | K154: 0
A155: 2022-01-07T09:00:00 | B155: 154 | C155: =AVERAGE(INDEX('Profils extrapolés 1-4h'!$I$4:$I$35139,(B155-1)*4+1),INDEX('Profils extrapolés 1-4h'!$I$4:$I$35139,(B155-1)*4+2),INDEX('Profils extrapolés 1-4h'!$I$4:$I$35139,(B155-1)*4+3),INDEX('Profils extrapolés 1-4h'!$I$4:$I$35139,(B155-1)*4+4)) -> 0 | D155: =AVERAGE(INDEX('Profils extrapolés 1-4h'!$G$4:$G$35139,(B155-1)*4+1),INDEX('Profils extrapolés 1-4h'!$G$4:$G$35139,(B155-1)*4+2),INDEX('Profils extrapolés 1-4h'!$G$4:$G$35139,(B155-1)*4+3),INDEX('Profils extrapolés 1-4h'!$G$4:$G$35139,(B155-1)*4+4)) -> 18.29624182 | E155: Janvier | H155: 21.81625823 | I155: 3359.703768 | J155: 18191.48942 | K155: 0
A156: 2022-01-07T10:00:00 | B156: 155 | C156: =AVERAGE(INDEX('Profils extrapolés 1-4h'!$I$4:$I$35139,(B156-1)*4+1),INDEX('Profils extrapolés 1-4h'!$I$4:$I$35139,(B156-1)*4+2),INDEX('Profils extrapolés 1-4h'!$I$4:$I$35139,(B156-1)*4+3),INDEX('Profils extrapolés 1-4h'!$I$4:$I$35139,(B156-1)*4+4)) -> 0 | D156: =AVERAGE(INDEX('Profils extrapolés 1-4h'!$G$4:$G$35139,(B156-1)*4+1),INDEX('Profils extrapolés 1-4h'!$G$4:$G$35139,(B156-1)*4+2),INDEX('Profils extrapolés 1-4h'!$G$4:$G$35139,(B156-1)*4+3),INDEX('Profils extrapolés 1-4h'!$G$4:$G$35139,(B156-1)*4+4)) -> 18.29624182 | E156: Janvier | H156: 21.79850779 | I156: 3378.768708 | J156: 18191.48942 | K156: 0
A157: 2022-01-07T11:00:00 | B157: 156 | C157: =AVERAGE(INDEX('Profils extrapolés 1-4h'!$I$4:$I$35139,(B157-1)*4+1),INDEX('Profils extrapolés 1-4h'!$I$4:$I$35139,(B157-1)*4+2),INDEX('Profils extrapolés 1-4h'!$I$4:$I$35139,(B157-1)*4+3),INDEX('Profils extrapolés 1-4h'!$I$4:$I$35139,(B157-1)*4+4)) -> 0 | D157: =AVERAGE(INDEX('Profils extrapolés 1-4h'!$G$4:$G$35139,(B157-1)*4+1),INDEX('Profils extrapolés 1-4h'!$G$4:$G$35139,(B157-1)*4+2),INDEX('Profils extrapolés 1-4h'!$G$4:$G$35139,(B157-1)*4+3),INDEX('Profils extrapolés 1-4h'!$G$4:$G$35139,(B157-1)*4+4)) -> 17.94588825 | E157: Janvier | H157: 21.79176444 | I157: 3399.515253 | J157: 18191.48942 | K157: 0
A158: 2022-01-07T12:00:00 | B158: 157 | C158: =AVERAGE(INDEX('Profils extrapolés 1-4h'!$I$4:$I$35139,(B158-1)*4+1),INDEX('Profils extrapolés 1-4h'!$I$4:$I$35139,(B158-1)*4+2),INDEX('Profils extrapolés 1-4h'!$I$4:$I$35139,(B158-1)*4+3),INDEX('Profils extrapolés 1-4h'!$I$4:$I$35139,(B158-1)*4+4)) -> 0 | D158: =AVERAGE(INDEX('Profils extrapolés 1-4h'!$G$4:$G$35139,(B158-1)*4+1),INDEX('Profils extrapolés 1-4h'!$G$4:$G$35139,(B158-1)*4+2),INDEX('Profils extrapolés 1-4h'!$G$4:$G$35139,(B158-1)*4+3),INDEX('Profils extrapolés 1-4h'!$G$4:$G$35139,(B158-1)*4+4)) -> 17.43982199 | E158: Janvier | H158: 21.74873951 | I158: 3414.552103 | J158: 18191.48942 | K158: 0
A159: 2022-01-07T13:00:00 | B159: 158 | C159: =AVERAGE(INDEX('Profils extrapolés 1-4h'!$I$4:$I$35139,(B159-1)*4+1),INDEX('Profils extrapolés 1-4h'!$I$4:$I$35139,(B159-1)*4+2),INDEX('Profils extrapolés 1-4h'!$I$4:$I$35139,(B159-1)*4+3),INDEX('Profils extrapolés 1-4h'!$I$4:$I$35139,(B159-1)*4+4)) -> 0 | D159: =AVERAGE(INDEX('Profils extrapolés 1-4h'!$G$4:$G$35139,(B159-1)*4+1),INDEX('Profils extrapolés 1-4h'!$G$4:$G$35139,(B159-1)*4+2),INDEX('Profils extrapolés 1-4h'!$G$4:$G$35139,(B159-1)*4+3),INDEX('Profils extrapolés 1-4h'!$G$4:$G$35139,(B159-1)*4+4)) -> 17.05054025 | E159: Janvier | H159: 21.74873951 | I159: 3436.300842 | J159: 18191.48942 | K159: 0
A160: 2022-01-07T14:00:00 | B160: 159 | C160: =AVERAGE(INDEX('Profils extrapolés 1-4h'!$I$4:$I$35139,(B160-1)*4+1),INDEX('Profils extrapolés 1-4h'!$I$4:$I$35139,(B160-1)*4+2),INDEX('Profils extrapolés 1-4h'!$I$4:$I$35139,(B160-1)*4+3),INDEX('Profils extrapolés 1-4h'!$I$4:$I$35139,(B160-1)*4+4)) -> 0 | D160: =AVERAGE(INDEX('Profils extrapolés 1-4h'!$G$4:$G$35139,(B160-1)*4+1),INDEX('Profils extrapolés 1-4h'!$G$4:$G$35139,(B160-1)*4+2),INDEX('Profils extrapolés 1-4h'!$G$4:$G$35139,(B160-1)*4+3),INDEX('Profils extrapolés 1-4h'!$G$4:$G$35139,(B160-1)*4+4)) -> 17.01161207 | E160: Janvier | H160: 21.73377103 | I160: 3455.669594 | J160: 18191.48942 | K160: 0
A161: 2022-01-07T15:00:00 | B161: 160 | C161: =AVERAGE(INDEX('Profils extrapolés 1-4h'!$I$4:$I$35139,(B161-1)*4+1),INDEX('Profils extrapolés 1-4h'!$I$4:$I$35139,(B161-1)*4+2),INDEX('Profils extrapolés 1-4h'!$I$4:$I$35139,(B161-1)*4+3),INDEX('Profils extrapolés 1-4h'!$I$4:$I$35139,(B161-1)*4+4)) -> 0 | D161: =AVERAGE(INDEX('Profils extrapolés 1-4h'!$G$4:$G$35139,(B161-1)*4+1),INDEX('Profils extrapolés 1-4h'!$G$4:$G$35139,(B161-1)*4+2),INDEX('Profils extrapolés 1-4h'!$G$4:$G$35139,(B161-1)*4+3),INDEX('Profils extrapolés 1-4h'!$G$4:$G$35139,(B161-1)*4+4)) -> 17.20625294 | E161: Janvier | H161: 21.73073841 | I161: 3476.918145 | J161: 18191.48942 | K161: 0
A162: 2022-01-07T16:00:00 | B162: 161 | C162: =AVERAGE(INDEX('Profils extrapolés 1-4h'!$I$4:$I$35139,(B162-1)*4+1),INDEX('Profils extrapolés 1-4h'!$I$4:$I$35139,(B162-1)*4+2),INDEX('Profils extrapolés 1-4h'!$I$4:$I$35139,(B162-1)*4+3),INDEX('Profils extrapolés 1-4h'!$I$4:$I$35139,(B162-1)*4+4)) -> 0 | D162: =AVERAGE(INDEX('Profils extrapolés 1-4h'!$G$4:$G$35139,(B162-1)*4+1),INDEX('Profils extrapolés 1-4h'!$G$4:$G$35139,(B162-1)*4+2),INDEX('Profils extrapolés 1-4h'!$G$4:$G$35139,(B162-1)*4+3),INDEX('Profils extrapolés 1-4h'!$G$4:$G$35139,(B162-1)*4+4)) -> 17.01161207 | E162: Janvier | H162: 21.71633582 | I162: 3496.330068 | J162: 18191.48942 | K162: 0
A163: 2022-01-07T17:00:00 | B163: 162 | C163: =AVERAGE(INDEX('Profils extrapolés 1-4h'!$I$4:$I$35139,(B163-1)*4+1),INDEX('Profils extrapolés 1-4h'!$I$4:$I$35139,(B163-1)*4+2),INDEX('Profils extrapolés 1-4h'!$I$4:$I$35139,(B163-1)*4+3),INDEX('Profils extrapolés 1-4h'!$I$4:$I$35139,(B163-1)*4+4)) -> 0 | D163: =AVERAGE(INDEX('Profils extrapolés 1-4h'!$G$4:$G$35139,(B163-1)*4+1),INDEX('Profils extrapolés 1-4h'!$G$4:$G$35139,(B163-1)*4+2),INDEX('Profils extrapolés 1-4h'!$G$4:$G$35139,(B163-1)*4+3),INDEX('Profils extrapolés 1-4h'!$G$4:$G$35139,(B163-1)*4+4)) -> 17.32303747 | E163: Janvier | H163: 21.70049067 | I163: 3515.479489 | J163: 18191.48942 | K163: 0
A164: 2022-01-07T18:00:00 | B164: 163 | C164: =AVERAGE(INDEX('Profils extrapolés 1-4h'!$I$4:$I$35139,(B164-1)*4+1),INDEX('Profils extrapolés 1-4h'!$I$4:$I$35139,(B164-1)*4+2),INDEX('Profils extrapolés 1-4h'!$I$4:$I$35139,(B164-1)*4+3),INDEX('Profils extrapolés 1-4h'!$I$4:$I$35139,(B164-1)*4+4)) -> 0 | D164: =AVERAGE(INDEX('Profils extrapolés 1-4h'!$G$4:$G$35139,(B164-1)*4+1),INDEX('Profils extrapolés 1-4h'!$G$4:$G$35139,(B164-1)*4+2),INDEX('Profils extrapolés 1-4h'!$G$4:$G$35139,(B164-1)*4+3),INDEX('Profils extrapolés 1-4h'!$G$4:$G$35139,(B164-1)*4+4)) -> 18.33516999 | E164: Janvier | H164: 21.69962168 | I164: 3537.038333 | J164: 18191.48942 | K164: 0
A165: 2022-01-07T19:00:00 | B165: 164 | C165: =AVERAGE(INDEX('Profils extrapolés 1-4h'!$I$4:$I$35139,(B165-1)*4+1),INDEX('Profils extrapolés 1-4h'!$I$4:$I$35139,(B165-1)*4+2),INDEX('Profils extrapolés 1-4h'!$I$4:$I$35139,(B165-1)*4+3),INDEX('Profils extrapolés 1-4h'!$I$4:$I$35139,(B165-1)*4+4)) -> 0 | D165: =AVERAGE(INDEX('Profils extrapolés 1-4h'!$G$4:$G$35139,(B165-1)*4+1),INDEX('Profils extrapolés 1-4h'!$G$4:$G$35139,(B165-1)*4+2),INDEX('Profils extrapolés 1-4h'!$G$4:$G$35139,(B165-1)*4+3),INDEX('Profils extrapolés 1-4h'!$G$4:$G$35139,(B165-1)*4+4)) -> 17.43982199 | E165: Janvier | H165: 21.68112485 | I165: 3555.704475 | J165: 18191.48942 | K165: 0
A166: 2022-01-07T20:00:00 | B166: 165 | C166: =AVERAGE(INDEX('Profils extrapolés 1-4h'!$I$4:$I$35139,(B166-1)*4+1),INDEX('Profils extrapolés 1-4h'!$I$4:$I$35139,(B166-1)*4+2),INDEX('Profils extrapolés 1-4h'!$I$4:$I$35139,(B166-1)*4+3),INDEX('Profils extrapolés 1-4h'!$I$4:$I$35139,(B166-1)*4+4)) -> 0 | D166: =AVERAGE(INDEX('Profils extrapolés 1-4h'!$G$4:$G$35139,(B166-1)*4+1),INDEX('Profils extrapolés 1-4h'!$G$4:$G$35139,(B166-1)*4+2),INDEX('Profils extrapolés 1-4h'!$G$4:$G$35139,(B166-1)*4+3),INDEX('Profils extrapolés 1-4h'!$G$4:$G$35139,(B166-1)*4+4)) -> 16.50554581 | E166: Janvier | H166: 21.68112485 | I166: 3577.3856 | J166: 18191.48942 | K166: 0
A167: 2022-01-07T21:00:00 | B167: 166 | C167: =AVERAGE(INDEX('Profils extrapolés 1-4h'!$I$4:$I$35139,(B167-1)*4+1),INDEX('Profils extrapolés 1-4h'!$I$4:$I$35139,(B167-1)*4+2),INDEX('Profils extrapolés 1-4h'!$I$4:$I$35139,(B167-1)*4+3),INDEX('Profils extrapolés 1-4h'!$I$4:$I$35139,(B167-1)*4+4)) -> 0 | D167: =AVERAGE(INDEX('Profils extrapolés 1-4h'!$G$4:$G$35139,(B167-1)*4+1),INDEX('Profils extrapolés 1-4h'!$G$4:$G$35139,(B167-1)*4+2),INDEX('Profils extrapolés 1-4h'!$G$4:$G$35139,(B167-1)*4+3),INDEX('Profils extrapolés 1-4h'!$G$4:$G$35139,(B167-1)*4+4)) -> 16.54447399 | E167: Janvier | H167: 21.65355029 | I167: 3594.489349 | J167: 18191.48942 | K167: 0
A168: 2022-01-07T22:00:00 | B168: 167 | C168: =AVERAGE(INDEX('Profils extrapolés 1-4h'!$I$4:$I$35139,(B168-1)*4+1),INDEX('Profils extrapolés 1-4h'!$I$4:$I$35139,(B168-1)*4+2),INDEX('Profils extrapolés 1-4h'!$I$4:$I$35139,(B168-1)*4+3),INDEX('Profils extrapolés 1-4h'!$I$4:$I$35139,(B168-1)*4+4)) -> 0 | D168: =AVERAGE(INDEX('Profils extrapolés 1-4h'!$G$4:$G$35139,(B168-1)*4+1),INDEX('Profils extrapolés 1-4h'!$G$4:$G$35139,(B168-1)*4+2),INDEX('Profils extrapolés 1-4h'!$G$4:$G$35139,(B168-1)*4+3),INDEX('Profils extrapolés 1-4h'!$G$4:$G$35139,(B168-1)*4+4)) -> 13.27450736 | E168: Janvier | H168: 21.65355029 | I168: 3616.142899 | J168: 18191.48942 | K168: 0
A169: 2022-01-07T23:00:00 | B169: 168 | C169: =AVERAGE(INDEX('Profils extrapolés 1-4h'!$I$4:$I$35139,(B169-1)*4+1),INDEX('Profils extrapolés 1-4h'!$I$4:$I$35139,(B169-1)*4+2),INDEX('Profils extrapolés 1-4h'!$I$4:$I$35139,(B169-1)*4+3),INDEX('Profils extrapolés 1-4h'!$I$4:$I$35139,(B169-1)*4+4)) -> 0 | D169: =AVERAGE(INDEX('Profils extrapolés 1-4h'!$G$4:$G$35139,(B169-1)*4+1),INDEX('Profils extrapolés 1-4h'!$G$4:$G$35139,(B169-1)*4+2),INDEX('Profils extrapolés 1-4h'!$G$4:$G$35139,(B169-1)*4+3),INDEX('Profils extrapolés 1-4h'!$G$4:$G$35139,(B169-1)*4+4)) -> 13.07986649 | E169: Janvier | H169: 21.65355029 | I169: 3637.796449 | J169: 18191.48942 | K169: 0
A170: 2022-01-08 | B170: 169 | C170: =AVERAGE(INDEX('Profils extrapolés 1-4h'!$I$4:$I$35139,(B170-1)*4+1),INDEX('Profils extrapolés 1-4h'!$I$4:$I$35139,(B170-1)*4+2),INDEX('Profils extrapolés 1-4h'!$I$4:$I$35139,(B170-1)*4+3),INDEX('Profils extrapolés 1-4h'!$I$4:$I$35139,(B170-1)*4+4)) -> 0 | D170: =AVERAGE(INDEX('Profils extrapolés 1-4h'!$G$4:$G$35139,(B170-1)*4+1),INDEX('Profils extrapolés 1-4h'!$G$4:$G$35139,(B170-1)*4+2),INDEX('Profils extrapolés 1-4h'!$G$4:$G$35139,(B170-1)*4+3),INDEX('Profils extrapolés 1-4h'!$G$4:$G$35139,(B170-1)*4+4)) -> 13.1749016 | E170: Janvier | H170: 21.62230739 | I170: 3654.169949 | J170: 18191.48942 | K170: 0
A171: 2022-01-08T01:00:00 | B171: 170 | C171: =AVERAGE(INDEX('Profils extrapolés 1-4h'!$I$4:$I$35139,(B171-1)*4+1),INDEX('Profils extrapolés 1-4h'!$I$4:$I$35139,(B171-1)*4+2),INDEX('Profils extrapolés 1-4h'!$I$4:$I$35139,(B171-1)*4+3),INDEX('Profils extrapolés 1-4h'!$I$4:$I$35139,(B171-1)*4+4)) -> 0 | D171: =AVERAGE(INDEX('Profils extrapolés 1-4h'!$G$4:$G$35139,(B171-1)*4+1),INDEX('Profils extrapolés 1-4h'!$G$4:$G$35139,(B171-1)*4+2),INDEX('Profils extrapolés 1-4h'!$G$4:$G$35139,(B171-1)*4+3),INDEX('Profils extrapolés 1-4h'!$G$4:$G$35139,(B171-1)*4+4)) -> 13.44614958 | E171: Janvier | H171: 21.58725123 | I171: 3669.832708 | J171: 18191.48942 | K171: 0
A172: 2022-01-08T02:00:00 | B172: 171 | C172: =AVERAGE(INDEX('Profils extrapolés 1-4h'!$I$4:$I$35139,(B172-1)*4+1),INDEX('Profils extrapolés 1-4h'!$I$4:$I$35139,(B172-1)*4+2),INDEX('Profils extrapolés 1-4h'!$I$4:$I$35139,(B172-1)*4+3),INDEX('Profils extrapolés 1-4h'!$I$4:$I$35139,(B172-1)*4+4)) -> 0 | D172: =AVERAGE(INDEX('Profils extrapolés 1-4h'!$G$4:$G$35139,(B172-1)*4+1),INDEX('Profils extrapolés 1-4h'!$G$4:$G$35139,(B172-1)*4+2),INDEX('Profils extrapolés 1-4h'!$G$4:$G$35139,(B172-1)*4+3),INDEX('Profils extrapolés 1-4h'!$G$4:$G$35139,(B172-1)*4+4)) -> 13.29115073 | E172: Janvier | H172: 21.57294139 | I172: 3688.972978 | J172: 18191.48942 | K172: 0
A173: 2022-01-08T03:00:00 | B173: 172 | C173: =AVERAGE(INDEX('Profils extrapolés 1-4h'!$I$4:$I$35139,(B173-1)*4+1),INDEX('Profils extrapolés 1-4h'!$I$4:$I$35139,(B173-1)*4+2),INDEX('Profils extrapolés 1-4h'!$I$4:$I$35139,(B173-1)*4+3),INDEX('Profils extrapolés 1-4h'!$I$4:$I$35139,(B173-1)*4+4)) -> 0 | D173: =AVERAGE(INDEX('Profils extrapolés 1-4h'!$G$4:$G$35139,(B173-1)*4+1),INDEX('Profils extrapolés 1-4h'!$G$4:$G$35139,(B173-1)*4+2),INDEX('Profils extrapolés 1-4h'!$G$4:$G$35139,(B173-1)*4+3),INDEX('Profils extrapolés 1-4h'!$G$4:$G$35139,(B173-1)*4+4)) -> 13.56239871 | E173: Janvier | H173: 21.57294139 | I173: 3710.54592 | J173: 18191.48942 | K173: 0
A174: 2022-01-08T04:00:00 | B174: 173 | C174: =AVERAGE(INDEX('Profils extrapolés 1-4h'!$I$4:$I$35139,(B174-1)*4+1),INDEX('Profils extrapolés 1-4h'!$I$4:$I$35139,(B174-1)*4+2),INDEX('Profils extrapolés 1-4h'!$I$4:$I$35139,(B174-1)*4+3),INDEX('Profils extrapolés 1-4h'!$I$4:$I$35139,(B174-1)*4+4)) -> 0 | D174: =AVERAGE(INDEX('Profils extrapolés 1-4h'!$G$4:$G$35139,(B174-1)*4+1),INDEX('Profils extrapolés 1-4h'!$G$4:$G$35139,(B174-1)*4+2),INDEX('Profils extrapolés 1-4h'!$G$4:$G$35139,(B174-1)*4+3),INDEX('Profils extrapolés 1-4h'!$G$4:$G$35139,(B174-1)*4+4)) -> 14.22114379 | E174: Janvier | H174: 21.56805242 | I174: 3731.273069 | J174: 18191.48942 | K174: 0
A175: 2022-01-08T05:00:00 | B175: 174 | C175: =AVERAGE(INDEX('Profils extrapolés 1-4h'!$I$4:$I$35139,(B175-1)*4+1),INDEX('Profils extrapolés 1-4h'!$I$4:$I$35139,(B175-1)*4+2),INDEX('Profils extrapolés 1-4h'!$I$4:$I$35139,(B175-1)*4+3),INDEX('Profils extrapolés 1-4h'!$I$4:$I$35139,(B175-1)*4+4)) -> 0 | D175: =AVERAGE(INDEX('Profils extrapolés 1-4h'!$G$4:$G$35139,(B175-1)*4+1),INDEX('Profils extrapolés 1-4h'!$G$4:$G$35139,(B175-1)*4+2),INDEX('Profils extrapolés 1-4h'!$G$4:$G$35139,(B175-1)*4+3),INDEX('Profils extrapolés 1-4h'!$G$4:$G$35139,(B175-1)*4+4)) -> 15.26738597 | E175: Janvier | H175: 21.5460679 | I175: 3749.015815 | J175: 18191.48942 | K175: 0
A176: 2022-01-08T06:00:00 | B176: 175 | C176: =AVERAGE(INDEX('Profils extrapolés 1-4h'!$I$4:$I$35139,(B176-1)*4+1),INDEX('Profils extrapolés 1-4h'!$I$4:$I$35139,(B176-1)*4+2),INDEX('Profils extrapolés 1-4h'!$I$4:$I$35139,(B176-1)*4+3),INDEX('Profils extrapolés 1-4h'!$I$4:$I$35139,(B176-1)*4+4)) -> 0 | D176: =AVERAGE(INDEX('Profils extrapolés 1-4h'!$G$4:$G$35139,(B176-1)*4+1),INDEX('Profils extrapolés 1-4h'!$G$4:$G$35139,(B176-1)*4+2),INDEX('Profils extrapolés 1-4h'!$G$4:$G$35139,(B176-1)*4+3),INDEX('Profils extrapolés 1-4h'!$G$4:$G$35139,(B176-1)*4+4)) -> 16.39112758 | E176: Janvier | H176: 21.53271813 | I176: 3768.225673 | J176: 18191.48942 | K176: 0
A177: 2022-01-08T07:00:00 | B177: 176 | C177: =AVERAGE(INDEX('Profils extrapolés 1-4h'!$I$4:$I$35139,(B177-1)*4+1),INDEX('Profils extrapolés 1-4h'!$I$4:$I$35139,(B177-1)*4+2),INDEX('Profils extrapolés 1-4h'!$I$4:$I$35139,(B177-1)*4+3),INDEX('Profils extrapolés 1-4h'!$I$4:$I$35139,(B177-1)*4+4)) -> 0 | D177: =AVERAGE(INDEX('Profils extrapolés 1-4h'!$G$4:$G$35139,(B177-1)*4+1),INDEX('Profils extrapolés 1-4h'!$G$4:$G$35139,(B177-1)*4+2),INDEX('Profils extrapolés 1-4h'!$G$4:$G$35139,(B177-1)*4+3),INDEX('Profils extrapolés 1-4h'!$G$4:$G$35139,(B177-1)*4+4)) -> 18.32861311 | E177: Janvier | H177: 21.51730406 | I177: 3787.045515 | J177: 18191.48942 | K177: 0
A178: 2022-01-08T08:00:00 | B178: 177 | C178: =AVERAGE(INDEX('Profils extrapolés 1-4h'!$I$4:$I$35139,(B178-1)*4+1),INDEX('Profils extrapolés 1-4h'!$I$4:$I$35139,(B178-1)*4+2),INDEX('Profils extrapolés 1-4h'!$I$4:$I$35139,(B178-1)*4+3),INDEX('Profils extrapolés 1-4h'!$I$4:$I$35139,(B178-1)*4+4)) -> 0 | D178: =AVERAGE(INDEX('Profils extrapolés 1-4h'!$G$4:$G$35139,(B178-1)*4+1),INDEX('Profils extrapolés 1-4h'!$G$4:$G$35139,(B178-1)*4+2),INDEX('Profils extrapolés 1-4h'!$G$4:$G$35139,(B178-1)*4+3),INDEX('Profils extrapolés 1-4h'!$G$4:$G$35139,(B178-1)*4+4)) -> 18.21236398 | E178: Janvier | H178: 21.50044506 | I178: 3805.578775 | J178: 18191.48942 | K178: 0
A179: 2022-01-08T09:00:00 | B179: 178 | C179: =AVERAGE(INDEX('Profils extrapolés 1-4h'!$I$4:$I$35139,(B179-1)*4+1),INDEX('Profils extrapolés 1-4h'!$I$4:$I$35139,(B179-1)*4+2),INDEX('Profils extrapolés 1-4h'!$I$4:$I$35139,(B179-1)*4+3),INDEX('Profils extrapolés 1-4h'!$I$4:$I$35139,(B179-1)*4+4)) -> 0 | D179: =AVERAGE(INDEX('Profils extrapolés 1-4h'!$G$4:$G$35139,(B179-1)*4+1),INDEX('Profils extrapolés 1-4h'!$G$4:$G$35139,(B179-1)*4+2),INDEX('Profils extrapolés 1-4h'!$G$4:$G$35139,(B179-1)*4+3),INDEX('Profils extrapolés 1-4h'!$G$4:$G$35139,(B179-1)*4+4)) -> 18.21236398 | E179: Janvier | H179: 21.49537127 | I179: 3826.176086 | J179: 18191.48942 | K179: 0
A180: 2022-01-08T10:00:00 | B180: 179 | C180: =AVERAGE(INDEX('Profils extrapolés 1-4h'!$I$4:$I$35139,(B180-1)*4+1),INDEX('Profils extrapolés 1-4h'!$I$4:$I$35139,(B180-1)*4+2),INDEX('Profils extrapolés 1-4h'!$I$4:$I$35139,(B180-1)*4+3),INDEX('Profils extrapolés 1-4h'!$I$4:$I$35139,(B180-1)*4+4)) -> 0 | D180: =AVERAGE(INDEX('Profils extrapolés 1-4h'!$G$4:$G$35139,(B180-1)*4+1),INDEX('Profils extrapolés 1-4h'!$G$4:$G$35139,(B180-1)*4+2),INDEX('Profils extrapolés 1-4h'!$G$4:$G$35139,(B180-1)*4+3),INDEX('Profils extrapolés 1-4h'!$G$4:$G$35139,(B180-1)*4+4)) -> 18.21236398 | E180: Janvier | H180: 21.4665557 | I180: 3842.513471 | J180: 18191.48942 | K180: 0
A181: 2022-01-08T11:00:00 | B181: 180 | C181: =AVERAGE(INDEX('Profils extrapolés 1-4h'!$I$4:$I$35139,(B181-1)*4+1),INDEX('Profils extrapolés 1-4h'!$I$4:$I$35139,(B181-1)*4+2),INDEX('Profils extrapolés 1-4h'!$I$4:$I$35139,(B181-1)*4+3),INDEX('Profils extrapolés 1-4h'!$I$4:$I$35139,(B181-1)*4+4)) -> 0 | D181: =AVERAGE(INDEX('Profils extrapolés 1-4h'!$G$4:$G$35139,(B181-1)*4+1),INDEX('Profils extrapolés 1-4h'!$G$4:$G$35139,(B181-1)*4+2),INDEX('Profils extrapolés 1-4h'!$G$4:$G$35139,(B181-1)*4+3),INDEX('Profils extrapolés 1-4h'!$G$4:$G$35139,(B181-1)*4+4)) -> 17.86361658 | E181: Janvier | H181: 21.46076553 | I181: 3862.937795 | J181: 18191.48942 | K181: 0
A182: 2022-01-08T12:00:00 | B182: 181 | C182: =AVERAGE(INDEX('Profils extrapolés 1-4h'!$I$4:$I$35139,(B182-1)*4+1),INDEX('Profils extrapolés 1-4h'!$I$4:$I$35139,(B182-1)*4+2),INDEX('Profils extrapolés 1-4h'!$I$4:$I$35139,(B182-1)*4+3),INDEX('Profils extrapolés 1-4h'!$I$4:$I$35139,(B182-1)*4+4)) -> 0 | D182: =AVERAGE(INDEX('Profils extrapolés 1-4h'!$G$4:$G$35139,(B182-1)*4+1),INDEX('Profils extrapolés 1-4h'!$G$4:$G$35139,(B182-1)*4+2),INDEX('Profils extrapolés 1-4h'!$G$4:$G$35139,(B182-1)*4+3),INDEX('Profils extrapolés 1-4h'!$G$4:$G$35139,(B182-1)*4+4)) -> 17.35987035 | E182: Janvier | H182: 21.44985578 | I182: 3882.423895 | J182: 18191.48942 | K182: 0
A183: 2022-01-08T13:00:00 | B183: 182 | C183: =AVERAGE(INDEX('Profils extrapolés 1-4h'!$I$4:$I$35139,(B183-1)*4+1),INDEX('Profils extrapolés 1-4h'!$I$4:$I$35139,(B183-1)*4+2),INDEX('Profils extrapolés 1-4h'!$I$4:$I$35139,(B183-1)*4+3),INDEX('Profils extrapolés 1-4h'!$I$4:$I$35139,(B183-1)*4+4)) -> 0 | D183: =AVERAGE(INDEX('Profils extrapolés 1-4h'!$G$4:$G$35139,(B183-1)*4+1),INDEX('Profils extrapolés 1-4h'!$G$4:$G$35139,(B183-1)*4+2),INDEX('Profils extrapolés 1-4h'!$G$4:$G$35139,(B183-1)*4+3),INDEX('Profils extrapolés 1-4h'!$G$4:$G$35139,(B183-1)*4+4)) -> 16.97237324 | E183: Janvier | H183: 21.44467464 | I183: 3902.930784 | J183: 18191.48942 | K183: 0
A184: 2022-01-08T14:00:00 | B184: 183 | C184: =AVERAGE(INDEX('Profils extrapolés 1-4h'!$I$4:$I$35139,(B184-1)*4+1),INDEX('Profils extrapolés 1-4h'!$I$4:$I$35139,(B184-1)*4+2),INDEX('Profils extrapolés 1-4h'!$I$4:$I$35139,(B184-1)*4+3),INDEX('Profils extrapolés 1-4h'!$I$4:$I$35139,(B184-1)*4+4)) -> 0 | D184: =AVERAGE(INDEX('Profils extrapolés 1-4h'!$G$4:$G$35139,(B184-1)*4+1),INDEX('Profils extrapolés 1-4h'!$G$4:$G$35139,(B184-1)*4+2),INDEX('Profils extrapolés 1-4h'!$G$4:$G$35139,(B184-1)*4+3),INDEX('Profils extrapolés 1-4h'!$G$4:$G$35139,(B184-1)*4+4)) -> 16.93362353 | E184: Janvier | H184: 21.39926649 | I184: 3916.065768 | J184: 18191.48942 | K184: 0
A185: 2022-01-08T15:00:00 | B185: 184 | C185: =AVERAGE(INDEX('Profils extrapolés 1-4h'!$I$4:$I$35139,(B185-1)*4+1),INDEX('Profils extrapolés 1-4h'!$I$4:$I$35139,(B185-1)*4+2),INDEX('Profils extrapolés 1-4h'!$I$4:$I$35139,(B185-1)*4+3),INDEX('Profils extrapolés 1-4h'!$I$4:$I$35139,(B185-1)*4+4)) -> 0 | D185: =AVERAGE(INDEX('Profils extrapolés 1-4h'!$G$4:$G$35139,(B185-1)*4+1),INDEX('Profils extrapolés 1-4h'!$G$4:$G$35139,(B185-1)*4+2),INDEX('Profils extrapolés 1-4h'!$G$4:$G$35139,(B185-1)*4+3),INDEX('Profils extrapolés 1-4h'!$G$4:$G$35139,(B185-1)*4+4)) -> 17.12737208 | E185: Janvier | H185: 21.3985001 | I185: 3937.324018 | J185: 18191.48942 | K185: 0
A186: 2022-01-08T16:00:00 | B186: 185 | C186: =AVERAGE(INDEX('Profils extrapolés 1-4h'!$I$4:$I$35139,(B186-1)*4+1),INDEX('Profils extrapolés 1-4h'!$I$4:$I$35139,(B186-1)*4+2),INDEX('Profils extrapolés 1-4h'!$I$4:$I$35139,(B186-1)*4+3),INDEX('Profils extrapolés 1-4h'!$I$4:$I$35139,(B186-1)*4+4)) -> 0 | D186: =AVERAGE(INDEX('Profils extrapolés 1-4h'!$G$4:$G$35139,(B186-1)*4+1),INDEX('Profils extrapolés 1-4h'!$G$4:$G$35139,(B186-1)*4+2),INDEX('Profils extrapolés 1-4h'!$G$4:$G$35139,(B186-1)*4+3),INDEX('Profils extrapolés 1-4h'!$G$4:$G$35139,(B186-1)*4+4)) -> 16.93362353 | E186: Janvier | H186: 21.39189149 | I186: 3957.499925 | J186: 18191.48942 | K186: 0
A187: 2022-01-08T17:00:00 | B187: 186 | C187: =AVERAGE(INDEX('Profils extrapolés 1-4h'!$I$4:$I$35139,(B187-1)*4+1),INDEX('Profils extrapolés 1-4h'!$I$4:$I$35139,(B187-1)*4+2),INDEX('Profils extrapolés 1-4h'!$I$4:$I$35139,(B187-1)*4+3),INDEX('Profils extrapolés 1-4h'!$I$4:$I$35139,(B187-1)*4+4)) -> 0 | D187: =AVERAGE(INDEX('Profils extrapolés 1-4h'!$G$4:$G$35139,(B187-1)*4+1),INDEX('Profils extrapolés 1-4h'!$G$4:$G$35139,(B187-1)*4+2),INDEX('Profils extrapolés 1-4h'!$G$4:$G$35139,(B187-1)*4+3),INDEX('Profils extrapolés 1-4h'!$G$4:$G$35139,(B187-1)*4+4)) -> 17.24362121 | E187: Janvier | H187: 21.37002233 | I187: 3974.824154 | J187: 18191.48942 | K187: 0
A188: 2022-01-08T18:00:00 | B188: 187 | C188: =AVERAGE(INDEX('Profils extrapolés 1-4h'!$I$4:$I$35139,(B188-1)*4+1),INDEX('Profils extrapolés 1-4h'!$I$4:$I$35139,(B188-1)*4+2),INDEX('Profils extrapolés 1-4h'!$I$4:$I$35139,(B188-1)*4+3),INDEX('Profils extrapolés 1-4h'!$I$4:$I$35139,(B188-1)*4+4)) -> 0 | D188: =AVERAGE(INDEX('Profils extrapolés 1-4h'!$G$4:$G$35139,(B188-1)*4+1),INDEX('Profils extrapolés 1-4h'!$G$4:$G$35139,(B188-1)*4+2),INDEX('Profils extrapolés 1-4h'!$G$4:$G$35139,(B188-1)*4+3),INDEX('Profils extrapolés 1-4h'!$G$4:$G$35139,(B188-1)*4+4)) -> 18.25111369 | E188: Janvier | H188: 21.35232343 | I188: 3992.884481 | J188: 18191.48942 | K188: 0
A189: 2022-01-08T19:00:00 | B189: 188 | C189: =AVERAGE(INDEX('Profils extrapolés 1-4h'!$I$4:$I$35139,(B189-1)*4+1),INDEX('Profils extrapolés 1-4h'!$I$4:$I$35139,(B189-1)*4+2),INDEX('Profils extrapolés 1-4h'!$I$4:$I$35139,(B189-1)*4+3),INDEX('Profils extrapolés 1-4h'!$I$4:$I$35139,(B189-1)*4+4)) -> 0 | D189: =AVERAGE(INDEX('Profils extrapolés 1-4h'!$G$4:$G$35139,(B189-1)*4+1),INDEX('Profils extrapolés 1-4h'!$G$4:$G$35139,(B189-1)*4+2),INDEX('Profils extrapolés 1-4h'!$G$4:$G$35139,(B189-1)*4+3),INDEX('Profils extrapolés 1-4h'!$G$4:$G$35139,(B189-1)*4+4)) -> 17.35987035 | E189: Janvier | H189: 21.34305155 | I189: 4012.493692 | J189: 18191.48942 | K189: 0
A190: 2022-01-08T20:00:00 | B190: 189 | C190: =AVERAGE(INDEX('Profils extrapolés 1-4h'!$I$4:$I$35139,(B190-1)*4+1),INDEX('Profils extrapolés 1-4h'!$I$4:$I$35139,(B190-1)*4+2),INDEX('Profils extrapolés 1-4h'!$I$4:$I$35139,(B190-1)*4+3),INDEX('Profils extrapolés 1-4h'!$I$4:$I$35139,(B190-1)*4+4)) -> 0 | D190: =AVERAGE(INDEX('Profils extrapolés 1-4h'!$G$4:$G$35139,(B190-1)*4+1),INDEX('Profils extrapolés 1-4h'!$G$4:$G$35139,(B190-1)*4+2),INDEX('Profils extrapolés 1-4h'!$G$4:$G$35139,(B190-1)*4+3),INDEX('Profils extrapolés 1-4h'!$G$4:$G$35139,(B190-1)*4+4)) -> 16.42987729 | E190: Janvier | H190: 21.34305155 | I190: 4033.836743 | J190: 18191.48942 | K190: 0
A191: 2022-01-08T21:00:00 | B191: 190 | C191: =AVERAGE(INDEX('Profils extrapolés 1-4h'!$I$4:$I$35139,(B191-1)*4+1),INDEX('Profils extrapolés 1-4h'!$I$4:$I$35139,(B191-1)*4+2),INDEX('Profils extrapolés 1-4h'!$I$4:$I$35139,(B191-1)*4+3),INDEX('Profils extrapolés 1-4h'!$I$4:$I$35139,(B191-1)*4+4)) -> 0 | D191: =AVERAGE(INDEX('Profils extrapolés 1-4h'!$G$4:$G$35139,(B191-1)*4+1),INDEX('Profils extrapolés 1-4h'!$G$4:$G$35139,(B191-1)*4+2),INDEX('Profils extrapolés 1-4h'!$G$4:$G$35139,(B191-1)*4+3),INDEX('Profils extrapolés 1-4h'!$G$4:$G$35139,(B191-1)*4+4)) -> 16.468627 | E191: Janvier | H191: 21.33021836 | I191: 4052.741488 | J191: 18191.48942 | K191: 0
A192: 2022-01-08T22:00:00 | B192: 191 | C192: =AVERAGE(INDEX('Profils extrapolés 1-4h'!$I$4:$I$35139,(B192-1)*4+1),INDEX('Profils extrapolés 1-4h'!$I$4:$I$35139,(B192-1)*4+2),INDEX('Profils extrapolés 1-4h'!$I$4:$I$35139,(B192-1)*4+3),INDEX('Profils extrapolés 1-4h'!$I$4:$I$35139,(B192-1)*4+4)) -> 0 | D192: =AVERAGE(INDEX('Profils extrapolés 1-4h'!$G$4:$G$35139,(B192-1)*4+1),INDEX('Profils extrapolés 1-4h'!$G$4:$G$35139,(B192-1)*4+2),INDEX('Profils extrapolés 1-4h'!$G$4:$G$35139,(B192-1)*4+3),INDEX('Profils extrapolés 1-4h'!$G$4:$G$35139,(B192-1)*4+4)) -> 13.21365131 | E192: Janvier | H192: 21.32465073 | I192: 4073.00829 | J192: 18191.48942 | K192: 0
A193: 2022-01-08T23:00:00 | B193: 192 | C193: =AVERAGE(INDEX('Profils extrapolés 1-4h'!$I$4:$I$35139,(B193-1)*4+1),INDEX('Profils extrapolés 1-4h'!$I$4:$I$35139,(B193-1)*4+2),INDEX('Profils extrapolés 1-4h'!$I$4:$I$35139,(B193-1)*4+3),INDEX('Profils extrapolés 1-4h'!$I$4:$I$35139,(B193-1)*4+4)) -> 0 | D193: =AVERAGE(INDEX('Profils extrapolés 1-4h'!$G$4:$G$35139,(B193-1)*4+1),INDEX('Profils extrapolés 1-4h'!$G$4:$G$35139,(B193-1)*4+2),INDEX('Profils extrapolés 1-4h'!$G$4:$G$35139,(B193-1)*4+3),INDEX('Profils extrapolés 1-4h'!$G$4:$G$35139,(B193-1)*4+4)) -> 13.01990276 | E193: Janvier | H193: 21.32465073 | I193: 4094.332941 | J193: 18191.48942 | K193: 0
A194: 2022-01-09 | B194: 193 | C194: =AVERAGE(INDEX('Profils extrapolés 1-4h'!$I$4:$I$35139,(B194-1)*4+1),INDEX('Profils extrapolés 1-4h'!$I$4:$I$35139,(B194-1)*4+2),INDEX('Profils extrapolés 1-4h'!$I$4:$I$35139,(B194-1)*4+3),INDEX('Profils extrapolés 1-4h'!$I$4:$I$35139,(B194-1)*4+4)) -> 0 | D194: =AVERAGE(INDEX('Profils extrapolés 1-4h'!$G$4:$G$35139,(B194-1)*4+1),INDEX('Profils extrapolés 1-4h'!$G$4:$G$35139,(B194-1)*4+2),INDEX('Profils extrapolés 1-4h'!$G$4:$G$35139,(B194-1)*4+3),INDEX('Profils extrapolés 1-4h'!$G$4:$G$35139,(B194-1)*4+4)) -> 12.80072315 | E194: =jan -> Janvier | H194: 21.32465073 | I194: 4115.657592 | J194: 18191.48942 | K194: 0
A195: 2022-01-09T01:00:00 | B195: 194 | C195: =AVERAGE(INDEX('Profils extrapolés 1-4h'!$I$4:$I$35139,(B195-1)*4+1),INDEX('Profils extrapolés 1-4h'!$I$4:$I$35139,(B195-1)*4+2),INDEX('Profils extrapolés 1-4h'!$I$4:$I$35139,(B195-1)*4+3),INDEX('Profils extrapolés 1-4h'!$I$4:$I$35139,(B195-1)*4+4)) -> 0 | D195: =AVERAGE(INDEX('Profils extrapolés 1-4h'!$G$4:$G$35139,(B195-1)*4+1),INDEX('Profils extrapolés 1-4h'!$G$4:$G$35139,(B195-1)*4+2),INDEX('Profils extrapolés 1-4h'!$G$4:$G$35139,(B195-1)*4+3),INDEX('Profils extrapolés 1-4h'!$G$4:$G$35139,(B195-1)*4+4)) -> 13.06426745 | E195: Janvier | H195: 21.28419596 | I195: 4129.134016 | J195: 18191.48942 | K195: 0
A196: =A195+1/24 -> 2022-01-09T02:00:00 | B196: 195 | C196: =AVERAGE(INDEX('Profils extrapolés 1-4h'!$I$4:$I$35139,(B196-1)*4+1),INDEX('Profils extrapolés 1-4h'!$I$4:$I$35139,(B196-1)*4+2),INDEX('Profils extrapolés 1-4h'!$I$4:$I$35139,(B196-1)*4+3),INDEX('Profils extrapolés 1-4h'!$I$4:$I$35139,(B196-1)*4+4)) -> 0 | D196: =AVERAGE(INDEX('Profils extrapolés 1-4h'!$G$4:$G$35139,(B196-1)*4+1),INDEX('Profils extrapolés 1-4h'!$G$4:$G$35139,(B196-1)*4+2),INDEX('Profils extrapolés 1-4h'!$G$4:$G$35139,(B196-1)*4+3),INDEX('Profils extrapolés 1-4h'!$G$4:$G$35139,(B196-1)*4+4)) -> 12.91367071 | E196: Janvier | H196: 21.28419596 | I196: =B196*H196 -> 4150.418212 | J196: =$G$5 -> 18191.48942 | K196: =IF(I196>=J196,I196,0) -> 0 | L196: =IF(K196=0,"",H196) -> 
A197: 2022-01-09T03:00:00 | B197: 196 | C197: =AVERAGE(INDEX('Profils extrapolés 1-4h'!$I$4:$I$35139,(B197-1)*4+1),INDEX('Profils extrapolés 1-4h'!$I$4:$I$35139,(B197-1)*4+2),INDEX('Profils extrapolés 1-4h'!$I$4:$I$35139,(B197-1)*4+3),INDEX('Profils extrapolés 1-4h'!$I$4:$I$35139,(B197-1)*4+4)) -> 0 | D197: =AVERAGE(INDEX('Profils extrapolés 1-4h'!$G$4:$G$35139,(B197-1)*4+1),INDEX('Profils extrapolés 1-4h'!$G$4:$G$35139,(B197-1)*4+2),INDEX('Profils extrapolés 1-4h'!$G$4:$G$35139,(B197-1)*4+3),INDEX('Profils extrapolés 1-4h'!$G$4:$G$35139,(B197-1)*4+4)) -> 13.17721501 | E197: Janvier | H197: 21.26789182 | I197: 4168.506796 | J197: 18191.48942 | K197: 0
A198: 2022-01-09T04:00:00 | B198: 197 | C198: =AVERAGE(INDEX('Profils extrapolés 1-4h'!$I$4:$I$35139,(B198-1)*4+1),INDEX('Profils extrapolés 1-4h'!$I$4:$I$35139,(B198-1)*4+2),INDEX('Profils extrapolés 1-4h'!$I$4:$I$35139,(B198-1)*4+3),INDEX('Profils extrapolés 1-4h'!$I$4:$I$35139,(B198-1)*4+4)) -> 0 | D198: =AVERAGE(INDEX('Profils extrapolés 1-4h'!$G$4:$G$35139,(B198-1)*4+1),INDEX('Profils extrapolés 1-4h'!$G$4:$G$35139,(B198-1)*4+2),INDEX('Profils extrapolés 1-4h'!$G$4:$G$35139,(B198-1)*4+3),INDEX('Profils extrapolés 1-4h'!$G$4:$G$35139,(B198-1)*4+4)) -> 13.81725117 | E198: Janvier | H198: 21.26789182 | I198: 4189.774688 | J198: 18191.48942 | K198: 0
A199: 2022-01-09T05:00:00 | B199: 198 | C199: =AVERAGE(INDEX('Profils extrapolés 1-4h'!$I$4:$I$35139,(B199-1)*4+1),INDEX('Profils extrapolés 1-4h'!$I$4:$I$35139,(B199-1)*4+2),INDEX('Profils extrapolés 1-4h'!$I$4:$I$35139,(B199-1)*4+3),INDEX('Profils extrapolés 1-4h'!$I$4:$I$35139,(B199-1)*4+4)) -> 0 | D199: =AVERAGE(INDEX('Profils extrapolés 1-4h'!$G$4:$G$35139,(B199-1)*4+1),INDEX('Profils extrapolés 1-4h'!$G$4:$G$35139,(B199-1)*4+2),INDEX('Profils extrapolés 1-4h'!$G$4:$G$35139,(B199-1)*4+3),INDEX('Profils extrapolés 1-4h'!$G$4:$G$35139,(B199-1)*4+4)) -> 14.83377918 | E199: Janvier | H199: 21.24324333 | I199: 4206.162179 | J199: 18191.48942 | K199: 0
A200: 2022-01-09T06:00:00 | B200: 199 | C200: =AVERAGE(INDEX('Profils extrapolés 1-4h'!$I$4:$I$35139,(B200-1)*4+1),INDEX('Profils extrapolés 1-4h'!$I$4:$I$35139,(B200-1)*4+2),INDEX('Profils extrapolés 1-4h'!$I$4:$I$35139,(B200-1)*4+3),INDEX('Profils extrapolés 1-4h'!$I$4:$I$35139,(B200-1)*4+4)) -> 0 | D200: =AVERAGE(INDEX('Profils extrapolés 1-4h'!$G$4:$G$35139,(B200-1)*4+1),INDEX('Profils extrapolés 1-4h'!$G$4:$G$35139,(B200-1)*4+2),INDEX('Profils extrapolés 1-4h'!$G$4:$G$35139,(B200-1)*4+3),INDEX('Profils extrapolés 1-4h'!$G$4:$G$35139,(B200-1)*4+4)) -> 15.92560557 | E200: Janvier | H200: 21.24002716 | I200: 4226.765405 | J200: 18191.48942 | K200: 0
... 4300 more rows

Sheet Profils extrapolés 1-4h
C1: =VLOOKUP(warning_do_use_sheet,Translations,indice_trad,FALSE) -> Attention : ne pas utiliser cette feuille ! | G1: chaleur | I1: élec | O1: 1
A2: =VLOOKUP(Prof14_date,Translations,indice_trad,FALSE) -> date | B2: =VLOOKUP(Prof14_holiday,Translations,indice_trad,FALSE) -> congé | C2: =VLOOKUP(Prof14_month_year,Translations,indice_trad,FALSE) -> mois - an | D2: =VLOOKUP(Prof14_day_month,Translations,indice_trad,FALSE) -> jour - mois | E2: =VLOOKUP(Prof14_day_week,Translations,indice_trad,FALSE) -> jours - sem | F2: =VLOOKUP(Prof14_num_14hour,Translations,indice_trad,FALSE) -> n° 1/4 h | G2: =VLOOKUP(Prof14_prof_heat,Translations,indice_trad,FALSE) -> profil chaleur | H2: =VLOOKUP(Prof14_factor,Translations,indice_trad,FALSE) -> facteur | I2: =VLOOKUP(Prof14_prof_elec,Translations,indice_trad,FALSE) -> profil élec | J2: =VLOOKUP(Prof14_h_full,Translations,indice_trad,FALSE) -> h pleine | K2: =H2 -> facteur
E3: 1
A4: ="1/01/"&INDEX(Titres!B2:B11,Données!B19)&" 0:00" -> 1/01/2022 0:00 | B4: =IF(OR(AND(D4=1,C4=1),AND(D4=Titres!$O$15,C4=Titres!$P$15),AND(D4=1,C4=5),AND(D4=Titres!$O$17,C4=Titres!$P$17),AND(D4=Titres!$O$18,C4=Titres!$P$18),AND(D4=21,C4=7),AND(D4=15,C4=8),AND(D4=1,C4=11),AND(D4=11,C4=11),AND(D4=25,C4=12)),1,0) -> 1 | C4: =MONTH(A4) -> 1 | D4: =DAY(A4) -> 1 | E4: =WEEKDAY(A4,2) -> 6 | F4: =IF(E4=E3,F3+1,1) -> 1 | G4: =MAX(0,H4*IF(B4=1,INDEX(Données!$O$31:$O$126,F4),INDEX(Données!$F$31:$F$702,E4*96-96+F4))) -> 4.700265395 | H4: =1+INDEX(DJ!$B$109:$M$139,D4,C4) -> 0.04350687643 | I4: =IF($O$1=1,N4,K4*IF(B4=1,INDEX(Données!$N$31:$N$126,F4),INDEX(Données!$E$31:$E$702,(E4-1)*96+F4))) -> 0 | J4: =IF(AND(E4<=5,B4=0,F4>Données!$U$19*4,F4<=(Données!$U$19+15)*4),1,2) -> 2 | K4: =INDEX('Factures élec'!$L$4:$M$15,C4,J4) -> 
A5: =A4+1/96 -> 2022-01-01T00:15:00 | B5: =IF(OR(AND(D5=1,C5=1),AND(D5=Titres!$O$15,C5=Titres!$P$15),AND(D5=1,C5=5),AND(D5=Titres!$O$17,C5=Titres!$P$17),AND(D5=Titres!$O$18,C5=Titres!$P$18),AND(D5=21,C5=7),AND(D5=15,C5=8),AND(D5=1,C5=11),AND(D5=11,C5=11),AND(D5=25,C5=12)),1,0) -> 1 | C5: =MONTH(A5) -> 1 | D5: =DAY(A5) -> 1 | E5: =WEEKDAY(A5,2) -> 6 | F5: =IF(E5=E4,F4+1,1) -> 2 | G5: =MAX(0,H5*IF(B5=1,INDEX(Données!$O$31:$O$126,F5),INDEX(Données!$F$31:$F$702,E5*96-96+F5))) -> 4.700265395 | H5: =1+INDEX(DJ!$B$109:$M$139,D5,C5) -> 0.04350687643 | I5: =IF($O$1=1,N5,K5*IF(B5=1,INDEX(Données!$N$31:$N$126,F5),INDEX(Données!$E$31:$E$702,(E5-1)*96+F5))) -> 0 | J5: =IF(AND(E5<=5,B5=0,F5>Données!$U$19*4,F5<=(Données!$U$19+15)*4),1,2) -> 2 | K5: =INDEX('Factures élec'!$L$4:$M$15,C5,J5) -> 
A6: =A5+1/96 -> 2022-01-01T00:30:00 | B6: =IF(OR(AND(D6=1,C6=1),AND(D6=Titres!$O$15,C6=Titres!$P$15),AND(D6=1,C6=5),AND(D6=Titres!$O$17,C6=Titres!$P$17),AND(D6=Titres!$O$18,C6=Titres!$P$18),AND(D6=21,C6=7),AND(D6=15,C6=8),AND(D6=1,C6=11),AND(D6=11,C6=11),AND(D6=25,C6=12)),1,0) -> 1 | C6: =MONTH(A6) -> 1 | D6: =DAY(A6) -> 1 | E6: =WEEKDAY(A6,2) -> 6 | F6: =IF(E6=E5,F5+1,1) -> 3 | G6: =MAX(0,H6*IF(B6=1,INDEX(Données!$O$31:$O$126,F6),INDEX(Données!$F$31:$F$702,E6*96-96+F6))) -> 4.700265395 | H6: =1+INDEX(DJ!$B$109:$M$139,D6,C6) -> 0.04350687643 | I6: =IF($O$1=1,N6,K6*IF(B6=1,INDEX(Données!$N$31:$N$126,F6),INDEX(Données!$E$31:$E$702,(E6-1)*96+F6))) -> 0 | J6: =IF(AND(E6<=5,B6=0,F6>Données!$U$19*4,F6<=(Données!$U$19+15)*4),1,2) -> 2 | K6: =INDEX('Factures élec'!$L$4:$M$15,C6,J6) -> 
A7: 2022-01-01T00:45:00 | B7: =IF(OR(AND(D7=1,C7=1),AND(D7=Titres!$O$15,C7=Titres!$P$15),AND(D7=1,C7=5),AND(D7=Titres!$O$17,C7=Titres!$P$17),AND(D7=Titres!$O$18,C7=Titres!$P$18),AND(D7=21,C7=7),AND(D7=15,C7=8),AND(D7=1,C7=11),AND(D7=11,C7=11),AND(D7=25,C7=12)),1,0) -> 1 | C7: 1 | D7: 1 | E7: 6 | F7: 4 | G7: =MAX(0,H7*IF(B7=1,INDEX(Données!$O$31:$O$126,F7),INDEX(Données!$F$31:$F$702,E7*96-96+F7))) -> 4.700265395 | H7: =1+INDEX(DJ!$B$109:$M$139,D7,C7) -> 0.04350687643 | I7: =IF($O$1=1,N7,K7*IF(B7=1,INDEX(Données!$N$31:$N$126,F7),INDEX(Données!$E$31:$E$702,(E7-1)*96+F7))) -> 0 | J7: =IF(AND(E7<=5,B7=0,F7>Données!$U$19*4,F7<=(Données!$U$19+15)*4),1,2) -> 2 | K7: =INDEX('Factures élec'!$L$4:$M$15,C7,J7) -> 
A8: 2022-01-01T01:00:00 | B8: =IF(OR(AND(D8=1,C8=1),AND(D8=Titres!$O$15,C8=Titres!$P$15),AND(D8=1,C8=5),AND(D8=Titres!$O$17,C8=Titres!$P$17),AND(D8=Titres!$O$18,C8=Titres!$P$18),AND(D8=21,C8=7),AND(D8=15,C8=8),AND(D8=1,C8=11),AND(D8=11,C8=11),AND(D8=25,C8=12)),1,0) -> 1 | C8: 1 | D8: 1 | E8: 6 | F8: 5 | G8: =MAX(0,H8*IF(B8=1,INDEX(Données!$O$31:$O$126,F8),INDEX(Données!$F$31:$F$702,E8*96-96+F8))) -> 4.797035565 | H8: =1+INDEX(DJ!$B$109:$M$139,D8,C8) -> 0.04350687643 | I8: =IF($O$1=1,N8,K8*IF(B8=1,INDEX(Données!$N$31:$N$126,F8),INDEX(Données!$E$31:$E$702,(E8-1)*96+F8))) -> 0 | J8: =IF(AND(E8<=5,B8=0,F8>Données!$U$19*4,F8<=(Données!$U$19+15)*4),1,2) -> 2 | K8: =INDEX('Factures élec'!$L$4:$M$15,C8,J8) -> 
A9: 2022-01-01T01:15:00 | B9: =IF(OR(AND(D9=1,C9=1),AND(D9=Titres!$O$15,C9=Titres!$P$15),AND(D9=1,C9=5),AND(D9=Titres!$O$17,C9=Titres!$P$17),AND(D9=Titres!$O$18,C9=Titres!$P$18),AND(D9=21,C9=7),AND(D9=15,C9=8),AND(D9=1,C9=11),AND(D9=11,C9=11),AND(D9=25,C9=12)),1,0) -> 1 | C9: 1 | D9: 1 | E9: 6 | F9: 6 | G9: =MAX(0,H9*IF(B9=1,INDEX(Données!$O$31:$O$126,F9),INDEX(Données!$F$31:$F$702,E9*96-96+F9))) -> 4.797035565 | H9: =1+INDEX(DJ!$B$109:$M$139,D9,C9) -> 0.04350687643 | I9: =IF($O$1=1,N9,K9*IF(B9=1,INDEX(Données!$N$31:$N$126,F9),INDEX(Données!$E$31:$E$702,(E9-1)*96+F9))) -> 0 | J9: =IF(AND(E9<=5,B9=0,F9>Données!$U$19*4,F9<=(Données!$U$19+15)*4),1,2) -> 2 | K9: =INDEX('Factures élec'!$L$4:$M$15,C9,J9) -> 
A10: 2022-01-01T01:30:00 | B10: =IF(OR(AND(D10=1,C10=1),AND(D10=Titres!$O$15,C10=Titres!$P$15),AND(D10=1,C10=5),AND(D10=Titres!$O$17,C10=Titres!$P$17),AND(D10=Titres!$O$18,C10=Titres!$P$18),AND(D10=21,C10=7),AND(D10=15,C10=8),AND(D10=1,C10=11),AND(D10=11,C10=11),AND(D10=25,C10=12)),1,0) -> 1 | C10: 1 | D10: 1 | E10: 6 | F10: 7 | G10: =MAX(0,H10*IF(B10=1,INDEX(Données!$O$31:$O$126,F10),INDEX(Données!$F$31:$F$702,E10*96-96+F10))) -> 4.797035565 | H10: =1+INDEX(DJ!$B$109:$M$139,D10,C10) -> 0.04350687643 | I10: =IF($O$1=1,N10,K10*IF(B10=1,INDEX(Données!$N$31:$N$126,F10),INDEX(Données!$E$31:$E$702,(E10-1)*96+F10))) -> 0 | J10: =IF(AND(E10<=5,B10=0,F10>Données!$U$19*4,F10<=(Données!$U$19+15)*4),1,2) -> 2 | K10: =INDEX('Factures élec'!$L$4:$M$15,C10,J10) -> 
A11: 2022-01-01T01:45:00 | B11: =IF(OR(AND(D11=1,C11=1),AND(D11=Titres!$O$15,C11=Titres!$P$15),AND(D11=1,C11=5),AND(D11=Titres!$O$17,C11=Titres!$P$17),AND(D11=Titres!$O$18,C11=Titres!$P$18),AND(D11=21,C11=7),AND(D11=15,C11=8),AND(D11=1,C11=11),AND(D11=11,C11=11),AND(D11=25,C11=12)),1,0) -> 1 | C11: 1 | D11: 1 | E11: 6 | F11: 8 | G11: =MAX(0,H11*IF(B11=1,INDEX(Données!$O$31:$O$126,F11),INDEX(Données!$F$31:$F$702,E11*96-96+F11))) -> 4.797035565 | H11: =1+INDEX(DJ!$B$109:$M$139,D11,C11) -> 0.04350687643 | I11: =IF($O$1=1,N11,K11*IF(B11=1,INDEX(Données!$N$31:$N$126,F11),INDEX(Données!$E$31:$E$702,(E11-1)*96+F11))) -> 0 | J11: =IF(AND(E11<=5,B11=0,F11>Données!$U$19*4,F11<=(Données!$U$19+15)*4),1,2) -> 2 | K11: =INDEX('Factures élec'!$L$4:$M$15,C11,J11) -> 
A12: 2022-01-01T02:00:00 | B12: =IF(OR(AND(D12=1,C12=1),AND(D12=Titres!$O$15,C12=Titres!$P$15),AND(D12=1,C12=5),AND(D12=Titres!$O$17,C12=Titres!$P$17),AND(D12=Titres!$O$18,C12=Titres!$P$18),AND(D12=21,C12=7),AND(D12=15,C12=8),AND(D12=1,C12=11),AND(D12=11,C12=11),AND(D12=25,C12=12)),1,0) -> 1 | C12: 1 | D12: 1 | E12: 6 | F12: 9 | G12: =MAX(0,H12*IF(B12=1,INDEX(Données!$O$31:$O$126,F12),INDEX(Données!$F$31:$F$702,E12*96-96+F12))) -> 4.741738325 | H12: =1+INDEX(DJ!$B$109:$M$139,D12,C12) -> 0.04350687643 | I12: =IF($O$1=1,N12,K12*IF(B12=1,INDEX(Données!$N$31:$N$126,F12),INDEX(Données!$E$31:$E$702,(E12-1)*96+F12))) -> 0 | J12: =IF(AND(E12<=5,B12=0,F12>Données!$U$19*4,F12<=(Données!$U$19+15)*4),1,2) -> 2 | K12: =INDEX('Factures élec'!$L$4:$M$15,C12,J12) -> 
A13: 2022-01-01T02:15:00 | B13: =IF(OR(AND(D13=1,C13=1),AND(D13=Titres!$O$15,C13=Titres!$P$15),AND(D13=1,C13=5),AND(D13=Titres!$O$17,C13=Titres!$P$17),AND(D13=Titres!$O$18,C13=Titres!$P$18),AND(D13=21,C13=7),AND(D13=15,C13=8),AND(D13=1,C13=11),AND(D13=11,C13=11),AND(D13=25,C13=12)),1,0) -> 1 | C13: 1 | D13: 1 | E13: 6 | F13: 10 | G13: =MAX(0,H13*IF(B13=1,INDEX(Données!$O$31:$O$126,F13),INDEX(Données!$F$31:$F$702,E13*96-96+F13))) -> 4.741738325 | H13: =1+INDEX(DJ!$B$109:$M$139,D13,C13) -> 0.04350687643 | I13: =IF($O$1=1,N13,K13*IF(B13=1,INDEX(Données!$N$31:$N$126,F13),INDEX(Données!$E$31:$E$702,(E13-1)*96+F13))) -> 0 | J13: =IF(AND(E13<=5,B13=0,F13>Données!$U$19*4,F13<=(Données!$U$19+15)*4),1,2) -> 2 | K13: =INDEX('Factures élec'!$L$4:$M$15,C13,J13) -> 
A14: 2022-01-01T02:30:00 | B14: =IF(OR(AND(D14=1,C14=1),AND(D14=Titres!$O$15,C14=Titres!$P$15),AND(D14=1,C14=5),AND(D14=Titres!$O$17,C14=Titres!$P$17),AND(D14=Titres!$O$18,C14=Titres!$P$18),AND(D14=21,C14=7),AND(D14=15,C14=8),AND(D14=1,C14=11),AND(D14=11,C14=11),AND(D14=25,C14=12)),1,0) -> 1 | C14: 1 | D14: 1 | E14: 6 | F14: 11 | G14: =MAX(0,H14*IF(B14=1,INDEX(Données!$O$31:$O$126,F14),INDEX(Données!$F$31:$F$702,E14*96-96+F14))) -> 4.741738325 | H14: =1+INDEX(DJ!$B$109:$M$139,D14,C14) -> 0.04350687643 | I14: =IF($O$1=1,N14,K14*IF(B14=1,INDEX(Données!$N$31:$N$126,F14),INDEX(Données!$E$31:$E$702,(E14-1)*96+F14))) -> 0 | J14: =IF(AND(E14<=5,B14=0,F14>Données!$U$19*4,F14<=(Données!$U$19+15)*4),1,2) -> 2 | K14: =INDEX('Factures élec'!$L$4:$M$15,C14,J14) -> 
A15: 2022-01-01T02:45:00 | B15: =IF(OR(AND(D15=1,C15=1),AND(D15=Titres!$O$15,C15=Titres!$P$15),AND(D15=1,C15=5),AND(D15=Titres!$O$17,C15=Titres!$P$17),AND(D15=Titres!$O$18,C15=Titres!$P$18),AND(D15=21,C15=7),AND(D15=15,C15=8),AND(D15=1,C15=11),AND(D15=11,C15=11),AND(D15=25,C15=12)),1,0) -> 1 | C15: 1 | D15: 1 | E15: 6 | F15: 12 | G15: =MAX(0,H15*IF(B15=1,INDEX(Données!$O$31:$O$126,F15),INDEX(Données!$F$31:$F$702,E15*96-96+F15))) -> 4.741738325 | H15: =1+INDEX(DJ!$B$109:$M$139,D15,C15) -> 0.04350687643 | I15: =IF($O$1=1,N15,K15*IF(B15=1,INDEX(Données!$N$31:$N$126,F15),INDEX(Données!$E$31:$E$702,(E15-1)*96+F15))) -> 0 | J15: =IF(AND(E15<=5,B15=0,F15>Données!$U$19*4,F15<=(Données!$U$19+15)*4),1,2) -> 2 | K15: =INDEX('Factures élec'!$L$4:$M$15,C15,J15) -> 
A16: 2022-01-01T03:00:00 | B16: =IF(OR(AND(D16=1,C16=1),AND(D16=Titres!$O$15,C16=Titres!$P$15),AND(D16=1,C16=5),AND(D16=Titres!$O$17,C16=Titres!$P$17),AND(D16=Titres!$O$18,C16=Titres!$P$18),AND(D16=21,C16=7),AND(D16=15,C16=8),AND(D16=1,C16=11),AND(D16=11,C16=11),AND(D16=25,C16=12)),1,0) -> 1 | C16: 1 | D16: 1 | E16: 6 | F16: 13 | G16: =MAX(0,H16*IF(B16=1,INDEX(Données!$O$31:$O$126,F16),INDEX(Données!$F$31:$F$702,E16*96-96+F16))) -> 4.838508495 | H16: =1+INDEX(DJ!$B$109:$M$139,D16,C16) -> 0.04350687643 | I16: =IF($O$1=1,N16,K16*IF(B16=1,INDEX(Données!$N$31:$N$126,F16),INDEX(Données!$E$31:$E$702,(E16-1)*96+F16))) -> 0 | J16: =IF(AND(E16<=5,B16=0,F16>Données!$U$19*4,F16<=(Données!$U$19+15)*4),1,2) -> 2 | K16: =INDEX('Factures élec'!$L$4:$M$15,C16,J16) -> 
A17: 2022-01-01T03:15:00 | B17: =IF(OR(AND(D17=1,C17=1),AND(D17=Titres!$O$15,C17=Titres!$P$15),AND(D17=1,C17=5),AND(D17=Titres!$O$17,C17=Titres!$P$17),AND(D17=Titres!$O$18,C17=Titres!$P$18),AND(D17=21,C17=7),AND(D17=15,C17=8),AND(D17=1,C17=11),AND(D17=11,C17=11),AND(D17=25,C17=12)),1,0) -> 1 | C17: 1 | D17: 1 | E17: 6 | F17: 14 | G17: =MAX(0,H17*IF(B17=1,INDEX(Données!$O$31:$O$126,F17),INDEX(Données!$F$31:$F$702,E17*96-96+F17))) -> 4.838508495 | H17: =1+INDEX(DJ!$B$109:$M$139,D17,C17) -> 0.04350687643 | I17: =IF($O$1=1,N17,K17*IF(B17=1,INDEX(Données!$N$31:$N$126,F17),INDEX(Données!$E$31:$E$702,(E17-1)*96+F17))) -> 0 | J17: =IF(AND(E17<=5,B17=0,F17>Données!$U$19*4,F17<=(Données!$U$19+15)*4),1,2) -> 2 | K17: =INDEX('Factures élec'!$L$4:$M$15,C17,J17) -> 
A18: 2022-01-01T03:30:00 | B18: =IF(OR(AND(D18=1,C18=1),AND(D18=Titres!$O$15,C18=Titres!$P$15),AND(D18=1,C18=5),AND(D18=Titres!$O$17,C18=Titres!$P$17),AND(D18=Titres!$O$18,C18=Titres!$P$18),AND(D18=21,C18=7),AND(D18=15,C18=8),AND(D18=1,C18=11),AND(D18=11,C18=11),AND(D18=25,C18=12)),1,0) -> 1 | C18: 1 | D18: 1 | E18: 6 | F18: 15 | G18: =MAX(0,H18*IF(B18=1,INDEX(Données!$O$31:$O$126,F18),INDEX(Données!$F$31:$F$702,E18*96-96+F18))) -> 4.838508495 | H18: =1+INDEX(DJ!$B$109:$M$139,D18,C18) -> 0.04350687643 | I18: =IF($O$1=1,N18,K18*IF(B18=1,INDEX(Données!$N$31:$N$126,F18),INDEX(Données!$E$31:$E$702,(E18-1)*96+F18))) -> 0 | J18: =IF(AND(E18<=5,B18=0,F18>Données!$U$19*4,F18<=(Données!$U$19+15)*4),1,2) -> 2 | K18: =INDEX('Factures élec'!$L$4:$M$15,C18,J18) -> 
A19: 2022-01-01T03:45:00 | B19: =IF(OR(AND(D19=1,C19=1),AND(D19=Titres!$O$15,C19=Titres!$P$15),AND(D19=1,C19=5),AND(D19=Titres!$O$17,C19=Titres!$P$17),AND(D19=Titres!$O$18,C19=Titres!$P$18),AND(D19=21,C19=7),AND(D19=15,C19=8),AND(D19=1,C19=11),AND(D19=11,C19=11),AND(D19=25,C19=12)),1,0) -> 1 | C19: 1 | D19: 1 | E19: 6 | F19: 16 | G19: =MAX(0,H19*IF(B19=1,INDEX(Données!$O$31:$O$126,F19),INDEX(Données!$F$31:$F$702,E19*96-96+F19))) -> 4.838508495 | H19: =1+INDEX(DJ!$B$109:$M$139,D19,C19) -> 0.04350687643 | I19: =IF($O$1=1,N19,K19*IF(B19=1,INDEX(Données!$N$31:$N$126,F19),INDEX(Données!$E$31:$E$702,(E19-1)*96+F19))) -> 0 | J19: =IF(AND(E19<=5,B19=0,F19>Données!$U$19*4,F19<=(Données!$U$19+15)*4),1,2) -> 2 | K19: =INDEX('Factures élec'!$L$4:$M$15,C19,J19) -> 
A20: 2022-01-01T04:00:00 | B20: =IF(OR(AND(D20=1,C20=1),AND(D20=Titres!$O$15,C20=Titres!$P$15),AND(D20=1,C20=5),AND(D20=Titres!$O$17,C20=Titres!$P$17),AND(D20=Titres!$O$18,C20=Titres!$P$18),AND(D20=21,C20=7),AND(D20=15,C20=8),AND(D20=1,C20=11),AND(D20=11,C20=11),AND(D20=25,C20=12)),1,0) -> 1 | C20: 1 | D20: 1 | E20: 6 | F20: 17 | G20: =MAX(0,H20*IF(B20=1,INDEX(Données!$O$31:$O$126,F20),INDEX(Données!$F$31:$F$702,E20*96-96+F20))) -> 5.073521765 | H20: =1+INDEX(DJ!$B$109:$M$139,D20,C20) -> 0.04350687643 | I20: =IF($O$1=1,N20,K20*IF(B20=1,INDEX(Données!$N$31:$N$126,F20),INDEX(Données!$E$31:$E$702,(E20-1)*96+F20))) -> 0 | J20: =IF(AND(E20<=5,B20=0,F20>Données!$U$19*4,F20<=(Données!$U$19+15)*4),1,2) -> 2 | K20: =INDEX('Factures élec'!$L$4:$M$15,C20,J20) -> 
A21: 2022-01-01T04:15:00 | B21: =IF(OR(AND(D21=1,C21=1),AND(D21=Titres!$O$15,C21=Titres!$P$15),AND(D21=1,C21=5),AND(D21=Titres!$O$17,C21=Titres!$P$17),AND(D21=Titres!$O$18,C21=Titres!$P$18),AND(D21=21,C21=7),AND(D21=15,C21=8),AND(D21=1,C21=11),AND(D21=11,C21=11),AND(D21=25,C21=12)),1,0) -> 1 | C21: 1 | D21: 1 | E21: 6 | F21: 18 | G21: =MAX(0,H21*IF(B21=1,INDEX(Données!$O$31:$O$126,F21),INDEX(Données!$F$31:$F$702,E21*96-96+F21))) -> 5.073521765 | H21: =1+INDEX(DJ!$B$109:$M$139,D21,C21) -> 0.04350687643 | I21: =IF($O$1=1,N21,K21*IF(B21=1,INDEX(Données!$N$31:$N$126,F21),INDEX(Données!$E$31:$E$702,(E21-1)*96+F21))) -> 0 | J21: =IF(AND(E21<=5,B21=0,F21>Données!$U$19*4,F21<=(Données!$U$19+15)*4),1,2) -> 2 | K21: =INDEX('Factures élec'!$L$4:$M$15,C21,J21) -> 
A22: 2022-01-01T04:30:00 | B22: =IF(OR(AND(D22=1,C22=1),AND(D22=Titres!$O$15,C22=Titres!$P$15),AND(D22=1,C22=5),AND(D22=Titres!$O$17,C22=Titres!$P$17),AND(D22=Titres!$O$18,C22=Titres!$P$18),AND(D22=21,C22=7),AND(D22=15,C22=8),AND(D22=1,C22=11),AND(D22=11,C22=11),AND(D22=25,C22=12)),1,0) -> 1 | C22: 1 | D22: 1 | E22: 6 | F22: 19 | G22: =MAX(0,H22*IF(B22=1,INDEX(Données!$O$31:$O$126,F22),INDEX(Données!$F$31:$F$702,E22*96-96+F22))) -> 5.073521765 | H22: =1+INDEX(DJ!$B$109:$M$139,D22,C22) -> 0.04350687643 | I22: =IF($O$1=1,N22,K22*IF(B22=1,INDEX(Données!$N$31:$N$126,F22),INDEX(Données!$E$31:$E$702,(E22-1)*96+F22))) -> 0 | J22: =IF(AND(E22<=5,B22=0,F22>Données!$U$19*4,F22<=(Données!$U$19+15)*4),1,2) -> 2 | K22: =INDEX('Factures élec'!$L$4:$M$15,C22,J22) -> 
A23: 2022-01-01T04:45:00 | B23: =IF(OR(AND(D23=1,C23=1),AND(D23=Titres!$O$15,C23=Titres!$P$15),AND(D23=1,C23=5),AND(D23=Titres!$O$17,C23=Titres!$P$17),AND(D23=Titres!$O$18,C23=Titres!$P$18),AND(D23=21,C23=7),AND(D23=15,C23=8),AND(D23=1,C23=11),AND(D23=11,C23=11),AND(D23=25,C23=12)),1,0) -> 1 | C23: 1 | D23: 1 | E23: 6 | F23: 20 | G23: =MAX(0,H23*IF(B23=1,INDEX(Données!$O$31:$O$126,F23),INDEX(Données!$F$31:$F$702,E23*96-96+F23))) -> 5.073521765 | H23: =1+INDEX(DJ!$B$109:$M$139,D23,C23) -> 0.04350687643 | I23: =IF($O$1=1,N23,K23*IF(B23=1,INDEX(Données!$N$31:$N$126,F23),INDEX(Données!$E$31:$E$702,(E23-1)*96+F23))) -> 0 | J23: =IF(AND(E23<=5,B23=0,F23>Données!$U$19*4,F23<=(Données!$U$19+15)*4),1,2) -> 2 | K23: =INDEX('Factures élec'!$L$4:$M$15,C23,J23) -> 
A24: 2022-01-01T05:00:00 | B24: =IF(OR(AND(D24=1,C24=1),AND(D24=Titres!$O$15,C24=Titres!$P$15),AND(D24=1,C24=5),AND(D24=Titres!$O$17,C24=Titres!$P$17),AND(D24=Titres!$O$18,C24=Titres!$P$18),AND(D24=21,C24=7),AND(D24=15,C24=8),AND(D24=1,C24=11),AND(D24=11,C24=11),AND(D24=25,C24=12)),1,0) -> 1 | C24: 1 | D24: 1 | E24: 6 | F24: 21 | G24: =MAX(0,H24*IF(B24=1,INDEX(Données!$O$31:$O$126,F24),INDEX(Données!$F$31:$F$702,E24*96-96+F24))) -> 5.446778135 | H24: =1+INDEX(DJ!$B$109:$M$139,D24,C24) -> 0.04350687643 | I24: =IF($O$1=1,N24,K24*IF(B24=1,INDEX(Données!$N$31:$N$126,F24),INDEX(Données!$E$31:$E$702,(E24-1)*96+F24))) -> 0 | J24: =IF(AND(E24<=5,B24=0,F24>Données!$U$19*4,F24<=(Données!$U$19+15)*4),1,2) -> 2 | K24: =INDEX('Factures élec'!$L$4:$M$15,C24,J24) -> 
A25: 2022-01-01T05:15:00 | B25: =IF(OR(AND(D25=1,C25=1),AND(D25=Titres!$O$15,C25=Titres!$P$15),AND(D25=1,C25=5),AND(D25=Titres!$O$17,C25=Titres!$P$17),AND(D25=Titres!$O$18,C25=Titres!$P$18),AND(D25=21,C25=7),AND(D25=15,C25=8),AND(D25=1,C25=11),AND(D25=11,C25=11),AND(D25=25,C25=12)),1,0) -> 1 | C25: 1 | D25: 1 | E25: 6 | F25: 22 | G25: =MAX(0,H25*IF(B25=1,INDEX(Données!$O$31:$O$126,F25),INDEX(Données!$F$31:$F$702,E25*96-96+F25))) -> 5.446778135 | H25: =1+INDEX(DJ!$B$109:$M$139,D25,C25) -> 0.04350687643 | I25: =IF($O$1=1,N25,K25*IF(B25=1,INDEX(Données!$N$31:$N$126,F25),INDEX(Données!$E$31:$E$702,(E25-1)*96+F25))) -> 0 | J25: =IF(AND(E25<=5,B25=0,F25>Données!$U$19*4,F25<=(Données!$U$19+15)*4),1,2) -> 2 | K25: =INDEX('Factures élec'!$L$4:$M$15,C25,J25) -> 
A26: 2022-01-01T05:30:00 | B26: =IF(OR(AND(D26=1,C26=1),AND(D26=Titres!$O$15,C26=Titres!$P$15),AND(D26=1,C26=5),AND(D26=Titres!$O$17,C26=Titres!$P$17),AND(D26=Titres!$O$18,C26=Titres!$P$18),AND(D26=21,C26=7),AND(D26=15,C26=8),AND(D26=1,C26=11),AND(D26=11,C26=11),AND(D26=25,C26=12)),1,0) -> 1 | C26: 1 | D26: 1 | E26: 6 | F26: 23 | G26: =MAX(0,H26*IF(B26=1,INDEX(Données!$O$31:$O$126,F26),INDEX(Données!$F$31:$F$702,E26*96-96+F26))) -> 5.446778135 | H26: =1+INDEX(DJ!$B$109:$M$139,D26,C26) -> 0.04350687643 | I26: =IF($O$1=1,N26,K26*IF(B26=1,INDEX(Données!$N$31:$N$126,F26),INDEX(Données!$E$31:$E$702,(E26-1)*96+F26))) -> 0 | J26: =IF(AND(E26<=5,B26=0,F26>Données!$U$19*4,F26<=(Données!$U$19+15)*4),1,2) -> 2 | K26: =INDEX('Factures élec'!$L$4:$M$15,C26,J26) -> 
A27: 2022-01-01T05:45:00 | B27: =IF(OR(AND(D27=1,C27=1),AND(D27=Titres!$O$15,C27=Titres!$P$15),AND(D27=1,C27=5),AND(D27=Titres!$O$17,C27=Titres!$P$17),AND(D27=Titres!$O$18,C27=Titres!$P$18),AND(D27=21,C27=7),AND(D27=15,C27=8),AND(D27=1,C27=11),AND(D27=11,C27=11),AND(D27=25,C27=12)),1,0) -> 1 | C27: 1 | D27: 1 | E27: 6 | F27: 24 | G27: =MAX(0,H27*IF(B27=1,INDEX(Données!$O$31:$O$126,F27),INDEX(Données!$F$31:$F$702,E27*96-96+F27))) -> 5.446778135 | H27: =1+INDEX(DJ!$B$109:$M$139,D27,C27) -> 0.04350687643 | I27: =IF($O$1=1,N27,K27*IF(B27=1,INDEX(Données!$N$31:$N$126,F27),INDEX(Données!$E$31:$E$702,(E27-1)*96+F27))) -> 0 | J27: =IF(AND(E27<=5,B27=0,F27>Données!$U$19*4,F27<=(Données!$U$19+15)*4),1,2) -> 2 | K27: =INDEX('Factures élec'!$L$4:$M$15,C27,J27) -> 
A28: 2022-01-01T06:00:00 | B28: =IF(OR(AND(D28=1,C28=1),AND(D28=Titres!$O$15,C28=Titres!$P$15),AND(D28=1,C28=5),AND(D28=Titres!$O$17,C28=Titres!$P$17),AND(D28=Titres!$O$18,C28=Titres!$P$18),AND(D28=21,C28=7),AND(D28=15,C28=8),AND(D28=1,C28=11),AND(D28=11,C28=11),AND(D28=25,C28=12)),1,0) -> 1 | C28: 1 | D28: 1 | E28: 6 | F28: 25 | G28: =MAX(0,H28*IF(B28=1,INDEX(Données!$O$31:$O$126,F28),INDEX(Données!$F$31:$F$702,E28*96-96+F28))) -> 5.847683124 | H28: =1+INDEX(DJ!$B$109:$M$139,D28,C28) -> 0.04350687643 | I28: =IF($O$1=1,N28,K28*IF(B28=1,INDEX(Données!$N$31:$N$126,F28),INDEX(Données!$E$31:$E$702,(E28-1)*96+F28))) -> 0 | J28: =IF(AND(E28<=5,B28=0,F28>Données!$U$19*4,F28<=(Données!$U$19+15)*4),1,2) -> 2 | K28: =INDEX('Factures élec'!$L$4:$M$15,C28,J28) -> 
A29: 2022-01-01T06:15:00 | B29: =IF(OR(AND(D29=1,C29=1),AND(D29=Titres!$O$15,C29=Titres!$P$15),AND(D29=1,C29=5),AND(D29=Titres!$O$17,C29=Titres!$P$17),AND(D29=Titres!$O$18,C29=Titres!$P$18),AND(D29=21,C29=7),AND(D29=15,C29=8),AND(D29=1,C29=11),AND(D29=11,C29=11),AND(D29=25,C29=12)),1,0) -> 1 | C29: 1 | D29: 1 | E29: 6 | F29: 26 | G29: =MAX(0,H29*IF(B29=1,INDEX(Données!$O$31:$O$126,F29),INDEX(Données!$F$31:$F$702,E29*96-96+F29))) -> 5.847683124 | H29: =1+INDEX(DJ!$B$109:$M$139,D29,C29) -> 0.04350687643 | I29: =IF($O$1=1,N29,K29*IF(B29=1,INDEX(Données!$N$31:$N$126,F29),INDEX(Données!$E$31:$E$702,(E29-1)*96+F29))) -> 0 | J29: =IF(AND(E29<=5,B29=0,F29>Données!$U$19*4,F29<=(Données!$U$19+15)*4),1,2) -> 2 | K29: =INDEX('Factures élec'!$L$4:$M$15,C29,J29) -> 
A30: 2022-01-01T06:30:00 | B30: =IF(OR(AND(D30=1,C30=1),AND(D30=Titres!$O$15,C30=Titres!$P$15),AND(D30=1,C30=5),AND(D30=Titres!$O$17,C30=Titres!$P$17),AND(D30=Titres!$O$18,C30=Titres!$P$18),AND(D30=21,C30=7),AND(D30=15,C30=8),AND(D30=1,C30=11),AND(D30=11,C30=11),AND(D30=25,C30=12)),1,0) -> 1 | C30: 1 | D30: 1 | E30: 6 | F30: 27 | G30: =MAX(0,H30*IF(B30=1,INDEX(Données!$O$31:$O$126,F30),INDEX(Données!$F$31:$F$702,E30*96-96+F30))) -> 5.847683124 | H30: =1+INDEX(DJ!$B$109:$M$139,D30,C30) -> 0.04350687643 | I30: =IF($O$1=1,N30,K30*IF(B30=1,INDEX(Données!$N$31:$N$126,F30),INDEX(Données!$E$31:$E$702,(E30-1)*96+F30))) -> 0 | J30: =IF(AND(E30<=5,B30=0,F30>Données!$U$19*4,F30<=(Données!$U$19+15)*4),1,2) -> 2 | K30: =INDEX('Factures élec'!$L$4:$M$15,C30,J30) -> 
A31: 2022-01-01T06:45:00 | B31: =IF(OR(AND(D31=1,C31=1),AND(D31=Titres!$O$15,C31=Titres!$P$15),AND(D31=1,C31=5),AND(D31=Titres!$O$17,C31=Titres!$P$17),AND(D31=Titres!$O$18,C31=Titres!$P$18),AND(D31=21,C31=7),AND(D31=15,C31=8),AND(D31=1,C31=11),AND(D31=11,C31=11),AND(D31=25,C31=12)),1,0) -> 1 | C31: 1 | D31: 1 | E31: 6 | F31: 28 | G31: =MAX(0,H31*IF(B31=1,INDEX(Données!$O$31:$O$126,F31),INDEX(Données!$F$31:$F$702,E31*96-96+F31))) -> 5.847683124 | H31: =1+INDEX(DJ!$B$109:$M$139,D31,C31) -> 0.04350687643 | I31: =IF($O$1=1,N31,K31*IF(B31=1,INDEX(Données!$N$31:$N$126,F31),INDEX(Données!$E$31:$E$702,(E31-1)*96+F31))) -> 0 | J31: =IF(AND(E31<=5,B31=0,F31>Données!$U$19*4,F31<=(Données!$U$19+15)*4),1,2) -> 2 | K31: =INDEX('Factures élec'!$L$4:$M$15,C31,J31) -> 
A32: 2022-01-01T07:00:00 | B32: =IF(OR(AND(D32=1,C32=1),AND(D32=Titres!$O$15,C32=Titres!$P$15),AND(D32=1,C32=5),AND(D32=Titres!$O$17,C32=Titres!$P$17),AND(D32=Titres!$O$18,C32=Titres!$P$18),AND(D32=21,C32=7),AND(D32=15,C32=8),AND(D32=1,C32=11),AND(D32=11,C32=11),AND(D32=25,C32=12)),1,0) -> 1 | C32: 1 | D32: 1 | E32: 6 | F32: 29 | G32: =MAX(0,H32*IF(B32=1,INDEX(Données!$O$31:$O$126,F32),INDEX(Données!$F$31:$F$702,E32*96-96+F32))) -> 6.538898624 | H32: =1+INDEX(DJ!$B$109:$M$139,D32,C32) -> 0.04350687643 | I32: =IF($O$1=1,N32,K32*IF(B32=1,INDEX(Données!$N$31:$N$126,F32),INDEX(Données!$E$31:$E$702,(E32-1)*96+F32))) -> 0 | J32: =IF(AND(E32<=5,B32=0,F32>Données!$U$19*4,F32<=(Données!$U$19+15)*4),1,2) -> 2 | K32: =INDEX('Factures élec'!$L$4:$M$15,C32,J32) -> 
A33: 2022-01-01T07:15:00 | B33: =IF(OR(AND(D33=1,C33=1),AND(D33=Titres!$O$15,C33=Titres!$P$15),AND(D33=1,C33=5),AND(D33=Titres!$O$17,C33=Titres!$P$17),AND(D33=Titres!$O$18,C33=Titres!$P$18),AND(D33=21,C33=7),AND(D33=15,C33=8),AND(D33=1,C33=11),AND(D33=11,C33=11),AND(D33=25,C33=12)),1,0) -> 1 | C33: 1 | D33: 1 | E33: 6 | F33: 30 | G33: =MAX(0,H33*IF(B33=1,INDEX(Données!$O$31:$O$126,F33),INDEX(Données!$F$31:$F$702,E33*96-96+F33))) -> 6.538898624 | H33: =1+INDEX(DJ!$B$109:$M$139,D33,C33) -> 0.04350687643 | I33: =IF($O$1=1,N33,K33*IF(B33=1,INDEX(Données!$N$31:$N$126,F33),INDEX(Données!$E$31:$E$702,(E33-1)*96+F33))) -> 0 | J33: =IF(AND(E33<=5,B33=0,F33>Données!$U$19*4,F33<=(Données!$U$19+15)*4),1,2) -> 2 | K33: =INDEX('Factures élec'!$L$4:$M$15,C33,J33) -> 
A34: 2022-01-01T07:30:00 | B34: =IF(OR(AND(D34=1,C34=1),AND(D34=Titres!$O$15,C34=Titres!$P$15),AND(D34=1,C34=5),AND(D34=Titres!$O$17,C34=Titres!$P$17),AND(D34=Titres!$O$18,C34=Titres!$P$18),AND(D34=21,C34=7),AND(D34=15,C34=8),AND(D34=1,C34=11),AND(D34=11,C34=11),AND(D34=25,C34=12)),1,0) -> 1 | C34: 1 | D34: 1 | E34: 6 | F34: 31 | G34: =MAX(0,H34*IF(B34=1,INDEX(Données!$O$31:$O$126,F34),INDEX(Données!$F$31:$F$702,E34*96-96+F34))) -> 6.538898624 | H34: =1+INDEX(DJ!$B$109:$M$139,D34,C34) -> 0.04350687643 | I34: =IF($O$1=1,N34,K34*IF(B34=1,INDEX(Données!$N$31:$N$126,F34),INDEX(Données!$E$31:$E$702,(E34-1)*96+F34))) -> 0 | J34: =IF(AND(E34<=5,B34=0,F34>Données!$U$19*4,F34<=(Données!$U$19+15)*4),1,2) -> 2 | K34: =INDEX('Factures élec'!$L$4:$M$15,C34,J34) -> 
A35: 2022-01-01T07:45:00 | B35: =IF(OR(AND(D35=1,C35=1),AND(D35=Titres!$O$15,C35=Titres!$P$15),AND(D35=1,C35=5),AND(D35=Titres!$O$17,C35=Titres!$P$17),AND(D35=Titres!$O$18,C35=Titres!$P$18),AND(D35=21,C35=7),AND(D35=15,C35=8),AND(D35=1,C35=11),AND(D35=11,C35=11),AND(D35=25,C35=12)),1,0) -> 1 | C35: 1 | D35: 1 | E35: 6 | F35: 32 | G35: =MAX(0,H35*IF(B35=1,INDEX(Données!$O$31:$O$126,F35),INDEX(Données!$F$31:$F$702,E35*96-96+F35))) -> 6.538898624 | H35: =1+INDEX(DJ!$B$109:$M$139,D35,C35) -> 0.04350687643 | I35: =IF($O$1=1,N35,K35*IF(B35=1,INDEX(Données!$N$31:$N$126,F35),INDEX(Données!$E$31:$E$702,(E35-1)*96+F35))) -> 0 | J35: =IF(AND(E35<=5,B35=0,F35>Données!$U$19*4,F35<=(Données!$U$19+15)*4),1,2) -> 2 | K35: =INDEX('Factures élec'!$L$4:$M$15,C35,J35) -> 
A36: 2022-01-01T08:00:00 | B36: =IF(OR(AND(D36=1,C36=1),AND(D36=Titres!$O$15,C36=Titres!$P$15),AND(D36=1,C36=5),AND(D36=Titres!$O$17,C36=Titres!$P$17),AND(D36=Titres!$O$18,C36=Titres!$P$18),AND(D36=21,C36=7),AND(D36=15,C36=8),AND(D36=1,C36=11),AND(D36=11,C36=11),AND(D36=25,C36=12)),1,0) -> 1 | C36: 1 | D36: 1 | E36: 6 | F36: 33 | G36: =MAX(0,H36*IF(B36=1,INDEX(Données!$O$31:$O$126,F36),INDEX(Données!$F$31:$F$702,E36*96-96+F36))) -> 6.497425694 | H36: =1+INDEX(DJ!$B$109:$M$139,D36,C36) -> 0.04350687643 | I36: =IF($O$1=1,N36,K36*IF(B36=1,INDEX(Données!$N$31:$N$126,F36),INDEX(Données!$E$31:$E$702,(E36-1)*96+F36))) -> 0 | J36: =IF(AND(E36<=5,B36=0,F36>Données!$U$19*4,F36<=(Données!$U$19+15)*4),1,2) -> 2 | K36: =INDEX('Factures élec'!$L$4:$M$15,C36,J36) -> 
A37: 2022-01-01T08:15:00 | B37: =IF(OR(AND(D37=1,C37=1),AND(D37=Titres!$O$15,C37=Titres!$P$15),AND(D37=1,C37=5),AND(D37=Titres!$O$17,C37=Titres!$P$17),AND(D37=Titres!$O$18,C37=Titres!$P$18),AND(D37=21,C37=7),AND(D37=15,C37=8),AND(D37=1,C37=11),AND(D37=11,C37=11),AND(D37=25,C37=12)),1,0) -> 1 | C37: 1 | D37: 1 | E37: 6 | F37: 34 | G37: =MAX(0,H37*IF(B37=1,INDEX(Données!$O$31:$O$126,F37),INDEX(Données!$F$31:$F$702,E37*96-96+F37))) -> 6.497425694 | H37: =1+INDEX(DJ!$B$109:$M$139,D37,C37) -> 0.04350687643 | I37: =IF($O$1=1,N37,K37*IF(B37=1,INDEX(Données!$N$31:$N$126,F37),INDEX(Données!$E$31:$E$702,(E37-1)*96+F37))) -> 0 | J37: =IF(AND(E37<=5,B37=0,F37>Données!$U$19*4,F37<=(Données!$U$19+15)*4),1,2) -> 2 | K37: =INDEX('Factures élec'!$L$4:$M$15,C37,J37) -> 
A38: 2022-01-01T08:30:00 | B38: =IF(OR(AND(D38=1,C38=1),AND(D38=Titres!$O$15,C38=Titres!$P$15),AND(D38=1,C38=5),AND(D38=Titres!$O$17,C38=Titres!$P$17),AND(D38=Titres!$O$18,C38=Titres!$P$18),AND(D38=21,C38=7),AND(D38=15,C38=8),AND(D38=1,C38=11),AND(D38=11,C38=11),AND(D38=25,C38=12)),1,0) -> 1 | C38: 1 | D38: 1 | E38: 6 | F38: 35 | G38: =MAX(0,H38*IF(B38=1,INDEX(Données!$O$31:$O$126,F38),INDEX(Données!$F$31:$F$702,E38*96-96+F38))) -> 6.497425694 | H38: =1+INDEX(DJ!$B$109:$M$139,D38,C38) -> 0.04350687643 | I38: =IF($O$1=1,N38,K38*IF(B38=1,INDEX(Données!$N$31:$N$126,F38),INDEX(Données!$E$31:$E$702,(E38-1)*96+F38))) -> 0 | J38: =IF(AND(E38<=5,B38=0,F38>Données!$U$19*4,F38<=(Données!$U$19+15)*4),1,2) -> 2 | K38: =INDEX('Factures élec'!$L$4:$M$15,C38,J38) -> 
A39: 2022-01-01T08:45:00 | B39: =IF(OR(AND(D39=1,C39=1),AND(D39=Titres!$O$15,C39=Titres!$P$15),AND(D39=1,C39=5),AND(D39=Titres!$O$17,C39=Titres!$P$17),AND(D39=Titres!$O$18,C39=Titres!$P$18),AND(D39=21,C39=7),AND(D39=15,C39=8),AND(D39=1,C39=11),AND(D39=11,C39=11),AND(D39=25,C39=12)),1,0) -> 1 | C39: 1 | D39: 1 | E39: 6 | F39: 36 | G39: =MAX(0,H39*IF(B39=1,INDEX(Données!$O$31:$O$126,F39),INDEX(Données!$F$31:$F$702,E39*96-96+F39))) -> 6.497425694 | H39: =1+INDEX(DJ!$B$109:$M$139,D39,C39) -> 0.04350687643 | I39: =IF($O$1=1,N39,K39*IF(B39=1,INDEX(Données!$N$31:$N$126,F39),INDEX(Données!$E$31:$E$702,(E39-1)*96+F39))) -> 0 | J39: =IF(AND(E39<=5,B39=0,F39>Données!$U$19*4,F39<=(Données!$U$19+15)*4),1,2) -> 2 | K39: =INDEX('Factures élec'!$L$4:$M$15,C39,J39) -> 
A40: 2022-01-01T09:00:00 | B40: =IF(OR(AND(D40=1,C40=1),AND(D40=Titres!$O$15,C40=Titres!$P$15),AND(D40=1,C40=5),AND(D40=Titres!$O$17,C40=Titres!$P$17),AND(D40=Titres!$O$18,C40=Titres!$P$18),AND(D40=21,C40=7),AND(D40=15,C40=8),AND(D40=1,C40=11),AND(D40=11,C40=11),AND(D40=25,C40=12)),1,0) -> 1 | C40: 1 | D40: 1 | E40: 6 | F40: 37 | G40: =MAX(0,H40*IF(B40=1,INDEX(Données!$O$31:$O$126,F40),INDEX(Données!$F$31:$F$702,E40*96-96+F40))) -> 6.497425694 | H40: =1+INDEX(DJ!$B$109:$M$139,D40,C40) -> 0.04350687643 | I40: =IF($O$1=1,N40,K40*IF(B40=1,INDEX(Données!$N$31:$N$126,F40),INDEX(Données!$E$31:$E$702,(E40-1)*96+F40))) -> 0 | J40: =IF(AND(E40<=5,B40=0,F40>Données!$U$19*4,F40<=(Données!$U$19+15)*4),1,2) -> 2 | K40: =INDEX('Factures élec'!$L$4:$M$15,C40,J40) -> 
A41: 2022-01-01T09:15:00 | B41: =IF(OR(AND(D41=1,C41=1),AND(D41=Titres!$O$15,C41=Titres!$P$15),AND(D41=1,C41=5),AND(D41=Titres!$O$17,C41=Titres!$P$17),AND(D41=Titres!$O$18,C41=Titres!$P$18),AND(D41=21,C41=7),AND(D41=15,C41=8),AND(D41=1,C41=11),AND(D41=11,C41=11),AND(D41=25,C41=12)),1,0) -> 1 | C41: 1 | D41: 1 | E41: 6 | F41: 38 | G41: =MAX(0,H41*IF(B41=1,INDEX(Données!$O$31:$O$126,F41),INDEX(Données!$F$31:$F$702,E41*96-96+F41))) -> 6.497425694 | H41: =1+INDEX(DJ!$B$109:$M$139,D41,C41) -> 0.04350687643 | I41: =IF($O$1=1,N41,K41*IF(B41=1,INDEX(Données!$N$31:$N$126,F41),INDEX(Données!$E$31:$E$702,(E41-1)*96+F41))) -> 0 | J41: =IF(AND(E41<=5,B41=0,F41>Données!$U$19*4,F41<=(Données!$U$19+15)*4),1,2) -> 2 | K41: =INDEX('Factures élec'!$L$4:$M$15,C41,J41) -> 
A42: 2022-01-01T09:30:00 | B42: =IF(OR(AND(D42=1,C42=1),AND(D42=Titres!$O$15,C42=Titres!$P$15),AND(D42=1,C42=5),AND(D42=Titres!$O$17,C42=Titres!$P$17),AND(D42=Titres!$O$18,C42=Titres!$P$18),AND(D42=21,C42=7),AND(D42=15,C42=8),AND(D42=1,C42=11),AND(D42=11,C42=11),AND(D42=25,C42=12)),1,0) -> 1 | C42: 1 | D42: 1 | E42: 6 | F42: 39 | G42: =MAX(0,H42*IF(B42=1,INDEX(Données!$O$31:$O$126,F42),INDEX(Données!$F$31:$F$702,E42*96-96+F42))) -> 6.497425694 | H42: =1+INDEX(DJ!$B$109:$M$139,D42,C42) -> 0.04350687643 | I42: =IF($O$1=1,N42,K42*IF(B42=1,INDEX(Données!$N$31:$N$126,F42),INDEX(Données!$E$31:$E$702,(E42-1)*96+F42))) -> 0 | J42: =IF(AND(E42<=5,B42=0,F42>Données!$U$19*4,F42<=(Données!$U$19+15)*4),1,2) -> 2 | K42: =INDEX('Factures élec'!$L$4:$M$15,C42,J42) -> 
A43: 2022-01-01T09:45:00 | B43: =IF(OR(AND(D43=1,C43=1),AND(D43=Titres!$O$15,C43=Titres!$P$15),AND(D43=1,C43=5),AND(D43=Titres!$O$17,C43=Titres!$P$17),AND(D43=Titres!$O$18,C43=Titres!$P$18),AND(D43=21,C43=7),AND(D43=15,C43=8),AND(D43=1,C43=11),AND(D43=11,C43=11),AND(D43=25,C43=12)),1,0) -> 1 | C43: 1 | D43: 1 | E43: 6 | F43: 40 | G43: =MAX(0,H43*IF(B43=1,INDEX(Données!$O$31:$O$126,F43),INDEX(Données!$F$31:$F$702,E43*96-96+F43))) -> 6.497425694 | H43: =1+INDEX(DJ!$B$109:$M$139,D43,C43) -> 0.04350687643 | I43: =IF($O$1=1,N43,K43*IF(B43=1,INDEX(Données!$N$31:$N$126,F43),INDEX(Données!$E$31:$E$702,(E43-1)*96+F43))) -> 0 | J43: =IF(AND(E43<=5,B43=0,F43>Données!$U$19*4,F43<=(Données!$U$19+15)*4),1,2) -> 2 | K43: =INDEX('Factures élec'!$L$4:$M$15,C43,J43) -> 
A44: 2022-01-01T10:00:00 | B44: =IF(OR(AND(D44=1,C44=1),AND(D44=Titres!$O$15,C44=Titres!$P$15),AND(D44=1,C44=5),AND(D44=Titres!$O$17,C44=Titres!$P$17),AND(D44=Titres!$O$18,C44=Titres!$P$18),AND(D44=21,C44=7),AND(D44=15,C44=8),AND(D44=1,C44=11),AND(D44=11,C44=11),AND(D44=25,C44=12)),1,0) -> 1 | C44: 1 | D44: 1 | E44: 6 | F44: 41 | G44: =MAX(0,H44*IF(B44=1,INDEX(Données!$O$31:$O$126,F44),INDEX(Données!$F$31:$F$702,E44*96-96+F44))) -> 6.497425694 | H44: =1+INDEX(DJ!$B$109:$M$139,D44,C44) -> 0.04350687643 | I44: =IF($O$1=1,N44,K44*IF(B44=1,INDEX(Données!$N$31:$N$126,F44),INDEX(Données!$E$31:$E$702,(E44-1)*96+F44))) -> 0 | J44: =IF(AND(E44<=5,B44=0,F44>Données!$U$19*4,F44<=(Données!$U$19+15)*4),1,2) -> 2 | K44: =INDEX('Factures élec'!$L$4:$M$15,C44,J44) -> 
A45: 2022-01-01T10:15:00 | B45: =IF(OR(AND(D45=1,C45=1),AND(D45=Titres!$O$15,C45=Titres!$P$15),AND(D45=1,C45=5),AND(D45=Titres!$O$17,C45=Titres!$P$17),AND(D45=Titres!$O$18,C45=Titres!$P$18),AND(D45=21,C45=7),AND(D45=15,C45=8),AND(D45=1,C45=11),AND(D45=11,C45=11),AND(D45=25,C45=12)),1,0) -> 1 | C45: 1 | D45: 1 | E45: 6 | F45: 42 | G45: =MAX(0,H45*IF(B45=1,INDEX(Données!$O$31:$O$126,F45),INDEX(Données!$F$31:$F$702,E45*96-96+F45))) -> 6.497425694 | H45: =1+INDEX(DJ!$B$109:$M$139,D45,C45) -> 0.04350687643 | I45: =IF($O$1=1,N45,K45*IF(B45=1,INDEX(Données!$N$31:$N$126,F45),INDEX(Données!$E$31:$E$702,(E45-1)*96+F45))) -> 0 | J45: =IF(AND(E45<=5,B45=0,F45>Données!$U$19*4,F45<=(Données!$U$19+15)*4),1,2) -> 2 | K45: =INDEX('Factures élec'!$L$4:$M$15,C45,J45) -> 
A46: 2022-01-01T10:30:00 | B46: =IF(OR(AND(D46=1,C46=1),AND(D46=Titres!$O$15,C46=Titres!$P$15),AND(D46=1,C46=5),AND(D46=Titres!$O$17,C46=Titres!$P$17),AND(D46=Titres!$O$18,C46=Titres!$P$18),AND(D46=21,C46=7),AND(D46=15,C46=8),AND(D46=1,C46=11),AND(D46=11,C46=11),AND(D46=25,C46=12)),1,0) -> 1 | C46: 1 | D46: 1 | E46: 6 | F46: 43 | G46: =MAX(0,H46*IF(B46=1,INDEX(Données!$O$31:$O$126,F46),INDEX(Données!$F$31:$F$702,E46*96-96+F46))) -> 6.497425694 | H46: =1+INDEX(DJ!$B$109:$M$139,D46,C46) -> 0.04350687643 | I46: =IF($O$1=1,N46,K46*IF(B46=1,INDEX(Données!$N$31:$N$126,F46),INDEX(Données!$E$31:$E$702,(E46-1)*96+F46))) -> 0 | J46: =IF(AND(E46<=5,B46=0,F46>Données!$U$19*4,F46<=(Données!$U$19+15)*4),1,2) -> 2 | K46: =INDEX('Factures élec'!$L$4:$M$15,C46,J46) -> 
A47: 2022-01-01T10:45:00 | B47: =IF(OR(AND(D47=1,C47=1),AND(D47=Titres!$O$15,C47=Titres!$P$15),AND(D47=1,C47=5),AND(D47=Titres!$O$17,C47=Titres!$P$17),AND(D47=Titres!$O$18,C47=Titres!$P$18),AND(D47=21,C47=7),AND(D47=15,C47=8),AND(D47=1,C47=11),AND(D47=11,C47=11),AND(D47=25,C47=12)),1,0) -> 1 | C47: 1 | D47: 1 | E47: 6 | F47: 44 | G47: =MAX(0,H47*IF(B47=1,INDEX(Données!$O$31:$O$126,F47),INDEX(Données!$F$31:$F$702,E47*96-96+F47))) -> 6.497425694 | H47: =1+INDEX(DJ!$B$109:$M$139,D47,C47) -> 0.04350687643 | I47: =IF($O$1=1,N47,K47*IF(B47=1,INDEX(Données!$N$31:$N$126,F47),INDEX(Données!$E$31:$E$702,(E47-1)*96+F47))) -> 0 | J47: =IF(AND(E47<=5,B47=0,F47>Données!$U$19*4,F47<=(Données!$U$19+15)*4),1,2) -> 2 | K47: =INDEX('Factures élec'!$L$4:$M$15,C47,J47) -> 
A48: 2022-01-01T11:00:00 | B48: =IF(OR(AND(D48=1,C48=1),AND(D48=Titres!$O$15,C48=Titres!$P$15),AND(D48=1,C48=5),AND(D48=Titres!$O$17,C48=Titres!$P$17),AND(D48=Titres!$O$18,C48=Titres!$P$18),AND(D48=21,C48=7),AND(D48=15,C48=8),AND(D48=1,C48=11),AND(D48=11,C48=11),AND(D48=25,C48=12)),1,0) -> 1 | C48: 1 | D48: 1 | E48: 6 | F48: 45 | G48: =MAX(0,H48*IF(B48=1,INDEX(Données!$O$31:$O$126,F48),INDEX(Données!$F$31:$F$702,E48*96-96+F48))) -> 6.373006904 | H48: =1+INDEX(DJ!$B$109:$M$139,D48,C48) -> 0.04350687643 | I48: =IF($O$1=1,N48,K48*IF(B48=1,INDEX(Données!$N$31:$N$126,F48),INDEX(Données!$E$31:$E$702,(E48-1)*96+F48))) -> 0 | J48: =IF(AND(E48<=5,B48=0,F48>Données!$U$19*4,F48<=(Données!$U$19+15)*4),1,2) -> 2 | K48: =INDEX('Factures élec'!$L$4:$M$15,C48,J48) -> 
A49: 2022-01-01T11:15:00 | B49: =IF(OR(AND(D49=1,C49=1),AND(D49=Titres!$O$15,C49=Titres!$P$15),AND(D49=1,C49=5),AND(D49=Titres!$O$17,C49=Titres!$P$17),AND(D49=Titres!$O$18,C49=Titres!$P$18),AND(D49=21,C49=7),AND(D49=15,C49=8),AND(D49=1,C49=11),AND(D49=11,C49=11),AND(D49=25,C49=12)),1,0) -> 1 | C49: 1 | D49: 1 | E49: 6 | F49: 46 | G49: =MAX(0,H49*IF(B49=1,INDEX(Données!$O$31:$O$126,F49),INDEX(Données!$F$31:$F$702,E49*96-96+F49))) -> 6.373006904 | H49: =1+INDEX(DJ!$B$109:$M$139,D49,C49) -> 0.04350687643 | I49: =IF($O$1=1,N49,K49*IF(B49=1,INDEX(Données!$N$31:$N$126,F49),INDEX(Données!$E$31:$E$702,(E49-1)*96+F49))) -> 0 | J49: =IF(AND(E49<=5,B49=0,F49>Données!$U$19*4,F49<=(Données!$U$19+15)*4),1,2) -> 2 | K49: =INDEX('Factures élec'!$L$4:$M$15,C49,J49) -> 
A50: 2022-01-01T11:30:00 | B50: =IF(OR(AND(D50=1,C50=1),AND(D50=Titres!$O$15,C50=Titres!$P$15),AND(D50=1,C50=5),AND(D50=Titres!$O$17,C50=Titres!$P$17),AND(D50=Titres!$O$18,C50=Titres!$P$18),AND(D50=21,C50=7),AND(D50=15,C50=8),AND(D50=1,C50=11),AND(D50=11,C50=11),AND(D50=25,C50=12)),1,0) -> 1 | C50: 1 | D50: 1 | E50: 6 | F50: 47 | G50: =MAX(0,H50*IF(B50=1,INDEX(Données!$O$31:$O$126,F50),INDEX(Données!$F$31:$F$702,E50*96-96+F50))) -> 6.373006904 | H50: =1+INDEX(DJ!$B$109:$M$139,D50,C50) -> 0.04350687643 | I50: =IF($O$1=1,N50,K50*IF(B50=1,INDEX(Données!$N$31:$N$126,F50),INDEX(Données!$E$31:$E$702,(E50-1)*96+F50))) -> 0 | J50: =IF(AND(E50<=5,B50=0,F50>Données!$U$19*4,F50<=(Données!$U$19+15)*4),1,2) -> 2 | K50: =INDEX('Factures élec'!$L$4:$M$15,C50,J50) -> 
A51: 2022-01-01T11:45:00 | B51: =IF(OR(AND(D51=1,C51=1),AND(D51=Titres!$O$15,C51=Titres!$P$15),AND(D51=1,C51=5),AND(D51=Titres!$O$17,C51=Titres!$P$17),AND(D51=Titres!$O$18,C51=Titres!$P$18),AND(D51=21,C51=7),AND(D51=15,C51=8),AND(D51=1,C51=11),AND(D51=11,C51=11),AND(D51=25,C51=12)),1,0) -> 1 | C51: 1 | D51: 1 | E51: 6 | F51: 48 | G51: =MAX(0,H51*IF(B51=1,INDEX(Données!$O$31:$O$126,F51),INDEX(Données!$F$31:$F$702,E51*96-96+F51))) -> 6.373006904 | H51: =1+INDEX(DJ!$B$109:$M$139,D51,C51) -> 0.04350687643 | I51: =IF($O$1=1,N51,K51*IF(B51=1,INDEX(Données!$N$31:$N$126,F51),INDEX(Données!$E$31:$E$702,(E51-1)*96+F51))) -> 0 | J51: =IF(AND(E51<=5,B51=0,F51>Données!$U$19*4,F51<=(Données!$U$19+15)*4),1,2) -> 2 | K51: =INDEX('Factures élec'!$L$4:$M$15,C51,J51) -> 
A52: 2022-01-01T12:00:00 | B52: =IF(OR(AND(D52=1,C52=1),AND(D52=Titres!$O$15,C52=Titres!$P$15),AND(D52=1,C52=5),AND(D52=Titres!$O$17,C52=Titres!$P$17),AND(D52=Titres!$O$18,C52=Titres!$P$18),AND(D52=21,C52=7),AND(D52=15,C52=8),AND(D52=1,C52=11),AND(D52=11,C52=11),AND(D52=25,C52=12)),1,0) -> 1 | C52: 1 | D52: 1 | E52: 6 | F52: 49 | G52: =MAX(0,H52*IF(B52=1,INDEX(Données!$O$31:$O$126,F52),INDEX(Données!$F$31:$F$702,E52*96-96+F52))) -> 6.193290874 | H52: =1+INDEX(DJ!$B$109:$M$139,D52,C52) -> 0.04350687643 | I52: =IF($O$1=1,N52,K52*IF(B52=1,INDEX(Données!$N$31:$N$126,F52),INDEX(Données!$E$31:$E$702,(E52-1)*96+F52))) -> 0 | J52: =IF(AND(E52<=5,B52=0,F52>Données!$U$19*4,F52<=(Données!$U$19+15)*4),1,2) -> 2 | K52: =INDEX('Factures élec'!$L$4:$M$15,C52,J52) -> 
A53: 2022-01-01T12:15:00 | B53: =IF(OR(AND(D53=1,C53=1),AND(D53=Titres!$O$15,C53=Titres!$P$15),AND(D53=1,C53=5),AND(D53=Titres!$O$17,C53=Titres!$P$17),AND(D53=Titres!$O$18,C53=Titres!$P$18),AND(D53=21,C53=7),AND(D53=15,C53=8),AND(D53=1,C53=11),AND(D53=11,C53=11),AND(D53=25,C53=12)),1,0) -> 1 | C53: 1 | D53: 1 | E53: 6 | F53: 50 | G53: =MAX(0,H53*IF(B53=1,INDEX(Données!$O$31:$O$126,F53),INDEX(Données!$F$31:$F$702,E53*96-96+F53))) -> 6.193290874 | H53: =1+INDEX(DJ!$B$109:$M$139,D53,C53) -> 0.04350687643 | I53: =IF($O$1=1,N53,K53*IF(B53=1,INDEX(Données!$N$31:$N$126,F53),INDEX(Données!$E$31:$E$702,(E53-1)*96+F53))) -> 0 | J53: =IF(AND(E53<=5,B53=0,F53>Données!$U$19*4,F53<=(Données!$U$19+15)*4),1,2) -> 2 | K53: =INDEX('Factures élec'!$L$4:$M$15,C53,J53) -> 
A54: 2022-01-01T12:30:00 | B54: =IF(OR(AND(D54=1,C54=1),AND(D54=Titres!$O$15,C54=Titres!$P$15),AND(D54=1,C54=5),AND(D54=Titres!$O$17,C54=Titres!$P$17),AND(D54=Titres!$O$18,C54=Titres!$P$18),AND(D54=21,C54=7),AND(D54=15,C54=8),AND(D54=1,C54=11),AND(D54=11,C54=11),AND(D54=25,C54=12)),1,0) -> 1 | C54: 1 | D54: 1 | E54: 6 | F54: 51 | G54: =MAX(0,H54*IF(B54=1,INDEX(Données!$O$31:$O$126,F54),INDEX(Données!$F$31:$F$702,E54*96-96+F54))) -> 6.193290874 | H54: =1+INDEX(DJ!$B$109:$M$139,D54,C54) -> 0.04350687643 | I54: =IF($O$1=1,N54,K54*IF(B54=1,INDEX(Données!$N$31:$N$126,F54),INDEX(Données!$E$31:$E$702,(E54-1)*96+F54))) -> 0 | J54: =IF(AND(E54<=5,B54=0,F54>Données!$U$19*4,F54<=(Données!$U$19+15)*4),1,2) -> 2 | K54: =INDEX('Factures élec'!$L$4:$M$15,C54,J54) -> 
A55: 2022-01-01T12:45:00 | B55: =IF(OR(AND(D55=1,C55=1),AND(D55=Titres!$O$15,C55=Titres!$P$15),AND(D55=1,C55=5),AND(D55=Titres!$O$17,C55=Titres!$P$17),AND(D55=Titres!$O$18,C55=Titres!$P$18),AND(D55=21,C55=7),AND(D55=15,C55=8),AND(D55=1,C55=11),AND(D55=11,C55=11),AND(D55=25,C55=12)),1,0) -> 1 | C55: 1 | D55: 1 | E55: 6 | F55: 52 | G55: =MAX(0,H55*IF(B55=1,INDEX(Données!$O$31:$O$126,F55),INDEX(Données!$F$31:$F$702,E55*96-96+F55))) -> 6.193290874 | H55: =1+INDEX(DJ!$B$109:$M$139,D55,C55) -> 0.04350687643 | I55: =IF($O$1=1,N55,K55*IF(B55=1,INDEX(Données!$N$31:$N$126,F55),INDEX(Données!$E$31:$E$702,(E55-1)*96+F55))) -> 0 | J55: =IF(AND(E55<=5,B55=0,F55>Données!$U$19*4,F55<=(Données!$U$19+15)*4),1,2) -> 2 | K55: =INDEX('Factures élec'!$L$4:$M$15,C55,J55) -> 
A56: 2022-01-01T13:00:00 | B56: =IF(OR(AND(D56=1,C56=1),AND(D56=Titres!$O$15,C56=Titres!$P$15),AND(D56=1,C56=5),AND(D56=Titres!$O$17,C56=Titres!$P$17),AND(D56=Titres!$O$18,C56=Titres!$P$18),AND(D56=21,C56=7),AND(D56=15,C56=8),AND(D56=1,C56=11),AND(D56=11,C56=11),AND(D56=25,C56=12)),1,0) -> 1 | C56: 1 | D56: 1 | E56: 6 | F56: 53 | G56: =MAX(0,H56*IF(B56=1,INDEX(Données!$O$31:$O$126,F56),INDEX(Données!$F$31:$F$702,E56*96-96+F56))) -> 6.055047774 | H56: =1+INDEX(DJ!$B$109:$M$139,D56,C56) -> 0.04350687643 | I56: =IF($O$1=1,N56,K56*IF(B56=1,INDEX(Données!$N$31:$N$126,F56),INDEX(Données!$E$31:$E$702,(E56-1)*96+F56))) -> 0 | J56: =IF(AND(E56<=5,B56=0,F56>Données!$U$19*4,F56<=(Données!$U$19+15)*4),1,2) -> 2 | K56: =INDEX('Factures élec'!$L$4:$M$15,C56,J56) -> 
A57: 2022-01-01T13:15:00 | B57: =IF(OR(AND(D57=1,C57=1),AND(D57=Titres!$O$15,C57=Titres!$P$15),AND(D57=1,C57=5),AND(D57=Titres!$O$17,C57=Titres!$P$17),AND(D57=Titres!$O$18,C57=Titres!$P$18),AND(D57=21,C57=7),AND(D57=15,C57=8),AND(D57=1,C57=11),AND(D57=11,C57=11),AND(D57=25,C57=12)),1,0) -> 1 | C57: 1 | D57: 1 | E57: 6 | F57: 54 | G57: =MAX(0,H57*IF(B57=1,INDEX(Données!$O$31:$O$126,F57),INDEX(Données!$F$31:$F$702,E57*96-96+F57))) -> 6.055047774 | H57: =1+INDEX(DJ!$B$109:$M$139,D57,C57) -> 0.04350687643 | I57: =IF($O$1=1,N57,K57*IF(B57=1,INDEX(Données!$N$31:$N$126,F57),INDEX(Données!$E$31:$E$702,(E57-1)*96+F57))) -> 0 | J57: =IF(AND(E57<=5,B57=0,F57>Données!$U$19*4,F57<=(Données!$U$19+15)*4),1,2) -> 2 | K57: =INDEX('Factures élec'!$L$4:$M$15,C57,J57) -> 
A58: 2022-01-01T13:30:00 | B58: =IF(OR(AND(D58=1,C58=1),AND(D58=Titres!$O$15,C58=Titres!$P$15),AND(D58=1,C58=5),AND(D58=Titres!$O$17,C58=Titres!$P$17),AND(D58=Titres!$O$18,C58=Titres!$P$18),AND(D58=21,C58=7),AND(D58=15,C58=8),AND(D58=1,C58=11),AND(D58=11,C58=11),AND(D58=25,C58=12)),1,0) -> 1 | C58: 1 | D58: 1 | E58: 6 | F58: 55 | G58: =MAX(0,H58*IF(B58=1,INDEX(Données!$O$31:$O$126,F58),INDEX(Données!$F$31:$F$702,E58*96-96+F58))) -> 6.055047774 | H58: =1+INDEX(DJ!$B$109:$M$139,D58,C58) -> 0.04350687643 | I58: =IF($O$1=1,N58,K58*IF(B58=1,INDEX(Données!$N$31:$N$126,F58),INDEX(Données!$E$31:$E$702,(E58-1)*96+F58))) -> 0 | J58: =IF(AND(E58<=5,B58=0,F58>Données!$U$19*4,F58<=(Données!$U$19+15)*4),1,2) -> 2 | K58: =INDEX('Factures élec'!$L$4:$M$15,C58,J58) -> 
A59: 2022-01-01T13:45:00 | B59: =IF(OR(AND(D59=1,C59=1),AND(D59=Titres!$O$15,C59=Titres!$P$15),AND(D59=1,C59=5),AND(D59=Titres!$O$17,C59=Titres!$P$17),AND(D59=Titres!$O$18,C59=Titres!$P$18),AND(D59=21,C59=7),AND(D59=15,C59=8),AND(D59=1,C59=11),AND(D59=11,C59=11),AND(D59=25,C59=12)),1,0) -> 1 | C59: 1 | D59: 1 | E59: 6 | F59: 56 | G59: =MAX(0,H59*IF(B59=1,INDEX(Données!$O$31:$O$126,F59),INDEX(Données!$F$31:$F$702,E59*96-96+F59))) -> 6.055047774 | H59: =1+INDEX(DJ!$B$109:$M$139,D59,C59) -> 0.04350687643 | I59: =IF($O$1=1,N59,K59*IF(B59=1,INDEX(Données!$N$31:$N$126,F59),INDEX(Données!$E$31:$E$702,(E59-1)*96+F59))) -> 0 | J59: =IF(AND(E59<=5,B59=0,F59>Données!$U$19*4,F59<=(Données!$U$19+15)*4),1,2) -> 2 | K59: =INDEX('Factures élec'!$L$4:$M$15,C59,J59) -> 
A60: 2022-01-01T14:00:00 | B60: =IF(OR(AND(D60=1,C60=1),AND(D60=Titres!$O$15,C60=Titres!$P$15),AND(D60=1,C60=5),AND(D60=Titres!$O$17,C60=Titres!$P$17),AND(D60=Titres!$O$18,C60=Titres!$P$18),AND(D60=21,C60=7),AND(D60=15,C60=8),AND(D60=1,C60=11),AND(D60=11,C60=11),AND(D60=25,C60=12)),1,0) -> 1 | C60: 1 | D60: 1 | E60: 6 | F60: 57 | G60: =MAX(0,H60*IF(B60=1,INDEX(Données!$O$31:$O$126,F60),INDEX(Données!$F$31:$F$702,E60*96-96+F60))) -> 6.041223464 | H60: =1+INDEX(DJ!$B$109:$M$139,D60,C60) -> 0.04350687643 | I60: =IF($O$1=1,N60,K60*IF(B60=1,INDEX(Données!$N$31:$N$126,F60),INDEX(Données!$E$31:$E$702,(E60-1)*96+F60))) -> 0 | J60: =IF(AND(E60<=5,B60=0,F60>Données!$U$19*4,F60<=(Données!$U$19+15)*4),1,2) -> 2 | K60: =INDEX('Factures élec'!$L$4:$M$15,C60,J60) -> 
A61: 2022-01-01T14:15:00 | B61: =IF(OR(AND(D61=1,C61=1),AND(D61=Titres!$O$15,C61=Titres!$P$15),AND(D61=1,C61=5),AND(D61=Titres!$O$17,C61=Titres!$P$17),AND(D61=Titres!$O$18,C61=Titres!$P$18),AND(D61=21,C61=7),AND(D61=15,C61=8),AND(D61=1,C61=11),AND(D61=11,C61=11),AND(D61=25,C61=12)),1,0) -> 1 | C61: 1 | D61: 1 | E61: 6 | F61: 58 | G61: =MAX(0,H61*IF(B61=1,INDEX(Données!$O$31:$O$126,F61),INDEX(Données!$F$31:$F$702,E61*96-96+F61))) -> 6.041223464 | H61: =1+INDEX(DJ!$B$109:$M$139,D61,C61) -> 0.04350687643 | I61: =IF($O$1=1,N61,K61*IF(B61=1,INDEX(Données!$N$31:$N$126,F61),INDEX(Données!$E$31:$E$702,(E61-1)*96+F61))) -> 0 | J61: =IF(AND(E61<=5,B61=0,F61>Données!$U$19*4,F61<=(Données!$U$19+15)*4),1,2) -> 2 | K61: =INDEX('Factures élec'!$L$4:$M$15,C61,J61) -> 
A62: 2022-01-01T14:30:00 | B62: =IF(OR(AND(D62=1,C62=1),AND(D62=Titres!$O$15,C62=Titres!$P$15),AND(D62=1,C62=5),AND(D62=Titres!$O$17,C62=Titres!$P$17),AND(D62=Titres!$O$18,C62=Titres!$P$18),AND(D62=21,C62=7),AND(D62=15,C62=8),AND(D62=1,C62=11),AND(D62=11,C62=11),AND(D62=25,C62=12)),1,0) -> 1 | C62: 1 | D62: 1 | E62: 6 | F62: 59 | G62: =MAX(0,H62*IF(B62=1,INDEX(Données!$O$31:$O$126,F62),INDEX(Données!$F$31:$F$702,E62*96-96+F62))) -> 6.041223464 | H62: =1+INDEX(DJ!$B$109:$M$139,D62,C62) -> 0.04350687643 | I62: =IF($O$1=1,N62,K62*IF(B62=1,INDEX(Données!$N$31:$N$126,F62),INDEX(Données!$E$31:$E$702,(E62-1)*96+F62))) -> 0 | J62: =IF(AND(E62<=5,B62=0,F62>Données!$U$19*4,F62<=(Données!$U$19+15)*4),1,2) -> 2 | K62: =INDEX('Factures élec'!$L$4:$M$15,C62,J62) -> 
A63: 2022-01-01T14:45:00 | B63: =IF(OR(AND(D63=1,C63=1),AND(D63=Titres!$O$15,C63=Titres!$P$15),AND(D63=1,C63=5),AND(D63=Titres!$O$17,C63=Titres!$P$17),AND(D63=Titres!$O$18,C63=Titres!$P$18),AND(D63=21,C63=7),AND(D63=15,C63=8),AND(D63=1,C63=11),AND(D63=11,C63=11),AND(D63=25,C63=12)),1,0) -> 1 | C63: 1 | D63: 1 | E63: 6 | F63: 60 | G63: =MAX(0,H63*IF(B63=1,INDEX(Données!$O$31:$O$126,F63),INDEX(Données!$F$31:$F$702,E63*96-96+F63))) -> 6.041223464 | H63: =1+INDEX(DJ!$B$109:$M$139,D63,C63) -> 0.04350687643 | I63: =IF($O$1=1,N63,K63*IF(B63=1,INDEX(Données!$N$31:$N$126,F63),INDEX(Données!$E$31:$E$702,(E63-1)*96+F63))) -> 0 | J63: =IF(AND(E63<=5,B63=0,F63>Données!$U$19*4,F63<=(Données!$U$19+15)*4),1,2) -> 2 | K63: =INDEX('Factures élec'!$L$4:$M$15,C63,J63) -> 
A64: 2022-01-01T15:00:00 | B64: =IF(OR(AND(D64=1,C64=1),AND(D64=Titres!$O$15,C64=Titres!$P$15),AND(D64=1,C64=5),AND(D64=Titres!$O$17,C64=Titres!$P$17),AND(D64=Titres!$O$18,C64=Titres!$P$18),AND(D64=21,C64=7),AND(D64=15,C64=8),AND(D64=1,C64=11),AND(D64=11,C64=11),AND(D64=25,C64=12)),1,0) -> 1 | C64: 1 | D64: 1 | E64: 6 | F64: 61 | G64: =MAX(0,H64*IF(B64=1,INDEX(Données!$O$31:$O$126,F64),INDEX(Données!$F$31:$F$702,E64*96-96+F64))) -> 6.110345014 | H64: =1+INDEX(DJ!$B$109:$M$139,D64,C64) -> 0.04350687643 | I64: =IF($O$1=1,N64,K64*IF(B64=1,INDEX(Données!$N$31:$N$126,F64),INDEX(Données!$E$31:$E$702,(E64-1)*96+F64))) -> 0 | J64: =IF(AND(E64<=5,B64=0,F64>Données!$U$19*4,F64<=(Données!$U$19+15)*4),1,2) -> 2 | K64: =INDEX('Factures élec'!$L$4:$M$15,C64,J64) -> 
A65: 2022-01-01T15:15:00 | B65: =IF(OR(AND(D65=1,C65=1),AND(D65=Titres!$O$15,C65=Titres!$P$15),AND(D65=1,C65=5),AND(D65=Titres!$O$17,C65=Titres!$P$17),AND(D65=Titres!$O$18,C65=Titres!$P$18),AND(D65=21,C65=7),AND(D65=15,C65=8),AND(D65=1,C65=11),AND(D65=11,C65=11),AND(D65=25,C65=12)),1,0) -> 1 | C65: 1 | D65: 1 | E65: 6 | F65: 62 | G65: =MAX(0,H65*IF(B65=1,INDEX(Données!$O$31:$O$126,F65),INDEX(Données!$F$31:$F$702,E65*96-96+F65))) -> 6.110345014 | H65: =1+INDEX(DJ!$B$109:$M$139,D65,C65) -> 0.04350687643 | I65: =IF($O$1=1,N65,K65*IF(B65=1,INDEX(Données!$N$31:$N$126,F65),INDEX(Données!$E$31:$E$702,(E65-1)*96+F65))) -> 0 | J65: =IF(AND(E65<=5,B65=0,F65>Données!$U$19*4,F65<=(Données!$U$19+15)*4),1,2) -> 2 | K65: =INDEX('Factures élec'!$L$4:$M$15,C65,J65) -> 
A66: 2022-01-01T15:30:00 | B66: =IF(OR(AND(D66=1,C66=1),AND(D66=Titres!$O$15,C66=Titres!$P$15),AND(D66=1,C66=5),AND(D66=Titres!$O$17,C66=Titres!$P$17),AND(D66=Titres!$O$18,C66=Titres!$P$18),AND(D66=21,C66=7),AND(D66=15,C66=8),AND(D66=1,C66=11),AND(D66=11,C66=11),AND(D66=25,C66=12)),1,0) -> 1 | C66: 1 | D66: 1 | E66: 6 | F66: 63 | G66: =MAX(0,H66*IF(B66=1,INDEX(Données!$O$31:$O$126,F66),INDEX(Données!$F$31:$F$702,E66*96-96+F66))) -> 6.110345014 | H66: =1+INDEX(DJ!$B$109:$M$139,D66,C66) -> 0.04350687643 | I66: =IF($O$1=1,N66,K66*IF(B66=1,INDEX(Données!$N$31:$N$126,F66),INDEX(Données!$E$31:$E$702,(E66-1)*96+F66))) -> 0 | J66: =IF(AND(E66<=5,B66=0,F66>Données!$U$19*4,F66<=(Données!$U$19+15)*4),1,2) -> 2 | K66: =INDEX('Factures élec'!$L$4:$M$15,C66,J66) -> 
A67: 2022-01-01T15:45:00 | B67: =IF(OR(AND(D67=1,C67=1),AND(D67=Titres!$O$15,C67=Titres!$P$15),AND(D67=1,C67=5),AND(D67=Titres!$O$17,C67=Titres!$P$17),AND(D67=Titres!$O$18,C67=Titres!$P$18),AND(D67=21,C67=7),AND(D67=15,C67=8),AND(D67=1,C67=11),AND(D67=11,C67=11),AND(D67=25,C67=12)),1,0) -> 1 | C67: 1 | D67: 1 | E67: 6 | F67: 64 | G67: =MAX(0,H67*IF(B67=1,INDEX(Données!$O$31:$O$126,F67),INDEX(Données!$F$31:$F$702,E67*96-96+F67))) -> 6.110345014 | H67: =1+INDEX(DJ!$B$109:$M$139,D67,C67) -> 0.04350687643 | I67: =IF($O$1=1,N67,K67*IF(B67=1,INDEX(Données!$N$31:$N$126,F67),INDEX(Données!$E$31:$E$702,(E67-1)*96+F67))) -> 0 | J67: =IF(AND(E67<=5,B67=0,F67>Données!$U$19*4,F67<=(Données!$U$19+15)*4),1,2) -> 2 | K67: =INDEX('Factures élec'!$L$4:$M$15,C67,J67) -> 
A68: 2022-01-01T16:00:00 | B68: =IF(OR(AND(D68=1,C68=1),AND(D68=Titres!$O$15,C68=Titres!$P$15),AND(D68=1,C68=5),AND(D68=Titres!$O$17,C68=Titres!$P$17),AND(D68=Titres!$O$18,C68=Titres!$P$18),AND(D68=21,C68=7),AND(D68=15,C68=8),AND(D68=1,C68=11),AND(D68=11,C68=11),AND(D68=25,C68=12)),1,0) -> 1 | C68: 1 | D68: 1 | E68: 6 | F68: 65 | G68: =MAX(0,H68*IF(B68=1,INDEX(Données!$O$31:$O$126,F68),INDEX(Données!$F$31:$F$702,E68*96-96+F68))) -> 6.041223464 | H68: =1+INDEX(DJ!$B$109:$M$139,D68,C68) -> 0.04350687643 | I68: =IF($O$1=1,N68,K68*IF(B68=1,INDEX(Données!$N$31:$N$126,F68),INDEX(Données!$E$31:$E$702,(E68-1)*96+F68))) -> 0 | J68: =IF(AND(E68<=5,B68=0,F68>Données!$U$19*4,F68<=(Données!$U$19+15)*4),1,2) -> 2 | K68: =INDEX('Factures élec'!$L$4:$M$15,C68,J68) -> 
A69: 2022-01-01T16:15:00 | B69: =IF(OR(AND(D69=1,C69=1),AND(D69=Titres!$O$15,C69=Titres!$P$15),AND(D69=1,C69=5),AND(D69=Titres!$O$17,C69=Titres!$P$17),AND(D69=Titres!$O$18,C69=Titres!$P$18),AND(D69=21,C69=7),AND(D69=15,C69=8),AND(D69=1,C69=11),AND(D69=11,C69=11),AND(D69=25,C69=12)),1,0) -> 1 | C69: 1 | D69: 1 | E69: 6 | F69: 66 | G69: =MAX(0,H69*IF(B69=1,INDEX(Données!$O$31:$O$126,F69),INDEX(Données!$F$31:$F$702,E69*96-96+F69))) -> 6.041223464 | H69: =1+INDEX(DJ!$B$109:$M$139,D69,C69) -> 0.04350687643 | I69: =IF($O$1=1,N69,K69*IF(B69=1,INDEX(Données!$N$31:$N$126,F69),INDEX(Données!$E$31:$E$702,(E69-1)*96+F69))) -> 0 | J69: =IF(AND(E69<=5,B69=0,F69>Données!$U$19*4,F69<=(Données!$U$19+15)*4),1,2) -> 2 | K69: =INDEX('Factures élec'!$L$4:$M$15,C69,J69) -> 
A70: =A69+1/96 -> 2022-01-01T16:30:00 | B70: =IF(OR(AND(D70=1,C70=1),AND(D70=Titres!$O$15,C70=Titres!$P$15),AND(D70=1,C70=5),AND(D70=Titres!$O$17,C70=Titres!$P$17),AND(D70=Titres!$O$18,C70=Titres!$P$18),AND(D70=21,C70=7),AND(D70=15,C70=8),AND(D70=1,C70=11),AND(D70=11,C70=11),AND(D70=25,C70=12)),1,0) -> 1 | C70: =MONTH(A70) -> 1 | D70: =DAY(A70) -> 1 | E70: =WEEKDAY(A70,2) -> 6 | F70: =IF(E70=E69,F69+1,1) -> 67 | G70: =MAX(0,H70*IF(B70=1,INDEX(Données!$O$31:$O$126,F70),INDEX(Données!$F$31:$F$702,E70*96-96+F70))) -> 6.041223464 | H70: =1+INDEX(DJ!$B$109:$M$139,D70,C70) -> 0.04350687643 | I70: =IF($O$1=1,N70,K70*IF(B70=1,INDEX(Données!$N$31:$N$126,F70),INDEX(Données!$E$31:$E$702,(E70-1)*96+F70))) -> 0 | J70: =IF(AND(E70<=5,B70=0,F70>Données!$U$19*4,F70<=(Données!$U$19+15)*4),1,2) -> 2 | K70: =INDEX('Factures élec'!$L$4:$M$15,C70,J70) -> 
A71: 2022-01-01T16:45:00 | B71: =IF(OR(AND(D71=1,C71=1),AND(D71=Titres!$O$15,C71=Titres!$P$15),AND(D71=1,C71=5),AND(D71=Titres!$O$17,C71=Titres!$P$17),AND(D71=Titres!$O$18,C71=Titres!$P$18),AND(D71=21,C71=7),AND(D71=15,C71=8),AND(D71=1,C71=11),AND(D71=11,C71=11),AND(D71=25,C71=12)),1,0) -> 1 | C71: 1 | D71: 1 | E71: 6 | F71: 68 | G71: =MAX(0,H71*IF(B71=1,INDEX(Données!$O$31:$O$126,F71),INDEX(Données!$F$31:$F$702,E71*96-96+F71))) -> 6.041223464 | H71: =1+INDEX(DJ!$B$109:$M$139,D71,C71) -> 0.04350687643 | I71: =IF($O$1=1,N71,K71*IF(B71=1,INDEX(Données!$N$31:$N$126,F71),INDEX(Données!$E$31:$E$702,(E71-1)*96+F71))) -> 0 | J71: =IF(AND(E71<=5,B71=0,F71>Données!$U$19*4,F71<=(Données!$U$19+15)*4),1,2) -> 2 | K71: =INDEX('Factures élec'!$L$4:$M$15,C71,J71) -> 
A72: 2022-01-01T17:00:00 | B72: =IF(OR(AND(D72=1,C72=1),AND(D72=Titres!$O$15,C72=Titres!$P$15),AND(D72=1,C72=5),AND(D72=Titres!$O$17,C72=Titres!$P$17),AND(D72=Titres!$O$18,C72=Titres!$P$18),AND(D72=21,C72=7),AND(D72=15,C72=8),AND(D72=1,C72=11),AND(D72=11,C72=11),AND(D72=25,C72=12)),1,0) -> 1 | C72: 1 | D72: 1 | E72: 6 | F72: 69 | G72: =MAX(0,H72*IF(B72=1,INDEX(Données!$O$31:$O$126,F72),INDEX(Données!$F$31:$F$702,E72*96-96+F72))) -> 6.151817944 | H72: =1+INDEX(DJ!$B$109:$M$139,D72,C72) -> 0.04350687643 | I72: =IF($O$1=1,N72,K72*IF(B72=1,INDEX(Données!$N$31:$N$126,F72),INDEX(Données!$E$31:$E$702,(E72-1)*96+F72))) -> 0 | J72: =IF(AND(E72<=5,B72=0,F72>Données!$U$19*4,F72<=(Données!$U$19+15)*4),1,2) -> 2 | K72: =INDEX('Factures élec'!$L$4:$M$15,C72,J72) -> 
A73: 2022-01-01T17:15:00 | B73: =IF(OR(AND(D73=1,C73=1),AND(D73=Titres!$O$15,C73=Titres!$P$15),AND(D73=1,C73=5),AND(D73=Titres!$O$17,C73=Titres!$P$17),AND(D73=Titres!$O$18,C73=Titres!$P$18),AND(D73=21,C73=7),AND(D73=15,C73=8),AND(D73=1,C73=11),AND(D73=11,C73=11),AND(D73=25,C73=12)),1,0) -> 1 | C73: 1 | D73: 1 | E73: 6 | F73: 70 | G73: =MAX(0,H73*IF(B73=1,INDEX(Données!$O$31:$O$126,F73),INDEX(Données!$F$31:$F$702,E73*96-96+F73))) -> 6.151817944 | H73: =1+INDEX(DJ!$B$109:$M$139,D73,C73) -> 0.04350687643 | I73: =IF($O$1=1,N73,K73*IF(B73=1,INDEX(Données!$N$31:$N$126,F73),INDEX(Données!$E$31:$E$702,(E73-1)*96+F73))) -> 0 | J73: =IF(AND(E73<=5,B73=0,F73>Données!$U$19*4,F73<=(Données!$U$19+15)*4),1,2) -> 2 | K73: =INDEX('Factures élec'!$L$4:$M$15,C73,J73) -> 
A74: 2022-01-01T17:30:00 | B74: =IF(OR(AND(D74=1,C74=1),AND(D74=Titres!$O$15,C74=Titres!$P$15),AND(D74=1,C74=5),AND(D74=Titres!$O$17,C74=Titres!$P$17),AND(D74=Titres!$O$18,C74=Titres!$P$18),AND(D74=21,C74=7),AND(D74=15,C74=8),AND(D74=1,C74=11),AND(D74=11,C74=11),AND(D74=25,C74=12)),1,0) -> 1 | C74: 1 | D74: 1 | E74: 6 | F74: 71 | G74: =MAX(0,H74*IF(B74=1,INDEX(Données!$O$31:$O$126,F74),INDEX(Données!$F$31:$F$702,E74*96-96+F74))) -> 6.151817944 | H74: =1+INDEX(DJ!$B$109:$M$139,D74,C74) -> 0.04350687643 | I74: =IF($O$1=1,N74,K74*IF(B74=1,INDEX(Données!$N$31:$N$126,F74),INDEX(Données!$E$31:$E$702,(E74-1)*96+F74))) -> 0 | J74: =IF(AND(E74<=5,B74=0,F74>Données!$U$19*4,F74<=(Données!$U$19+15)*4),1,2) -> 2 | K74: =INDEX('Factures élec'!$L$4:$M$15,C74,J74) -> 
A75: 2022-01-01T17:45:00 | B75: =IF(OR(AND(D75=1,C75=1),AND(D75=Titres!$O$15,C75=Titres!$P$15),AND(D75=1,C75=5),AND(D75=Titres!$O$17,C75=Titres!$P$17),AND(D75=Titres!$O$18,C75=Titres!$P$18),AND(D75=21,C75=7),AND(D75=15,C75=8),AND(D75=1,C75=11),AND(D75=11,C75=11),AND(D75=25,C75=12)),1,0) -> 1 | C75: 1 | D75: 1 | E75: 6 | F75: 72 | G75: =MAX(0,H75*IF(B75=1,INDEX(Données!$O$31:$O$126,F75),INDEX(Données!$F$31:$F$702,E75*96-96+F75))) -> 6.151817944 | H75: =1+INDEX(DJ!$B$109:$M$139,D75,C75) -> 0.04350687643 | I75: =IF($O$1=1,N75,K75*IF(B75=1,INDEX(Données!$N$31:$N$126,F75),INDEX(Données!$E$31:$E$702,(E75-1)*96+F75))) -> 0 | J75: =IF(AND(E75<=5,B75=0,F75>Données!$U$19*4,F75<=(Données!$U$19+15)*4),1,2) -> 2 | K75: =INDEX('Factures élec'!$L$4:$M$15,C75,J75) -> 
A76: 2022-01-01T18:00:00 | B76: =IF(OR(AND(D76=1,C76=1),AND(D76=Titres!$O$15,C76=Titres!$P$15),AND(D76=1,C76=5),AND(D76=Titres!$O$17,C76=Titres!$P$17),AND(D76=Titres!$O$18,C76=Titres!$P$18),AND(D76=21,C76=7),AND(D76=15,C76=8),AND(D76=1,C76=11),AND(D76=11,C76=11),AND(D76=25,C76=12)),1,0) -> 1 | C76: 1 | D76: 1 | E76: 6 | F76: 73 | G76: =MAX(0,H76*IF(B76=1,INDEX(Données!$O$31:$O$126,F76),INDEX(Données!$F$31:$F$702,E76*96-96+F76))) -> 6.511250004 | H76: =1+INDEX(DJ!$B$109:$M$139,D76,C76) -> 0.04350687643 | I76: =IF($O$1=1,N76,K76*IF(B76=1,INDEX(Données!$N$31:$N$126,F76),INDEX(Données!$E$31:$E$702,(E76-1)*96+F76))) -> 0 | J76: =IF(AND(E76<=5,B76=0,F76>Données!$U$19*4,F76<=(Données!$U$19+15)*4),1,2) -> 2 | K76: =INDEX('Factures élec'!$L$4:$M$15,C76,J76) -> 
A77: 2022-01-01T18:15:00 | B77: =IF(OR(AND(D77=1,C77=1),AND(D77=Titres!$O$15,C77=Titres!$P$15),AND(D77=1,C77=5),AND(D77=Titres!$O$17,C77=Titres!$P$17),AND(D77=Titres!$O$18,C77=Titres!$P$18),AND(D77=21,C77=7),AND(D77=15,C77=8),AND(D77=1,C77=11),AND(D77=11,C77=11),AND(D77=25,C77=12)),1,0) -> 1 | C77: 1 | D77: 1 | E77: 6 | F77: 74 | G77: =MAX(0,H77*IF(B77=1,INDEX(Données!$O$31:$O$126,F77),INDEX(Données!$F$31:$F$702,E77*96-96+F77))) -> 6.511250004 | H77: =1+INDEX(DJ!$B$109:$M$139,D77,C77) -> 0.04350687643 | I77: =IF($O$1=1,N77,K77*IF(B77=1,INDEX(Données!$N$31:$N$126,F77),INDEX(Données!$E$31:$E$702,(E77-1)*96+F77))) -> 0 | J77: =IF(AND(E77<=5,B77=0,F77>Données!$U$19*4,F77<=(Données!$U$19+15)*4),1,2) -> 2 | K77: =INDEX('Factures élec'!$L$4:$M$15,C77,J77) -> 
A78: 2022-01-01T18:30:00 | B78: =IF(OR(AND(D78=1,C78=1),AND(D78=Titres!$O$15,C78=Titres!$P$15),AND(D78=1,C78=5),AND(D78=Titres!$O$17,C78=Titres!$P$17),AND(D78=Titres!$O$18,C78=Titres!$P$18),AND(D78=21,C78=7),AND(D78=15,C78=8),AND(D78=1,C78=11),AND(D78=11,C78=11),AND(D78=25,C78=12)),1,0) -> 1 | C78: 1 | D78: 1 | E78: 6 | F78: 75 | G78: =MAX(0,H78*IF(B78=1,INDEX(Données!$O$31:$O$126,F78),INDEX(Données!$F$31:$F$702,E78*96-96+F78))) -> 6.511250004 | H78: =1+INDEX(DJ!$B$109:$M$139,D78,C78) -> 0.04350687643 | I78: =IF($O$1=1,N78,K78*IF(B78=1,INDEX(Données!$N$31:$N$126,F78),INDEX(Données!$E$31:$E$702,(E78-1)*96+F78))) -> 0 | J78: =IF(AND(E78<=5,B78=0,F78>Données!$U$19*4,F78<=(Données!$U$19+15)*4),1,2) -> 2 | K78: =INDEX('Factures élec'!$L$4:$M$15,C78,J78) -> 
A79: 2022-01-01T18:45:00 | B79: =IF(OR(AND(D79=1,C79=1),AND(D79=Titres!$O$15,C79=Titres!$P$15),AND(D79=1,C79=5),AND(D79=Titres!$O$17,C79=Titres!$P$17),AND(D79=Titres!$O$18,C79=Titres!$P$18),AND(D79=21,C79=7),AND(D79=15,C79=8),AND(D79=1,C79=11),AND(D79=11,C79=11),AND(D79=25,C79=12)),1,0) -> 1 | C79: 1 | D79: 1 | E79: 6 | F79: 76 | G79: =MAX(0,H79*IF(B79=1,INDEX(Données!$O$31:$O$126,F79),INDEX(Données!$F$31:$F$702,E79*96-96+F79))) -> 6.511250004 | H79: =1+INDEX(DJ!$B$109:$M$139,D79,C79) -> 0.04350687643 | I79: =IF($O$1=1,N79,K79*IF(B79=1,INDEX(Données!$N$31:$N$126,F79),INDEX(Données!$E$31:$E$702,(E79-1)*96+F79))) -> 0 | J79: =IF(AND(E79<=5,B79=0,F79>Données!$U$19*4,F79<=(Données!$U$19+15)*4),1,2) -> 2 | K79: =INDEX('Factures élec'!$L$4:$M$15,C79,J79) -> 
A80: 2022-01-01T19:00:00 | B80: =IF(OR(AND(D80=1,C80=1),AND(D80=Titres!$O$15,C80=Titres!$P$15),AND(D80=1,C80=5),AND(D80=Titres!$O$17,C80=Titres!$P$17),AND(D80=Titres!$O$18,C80=Titres!$P$18),AND(D80=21,C80=7),AND(D80=15,C80=8),AND(D80=1,C80=11),AND(D80=11,C80=11),AND(D80=25,C80=12)),1,0) -> 1 | C80: 1 | D80: 1 | E80: 6 | F80: 77 | G80: =MAX(0,H80*IF(B80=1,INDEX(Données!$O$31:$O$126,F80),INDEX(Données!$F$31:$F$702,E80*96-96+F80))) -> 6.193290874 | H80: =1+INDEX(DJ!$B$109:$M$139,D80,C80) -> 0.04350687643 | I80: =IF($O$1=1,N80,K80*IF(B80=1,INDEX(Données!$N$31:$N$126,F80),INDEX(Données!$E$31:$E$702,(E80-1)*96+F80))) -> 0 | J80: =IF(AND(E80<=5,B80=0,F80>Données!$U$19*4,F80<=(Données!$U$19+15)*4),1,2) -> 2 | K80: =INDEX('Factures élec'!$L$4:$M$15,C80,J80) -> 
A81: 2022-01-01T19:15:00 | B81: =IF(OR(AND(D81=1,C81=1),AND(D81=Titres!$O$15,C81=Titres!$P$15),AND(D81=1,C81=5),AND(D81=Titres!$O$17,C81=Titres!$P$17),AND(D81=Titres!$O$18,C81=Titres!$P$18),AND(D81=21,C81=7),AND(D81=15,C81=8),AND(D81=1,C81=11),AND(D81=11,C81=11),AND(D81=25,C81=12)),1,0) -> 1 | C81: 1 | D81: 1 | E81: 6 | F81: 78 | G81: =MAX(0,H81*IF(B81=1,INDEX(Données!$O$31:$O$126,F81),INDEX(Données!$F$31:$F$702,E81*96-96+F81))) -> 6.193290874 | H81: =1+INDEX(DJ!$B$109:$M$139,D81,C81) -> 0.04350687643 | I81: =IF($O$1=1,N81,K81*IF(B81=1,INDEX(Données!$N$31:$N$126,F81),INDEX(Données!$E$31:$E$702,(E81-1)*96+F81))) -> 0 | J81: =IF(AND(E81<=5,B81=0,F81>Données!$U$19*4,F81<=(Données!$U$19+15)*4),1,2) -> 2 | K81: =INDEX('Factures élec'!$L$4:$M$15,C81,J81) -> 
A82: 2022-01-01T19:30:00 | B82: =IF(OR(AND(D82=1,C82=1),AND(D82=Titres!$O$15,C82=Titres!$P$15),AND(D82=1,C82=5),AND(D82=Titres!$O$17,C82=Titres!$P$17),AND(D82=Titres!$O$18,C82=Titres!$P$18),AND(D82=21,C82=7),AND(D82=15,C82=8),AND(D82=1,C82=11),AND(D82=11,C82=11),AND(D82=25,C82=12)),1,0) -> 1 | C82: 1 | D82: 1 | E82: 6 | F82: 79 | G82: =MAX(0,H82*IF(B82=1,INDEX(Données!$O$31:$O$126,F82),INDEX(Données!$F$31:$F$702,E82*96-96+F82))) -> 6.193290874 | H82: =1+INDEX(DJ!$B$109:$M$139,D82,C82) -> 0.04350687643 | I82: =IF($O$1=1,N82,K82*IF(B82=1,INDEX(Données!$N$31:$N$126,F82),INDEX(Données!$E$31:$E$702,(E82-1)*96+F82))) -> 0 | J82: =IF(AND(E82<=5,B82=0,F82>Données!$U$19*4,F82<=(Données!$U$19+15)*4),1,2) -> 2 | K82: =INDEX('Factures élec'!$L$4:$M$15,C82,J82) ->  | AM82: =#REF! ->  | AN82: =IF(OR(AND(D24748=1,C24748=1),AND(D24748=Titres!$O$15,C24748=Titres!$P$15),AND(D24748=1,C24748=5),AND(D24748=Titres!$O$17,C24748=Titres!$P$17),AND(D24748=Titres!$O$18,C24748=Titres!$P$18),AND(D24748=21,C24748=7),AND(D24748=15,C24748=8),AND(D24748=1,C24748=11),AND(D24748=11,C24748=11),AND(D24748=25,C24748=12)),1,0) -> 0 | AO82: =#REF! ->  | AP82: =#REF! ->  | AQ82: =#REF! ->  | AR82: =#REF! ->  | AS82: =MAX(0,H24748*IF(B24748=1,INDEX(Données!$O$31:$O$126,F24748),INDEX(Données!$F$31:$F$702,E24748*96-96+F24748))) -> 2.22959608 | AT82: =1+INDEX(DJ!$B$109:$M$139,D24748,C24748) -> 0.01268251745 | AU82: =IF($O$1=1,N24748,K24748*IF(B24748=1,INDEX(Données!$N$31:$N$126,F24748),INDEX(Données!$E$31:$E$702,(E24748-1)*96+F24748))) -> 0 | AV82: =IF(AND(E24748<=5,B24748=0,F24748>Données!$U$19*4,F24748<=(Données!$U$19+15)*4),1,2) -> 1 | AW82: =INDEX('Factures élec'!$L$4:$M$15,C24748,J24748) ->  | AZ82: 556
A83: 2022-01-01T19:45:00 | B83: =IF(OR(AND(D83=1,C83=1),AND(D83=Titres!$O$15,C83=Titres!$P$15),AND(D83=1,C83=5),AND(D83=Titres!$O$17,C83=Titres!$P$17),AND(D83=Titres!$O$18,C83=Titres!$P$18),AND(D83=21,C83=7),AND(D83=15,C83=8),AND(D83=1,C83=11),AND(D83=11,C83=11),AND(D83=25,C83=12)),1,0) -> 1 | C83: 1 | D83: 1 | E83: 6 | F83: 80 | G83: =MAX(0,H83*IF(B83=1,INDEX(Données!$O$31:$O$126,F83),INDEX(Données!$F$31:$F$702,E83*96-96+F83))) -> 6.193290874 | H83: =1+INDEX(DJ!$B$109:$M$139,D83,C83) -> 0.04350687643 | I83: =IF($O$1=1,N83,K83*IF(B83=1,INDEX(Données!$N$31:$N$126,F83),INDEX(Données!$E$31:$E$702,(E83-1)*96+F83))) -> 0 | J83: =IF(AND(E83<=5,B83=0,F83>Données!$U$19*4,F83<=(Données!$U$19+15)*4),1,2) -> 2 | K83: =INDEX('Factures élec'!$L$4:$M$15,C83,J83) -> 
A84: 2022-01-01T20:00:00 | B84: =IF(OR(AND(D84=1,C84=1),AND(D84=Titres!$O$15,C84=Titres!$P$15),AND(D84=1,C84=5),AND(D84=Titres!$O$17,C84=Titres!$P$17),AND(D84=Titres!$O$18,C84=Titres!$P$18),AND(D84=21,C84=7),AND(D84=15,C84=8),AND(D84=1,C84=11),AND(D84=11,C84=11),AND(D84=25,C84=12)),1,0) -> 1 | C84: 1 | D84: 1 | E84: 6 | F84: 81 | G84: =MAX(0,H84*IF(B84=1,INDEX(Données!$O$31:$O$126,F84),INDEX(Données!$F$31:$F$702,E84*96-96+F84))) -> 5.861507434 | H84: =1+INDEX(DJ!$B$109:$M$139,D84,C84) -> 0.04350687643 | I84: =IF($O$1=1,N84,K84*IF(B84=1,INDEX(Données!$N$31:$N$126,F84),INDEX(Données!$E$31:$E$702,(E84-1)*96+F84))) -> 0 | J84: =IF(AND(E84<=5,B84=0,F84>Données!$U$19*4,F84<=(Données!$U$19+15)*4),1,2) -> 2 | K84: =INDEX('Factures élec'!$L$4:$M$15,C84,J84) -> 
A85: 2022-01-01T20:15:00 | B85: =IF(OR(AND(D85=1,C85=1),AND(D85=Titres!$O$15,C85=Titres!$P$15),AND(D85=1,C85=5),AND(D85=Titres!$O$17,C85=Titres!$P$17),AND(D85=Titres!$O$18,C85=Titres!$P$18),AND(D85=21,C85=7),AND(D85=15,C85=8),AND(D85=1,C85=11),AND(D85=11,C85=11),AND(D85=25,C85=12)),1,0) -> 1 | C85: 1 | D85: 1 | E85: 6 | F85: 82 | G85: =MAX(0,H85*IF(B85=1,INDEX(Données!$O$31:$O$126,F85),INDEX(Données!$F$31:$F$702,E85*96-96+F85))) -> 5.861507434 | H85: =1+INDEX(DJ!$B$109:$M$139,D85,C85) -> 0.04350687643 | I85: =IF($O$1=1,N85,K85*IF(B85=1,INDEX(Données!$N$31:$N$126,F85),INDEX(Données!$E$31:$E$702,(E85-1)*96+F85))) -> 0 | J85: =IF(AND(E85<=5,B85=0,F85>Données!$U$19*4,F85<=(Données!$U$19+15)*4),1,2) -> 2 | K85: =INDEX('Factures élec'!$L$4:$M$15,C85,J85) -> 
A86: 2022-01-01T20:30:00 | B86: =IF(OR(AND(D86=1,C86=1),AND(D86=Titres!$O$15,C86=Titres!$P$15),AND(D86=1,C86=5),AND(D86=Titres!$O$17,C86=Titres!$P$17),AND(D86=Titres!$O$18,C86=Titres!$P$18),AND(D86=21,C86=7),AND(D86=15,C86=8),AND(D86=1,C86=11),AND(D86=11,C86=11),AND(D86=25,C86=12)),1,0) -> 1 | C86: 1 | D86: 1 | E86: 6 | F86: 83 | G86: =MAX(0,H86*IF(B86=1,INDEX(Données!$O$31:$O$126,F86),INDEX(Données!$F$31:$F$702,E86*96-96+F86))) -> 5.861507434 | H86: =1+INDEX(DJ!$B$109:$M$139,D86,C86) -> 0.04350687643 | I86: =IF($O$1=1,N86,K86*IF(B86=1,INDEX(Données!$N$31:$N$126,F86),INDEX(Données!$E$31:$E$702,(E86-1)*96+F86))) -> 0 | J86: =IF(AND(E86<=5,B86=0,F86>Données!$U$19*4,F86<=(Données!$U$19+15)*4),1,2) -> 2 | K86: =INDEX('Factures élec'!$L$4:$M$15,C86,J86) -> 
A87: 2022-01-01T20:45:00 | B87: =IF(OR(AND(D87=1,C87=1),AND(D87=Titres!$O$15,C87=Titres!$P$15),AND(D87=1,C87=5),AND(D87=Titres!$O$17,C87=Titres!$P$17),AND(D87=Titres!$O$18,C87=Titres!$P$18),AND(D87=21,C87=7),AND(D87=15,C87=8),AND(D87=1,C87=11),AND(D87=11,C87=11),AND(D87=25,C87=12)),1,0) -> 1 | C87: 1 | D87: 1 | E87: 6 | F87: 84 | G87: =MAX(0,H87*IF(B87=1,INDEX(Données!$O$31:$O$126,F87),INDEX(Données!$F$31:$F$702,E87*96-96+F87))) -> 5.861507434 | H87: =1+INDEX(DJ!$B$109:$M$139,D87,C87) -> 0.04350687643 | I87: =IF($O$1=1,N87,K87*IF(B87=1,INDEX(Données!$N$31:$N$126,F87),INDEX(Données!$E$31:$E$702,(E87-1)*96+F87))) -> 0 | J87: =IF(AND(E87<=5,B87=0,F87>Données!$U$19*4,F87<=(Données!$U$19+15)*4),1,2) -> 2 | K87: =INDEX('Factures élec'!$L$4:$M$15,C87,J87) -> 
A88: 2022-01-01T21:00:00 | B88: =IF(OR(AND(D88=1,C88=1),AND(D88=Titres!$O$15,C88=Titres!$P$15),AND(D88=1,C88=5),AND(D88=Titres!$O$17,C88=Titres!$P$17),AND(D88=Titres!$O$18,C88=Titres!$P$18),AND(D88=21,C88=7),AND(D88=15,C88=8),AND(D88=1,C88=11),AND(D88=11,C88=11),AND(D88=25,C88=12)),1,0) -> 1 | C88: 1 | D88: 1 | E88: 6 | F88: 85 | G88: =MAX(0,H88*IF(B88=1,INDEX(Données!$O$31:$O$126,F88),INDEX(Données!$F$31:$F$702,E88*96-96+F88))) -> 5.875331744 | H88: =1+INDEX(DJ!$B$109:$M$139,D88,C88) -> 0.04350687643 | I88: =IF($O$1=1,N88,K88*IF(B88=1,INDEX(Données!$N$31:$N$126,F88),INDEX(Données!$E$31:$E$702,(E88-1)*96+F88))) -> 0 | J88: =IF(AND(E88<=5,B88=0,F88>Données!$U$19*4,F88<=(Données!$U$19+15)*4),1,2) -> 2 | K88: =INDEX('Factures élec'!$L$4:$M$15,C88,J88) -> 
A89: 2022-01-01T21:15:00 | B89: =IF(OR(AND(D89=1,C89=1),AND(D89=Titres!$O$15,C89=Titres!$P$15),AND(D89=1,C89=5),AND(D89=Titres!$O$17,C89=Titres!$P$17),AND(D89=Titres!$O$18,C89=Titres!$P$18),AND(D89=21,C89=7),AND(D89=15,C89=8),AND(D89=1,C89=11),AND(D89=11,C89=11),AND(D89=25,C89=12)),1,0) -> 1 | C89: 1 | D89: 1 | E89: 6 | F89: 86 | G89: =MAX(0,H89*IF(B89=1,INDEX(Données!$O$31:$O$126,F89),INDEX(Données!$F$31:$F$702,E89*96-96+F89))) -> 5.875331744 | H89: =1+INDEX(DJ!$B$109:$M$139,D89,C89) -> 0.04350687643 | I89: =IF($O$1=1,N89,K89*IF(B89=1,INDEX(Données!$N$31:$N$126,F89),INDEX(Données!$E$31:$E$702,(E89-1)*96+F89))) -> 0 | J89: =IF(AND(E89<=5,B89=0,F89>Données!$U$19*4,F89<=(Données!$U$19+15)*4),1,2) -> 2 | K89: =INDEX('Factures élec'!$L$4:$M$15,C89,J89) -> 
A90: 2022-01-01T21:30:00 | B90: =IF(OR(AND(D90=1,C90=1),AND(D90=Titres!$O$15,C90=Titres!$P$15),AND(D90=1,C90=5),AND(D90=Titres!$O$17,C90=Titres!$P$17),AND(D90=Titres!$O$18,C90=Titres!$P$18),AND(D90=21,C90=7),AND(D90=15,C90=8),AND(D90=1,C90=11),AND(D90=11,C90=11),AND(D90=25,C90=12)),1,0) -> 1 | C90: 1 | D90: 1 | E90: 6 | F90: 87 | G90: =MAX(0,H90*IF(B90=1,INDEX(Données!$O$31:$O$126,F90),INDEX(Données!$F$31:$F$702,E90*96-96+F90))) -> 5.875331744 | H90: =1+INDEX(DJ!$B$109:$M$139,D90,C90) -> 0.04350687643 | I90: =IF($O$1=1,N90,K90*IF(B90=1,INDEX(Données!$N$31:$N$126,F90),INDEX(Données!$E$31:$E$702,(E90-1)*96+F90))) -> 0 | J90: =IF(AND(E90<=5,B90=0,F90>Données!$U$19*4,F90<=(Données!$U$19+15)*4),1,2) -> 2 | K90: =INDEX('Factures élec'!$L$4:$M$15,C90,J90) -> 
A91: 2022-01-01T21:45:00 | B91: =IF(OR(AND(D91=1,C91=1),AND(D91=Titres!$O$15,C91=Titres!$P$15),AND(D91=1,C91=5),AND(D91=Titres!$O$17,C91=Titres!$P$17),AND(D91=Titres!$O$18,C91=Titres!$P$18),AND(D91=21,C91=7),AND(D91=15,C91=8),AND(D91=1,C91=11),AND(D91=11,C91=11),AND(D91=25,C91=12)),1,0) -> 1 | C91: 1 | D91: 1 | E91: 6 | F91: 88 | G91: =MAX(0,H91*IF(B91=1,INDEX(Données!$O$31:$O$126,F91),INDEX(Données!$F$31:$F$702,E91*96-96+F91))) -> 5.875331744 | H91: =1+INDEX(DJ!$B$109:$M$139,D91,C91) -> 0.04350687643 | I91: =IF($O$1=1,N91,K91*IF(B91=1,INDEX(Données!$N$31:$N$126,F91),INDEX(Données!$E$31:$E$702,(E91-1)*96+F91))) -> 0 | J91: =IF(AND(E91<=5,B91=0,F91>Données!$U$19*4,F91<=(Données!$U$19+15)*4),1,2) -> 2 | K91: =INDEX('Factures élec'!$L$4:$M$15,C91,J91) -> 
A92: 2022-01-01T22:00:00 | B92: =IF(OR(AND(D92=1,C92=1),AND(D92=Titres!$O$15,C92=Titres!$P$15),AND(D92=1,C92=5),AND(D92=Titres!$O$17,C92=Titres!$P$17),AND(D92=Titres!$O$18,C92=Titres!$P$18),AND(D92=21,C92=7),AND(D92=15,C92=8),AND(D92=1,C92=11),AND(D92=11,C92=11),AND(D92=25,C92=12)),1,0) -> 1 | C92: 1 | D92: 1 | E92: 6 | F92: 89 | G92: =MAX(0,H92*IF(B92=1,INDEX(Données!$O$31:$O$126,F92),INDEX(Données!$F$31:$F$702,E92*96-96+F92))) -> 4.714089705 | H92: =1+INDEX(DJ!$B$109:$M$139,D92,C92) -> 0.04350687643 | I92: =IF($O$1=1,N92,K92*IF(B92=1,INDEX(Données!$N$31:$N$126,F92),INDEX(Données!$E$31:$E$702,(E92-1)*96+F92))) -> 0 | J92: =IF(AND(E92<=5,B92=0,F92>Données!$U$19*4,F92<=(Données!$U$19+15)*4),1,2) -> 2 | K92: =INDEX('Factures élec'!$L$4:$M$15,C92,J92) -> 
A93: 2022-01-01T22:15:00 | B93: =IF(OR(AND(D93=1,C93=1),AND(D93=Titres!$O$15,C93=Titres!$P$15),AND(D93=1,C93=5),AND(D93=Titres!$O$17,C93=Titres!$P$17),AND(D93=Titres!$O$18,C93=Titres!$P$18),AND(D93=21,C93=7),AND(D93=15,C93=8),AND(D93=1,C93=11),AND(D93=11,C93=11),AND(D93=25,C93=12)),1,0) -> 1 | C93: 1 | D93: 1 | E93: 6 | F93: 90 | G93: =MAX(0,H93*IF(B93=1,INDEX(Données!$O$31:$O$126,F93),INDEX(Données!$F$31:$F$702,E93*96-96+F93))) -> 4.714089705 | H93: =1+INDEX(DJ!$B$109:$M$139,D93,C93) -> 0.04350687643 | I93: =IF($O$1=1,N93,K93*IF(B93=1,INDEX(Données!$N$31:$N$126,F93),INDEX(Données!$E$31:$E$702,(E93-1)*96+F93))) -> 0 | J93: =IF(AND(E93<=5,B93=0,F93>Données!$U$19*4,F93<=(Données!$U$19+15)*4),1,2) -> 2 | K93: =INDEX('Factures élec'!$L$4:$M$15,C93,J93) -> 
A94: 2022-01-01T22:30:00 | B94: =IF(OR(AND(D94=1,C94=1),AND(D94=Titres!$O$15,C94=Titres!$P$15),AND(D94=1,C94=5),AND(D94=Titres!$O$17,C94=Titres!$P$17),AND(D94=Titres!$O$18,C94=Titres!$P$18),AND(D94=21,C94=7),AND(D94=15,C94=8),AND(D94=1,C94=11),AND(D94=11,C94=11),AND(D94=25,C94=12)),1,0) -> 1 | C94: 1 | D94: 1 | E94: 6 | F94: 91 | G94: =MAX(0,H94*IF(B94=1,INDEX(Données!$O$31:$O$126,F94),INDEX(Données!$F$31:$F$702,E94*96-96+F94))) -> 4.714089705 | H94: =1+INDEX(DJ!$B$109:$M$139,D94,C94) -> 0.04350687643 | I94: =IF($O$1=1,N94,K94*IF(B94=1,INDEX(Données!$N$31:$N$126,F94),INDEX(Données!$E$31:$E$702,(E94-1)*96+F94))) -> 0 | J94: =IF(AND(E94<=5,B94=0,F94>Données!$U$19*4,F94<=(Données!$U$19+15)*4),1,2) -> 2 | K94: =INDEX('Factures élec'!$L$4:$M$15,C94,J94) -> 
A95: 2022-01-01T22:45:00 | B95: =IF(OR(AND(D95=1,C95=1),AND(D95=Titres!$O$15,C95=Titres!$P$15),AND(D95=1,C95=5),AND(D95=Titres!$O$17,C95=Titres!$P$17),AND(D95=Titres!$O$18,C95=Titres!$P$18),AND(D95=21,C95=7),AND(D95=15,C95=8),AND(D95=1,C95=11),AND(D95=11,C95=11),AND(D95=25,C95=12)),1,0) -> 1 | C95: 1 | D95: 1 | E95: 6 | F95: 92 | G95: =MAX(0,H95*IF(B95=1,INDEX(Données!$O$31:$O$126,F95),INDEX(Données!$F$31:$F$702,E95*96-96+F95))) -> 4.714089705 | H95: =1+INDEX(DJ!$B$109:$M$139,D95,C95) -> 0.04350687643 | I95: =IF($O$1=1,N95,K95*IF(B95=1,INDEX(Données!$N$31:$N$126,F95),INDEX(Données!$E$31:$E$702,(E95-1)*96+F95))) -> 0 | J95: =IF(AND(E95<=5,B95=0,F95>Données!$U$19*4,F95<=(Données!$U$19+15)*4),1,2) -> 2 | K95: =INDEX('Factures élec'!$L$4:$M$15,C95,J95) -> 
A96: 2022-01-01T23:00:00 | B96: =IF(OR(AND(D96=1,C96=1),AND(D96=Titres!$O$15,C96=Titres!$P$15),AND(D96=1,C96=5),AND(D96=Titres!$O$17,C96=Titres!$P$17),AND(D96=Titres!$O$18,C96=Titres!$P$18),AND(D96=21,C96=7),AND(D96=15,C96=8),AND(D96=1,C96=11),AND(D96=11,C96=11),AND(D96=25,C96=12)),1,0) -> 1 | C96: 1 | D96: 1 | E96: 6 | F96: 93 | G96: =MAX(0,H96*IF(B96=1,INDEX(Données!$O$31:$O$126,F96),INDEX(Données!$F$31:$F$702,E96*96-96+F96))) -> 4.644968155 | H96: =1+INDEX(DJ!$B$109:$M$139,D96,C96) -> 0.04350687643 | I96: =IF($O$1=1,N96,K96*IF(B96=1,INDEX(Données!$N$31:$N$126,F96),INDEX(Données!$E$31:$E$702,(E96-1)*96+F96))) -> 0 | J96: =IF(AND(E96<=5,B96=0,F96>Données!$U$19*4,F96<=(Données!$U$19+15)*4),1,2) -> 2 | K96: =INDEX('Factures élec'!$L$4:$M$15,C96,J96) -> 
A97: 2022-01-01T23:15:00 | B97: =IF(OR(AND(D97=1,C97=1),AND(D97=Titres!$O$15,C97=Titres!$P$15),AND(D97=1,C97=5),AND(D97=Titres!$O$17,C97=Titres!$P$17),AND(D97=Titres!$O$18,C97=Titres!$P$18),AND(D97=21,C97=7),AND(D97=15,C97=8),AND(D97=1,C97=11),AND(D97=11,C97=11),AND(D97=25,C97=12)),1,0) -> 1 | C97: 1 | D97: 1 | E97: 6 | F97: 94 | G97: =MAX(0,H97*IF(B97=1,INDEX(Données!$O$31:$O$126,F97),INDEX(Données!$F$31:$F$702,E97*96-96+F97))) -> 4.644968155 | H97: =1+INDEX(DJ!$B$109:$M$139,D97,C97) -> 0.04350687643 | I97: =IF($O$1=1,N97,K97*IF(B97=1,INDEX(Données!$N$31:$N$126,F97),INDEX(Données!$E$31:$E$702,(E97-1)*96+F97))) -> 0 | J97: =IF(AND(E97<=5,B97=0,F97>Données!$U$19*4,F97<=(Données!$U$19+15)*4),1,2) -> 2 | K97: =INDEX('Factures élec'!$L$4:$M$15,C97,J97) -> 
A98: 2022-01-01T23:30:00 | B98: =IF(OR(AND(D98=1,C98=1),AND(D98=Titres!$O$15,C98=Titres!$P$15),AND(D98=1,C98=5),AND(D98=Titres!$O$17,C98=Titres!$P$17),AND(D98=Titres!$O$18,C98=Titres!$P$18),AND(D98=21,C98=7),AND(D98=15,C98=8),AND(D98=1,C98=11),AND(D98=11,C98=11),AND(D98=25,C98=12)),1,0) -> 1 | C98: 1 | D98: 1 | E98: 6 | F98: 95 | G98: =MAX(0,H98*IF(B98=1,INDEX(Données!$O$31:$O$126,F98),INDEX(Données!$F$31:$F$702,E98*96-96+F98))) -> 4.644968155 | H98: =1+INDEX(DJ!$B$109:$M$139,D98,C98) -> 0.04350687643 | I98: =IF($O$1=1,N98,K98*IF(B98=1,INDEX(Données!$N$31:$N$126,F98),INDEX(Données!$E$31:$E$702,(E98-1)*96+F98))) -> 0 | J98: =IF(AND(E98<=5,B98=0,F98>Données!$U$19*4,F98<=(Données!$U$19+15)*4),1,2) -> 2 | K98: =INDEX('Factures élec'!$L$4:$M$15,C98,J98) -> 
A99: 2022-01-01T23:45:00 | B99: =IF(OR(AND(D99=1,C99=1),AND(D99=Titres!$O$15,C99=Titres!$P$15),AND(D99=1,C99=5),AND(D99=Titres!$O$17,C99=Titres!$P$17),AND(D99=Titres!$O$18,C99=Titres!$P$18),AND(D99=21,C99=7),AND(D99=15,C99=8),AND(D99=1,C99=11),AND(D99=11,C99=11),AND(D99=25,C99=12)),1,0) -> 1 | C99: 1 | D99: 1 | E99: 6 | F99: 96 | G99: =MAX(0,H99*IF(B99=1,INDEX(Données!$O$31:$O$126,F99),INDEX(Données!$F$31:$F$702,E99*96-96+F99))) -> 4.644968155 | H99: =1+INDEX(DJ!$B$109:$M$139,D99,C99) -> 0.04350687643 | I99: =IF($O$1=1,N99,K99*IF(B99=1,INDEX(Données!$N$31:$N$126,F99),INDEX(Données!$E$31:$E$702,(E99-1)*96+F99))) -> 0 | J99: =IF(AND(E99<=5,B99=0,F99>Données!$U$19*4,F99<=(Données!$U$19+15)*4),1,2) -> 2 | K99: =INDEX('Factures élec'!$L$4:$M$15,C99,J99) -> 
A100: 2022-01-02 | B100: =IF(OR(AND(D100=1,C100=1),AND(D100=Titres!$O$15,C100=Titres!$P$15),AND(D100=1,C100=5),AND(D100=Titres!$O$17,C100=Titres!$P$17),AND(D100=Titres!$O$18,C100=Titres!$P$18),AND(D100=21,C100=7),AND(D100=15,C100=8),AND(D100=1,C100=11),AND(D100=11,C100=11),AND(D100=25,C100=12)),1,0) -> 0 | C100: 1 | D100: 2 | E100: 7 | F100: 1 | G100: =MAX(0,H100*IF(B100=1,INDEX(Données!$O$31:$O$126,F100),INDEX(Données!$F$31:$F$702,E100*96-96+F100))) -> 5.023879188 | H100: =1+INDEX(DJ!$B$109:$M$139,D100,C100) -> 0.04650232969 | I100: =IF($O$1=1,N100,K100*IF(B100=1,INDEX(Données!$N$31:$N$126,F100),INDEX(Données!$E$31:$E$702,(E100-1)*96+F100))) -> 0 | J100: =IF(AND(E100<=5,B100=0,F100>Données!$U$19*4,F100<=(Données!$U$19+15)*4),1,2) -> 2 | K100: =INDEX('Factures élec'!$L$4:$M$15,C100,J100) -> 
A101: 2022-01-02T00:15:00 | B101: =IF(OR(AND(D101=1,C101=1),AND(D101=Titres!$O$15,C101=Titres!$P$15),AND(D101=1,C101=5),AND(D101=Titres!$O$17,C101=Titres!$P$17),AND(D101=Titres!$O$18,C101=Titres!$P$18),AND(D101=21,C101=7),AND(D101=15,C101=8),AND(D101=1,C101=11),AND(D101=11,C101=11),AND(D101=25,C101=12)),1,0) -> 0 | C101: 1 | D101: 2 | E101: 7 | F101: 2 | G101: =MAX(0,H101*IF(B101=1,INDEX(Données!$O$31:$O$126,F101),INDEX(Données!$F$31:$F$702,E101*96-96+F101))) -> 5.023879188 | H101: =1+INDEX(DJ!$B$109:$M$139,D101,C101) -> 0.04650232969 | I101: =IF($O$1=1,N101,K101*IF(B101=1,INDEX(Données!$N$31:$N$126,F101),INDEX(Données!$E$31:$E$702,(E101-1)*96+F101))) -> 0 | J101: =IF(AND(E101<=5,B101=0,F101>Données!$U$19*4,F101<=(Données!$U$19+15)*4),1,2) -> 2 | K101: =INDEX('Factures élec'!$L$4:$M$15,C101,J101) -> 
A102: 2022-01-02T00:30:00 | B102: =IF(OR(AND(D102=1,C102=1),AND(D102=Titres!$O$15,C102=Titres!$P$15),AND(D102=1,C102=5),AND(D102=Titres!$O$17,C102=Titres!$P$17),AND(D102=Titres!$O$18,C102=Titres!$P$18),AND(D102=21,C102=7),AND(D102=15,C102=8),AND(D102=1,C102=11),AND(D102=11,C102=11),AND(D102=25,C102=12)),1,0) -> 0 | C102: 1 | D102: 2 | E102: 7 | F102: 3 | G102: =MAX(0,H102*IF(B102=1,INDEX(Données!$O$31:$O$126,F102),INDEX(Données!$F$31:$F$702,E102*96-96+F102))) -> 5.023879188 | H102: =1+INDEX(DJ!$B$109:$M$139,D102,C102) -> 0.04650232969 | I102: =IF($O$1=1,N102,K102*IF(B102=1,INDEX(Données!$N$31:$N$126,F102),INDEX(Données!$E$31:$E$702,(E102-1)*96+F102))) -> 0 | J102: =IF(AND(E102<=5,B102=0,F102>Données!$U$19*4,F102<=(Données!$U$19+15)*4),1,2) -> 2 | K102: =INDEX('Factures élec'!$L$4:$M$15,C102,J102) -> 
A103: 2022-01-02T00:45:00 | B103: =IF(OR(AND(D103=1,C103=1),AND(D103=Titres!$O$15,C103=Titres!$P$15),AND(D103=1,C103=5),AND(D103=Titres!$O$17,C103=Titres!$P$17),AND(D103=Titres!$O$18,C103=Titres!$P$18),AND(D103=21,C103=7),AND(D103=15,C103=8),AND(D103=1,C103=11),AND(D103=11,C103=11),AND(D103=25,C103=12)),1,0) -> 0 | C103: 1 | D103: 2 | E103: 7 | F103: 4 | G103: =MAX(0,H103*IF(B103=1,INDEX(Données!$O$31:$O$126,F103),INDEX(Données!$F$31:$F$702,E103*96-96+F103))) -> 5.023879188 | H103: =1+INDEX(DJ!$B$109:$M$139,D103,C103) -> 0.04650232969 | I103: =IF($O$1=1,N103,K103*IF(B103=1,INDEX(Données!$N$31:$N$126,F103),INDEX(Données!$E$31:$E$702,(E103-1)*96+F103))) -> 0 | J103: =IF(AND(E103<=5,B103=0,F103>Données!$U$19*4,F103<=(Données!$U$19+15)*4),1,2) -> 2 | K103: =INDEX('Factures élec'!$L$4:$M$15,C103,J103) -> 
A104: 2022-01-02T01:00:00 | B104: =IF(OR(AND(D104=1,C104=1),AND(D104=Titres!$O$15,C104=Titres!$P$15),AND(D104=1,C104=5),AND(D104=Titres!$O$17,C104=Titres!$P$17),AND(D104=Titres!$O$18,C104=Titres!$P$18),AND(D104=21,C104=7),AND(D104=15,C104=8),AND(D104=1,C104=11),AND(D104=11,C104=11),AND(D104=25,C104=12)),1,0) -> 0 | C104: 1 | D104: 2 | E104: 7 | F104: 5 | G104: =MAX(0,H104*IF(B104=1,INDEX(Données!$O$31:$O$126,F104),INDEX(Données!$F$31:$F$702,E104*96-96+F104))) -> 5.127311995 | H104: =1+INDEX(DJ!$B$109:$M$139,D104,C104) -> 0.04650232969 | I104: =IF($O$1=1,N104,K104*IF(B104=1,INDEX(Données!$N$31:$N$126,F104),INDEX(Données!$E$31:$E$702,(E104-1)*96+F104))) -> 0 | J104: =IF(AND(E104<=5,B104=0,F104>Données!$U$19*4,F104<=(Données!$U$19+15)*4),1,2) -> 2 | K104: =INDEX('Factures élec'!$L$4:$M$15,C104,J104) -> 
A105: 2022-01-02T01:15:00 | B105: =IF(OR(AND(D105=1,C105=1),AND(D105=Titres!$O$15,C105=Titres!$P$15),AND(D105=1,C105=5),AND(D105=Titres!$O$17,C105=Titres!$P$17),AND(D105=Titres!$O$18,C105=Titres!$P$18),AND(D105=21,C105=7),AND(D105=15,C105=8),AND(D105=1,C105=11),AND(D105=11,C105=11),AND(D105=25,C105=12)),1,0) -> 0 | C105: 1 | D105: 2 | E105: 7 | F105: 6 | G105: =MAX(0,H105*IF(B105=1,INDEX(Données!$O$31:$O$126,F105),INDEX(Données!$F$31:$F$702,E105*96-96+F105))) -> 5.127311995 | H105: =1+INDEX(DJ!$B$109:$M$139,D105,C105) -> 0.04650232969 | I105: =IF($O$1=1,N105,K105*IF(B105=1,INDEX(Données!$N$31:$N$126,F105),INDEX(Données!$E$31:$E$702,(E105-1)*96+F105))) -> 0 | J105: =IF(AND(E105<=5,B105=0,F105>Données!$U$19*4,F105<=(Données!$U$19+15)*4),1,2) -> 2 | K105: =INDEX('Factures élec'!$L$4:$M$15,C105,J105) -> 
A106: 2022-01-02T01:30:00 | B106: =IF(OR(AND(D106=1,C106=1),AND(D106=Titres!$O$15,C106=Titres!$P$15),AND(D106=1,C106=5),AND(D106=Titres!$O$17,C106=Titres!$P$17),AND(D106=Titres!$O$18,C106=Titres!$P$18),AND(D106=21,C106=7),AND(D106=15,C106=8),AND(D106=1,C106=11),AND(D106=11,C106=11),AND(D106=25,C106=12)),1,0) -> 0 | C106: 1 | D106: 2 | E106: 7 | F106: 7 | G106: =MAX(0,H106*IF(B106=1,INDEX(Données!$O$31:$O$126,F106),INDEX(Données!$F$31:$F$702,E106*96-96+F106))) -> 5.127311995 | H106: =1+INDEX(DJ!$B$109:$M$139,D106,C106) -> 0.04650232969 | I106: =IF($O$1=1,N106,K106*IF(B106=1,INDEX(Données!$N$31:$N$126,F106),INDEX(Données!$E$31:$E$702,(E106-1)*96+F106))) -> 0 | J106: =IF(AND(E106<=5,B106=0,F106>Données!$U$19*4,F106<=(Données!$U$19+15)*4),1,2) -> 2 | K106: =INDEX('Factures élec'!$L$4:$M$15,C106,J106) -> 
A107: 2022-01-02T01:45:00 | B107: =IF(OR(AND(D107=1,C107=1),AND(D107=Titres!$O$15,C107=Titres!$P$15),AND(D107=1,C107=5),AND(D107=Titres!$O$17,C107=Titres!$P$17),AND(D107=Titres!$O$18,C107=Titres!$P$18),AND(D107=21,C107=7),AND(D107=15,C107=8),AND(D107=1,C107=11),AND(D107=11,C107=11),AND(D107=25,C107=12)),1,0) -> 0 | C107: 1 | D107: 2 | E107: 7 | F107: 8 | G107: =MAX(0,H107*IF(B107=1,INDEX(Données!$O$31:$O$126,F107),INDEX(Données!$F$31:$F$702,E107*96-96+F107))) -> 5.127311995 | H107: =1+INDEX(DJ!$B$109:$M$139,D107,C107) -> 0.04650232969 | I107: =IF($O$1=1,N107,K107*IF(B107=1,INDEX(Données!$N$31:$N$126,F107),INDEX(Données!$E$31:$E$702,(E107-1)*96+F107))) -> 0 | J107: =IF(AND(E107<=5,B107=0,F107>Données!$U$19*4,F107<=(Données!$U$19+15)*4),1,2) -> 2 | K107: =INDEX('Factures élec'!$L$4:$M$15,C107,J107) -> 
A108: 2022-01-02T02:00:00 | B108: =IF(OR(AND(D108=1,C108=1),AND(D108=Titres!$O$15,C108=Titres!$P$15),AND(D108=1,C108=5),AND(D108=Titres!$O$17,C108=Titres!$P$17),AND(D108=Titres!$O$18,C108=Titres!$P$18),AND(D108=21,C108=7),AND(D108=15,C108=8),AND(D108=1,C108=11),AND(D108=11,C108=11),AND(D108=25,C108=12)),1,0) -> 0 | C108: 1 | D108: 2 | E108: 7 | F108: 9 | G108: =MAX(0,H108*IF(B108=1,INDEX(Données!$O$31:$O$126,F108),INDEX(Données!$F$31:$F$702,E108*96-96+F108))) -> 5.068207534 | H108: =1+INDEX(DJ!$B$109:$M$139,D108,C108) -> 0.04650232969 | I108: =IF($O$1=1,N108,K108*IF(B108=1,INDEX(Données!$N$31:$N$126,F108),INDEX(Données!$E$31:$E$702,(E108-1)*96+F108))) -> 0 | J108: =IF(AND(E108<=5,B108=0,F108>Données!$U$19*4,F108<=(Données!$U$19+15)*4),1,2) -> 2 | K108: =INDEX('Factures élec'!$L$4:$M$15,C108,J108) -> 
A109: 2022-01-02T02:15:00 | B109: =IF(OR(AND(D109=1,C109=1),AND(D109=Titres!$O$15,C109=Titres!$P$15),AND(D109=1,C109=5),AND(D109=Titres!$O$17,C109=Titres!$P$17),AND(D109=Titres!$O$18,C109=Titres!$P$18),AND(D109=21,C109=7),AND(D109=15,C109=8),AND(D109=1,C109=11),AND(D109=11,C109=11),AND(D109=25,C109=12)),1,0) -> 0 | C109: 1 | D109: 2 | E109: 7 | F109: 10 | G109: =MAX(0,H109*IF(B109=1,INDEX(Données!$O$31:$O$126,F109),INDEX(Données!$F$31:$F$702,E109*96-96+F109))) -> 5.068207534 | H109: =1+INDEX(DJ!$B$109:$M$139,D109,C109) -> 0.04650232969 | I109: =IF($O$1=1,N109,K109*IF(B109=1,INDEX(Données!$N$31:$N$126,F109),INDEX(Données!$E$31:$E$702,(E109-1)*96+F109))) -> 0 | J109: =IF(AND(E109<=5,B109=0,F109>Données!$U$19*4,F109<=(Données!$U$19+15)*4),1,2) -> 2 | K109: =INDEX('Factures élec'!$L$4:$M$15,C109,J109) -> 
A110: 2022-01-02T02:30:00 | B110: =IF(OR(AND(D110=1,C110=1),AND(D110=Titres!$O$15,C110=Titres!$P$15),AND(D110=1,C110=5),AND(D110=Titres!$O$17,C110=Titres!$P$17),AND(D110=Titres!$O$18,C110=Titres!$P$18),AND(D110=21,C110=7),AND(D110=15,C110=8),AND(D110=1,C110=11),AND(D110=11,C110=11),AND(D110=25,C110=12)),1,0) -> 0 | C110: 1 | D110: 2 | E110: 7 | F110: 11 | G110: =MAX(0,H110*IF(B110=1,INDEX(Données!$O$31:$O$126,F110),INDEX(Données!$F$31:$F$702,E110*96-96+F110))) -> 5.068207534 | H110: =1+INDEX(DJ!$B$109:$M$139,D110,C110) -> 0.04650232969 | I110: =IF($O$1=1,N110,K110*IF(B110=1,INDEX(Données!$N$31:$N$126,F110),INDEX(Données!$E$31:$E$702,(E110-1)*96+F110))) -> 0 | J110: =IF(AND(E110<=5,B110=0,F110>Données!$U$19*4,F110<=(Données!$U$19+15)*4),1,2) -> 2 | K110: =INDEX('Factures élec'!$L$4:$M$15,C110,J110) -> 
A111: 2022-01-02T02:45:00 | B111: =IF(OR(AND(D111=1,C111=1),AND(D111=Titres!$O$15,C111=Titres!$P$15),AND(D111=1,C111=5),AND(D111=Titres!$O$17,C111=Titres!$P$17),AND(D111=Titres!$O$18,C111=Titres!$P$18),AND(D111=21,C111=7),AND(D111=15,C111=8),AND(D111=1,C111=11),AND(D111=11,C111=11),AND(D111=25,C111=12)),1,0) -> 0 | C111: 1 | D111: 2 | E111: 7 | F111: 12 | G111: =MAX(0,H111*IF(B111=1,INDEX(Données!$O$31:$O$126,F111),INDEX(Données!$F$31:$F$702,E111*96-96+F111))) -> 5.068207534 | H111: =1+INDEX(DJ!$B$109:$M$139,D111,C111) -> 0.04650232969 | I111: =IF($O$1=1,N111,K111*IF(B111=1,INDEX(Données!$N$31:$N$126,F111),INDEX(Données!$E$31:$E$702,(E111-1)*96+F111))) -> 0 | J111: =IF(AND(E111<=5,B111=0,F111>Données!$U$19*4,F111<=(Données!$U$19+15)*4),1,2) -> 2 | K111: =INDEX('Factures élec'!$L$4:$M$15,C111,J111) -> 
A112: 2022-01-02T03:00:00 | B112: =IF(OR(AND(D112=1,C112=1),AND(D112=Titres!$O$15,C112=Titres!$P$15),AND(D112=1,C112=5),AND(D112=Titres!$O$17,C112=Titres!$P$17),AND(D112=Titres!$O$18,C112=Titres!$P$18),AND(D112=21,C112=7),AND(D112=15,C112=8),AND(D112=1,C112=11),AND(D112=11,C112=11),AND(D112=25,C112=12)),1,0) -> 0 | C112: 1 | D112: 2 | E112: 7 | F112: 13 | G112: =MAX(0,H112*IF(B112=1,INDEX(Données!$O$31:$O$126,F112),INDEX(Données!$F$31:$F$702,E112*96-96+F112))) -> 5.171640341 | H112: =1+INDEX(DJ!$B$109:$M$139,D112,C112) -> 0.04650232969 | I112: =IF($O$1=1,N112,K112*IF(B112=1,INDEX(Données!$N$31:$N$126,F112),INDEX(Données!$E$31:$E$702,(E112-1)*96+F112))) -> 0 | J112: =IF(AND(E112<=5,B112=0,F112>Données!$U$19*4,F112<=(Données!$U$19+15)*4),1,2) -> 2 | K112: =INDEX('Factures élec'!$L$4:$M$15,C112,J112) -> 
A113: 2022-01-02T03:15:00 | B113: =IF(OR(AND(D113=1,C113=1),AND(D113=Titres!$O$15,C113=Titres!$P$15),AND(D113=1,C113=5),AND(D113=Titres!$O$17,C113=Titres!$P$17),AND(D113=Titres!$O$18,C113=Titres!$P$18),AND(D113=21,C113=7),AND(D113=15,C113=8),AND(D113=1,C113=11),AND(D113=11,C113=11),AND(D113=25,C113=12)),1,0) -> 0 | C113: 1 | D113: 2 | E113: 7 | F113: 14 | G113: =MAX(0,H113*IF(B113=1,INDEX(Données!$O$31:$O$126,F113),INDEX(Données!$F$31:$F$702,E113*96-96+F113))) -> 5.171640341 | H113: =1+INDEX(DJ!$B$109:$M$139,D113,C113) -> 0.04650232969 | I113: =IF($O$1=1,N113,K113*IF(B113=1,INDEX(Données!$N$31:$N$126,F113),INDEX(Données!$E$31:$E$702,(E113-1)*96+F113))) -> 0 | J113: =IF(AND(E113<=5,B113=0,F113>Données!$U$19*4,F113<=(Données!$U$19+15)*4),1,2) -> 2 | K113: =INDEX('Factures élec'!$L$4:$M$15,C113,J113) -> 
A114: 2022-01-02T03:30:00 | B114: =IF(OR(AND(D114=1,C114=1),AND(D114=Titres!$O$15,C114=Titres!$P$15),AND(D114=1,C114=5),AND(D114=Titres!$O$17,C114=Titres!$P$17),AND(D114=Titres!$O$18,C114=Titres!$P$18),AND(D114=21,C114=7),AND(D114=15,C114=8),AND(D114=1,C114=11),AND(D114=11,C114=11),AND(D114=25,C114=12)),1,0) -> 0 | C114: 1 | D114: 2 | E114: 7 | F114: 15 | G114: =MAX(0,H114*IF(B114=1,INDEX(Données!$O$31:$O$126,F114),INDEX(Données!$F$31:$F$702,E114*96-96+F114))) -> 5.171640341 | H114: =1+INDEX(DJ!$B$109:$M$139,D114,C114) -> 0.04650232969 | I114: =IF($O$1=1,N114,K114*IF(B114=1,INDEX(Données!$N$31:$N$126,F114),INDEX(Données!$E$31:$E$702,(E114-1)*96+F114))) -> 0 | J114: =IF(AND(E114<=5,B114=0,F114>Données!$U$19*4,F114<=(Données!$U$19+15)*4),1,2) -> 2 | K114: =INDEX('Factures élec'!$L$4:$M$15,C114,J114) -> 
A115: 2022-01-02T03:45:00 | B115: =IF(OR(AND(D115=1,C115=1),AND(D115=Titres!$O$15,C115=Titres!$P$15),AND(D115=1,C115=5),AND(D115=Titres!$O$17,C115=Titres!$P$17),AND(D115=Titres!$O$18,C115=Titres!$P$18),AND(D115=21,C115=7),AND(D115=15,C115=8),AND(D115=1,C115=11),AND(D115=11,C115=11),AND(D115=25,C115=12)),1,0) -> 0 | C115: 1 | D115: 2 | E115: 7 | F115: 16 | G115: =MAX(0,H115*IF(B115=1,INDEX(Données!$O$31:$O$126,F115),INDEX(Données!$F$31:$F$702,E115*96-96+F115))) -> 5.171640341 | H115: =1+INDEX(DJ!$B$109:$M$139,D115,C115) -> 0.04650232969 | I115: =IF($O$1=1,N115,K115*IF(B115=1,INDEX(Données!$N$31:$N$126,F115),INDEX(Données!$E$31:$E$702,(E115-1)*96+F115))) -> 0 | J115: =IF(AND(E115<=5,B115=0,F115>Données!$U$19*4,F115<=(Données!$U$19+15)*4),1,2) -> 2 | K115: =INDEX('Factures élec'!$L$4:$M$15,C115,J115) -> 
A116: 2022-01-02T04:00:00 | B116: =IF(OR(AND(D116=1,C116=1),AND(D116=Titres!$O$15,C116=Titres!$P$15),AND(D116=1,C116=5),AND(D116=Titres!$O$17,C116=Titres!$P$17),AND(D116=Titres!$O$18,C116=Titres!$P$18),AND(D116=21,C116=7),AND(D116=15,C116=8),AND(D116=1,C116=11),AND(D116=11,C116=11),AND(D116=25,C116=12)),1,0) -> 0 | C116: 1 | D116: 2 | E116: 7 | F116: 17 | G116: =MAX(0,H116*IF(B116=1,INDEX(Données!$O$31:$O$126,F116),INDEX(Données!$F$31:$F$702,E116*96-96+F116))) -> 5.4228343 | H116: =1+INDEX(DJ!$B$109:$M$139,D116,C116) -> 0.04650232969 | I116: =IF($O$1=1,N116,K116*IF(B116=1,INDEX(Données!$N$31:$N$126,F116),INDEX(Données!$E$31:$E$702,(E116-1)*96+F116))) -> 0 | J116: =IF(AND(E116<=5,B116=0,F116>Données!$U$19*4,F116<=(Données!$U$19+15)*4),1,2) -> 2 | K116: =INDEX('Factures élec'!$L$4:$M$15,C116,J116) -> 
A117: 2022-01-02T04:15:00 | B117: =IF(OR(AND(D117=1,C117=1),AND(D117=Titres!$O$15,C117=Titres!$P$15),AND(D117=1,C117=5),AND(D117=Titres!$O$17,C117=Titres!$P$17),AND(D117=Titres!$O$18,C117=Titres!$P$18),AND(D117=21,C117=7),AND(D117=15,C117=8),AND(D117=1,C117=11),AND(D117=11,C117=11),AND(D117=25,C117=12)),1,0) -> 0 | C117: 1 | D117: 2 | E117: 7 | F117: 18 | G117: =MAX(0,H117*IF(B117=1,INDEX(Données!$O$31:$O$126,F117),INDEX(Données!$F$31:$F$702,E117*96-96+F117))) -> 5.4228343 | H117: =1+INDEX(DJ!$B$109:$M$139,D117,C117) -> 0.04650232969 | I117: =IF($O$1=1,N117,K117*IF(B117=1,INDEX(Données!$N$31:$N$126,F117),INDEX(Données!$E$31:$E$702,(E117-1)*96+F117))) -> 0 | J117: =IF(AND(E117<=5,B117=0,F117>Données!$U$19*4,F117<=(Données!$U$19+15)*4),1,2) -> 2 | K117: =INDEX('Factures élec'!$L$4:$M$15,C117,J117) -> 
A118: 2022-01-02T04:30:00 | B118: =IF(OR(AND(D118=1,C118=1),AND(D118=Titres!$O$15,C118=Titres!$P$15),AND(D118=1,C118=5),AND(D118=Titres!$O$17,C118=Titres!$P$17),AND(D118=Titres!$O$18,C118=Titres!$P$18),AND(D118=21,C118=7),AND(D118=15,C118=8),AND(D118=1,C118=11),AND(D118=11,C118=11),AND(D118=25,C118=12)),1,0) -> 0 | C118: 1 | D118: 2 | E118: 7 | F118: 19 | G118: =MAX(0,H118*IF(B118=1,INDEX(Données!$O$31:$O$126,F118),INDEX(Données!$F$31:$F$702,E118*96-96+F118))) -> 5.4228343 | H118: =1+INDEX(DJ!$B$109:$M$139,D118,C118) -> 0.04650232969 | I118: =IF($O$1=1,N118,K118*IF(B118=1,INDEX(Données!$N$31:$N$126,F118),INDEX(Données!$E$31:$E$702,(E118-1)*96+F118))) -> 0 | J118: =IF(AND(E118<=5,B118=0,F118>Données!$U$19*4,F118<=(Données!$U$19+15)*4),1,2) -> 2 | K118: =INDEX('Factures élec'!$L$4:$M$15,C118,J118) -> 
A119: 2022-01-02T04:45:00 | B119: =IF(OR(AND(D119=1,C119=1),AND(D119=Titres!$O$15,C119=Titres!$P$15),AND(D119=1,C119=5),AND(D119=Titres!$O$17,C119=Titres!$P$17),AND(D119=Titres!$O$18,C119=Titres!$P$18),AND(D119=21,C119=7),AND(D119=15,C119=8),AND(D119=1,C119=11),AND(D119=11,C119=11),AND(D119=25,C119=12)),1,0) -> 0 | C119: 1 | D119: 2 | E119: 7 | F119: 20 | G119: =MAX(0,H119*IF(B119=1,INDEX(Données!$O$31:$O$126,F119),INDEX(Données!$F$31:$F$702,E119*96-96+F119))) -> 5.4228343 | H119: =1+INDEX(DJ!$B$109:$M$139,D119,C119) -> 0.04650232969 | I119: =IF($O$1=1,N119,K119*IF(B119=1,INDEX(Données!$N$31:$N$126,F119),INDEX(Données!$E$31:$E$702,(E119-1)*96+F119))) -> 0 | J119: =IF(AND(E119<=5,B119=0,F119>Données!$U$19*4,F119<=(Données!$U$19+15)*4),1,2) -> 2 | K119: =INDEX('Factures élec'!$L$4:$M$15,C119,J119) -> 
A120: 2022-01-02T05:00:00 | B120: =IF(OR(AND(D120=1,C120=1),AND(D120=Titres!$O$15,C120=Titres!$P$15),AND(D120=1,C120=5),AND(D120=Titres!$O$17,C120=Titres!$P$17),AND(D120=Titres!$O$18,C120=Titres!$P$18),AND(D120=21,C120=7),AND(D120=15,C120=8),AND(D120=1,C120=11),AND(D120=11,C120=11),AND(D120=25,C120=12)),1,0) -> 0 | C120: 1 | D120: 2 | E120: 7 | F120: 21 | G120: =MAX(0,H120*IF(B120=1,INDEX(Données!$O$31:$O$126,F120),INDEX(Données!$F$31:$F$702,E120*96-96+F120))) -> 5.821789412 | H120: =1+INDEX(DJ!$B$109:$M$139,D120,C120) -> 0.04650232969 | I120: =IF($O$1=1,N120,K120*IF(B120=1,INDEX(Données!$N$31:$N$126,F120),INDEX(Données!$E$31:$E$702,(E120-1)*96+F120))) -> 0 | J120: =IF(AND(E120<=5,B120=0,F120>Données!$U$19*4,F120<=(Données!$U$19+15)*4),1,2) -> 2 | K120: =INDEX('Factures élec'!$L$4:$M$15,C120,J120) -> 
A121: 2022-01-02T05:15:00 | B121: =IF(OR(AND(D121=1,C121=1),AND(D121=Titres!$O$15,C121=Titres!$P$15),AND(D121=1,C121=5),AND(D121=Titres!$O$17,C121=Titres!$P$17),AND(D121=Titres!$O$18,C121=Titres!$P$18),AND(D121=21,C121=7),AND(D121=15,C121=8),AND(D121=1,C121=11),AND(D121=11,C121=11),AND(D121=25,C121=12)),1,0) -> 0 | C121: 1 | D121: 2 | E121: 7 | F121: 22 | G121: =MAX(0,H121*IF(B121=1,INDEX(Données!$O$31:$O$126,F121),INDEX(Données!$F$31:$F$702,E121*96-96+F121))) -> 5.821789412 | H121: =1+INDEX(DJ!$B$109:$M$139,D121,C121) -> 0.04650232969 | I121: =IF($O$1=1,N121,K121*IF(B121=1,INDEX(Données!$N$31:$N$126,F121),INDEX(Données!$E$31:$E$702,(E121-1)*96+F121))) -> 0 | J121: =IF(AND(E121<=5,B121=0,F121>Données!$U$19*4,F121<=(Données!$U$19+15)*4),1,2) -> 2 | K121: =INDEX('Factures élec'!$L$4:$M$15,C121,J121) -> 
A122: 2022-01-02T05:30:00 | B122: =IF(OR(AND(D122=1,C122=1),AND(D122=Titres!$O$15,C122=Titres!$P$15),AND(D122=1,C122=5),AND(D122=Titres!$O$17,C122=Titres!$P$17),AND(D122=Titres!$O$18,C122=Titres!$P$18),AND(D122=21,C122=7),AND(D122=15,C122=8),AND(D122=1,C122=11),AND(D122=11,C122=11),AND(D122=25,C122=12)),1,0) -> 0 | C122: 1 | D122: 2 | E122: 7 | F122: 23 | G122: =MAX(0,H122*IF(B122=1,INDEX(Données!$O$31:$O$126,F122),INDEX(Données!$F$31:$F$702,E122*96-96+F122))) -> 5.821789412 | H122: =1+INDEX(DJ!$B$109:$M$139,D122,C122) -> 0.04650232969 | I122: =IF($O$1=1,N122,K122*IF(B122=1,INDEX(Données!$N$31:$N$126,F122),INDEX(Données!$E$31:$E$702,(E122-1)*96+F122))) -> 0 | J122: =IF(AND(E122<=5,B122=0,F122>Données!$U$19*4,F122<=(Données!$U$19+15)*4),1,2) -> 2 | K122: =INDEX('Factures élec'!$L$4:$M$15,C122,J122) -> 
A123: 2022-01-02T05:45:00 | B123: =IF(OR(AND(D123=1,C123=1),AND(D123=Titres!$O$15,C123=Titres!$P$15),AND(D123=1,C123=5),AND(D123=Titres!$O$17,C123=Titres!$P$17),AND(D123=Titres!$O$18,C123=Titres!$P$18),AND(D123=21,C123=7),AND(D123=15,C123=8),AND(D123=1,C123=11),AND(D123=11,C123=11),AND(D123=25,C123=12)),1,0) -> 0 | C123: 1 | D123: 2 | E123: 7 | F123: 24 | G123: =MAX(0,H123*IF(B123=1,INDEX(Données!$O$31:$O$126,F123),INDEX(Données!$F$31:$F$702,E123*96-96+F123))) -> 5.821789412 | H123: =1+INDEX(DJ!$B$109:$M$139,D123,C123) -> 0.04650232969 | I123: =IF($O$1=1,N123,K123*IF(B123=1,INDEX(Données!$N$31:$N$126,F123),INDEX(Données!$E$31:$E$702,(E123-1)*96+F123))) -> 0 | J123: =IF(AND(E123<=5,B123=0,F123>Données!$U$19*4,F123<=(Données!$U$19+15)*4),1,2) -> 2 | K123: =INDEX('Factures élec'!$L$4:$M$15,C123,J123) -> 
A124: 2022-01-02T06:00:00 | B124: =IF(OR(AND(D124=1,C124=1),AND(D124=Titres!$O$15,C124=Titres!$P$15),AND(D124=1,C124=5),AND(D124=Titres!$O$17,C124=Titres!$P$17),AND(D124=Titres!$O$18,C124=Titres!$P$18),AND(D124=21,C124=7),AND(D124=15,C124=8),AND(D124=1,C124=11),AND(D124=11,C124=11),AND(D124=25,C124=12)),1,0) -> 0 | C124: 1 | D124: 2 | E124: 7 | F124: 25 | G124: =MAX(0,H124*IF(B124=1,INDEX(Données!$O$31:$O$126,F124),INDEX(Données!$F$31:$F$702,E124*96-96+F124))) -> 6.250296755 | H124: =1+INDEX(DJ!$B$109:$M$139,D124,C124) -> 0.04650232969 | I124: =IF($O$1=1,N124,K124*IF(B124=1,INDEX(Données!$N$31:$N$126,F124),INDEX(Données!$E$31:$E$702,(E124-1)*96+F124))) -> 0 | J124: =IF(AND(E124<=5,B124=0,F124>Données!$U$19*4,F124<=(Données!$U$19+15)*4),1,2) -> 2 | K124: =INDEX('Factures élec'!$L$4:$M$15,C124,J124) -> 
A125: 2022-01-02T06:15:00 | B125: =IF(OR(AND(D125=1,C125=1),AND(D125=Titres!$O$15,C125=Titres!$P$15),AND(D125=1,C125=5),AND(D125=Titres!$O$17,C125=Titres!$P$17),AND(D125=Titres!$O$18,C125=Titres!$P$18),AND(D125=21,C125=7),AND(D125=15,C125=8),AND(D125=1,C125=11),AND(D125=11,C125=11),AND(D125=25,C125=12)),1,0) -> 0 | C125: 1 | D125: 2 | E125: 7 | F125: 26 | G125: =MAX(0,H125*IF(B125=1,INDEX(Données!$O$31:$O$126,F125),INDEX(Données!$F$31:$F$702,E125*96-96+F125))) -> 6.250296755 | H125: =1+INDEX(DJ!$B$109:$M$139,D125,C125) -> 0.04650232969 | I125: =IF($O$1=1,N125,K125*IF(B125=1,INDEX(Données!$N$31:$N$126,F125),INDEX(Données!$E$31:$E$702,(E125-1)*96+F125))) -> 0 | J125: =IF(AND(E125<=5,B125=0,F125>Données!$U$19*4,F125<=(Données!$U$19+15)*4),1,2) -> 2 | K125: =INDEX('Factures élec'!$L$4:$M$15,C125,J125) -> 
A126: 2022-01-02T06:30:00 | B126: =IF(OR(AND(D126=1,C126=1),AND(D126=Titres!$O$15,C126=Titres!$P$15),AND(D126=1,C126=5),AND(D126=Titres!$O$17,C126=Titres!$P$17),AND(D126=Titres!$O$18,C126=Titres!$P$18),AND(D126=21,C126=7),AND(D126=15,C126=8),AND(D126=1,C126=11),AND(D126=11,C126=11),AND(D126=25,C126=12)),1,0) -> 0 | C126: 1 | D126: 2 | E126: 7 | F126: 27 | G126: =MAX(0,H126*IF(B126=1,INDEX(Données!$O$31:$O$126,F126),INDEX(Données!$F$31:$F$702,E126*96-96+F126))) -> 6.250296755 | H126: =1+INDEX(DJ!$B$109:$M$139,D126,C126) -> 0.04650232969 | I126: =IF($O$1=1,N126,K126*IF(B126=1,INDEX(Données!$N$31:$N$126,F126),INDEX(Données!$E$31:$E$702,(E126-1)*96+F126))) -> 0 | J126: =IF(AND(E126<=5,B126=0,F126>Données!$U$19*4,F126<=(Données!$U$19+15)*4),1,2) -> 2 | K126: =INDEX('Factures élec'!$L$4:$M$15,C126,J126) -> 
A127: 2022-01-02T06:45:00 | B127: =IF(OR(AND(D127=1,C127=1),AND(D127=Titres!$O$15,C127=Titres!$P$15),AND(D127=1,C127=5),AND(D127=Titres!$O$17,C127=Titres!$P$17),AND(D127=Titres!$O$18,C127=Titres!$P$18),AND(D127=21,C127=7),AND(D127=15,C127=8),AND(D127=1,C127=11),AND(D127=11,C127=11),AND(D127=25,C127=12)),1,0) -> 0 | C127: 1 | D127: 2 | E127: 7 | F127: 28 | G127: =MAX(0,H127*IF(B127=1,INDEX(Données!$O$31:$O$126,F127),INDEX(Données!$F$31:$F$702,E127*96-96+F127))) -> 6.250296755 | H127: =1+INDEX(DJ!$B$109:$M$139,D127,C127) -> 0.04650232969 | I127: =IF($O$1=1,N127,K127*IF(B127=1,INDEX(Données!$N$31:$N$126,F127),INDEX(Données!$E$31:$E$702,(E127-1)*96+F127))) -> 0 | J127: =IF(AND(E127<=5,B127=0,F127>Données!$U$19*4,F127<=(Données!$U$19+15)*4),1,2) -> 2 | K127: =INDEX('Factures élec'!$L$4:$M$15,C127,J127) -> 
A128: 2022-01-02T07:00:00 | B128: =IF(OR(AND(D128=1,C128=1),AND(D128=Titres!$O$15,C128=Titres!$P$15),AND(D128=1,C128=5),AND(D128=Titres!$O$17,C128=Titres!$P$17),AND(D128=Titres!$O$18,C128=Titres!$P$18),AND(D128=21,C128=7),AND(D128=15,C128=8),AND(D128=1,C128=11),AND(D128=11,C128=11),AND(D128=25,C128=12)),1,0) -> 0 | C128: 1 | D128: 2 | E128: 7 | F128: 29 | G128: =MAX(0,H128*IF(B128=1,INDEX(Données!$O$31:$O$126,F128),INDEX(Données!$F$31:$F$702,E128*96-96+F128))) -> 6.989102518 | H128: =1+INDEX(DJ!$B$109:$M$139,D128,C128) -> 0.04650232969 | I128: =IF($O$1=1,N128,K128*IF(B128=1,INDEX(Données!$N$31:$N$126,F128),INDEX(Données!$E$31:$E$702,(E128-1)*96+F128))) -> 0 | J128: =IF(AND(E128<=5,B128=0,F128>Données!$U$19*4,F128<=(Données!$U$19+15)*4),1,2) -> 2 | K128: =INDEX('Factures élec'!$L$4:$M$15,C128,J128) -> 
A129: 2022-01-02T07:15:00 | B129: =IF(OR(AND(D129=1,C129=1),AND(D129=Titres!$O$15,C129=Titres!$P$15),AND(D129=1,C129=5),AND(D129=Titres!$O$17,C129=Titres!$P$17),AND(D129=Titres!$O$18,C129=Titres!$P$18),AND(D129=21,C129=7),AND(D129=15,C129=8),AND(D129=1,C129=11),AND(D129=11,C129=11),AND(D129=25,C129=12)),1,0) -> 0 | C129: 1 | D129: 2 | E129: 7 | F129: 30 | G129: =MAX(0,H129*IF(B129=1,INDEX(Données!$O$31:$O$126,F129),INDEX(Données!$F$31:$F$702,E129*96-96+F129))) -> 6.989102518 | H129: =1+INDEX(DJ!$B$109:$M$139,D129,C129) -> 0.04650232969 | I129: =IF($O$1=1,N129,K129*IF(B129=1,INDEX(Données!$N$31:$N$126,F129),INDEX(Données!$E$31:$E$702,(E129-1)*96+F129))) -> 0 | J129: =IF(AND(E129<=5,B129=0,F129>Données!$U$19*4,F129<=(Données!$U$19+15)*4),1,2) -> 2 | K129: =INDEX('Factures élec'!$L$4:$M$15,C129,J129) -> 
A130: 2022-01-02T07:30:00 | B130: =IF(OR(AND(D130=1,C130=1),AND(D130=Titres!$O$15,C130=Titres!$P$15),AND(D130=1,C130=5),AND(D130=Titres!$O$17,C130=Titres!$P$17),AND(D130=Titres!$O$18,C130=Titres!$P$18),AND(D130=21,C130=7),AND(D130=15,C130=8),AND(D130=1,C130=11),AND(D130=11,C130=11),AND(D130=25,C130=12)),1,0) -> 0 | C130: 1 | D130: 2 | E130: 7 | F130: 31 | G130: =MAX(0,H130*IF(B130=1,INDEX(Données!$O$31:$O$126,F130),INDEX(Données!$F$31:$F$702,E130*96-96+F130))) -> 6.989102518 | H130: =1+INDEX(DJ!$B$109:$M$139,D130,C130) -> 0.04650232969 | I130: =IF($O$1=1,N130,K130*IF(B130=1,INDEX(Données!$N$31:$N$126,F130),INDEX(Données!$E$31:$E$702,(E130-1)*96+F130))) -> 0 | J130: =IF(AND(E130<=5,B130=0,F130>Données!$U$19*4,F130<=(Données!$U$19+15)*4),1,2) -> 2 | K130: =INDEX('Factures élec'!$L$4:$M$15,C130,J130) -> 
A131: 2022-01-02T07:45:00 | B131: =IF(OR(AND(D131=1,C131=1),AND(D131=Titres!$O$15,C131=Titres!$P$15),AND(D131=1,C131=5),AND(D131=Titres!$O$17,C131=Titres!$P$17),AND(D131=Titres!$O$18,C131=Titres!$P$18),AND(D131=21,C131=7),AND(D131=15,C131=8),AND(D131=1,C131=11),AND(D131=11,C131=11),AND(D131=25,C131=12)),1,0) -> 0 | C131: 1 | D131: 2 | E131: 7 | F131: 32 | G131: =MAX(0,H131*IF(B131=1,INDEX(Données!$O$31:$O$126,F131),INDEX(Données!$F$31:$F$702,E131*96-96+F131))) -> 6.989102518 | H131: =1+INDEX(DJ!$B$109:$M$139,D131,C131) -> 0.04650232969 | I131: =IF($O$1=1,N131,K131*IF(B131=1,INDEX(Données!$N$31:$N$126,F131),INDEX(Données!$E$31:$E$702,(E131-1)*96+F131))) -> 0 | J131: =IF(AND(E131<=5,B131=0,F131>Données!$U$19*4,F131<=(Données!$U$19+15)*4),1,2) -> 2 | K131: =INDEX('Factures élec'!$L$4:$M$15,C131,J131) -> 
A132: 2022-01-02T08:00:00 | B132: =IF(OR(AND(D132=1,C132=1),AND(D132=Titres!$O$15,C132=Titres!$P$15),AND(D132=1,C132=5),AND(D132=Titres!$O$17,C132=Titres!$P$17),AND(D132=Titres!$O$18,C132=Titres!$P$18),AND(D132=21,C132=7),AND(D132=15,C132=8),AND(D132=1,C132=11),AND(D132=11,C132=11),AND(D132=25,C132=12)),1,0) -> 0 | C132: 1 | D132: 2 | E132: 7 | F132: 33 | G132: =MAX(0,H132*IF(B132=1,INDEX(Données!$O$31:$O$126,F132),INDEX(Données!$F$31:$F$702,E132*96-96+F132))) -> 6.944774172 | H132: =1+INDEX(DJ!$B$109:$M$139,D132,C132) -> 0.04650232969 | I132: =IF($O$1=1,N132,K132*IF(B132=1,INDEX(Données!$N$31:$N$126,F132),INDEX(Données!$E$31:$E$702,(E132-1)*96+F132))) -> 0 | J132: =IF(AND(E132<=5,B132=0,F132>Données!$U$19*4,F132<=(Données!$U$19+15)*4),1,2) -> 2 | K132: =INDEX('Factures élec'!$L$4:$M$15,C132,J132) -> 
A133: 2022-01-02T08:15:00 | B133: =IF(OR(AND(D133=1,C133=1),AND(D133=Titres!$O$15,C133=Titres!$P$15),AND(D133=1,C133=5),AND(D133=Titres!$O$17,C133=Titres!$P$17),AND(D133=Titres!$O$18,C133=Titres!$P$18),AND(D133=21,C133=7),AND(D133=15,C133=8),AND(D133=1,C133=11),AND(D133=11,C133=11),AND(D133=25,C133=12)),1,0) -> 0 | C133: 1 | D133: 2 | E133: 7 | F133: 34 | G133: =MAX(0,H133*IF(B133=1,INDEX(Données!$O$31:$O$126,F133),INDEX(Données!$F$31:$F$702,E133*96-96+F133))) -> 6.944774172 | H133: =1+INDEX(DJ!$B$109:$M$139,D133,C133) -> 0.04650232969 | I133: =IF($O$1=1,N133,K133*IF(B133=1,INDEX(Données!$N$31:$N$126,F133),INDEX(Données!$E$31:$E$702,(E133-1)*96+F133))) -> 0 | J133: =IF(AND(E133<=5,B133=0,F133>Données!$U$19*4,F133<=(Données!$U$19+15)*4),1,2) -> 2 | K133: =INDEX('Factures élec'!$L$4:$M$15,C133,J133) -> 
A134: =A133+1/96 -> 2022-01-02T08:30:00 | B134: =IF(OR(AND(D134=1,C134=1),AND(D134=Titres!$O$15,C134=Titres!$P$15),AND(D134=1,C134=5),AND(D134=Titres!$O$17,C134=Titres!$P$17),AND(D134=Titres!$O$18,C134=Titres!$P$18),AND(D134=21,C134=7),AND(D134=15,C134=8),AND(D134=1,C134=11),AND(D134=11,C134=11),AND(D134=25,C134=12)),1,0) -> 0 | C134: =MONTH(A134) -> 1 | D134: =DAY(A134) -> 2 | E134: =WEEKDAY(A134,2) -> 7 | F134: =IF(E134=E133,F133+1,1) -> 35 | G134: =MAX(0,H134*IF(B134=1,INDEX(Données!$O$31:$O$126,F134),INDEX(Données!$F$31:$F$702,E134*96-96+F134))) -> 6.944774172 | H134: =1+INDEX(DJ!$B$109:$M$139,D134,C134) -> 0.04650232969 | I134: =IF($O$1=1,N134,K134*IF(B134=1,INDEX(Données!$N$31:$N$126,F134),INDEX(Données!$E$31:$E$702,(E134-1)*96+F134))) -> 0 | J134: =IF(AND(E134<=5,B134=0,F134>Données!$U$19*4,F134<=(Données!$U$19+15)*4),1,2) -> 2 | K134: =INDEX('Factures élec'!$L$4:$M$15,C134,J134) -> 
A135: 2022-01-02T08:45:00 | B135: =IF(OR(AND(D135=1,C135=1),AND(D135=Titres!$O$15,C135=Titres!$P$15),AND(D135=1,C135=5),AND(D135=Titres!$O$17,C135=Titres!$P$17),AND(D135=Titres!$O$18,C135=Titres!$P$18),AND(D135=21,C135=7),AND(D135=15,C135=8),AND(D135=1,C135=11),AND(D135=11,C135=11),AND(D135=25,C135=12)),1,0) -> 0 | C135: 1 | D135: 2 | E135: 7 | F135: 36 | G135: =MAX(0,H135*IF(B135=1,INDEX(Données!$O$31:$O$126,F135),INDEX(Données!$F$31:$F$702,E135*96-96+F135))) -> 6.944774172 | H135: =1+INDEX(DJ!$B$109:$M$139,D135,C135) -> 0.04650232969 | I135: =IF($O$1=1,N135,K135*IF(B135=1,INDEX(Données!$N$31:$N$126,F135),INDEX(Données!$E$31:$E$702,(E135-1)*96+F135))) -> 0 | J135: =IF(AND(E135<=5,B135=0,F135>Données!$U$19*4,F135<=(Données!$U$19+15)*4),1,2) -> 2 | K135: =INDEX('Factures élec'!$L$4:$M$15,C135,J135) -> 
A136: 2022-01-02T09:00:00 | B136: =IF(OR(AND(D136=1,C136=1),AND(D136=Titres!$O$15,C136=Titres!$P$15),AND(D136=1,C136=5),AND(D136=Titres!$O$17,C136=Titres!$P$17),AND(D136=Titres!$O$18,C136=Titres!$P$18),AND(D136=21,C136=7),AND(D136=15,C136=8),AND(D136=1,C136=11),AND(D136=11,C136=11),AND(D136=25,C136=12)),1,0) -> 0 | C136: 1 | D136: 2 | E136: 7 | F136: 37 | G136: =MAX(0,H136*IF(B136=1,INDEX(Données!$O$31:$O$126,F136),INDEX(Données!$F$31:$F$702,E136*96-96+F136))) -> 6.944774172 | H136: =1+INDEX(DJ!$B$109:$M$139,D136,C136) -> 0.04650232969 | I136: =IF($O$1=1,N136,K136*IF(B136=1,INDEX(Données!$N$31:$N$126,F136),INDEX(Données!$E$31:$E$702,(E136-1)*96+F136))) -> 0 | J136: =IF(AND(E136<=5,B136=0,F136>Données!$U$19*4,F136<=(Données!$U$19+15)*4),1,2) -> 2 | K136: =INDEX('Factures élec'!$L$4:$M$15,C136,J136) -> 
A137: 2022-01-02T09:15:00 | B137: =IF(OR(AND(D137=1,C137=1),AND(D137=Titres!$O$15,C137=Titres!$P$15),AND(D137=1,C137=5),AND(D137=Titres!$O$17,C137=Titres!$P$17),AND(D137=Titres!$O$18,C137=Titres!$P$18),AND(D137=21,C137=7),AND(D137=15,C137=8),AND(D137=1,C137=11),AND(D137=11,C137=11),AND(D137=25,C137=12)),1,0) -> 0 | C137: 1 | D137: 2 | E137: 7 | F137: 38 | G137: =MAX(0,H137*IF(B137=1,INDEX(Données!$O$31:$O$126,F137),INDEX(Données!$F$31:$F$702,E137*96-96+F137))) -> 6.944774172 | H137: =1+INDEX(DJ!$B$109:$M$139,D137,C137) -> 0.04650232969 | I137: =IF($O$1=1,N137,K137*IF(B137=1,INDEX(Données!$N$31:$N$126,F137),INDEX(Données!$E$31:$E$702,(E137-1)*96+F137))) -> 0 | J137: =IF(AND(E137<=5,B137=0,F137>Données!$U$19*4,F137<=(Données!$U$19+15)*4),1,2) -> 2 | K137: =INDEX('Factures élec'!$L$4:$M$15,C137,J137) -> 
A138: 2022-01-02T09:30:00 | B138: =IF(OR(AND(D138=1,C138=1),AND(D138=Titres!$O$15,C138=Titres!$P$15),AND(D138=1,C138=5),AND(D138=Titres!$O$17,C138=Titres!$P$17),AND(D138=Titres!$O$18,C138=Titres!$P$18),AND(D138=21,C138=7),AND(D138=15,C138=8),AND(D138=1,C138=11),AND(D138=11,C138=11),AND(D138=25,C138=12)),1,0) -> 0 | C138: 1 | D138: 2 | E138: 7 | F138: 39 | G138: =MAX(0,H138*IF(B138=1,INDEX(Données!$O$31:$O$126,F138),INDEX(Données!$F$31:$F$702,E138*96-96+F138))) -> 6.944774172 | H138: =1+INDEX(DJ!$B$109:$M$139,D138,C138) -> 0.04650232969 | I138: =IF($O$1=1,N138,K138*IF(B138=1,INDEX(Données!$N$31:$N$126,F138),INDEX(Données!$E$31:$E$702,(E138-1)*96+F138))) -> 0 | J138: =IF(AND(E138<=5,B138=0,F138>Données!$U$19*4,F138<=(Données!$U$19+15)*4),1,2) -> 2 | K138: =INDEX('Factures élec'!$L$4:$M$15,C138,J138) -> 
A139: 2022-01-02T09:45:00 | B139: =IF(OR(AND(D139=1,C139=1),AND(D139=Titres!$O$15,C139=Titres!$P$15),AND(D139=1,C139=5),AND(D139=Titres!$O$17,C139=Titres!$P$17),AND(D139=Titres!$O$18,C139=Titres!$P$18),AND(D139=21,C139=7),AND(D139=15,C139=8),AND(D139=1,C139=11),AND(D139=11,C139=11),AND(D139=25,C139=12)),1,0) -> 0 | C139: 1 | D139: 2 | E139: 7 | F139: 40 | G139: =MAX(0,H139*IF(B139=1,INDEX(Données!$O$31:$O$126,F139),INDEX(Données!$F$31:$F$702,E139*96-96+F139))) -> 6.944774172 | H139: =1+INDEX(DJ!$B$109:$M$139,D139,C139) -> 0.04650232969 | I139: =IF($O$1=1,N139,K139*IF(B139=1,INDEX(Données!$N$31:$N$126,F139),INDEX(Données!$E$31:$E$702,(E139-1)*96+F139))) -> 0 | J139: =IF(AND(E139<=5,B139=0,F139>Données!$U$19*4,F139<=(Données!$U$19+15)*4),1,2) -> 2 | K139: =INDEX('Factures élec'!$L$4:$M$15,C139,J139) -> 
A140: 2022-01-02T10:00:00 | B140: =IF(OR(AND(D140=1,C140=1),AND(D140=Titres!$O$15,C140=Titres!$P$15),AND(D140=1,C140=5),AND(D140=Titres!$O$17,C140=Titres!$P$17),AND(D140=Titres!$O$18,C140=Titres!$P$18),AND(D140=21,C140=7),AND(D140=15,C140=8),AND(D140=1,C140=11),AND(D140=11,C140=11),AND(D140=25,C140=12)),1,0) -> 0 | C140: 1 | D140: 2 | E140: 7 | F140: 41 | G140: =MAX(0,H140*IF(B140=1,INDEX(Données!$O$31:$O$126,F140),INDEX(Données!$F$31:$F$702,E140*96-96+F140))) -> 6.944774172 | H140: =1+INDEX(DJ!$B$109:$M$139,D140,C140) -> 0.04650232969 | I140: =IF($O$1=1,N140,K140*IF(B140=1,INDEX(Données!$N$31:$N$126,F140),INDEX(Données!$E$31:$E$702,(E140-1)*96+F140))) -> 0 | J140: =IF(AND(E140<=5,B140=0,F140>Données!$U$19*4,F140<=(Données!$U$19+15)*4),1,2) -> 2 | K140: =INDEX('Factures élec'!$L$4:$M$15,C140,J140) -> 
A141: 2022-01-02T10:15:00 | B141: =IF(OR(AND(D141=1,C141=1),AND(D141=Titres!$O$15,C141=Titres!$P$15),AND(D141=1,C141=5),AND(D141=Titres!$O$17,C141=Titres!$P$17),AND(D141=Titres!$O$18,C141=Titres!$P$18),AND(D141=21,C141=7),AND(D141=15,C141=8),AND(D141=1,C141=11),AND(D141=11,C141=11),AND(D141=25,C141=12)),1,0) -> 0 | C141: 1 | D141: 2 | E141: 7 | F141: 42 | G141: =MAX(0,H141*IF(B141=1,INDEX(Données!$O$31:$O$126,F141),INDEX(Données!$F$31:$F$702,E141*96-96+F141))) -> 6.944774172 | H141: =1+INDEX(DJ!$B$109:$M$139,D141,C141) -> 0.04650232969 | I141: =IF($O$1=1,N141,K141*IF(B141=1,INDEX(Données!$N$31:$N$126,F141),INDEX(Données!$E$31:$E$702,(E141-1)*96+F141))) -> 0 | J141: =IF(AND(E141<=5,B141=0,F141>Données!$U$19*4,F141<=(Données!$U$19+15)*4),1,2) -> 2 | K141: =INDEX('Factures élec'!$L$4:$M$15,C141,J141) -> 
A142: 2022-01-02T10:30:00 | B142: =IF(OR(AND(D142=1,C142=1),AND(D142=Titres!$O$15,C142=Titres!$P$15),AND(D142=1,C142=5),AND(D142=Titres!$O$17,C142=Titres!$P$17),AND(D142=Titres!$O$18,C142=Titres!$P$18),AND(D142=21,C142=7),AND(D142=15,C142=8),AND(D142=1,C142=11),AND(D142=11,C142=11),AND(D142=25,C142=12)),1,0) -> 0 | C142: 1 | D142: 2 | E142: 7 | F142: 43 | G142: =MAX(0,H142*IF(B142=1,INDEX(Données!$O$31:$O$126,F142),INDEX(Données!$F$31:$F$702,E142*96-96+F142))) -> 6.944774172 | H142: =1+INDEX(DJ!$B$109:$M$139,D142,C142) -> 0.04650232969 | I142: =IF($O$1=1,N142,K142*IF(B142=1,INDEX(Données!$N$31:$N$126,F142),INDEX(Données!$E$31:$E$702,(E142-1)*96+F142))) -> 0 | J142: =IF(AND(E142<=5,B142=0,F142>Données!$U$19*4,F142<=(Données!$U$19+15)*4),1,2) -> 2 | K142: =INDEX('Factures élec'!$L$4:$M$15,C142,J142) -> 
A143: 2022-01-02T10:45:00 | B143: =IF(OR(AND(D143=1,C143=1),AND(D143=Titres!$O$15,C143=Titres!$P$15),AND(D143=1,C143=5),AND(D143=Titres!$O$17,C143=Titres!$P$17),AND(D143=Titres!$O$18,C143=Titres!$P$18),AND(D143=21,C143=7),AND(D143=15,C143=8),AND(D143=1,C143=11),AND(D143=11,C143=11),AND(D143=25,C143=12)),1,0) -> 0 | C143: 1 | D143: 2 | E143: 7 | F143: 44 | G143: =MAX(0,H143*IF(B143=1,INDEX(Données!$O$31:$O$126,F143),INDEX(Données!$F$31:$F$702,E143*96-96+F143))) -> 6.944774172 | H143: =1+INDEX(DJ!$B$109:$M$139,D143,C143) -> 0.04650232969 | I143: =IF($O$1=1,N143,K143*IF(B143=1,INDEX(Données!$N$31:$N$126,F143),INDEX(Données!$E$31:$E$702,(E143-1)*96+F143))) -> 0 | J143: =IF(AND(E143<=5,B143=0,F143>Données!$U$19*4,F143<=(Données!$U$19+15)*4),1,2) -> 2 | K143: =INDEX('Factures élec'!$L$4:$M$15,C143,J143) -> 
A144: 2022-01-02T11:00:00 | B144: =IF(OR(AND(D144=1,C144=1),AND(D144=Titres!$O$15,C144=Titres!$P$15),AND(D144=1,C144=5),AND(D144=Titres!$O$17,C144=Titres!$P$17),AND(D144=Titres!$O$18,C144=Titres!$P$18),AND(D144=21,C144=7),AND(D144=15,C144=8),AND(D144=1,C144=11),AND(D144=11,C144=11),AND(D144=25,C144=12)),1,0) -> 0 | C144: 1 | D144: 2 | E144: 7 | F144: 45 | G144: =MAX(0,H144*IF(B144=1,INDEX(Données!$O$31:$O$126,F144),INDEX(Données!$F$31:$F$702,E144*96-96+F144))) -> 6.811789135 | H144: =1+INDEX(DJ!$B$109:$M$139,D144,C144) -> 0.04650232969 | I144: =IF($O$1=1,N144,K144*IF(B144=1,INDEX(Données!$N$31:$N$126,F144),INDEX(Données!$E$31:$E$702,(E144-1)*96+F144))) -> 0 | J144: =IF(AND(E144<=5,B144=0,F144>Données!$U$19*4,F144<=(Données!$U$19+15)*4),1,2) -> 2 | K144: =INDEX('Factures élec'!$L$4:$M$15,C144,J144) -> 
A145: 2022-01-02T11:15:00 | B145: =IF(OR(AND(D145=1,C145=1),AND(D145=Titres!$O$15,C145=Titres!$P$15),AND(D145=1,C145=5),AND(D145=Titres!$O$17,C145=Titres!$P$17),AND(D145=Titres!$O$18,C145=Titres!$P$18),AND(D145=21,C145=7),AND(D145=15,C145=8),AND(D145=1,C145=11),AND(D145=11,C145=11),AND(D145=25,C145=12)),1,0) -> 0 | C145: 1 | D145: 2 | E145: 7 | F145: 46 | G145: =MAX(0,H145*IF(B145=1,INDEX(Données!$O$31:$O$126,F145),INDEX(Données!$F$31:$F$702,E145*96-96+F145))) -> 6.811789135 | H145: =1+INDEX(DJ!$B$109:$M$139,D145,C145) -> 0.04650232969 | I145: =IF($O$1=1,N145,K145*IF(B145=1,INDEX(Données!$N$31:$N$126,F145),INDEX(Données!$E$31:$E$702,(E145-1)*96+F145))) -> 0 | J145: =IF(AND(E145<=5,B145=0,F145>Données!$U$19*4,F145<=(Données!$U$19+15)*4),1,2) -> 2 | K145: =INDEX('Factures élec'!$L$4:$M$15,C145,J145) -> 
A146: 2022-01-02T11:30:00 | B146: =IF(OR(AND(D146=1,C146=1),AND(D146=Titres!$O$15,C146=Titres!$P$15),AND(D146=1,C146=5),AND(D146=Titres!$O$17,C146=Titres!$P$17),AND(D146=Titres!$O$18,C146=Titres!$P$18),AND(D146=21,C146=7),AND(D146=15,C146=8),AND(D146=1,C146=11),AND(D146=11,C146=11),AND(D146=25,C146=12)),1,0) -> 0 | C146: 1 | D146: 2 | E146: 7 | F146: 47 | G146: =MAX(0,H146*IF(B146=1,INDEX(Données!$O$31:$O$126,F146),INDEX(Données!$F$31:$F$702,E146*96-96+F146))) -> 6.811789135 | H146: =1+INDEX(DJ!$B$109:$M$139,D146,C146) -> 0.04650232969 | I146: =IF($O$1=1,N146,K146*IF(B146=1,INDEX(Données!$N$31:$N$126,F146),INDEX(Données!$E$31:$E$702,(E146-1)*96+F146))) -> 0 | J146: =IF(AND(E146<=5,B146=0,F146>Données!$U$19*4,F146<=(Données!$U$19+15)*4),1,2) -> 2 | K146: =INDEX('Factures élec'!$L$4:$M$15,C146,J146) -> 
A147: 2022-01-02T11:45:00 | B147: =IF(OR(AND(D147=1,C147=1),AND(D147=Titres!$O$15,C147=Titres!$P$15),AND(D147=1,C147=5),AND(D147=Titres!$O$17,C147=Titres!$P$17),AND(D147=Titres!$O$18,C147=Titres!$P$18),AND(D147=21,C147=7),AND(D147=15,C147=8),AND(D147=1,C147=11),AND(D147=11,C147=11),AND(D147=25,C147=12)),1,0) -> 0 | C147: 1 | D147: 2 | E147: 7 | F147: 48 | G147: =MAX(0,H147*IF(B147=1,INDEX(Données!$O$31:$O$126,F147),INDEX(Données!$F$31:$F$702,E147*96-96+F147))) -> 6.811789135 | H147: =1+INDEX(DJ!$B$109:$M$139,D147,C147) -> 0.04650232969 | I147: =IF($O$1=1,N147,K147*IF(B147=1,INDEX(Données!$N$31:$N$126,F147),INDEX(Données!$E$31:$E$702,(E147-1)*96+F147))) -> 0 | J147: =IF(AND(E147<=5,B147=0,F147>Données!$U$19*4,F147<=(Données!$U$19+15)*4),1,2) -> 2 | K147: =INDEX('Factures élec'!$L$4:$M$15,C147,J147) -> 
A148: 2022-01-02T12:00:00 | B148: =IF(OR(AND(D148=1,C148=1),AND(D148=Titres!$O$15,C148=Titres!$P$15),AND(D148=1,C148=5),AND(D148=Titres!$O$17,C148=Titres!$P$17),AND(D148=Titres!$O$18,C148=Titres!$P$18),AND(D148=21,C148=7),AND(D148=15,C148=8),AND(D148=1,C148=11),AND(D148=11,C148=11),AND(D148=25,C148=12)),1,0) -> 0 | C148: 1 | D148: 2 | E148: 7 | F148: 49 | G148: =MAX(0,H148*IF(B148=1,INDEX(Données!$O$31:$O$126,F148),INDEX(Données!$F$31:$F$702,E148*96-96+F148))) -> 6.619699637 | H148: =1+INDEX(DJ!$B$109:$M$139,D148,C148) -> 0.04650232969 | I148: =IF($O$1=1,N148,K148*IF(B148=1,INDEX(Données!$N$31:$N$126,F148),INDEX(Données!$E$31:$E$702,(E148-1)*96+F148))) -> 0 | J148: =IF(AND(E148<=5,B148=0,F148>Données!$U$19*4,F148<=(Données!$U$19+15)*4),1,2) -> 2 | K148: =INDEX('Factures élec'!$L$4:$M$15,C148,J148) -> 
A149: 2022-01-02T12:15:00 | B149: =IF(OR(AND(D149=1,C149=1),AND(D149=Titres!$O$15,C149=Titres!$P$15),AND(D149=1,C149=5),AND(D149=Titres!$O$17,C149=Titres!$P$17),AND(D149=Titres!$O$18,C149=Titres!$P$18),AND(D149=21,C149=7),AND(D149=15,C149=8),AND(D149=1,C149=11),AND(D149=11,C149=11),AND(D149=25,C149=12)),1,0) -> 0 | C149: 1 | D149: 2 | E149: 7 | F149: 50 | G149: =MAX(0,H149*IF(B149=1,INDEX(Données!$O$31:$O$126,F149),INDEX(Données!$F$31:$F$702,E149*96-96+F149))) -> 6.619699637 | H149: =1+INDEX(DJ!$B$109:$M$139,D149,C149) -> 0.04650232969 | I149: =IF($O$1=1,N149,K149*IF(B149=1,INDEX(Données!$N$31:$N$126,F149),INDEX(Données!$E$31:$E$702,(E149-1)*96+F149))) -> 0 | J149: =IF(AND(E149<=5,B149=0,F149>Données!$U$19*4,F149<=(Données!$U$19+15)*4),1,2) -> 2 | K149: =INDEX('Factures élec'!$L$4:$M$15,C149,J149) -> 
A150: 2022-01-02T12:30:00 | B150: =IF(OR(AND(D150=1,C150=1),AND(D150=Titres!$O$15,C150=Titres!$P$15),AND(D150=1,C150=5),AND(D150=Titres!$O$17,C150=Titres!$P$17),AND(D150=Titres!$O$18,C150=Titres!$P$18),AND(D150=21,C150=7),AND(D150=15,C150=8),AND(D150=1,C150=11),AND(D150=11,C150=11),AND(D150=25,C150=12)),1,0) -> 0 | C150: 1 | D150: 2 | E150: 7 | F150: 51 | G150: =MAX(0,H150*IF(B150=1,INDEX(Données!$O$31:$O$126,F150),INDEX(Données!$F$31:$F$702,E150*96-96+F150))) -> 6.619699637 | H150: =1+INDEX(DJ!$B$109:$M$139,D150,C150) -> 0.04650232969 | I150: =IF($O$1=1,N150,K150*IF(B150=1,INDEX(Données!$N$31:$N$126,F150),INDEX(Données!$E$31:$E$702,(E150-1)*96+F150))) -> 0 | J150: =IF(AND(E150<=5,B150=0,F150>Données!$U$19*4,F150<=(Données!$U$19+15)*4),1,2) -> 2 | K150: =INDEX('Factures élec'!$L$4:$M$15,C150,J150) -> 
A151: 2022-01-02T12:45:00 | B151: =IF(OR(AND(D151=1,C151=1),AND(D151=Titres!$O$15,C151=Titres!$P$15),AND(D151=1,C151=5),AND(D151=Titres!$O$17,C151=Titres!$P$17),AND(D151=Titres!$O$18,C151=Titres!$P$18),AND(D151=21,C151=7),AND(D151=15,C151=8),AND(D151=1,C151=11),AND(D151=11,C151=11),AND(D151=25,C151=12)),1,0) -> 0 | C151: 1 | D151: 2 | E151: 7 | F151: 52 | G151: =MAX(0,H151*IF(B151=1,INDEX(Données!$O$31:$O$126,F151),INDEX(Données!$F$31:$F$702,E151*96-96+F151))) -> 6.619699637 | H151: =1+INDEX(DJ!$B$109:$M$139,D151,C151) -> 0.04650232969 | I151: =IF($O$1=1,N151,K151*IF(B151=1,INDEX(Données!$N$31:$N$126,F151),INDEX(Données!$E$31:$E$702,(E151-1)*96+F151))) -> 0 | J151: =IF(AND(E151<=5,B151=0,F151>Données!$U$19*4,F151<=(Données!$U$19+15)*4),1,2) -> 2 | K151: =INDEX('Factures élec'!$L$4:$M$15,C151,J151) -> 
A152: 2022-01-02T13:00:00 | B152: =IF(OR(AND(D152=1,C152=1),AND(D152=Titres!$O$15,C152=Titres!$P$15),AND(D152=1,C152=5),AND(D152=Titres!$O$17,C152=Titres!$P$17),AND(D152=Titres!$O$18,C152=Titres!$P$18),AND(D152=21,C152=7),AND(D152=15,C152=8),AND(D152=1,C152=11),AND(D152=11,C152=11),AND(D152=25,C152=12)),1,0) -> 0 | C152: 1 | D152: 2 | E152: 7 | F152: 53 | G152: =MAX(0,H152*IF(B152=1,INDEX(Données!$O$31:$O$126,F152),INDEX(Données!$F$31:$F$702,E152*96-96+F152))) -> 6.471938484 | H152: =1+INDEX(DJ!$B$109:$M$139,D152,C152) -> 0.04650232969 | I152: =IF($O$1=1,N152,K152*IF(B152=1,INDEX(Données!$N$31:$N$126,F152),INDEX(Données!$E$31:$E$702,(E152-1)*96+F152))) -> 0 | J152: =IF(AND(E152<=5,B152=0,F152>Données!$U$19*4,F152<=(Données!$U$19+15)*4),1,2) -> 2 | K152: =INDEX('Factures élec'!$L$4:$M$15,C152,J152) -> 
A153: 2022-01-02T13:15:00 | B153: =IF(OR(AND(D153=1,C153=1),AND(D153=Titres!$O$15,C153=Titres!$P$15),AND(D153=1,C153=5),AND(D153=Titres!$O$17,C153=Titres!$P$17),AND(D153=Titres!$O$18,C153=Titres!$P$18),AND(D153=21,C153=7),AND(D153=15,C153=8),AND(D153=1,C153=11),AND(D153=11,C153=11),AND(D153=25,C153=12)),1,0) -> 0 | C153: 1 | D153: 2 | E153: 7 | F153: 54 | G153: =MAX(0,H153*IF(B153=1,INDEX(Données!$O$31:$O$126,F153),INDEX(Données!$F$31:$F$702,E153*96-96+F153))) -> 6.471938484 | H153: =1+INDEX(DJ!$B$109:$M$139,D153,C153) -> 0.04650232969 | I153: =IF($O$1=1,N153,K153*IF(B153=1,INDEX(Données!$N$31:$N$126,F153),INDEX(Données!$E$31:$E$702,(E153-1)*96+F153))) -> 0 | J153: =IF(AND(E153<=5,B153=0,F153>Données!$U$19*4,F153<=(Données!$U$19+15)*4),1,2) -> 2 | K153: =INDEX('Factures élec'!$L$4:$M$15,C153,J153) -> 
A154: 2022-01-02T13:30:00 | B154: =IF(OR(AND(D154=1,C154=1),AND(D154=Titres!$O$15,C154=Titres!$P$15),AND(D154=1,C154=5),AND(D154=Titres!$O$17,C154=Titres!$P$17),AND(D154=Titres!$O$18,C154=Titres!$P$18),AND(D154=21,C154=7),AND(D154=15,C154=8),AND(D154=1,C154=11),AND(D154=11,C154=11),AND(D154=25,C154=12)),1,0) -> 0 | C154: 1 | D154: 2 | E154: 7 | F154: 55 | G154: =MAX(0,H154*IF(B154=1,INDEX(Données!$O$31:$O$126,F154),INDEX(Données!$F$31:$F$702,E154*96-96+F154))) -> 6.471938484 | H154: =1+INDEX(DJ!$B$109:$M$139,D154,C154) -> 0.04650232969 | I154: =IF($O$1=1,N154,K154*IF(B154=1,INDEX(Données!$N$31:$N$126,F154),INDEX(Données!$E$31:$E$702,(E154-1)*96+F154))) -> 0 | J154: =IF(AND(E154<=5,B154=0,F154>Données!$U$19*4,F154<=(Données!$U$19+15)*4),1,2) -> 2 | K154: =INDEX('Factures élec'!$L$4:$M$15,C154,J154) -> 
A155: 2022-01-02T13:45:00 | B155: =IF(OR(AND(D155=1,C155=1),AND(D155=Titres!$O$15,C155=Titres!$P$15),AND(D155=1,C155=5),AND(D155=Titres!$O$17,C155=Titres!$P$17),AND(D155=Titres!$O$18,C155=Titres!$P$18),AND(D155=21,C155=7),AND(D155=15,C155=8),AND(D155=1,C155=11),AND(D155=11,C155=11),AND(D155=25,C155=12)),1,0) -> 0 | C155: 1 | D155: 2 | E155: 7 | F155: 56 | G155: =MAX(0,H155*IF(B155=1,INDEX(Données!$O$31:$O$126,F155),INDEX(Données!$F$31:$F$702,E155*96-96+F155))) -> 6.471938484 | H155: =1+INDEX(DJ!$B$109:$M$139,D155,C155) -> 0.04650232969 | I155: =IF($O$1=1,N155,K155*IF(B155=1,INDEX(Données!$N$31:$N$126,F155),INDEX(Données!$E$31:$E$702,(E155-1)*96+F155))) -> 0 | J155: =IF(AND(E155<=5,B155=0,F155>Données!$U$19*4,F155<=(Données!$U$19+15)*4),1,2) -> 2 | K155: =INDEX('Factures élec'!$L$4:$M$15,C155,J155) -> 
A156: 2022-01-02T14:00:00 | B156: =IF(OR(AND(D156=1,C156=1),AND(D156=Titres!$O$15,C156=Titres!$P$15),AND(D156=1,C156=5),AND(D156=Titres!$O$17,C156=Titres!$P$17),AND(D156=Titres!$O$18,C156=Titres!$P$18),AND(D156=21,C156=7),AND(D156=15,C156=8),AND(D156=1,C156=11),AND(D156=11,C156=11),AND(D156=25,C156=12)),1,0) -> 0 | C156: 1 | D156: 2 | E156: 7 | F156: 57 | G156: =MAX(0,H156*IF(B156=1,INDEX(Données!$O$31:$O$126,F156),INDEX(Données!$F$31:$F$702,E156*96-96+F156))) -> 6.457162369 | H156: =1+INDEX(DJ!$B$109:$M$139,D156,C156) -> 0.04650232969 | I156: =IF($O$1=1,N156,K156*IF(B156=1,INDEX(Données!$N$31:$N$126,F156),INDEX(Données!$E$31:$E$702,(E156-1)*96+F156))) -> 0 | J156: =IF(AND(E156<=5,B156=0,F156>Données!$U$19*4,F156<=(Données!$U$19+15)*4),1,2) -> 2 | K156: =INDEX('Factures élec'!$L$4:$M$15,C156,J156) -> 
A157: 2022-01-02T14:15:00 | B157: =IF(OR(AND(D157=1,C157=1),AND(D157=Titres!$O$15,C157=Titres!$P$15),AND(D157=1,C157=5),AND(D157=Titres!$O$17,C157=Titres!$P$17),AND(D157=Titres!$O$18,C157=Titres!$P$18),AND(D157=21,C157=7),AND(D157=15,C157=8),AND(D157=1,C157=11),AND(D157=11,C157=11),AND(D157=25,C157=12)),1,0) -> 0 | C157: 1 | D157: 2 | E157: 7 | F157: 58 | G157: =MAX(0,H157*IF(B157=1,INDEX(Données!$O$31:$O$126,F157),INDEX(Données!$F$31:$F$702,E157*96-96+F157))) -> 6.457162369 | H157: =1+INDEX(DJ!$B$109:$M$139,D157,C157) -> 0.04650232969 | I157: =IF($O$1=1,N157,K157*IF(B157=1,INDEX(Données!$N$31:$N$126,F157),INDEX(Données!$E$31:$E$702,(E157-1)*96+F157))) -> 0 | J157: =IF(AND(E157<=5,B157=0,F157>Données!$U$19*4,F157<=(Données!$U$19+15)*4),1,2) -> 2 | K157: =INDEX('Factures élec'!$L$4:$M$15,C157,J157) -> 
A158: 2022-01-02T14:30:00 | B158: =IF(OR(AND(D158=1,C158=1),AND(D158=Titres!$O$15,C158=Titres!$P$15),AND(D158=1,C158=5),AND(D158=Titres!$O$17,C158=Titres!$P$17),AND(D158=Titres!$O$18,C158=Titres!$P$18),AND(D158=21,C158=7),AND(D158=15,C158=8),AND(D158=1,C158=11),AND(D158=11,C158=11),AND(D158=25,C158=12)),1,0) -> 0 | C158: 1 | D158: 2 | E158: 7 | F158: 59 | G158: =MAX(0,H158*IF(B158=1,INDEX(Données!$O$31:$O$126,F158),INDEX(Données!$F$31:$F$702,E158*96-96+F158))) -> 6.457162369 | H158: =1+INDEX(DJ!$B$109:$M$139,D158,C158) -> 0.04650232969 | I158: =IF($O$1=1,N158,K158*IF(B158=1,INDEX(Données!$N$31:$N$126,F158),INDEX(Données!$E$31:$E$702,(E158-1)*96+F158))) -> 0 | J158: =IF(AND(E158<=5,B158=0,F158>Données!$U$19*4,F158<=(Données!$U$19+15)*4),1,2) -> 2 | K158: =INDEX('Factures élec'!$L$4:$M$15,C158,J158) -> 
A159: 2022-01-02T14:45:00 | B159: =IF(OR(AND(D159=1,C159=1),AND(D159=Titres!$O$15,C159=Titres!$P$15),AND(D159=1,C159=5),AND(D159=Titres!$O$17,C159=Titres!$P$17),AND(D159=Titres!$O$18,C159=Titres!$P$18),AND(D159=21,C159=7),AND(D159=15,C159=8),AND(D159=1,C159=11),AND(D159=11,C159=11),AND(D159=25,C159=12)),1,0) -> 0 | C159: 1 | D159: 2 | E159: 7 | F159: 60 | G159: =MAX(0,H159*IF(B159=1,INDEX(Données!$O$31:$O$126,F159),INDEX(Données!$F$31:$F$702,E159*96-96+F159))) -> 6.457162369 | H159: =1+INDEX(DJ!$B$109:$M$139,D159,C159) -> 0.04650232969 | I159: =IF($O$1=1,N159,K159*IF(B159=1,INDEX(Données!$N$31:$N$126,F159),INDEX(Données!$E$31:$E$702,(E159-1)*96+F159))) -> 0 | J159: =IF(AND(E159<=5,B159=0,F159>Données!$U$19*4,F159<=(Données!$U$19+15)*4),1,2) -> 2 | K159: =INDEX('Factures élec'!$L$4:$M$15,C159,J159) -> 
A160: 2022-01-02T15:00:00 | B160: =IF(OR(AND(D160=1,C160=1),AND(D160=Titres!$O$15,C160=Titres!$P$15),AND(D160=1,C160=5),AND(D160=Titres!$O$17,C160=Titres!$P$17),AND(D160=Titres!$O$18,C160=Titres!$P$18),AND(D160=21,C160=7),AND(D160=15,C160=8),AND(D160=1,C160=11),AND(D160=11,C160=11),AND(D160=25,C160=12)),1,0) -> 0 | C160: 1 | D160: 2 | E160: 7 | F160: 61 | G160: =MAX(0,H160*IF(B160=1,INDEX(Données!$O$31:$O$126,F160),INDEX(Données!$F$31:$F$702,E160*96-96+F160))) -> 6.531042945 | H160: =1+INDEX(DJ!$B$109:$M$139,D160,C160) -> 0.04650232969 | I160: =IF($O$1=1,N160,K160*IF(B160=1,INDEX(Données!$N$31:$N$126,F160),INDEX(Données!$E$31:$E$702,(E160-1)*96+F160))) -> 0 | J160: =IF(AND(E160<=5,B160=0,F160>Données!$U$19*4,F160<=(Données!$U$19+15)*4),1,2) -> 2 | K160: =INDEX('Factures élec'!$L$4:$M$15,C160,J160) -> 
A161: 2022-01-02T15:15:00 | B161: =IF(OR(AND(D161=1,C161=1),AND(D161=Titres!$O$15,C161=Titres!$P$15),AND(D161=1,C161=5),AND(D161=Titres!$O$17,C161=Titres!$P$17),AND(D161=Titres!$O$18,C161=Titres!$P$18),AND(D161=21,C161=7),AND(D161=15,C161=8),AND(D161=1,C161=11),AND(D161=11,C161=11),AND(D161=25,C161=12)),1,0) -> 0 | C161: 1 | D161: 2 | E161: 7 | F161: 62 | G161: =MAX(0,H161*IF(B161=1,INDEX(Données!$O$31:$O$126,F161),INDEX(Données!$F$31:$F$702,E161*96-96+F161))) -> 6.531042945 | H161: =1+INDEX(DJ!$B$109:$M$139,D161,C161) -> 0.04650232969 | I161: =IF($O$1=1,N161,K161*IF(B161=1,INDEX(Données!$N$31:$N$126,F161),INDEX(Données!$E$31:$E$702,(E161-1)*96+F161))) -> 0 | J161: =IF(AND(E161<=5,B161=0,F161>Données!$U$19*4,F161<=(Données!$U$19+15)*4),1,2) -> 2 | K161: =INDEX('Factures élec'!$L$4:$M$15,C161,J161) -> 
A162: 2022-01-02T15:30:00 | B162: =IF(OR(AND(D162=1,C162=1),AND(D162=Titres!$O$15,C162=Titres!$P$15),AND(D162=1,C162=5),AND(D162=Titres!$O$17,C162=Titres!$P$17),AND(D162=Titres!$O$18,C162=Titres!$P$18),AND(D162=21,C162=7),AND(D162=15,C162=8),AND(D162=1,C162=11),AND(D162=11,C162=11),AND(D162=25,C162=12)),1,0) -> 0 | C162: 1 | D162: 2 | E162: 7 | F162: 63 | G162: =MAX(0,H162*IF(B162=1,INDEX(Données!$O$31:$O$126,F162),INDEX(Données!$F$31:$F$702,E162*96-96+F162))) -> 6.531042945 | H162: =1+INDEX(DJ!$B$109:$M$139,D162,C162) -> 0.04650232969 | I162: =IF($O$1=1,N162,K162*IF(B162=1,INDEX(Données!$N$31:$N$126,F162),INDEX(Données!$E$31:$E$702,(E162-1)*96+F162))) -> 0 | J162: =IF(AND(E162<=5,B162=0,F162>Données!$U$19*4,F162<=(Données!$U$19+15)*4),1,2) -> 2 | K162: =INDEX('Factures élec'!$L$4:$M$15,C162,J162) -> 
A163: 2022-01-02T15:45:00 | B163: =IF(OR(AND(D163=1,C163=1),AND(D163=Titres!$O$15,C163=Titres!$P$15),AND(D163=1,C163=5),AND(D163=Titres!$O$17,C163=Titres!$P$17),AND(D163=Titres!$O$18,C163=Titres!$P$18),AND(D163=21,C163=7),AND(D163=15,C163=8),AND(D163=1,C163=11),AND(D163=11,C163=11),AND(D163=25,C163=12)),1,0) -> 0 | C163: 1 | D163: 2 | E163: 7 | F163: 64 | G163: =MAX(0,H163*IF(B163=1,INDEX(Données!$O$31:$O$126,F163),INDEX(Données!$F$31:$F$702,E163*96-96+F163))) -> 6.531042945 | H163: =1+INDEX(DJ!$B$109:$M$139,D163,C163) -> 0.04650232969 | I163: =IF($O$1=1,N163,K163*IF(B163=1,INDEX(Données!$N$31:$N$126,F163),INDEX(Données!$E$31:$E$702,(E163-1)*96+F163))) -> 0 | J163: =IF(AND(E163<=5,B163=0,F163>Données!$U$19*4,F163<=(Données!$U$19+15)*4),1,2) -> 2 | K163: =INDEX('Factures élec'!$L$4:$M$15,C163,J163) -> 
A164: 2022-01-02T16:00:00 | B164: =IF(OR(AND(D164=1,C164=1),AND(D164=Titres!$O$15,C164=Titres!$P$15),AND(D164=1,C164=5),AND(D164=Titres!$O$17,C164=Titres!$P$17),AND(D164=Titres!$O$18,C164=Titres!$P$18),AND(D164=21,C164=7),AND(D164=15,C164=8),AND(D164=1,C164=11),AND(D164=11,C164=11),AND(D164=25,C164=12)),1,0) -> 0 | C164: 1 | D164: 2 | E164: 7 | F164: 65 | G164: =MAX(0,H164*IF(B164=1,INDEX(Données!$O$31:$O$126,F164),INDEX(Données!$F$31:$F$702,E164*96-96+F164))) -> 6.457162369 | H164: =1+INDEX(DJ!$B$109:$M$139,D164,C164) -> 0.04650232969 | I164: =IF($O$1=1,N164,K164*IF(B164=1,INDEX(Données!$N$31:$N$126,F164),INDEX(Données!$E$31:$E$702,(E164-1)*96+F164))) -> 0 | J164: =IF(AND(E164<=5,B164=0,F164>Données!$U$19*4,F164<=(Données!$U$19+15)*4),1,2) -> 2 | K164: =INDEX('Factures élec'!$L$4:$M$15,C164,J164) -> 
A165: 2022-01-02T16:15:00 | B165: =IF(OR(AND(D165=1,C165=1),AND(D165=Titres!$O$15,C165=Titres!$P$15),AND(D165=1,C165=5),AND(D165=Titres!$O$17,C165=Titres!$P$17),AND(D165=Titres!$O$18,C165=Titres!$P$18),AND(D165=21,C165=7),AND(D165=15,C165=8),AND(D165=1,C165=11),AND(D165=11,C165=11),AND(D165=25,C165=12)),1,0) -> 0 | C165: 1 | D165: 2 | E165: 7 | F165: 66 | G165: =MAX(0,H165*IF(B165=1,INDEX(Données!$O$31:$O$126,F165),INDEX(Données!$F$31:$F$702,E165*96-96+F165))) -> 6.457162369 | H165: =1+INDEX(DJ!$B$109:$M$139,D165,C165) -> 0.04650232969 | I165: =IF($O$1=1,N165,K165*IF(B165=1,INDEX(Données!$N$31:$N$126,F165),INDEX(Données!$E$31:$E$702,(E165-1)*96+F165))) -> 0 | J165: =IF(AND(E165<=5,B165=0,F165>Données!$U$19*4,F165<=(Données!$U$19+15)*4),1,2) -> 2 | K165: =INDEX('Factures élec'!$L$4:$M$15,C165,J165) -> 
A166: 2022-01-02T16:30:00 | B166: =IF(OR(AND(D166=1,C166=1),AND(D166=Titres!$O$15,C166=Titres!$P$15),AND(D166=1,C166=5),AND(D166=Titres!$O$17,C166=Titres!$P$17),AND(D166=Titres!$O$18,C166=Titres!$P$18),AND(D166=21,C166=7),AND(D166=15,C166=8),AND(D166=1,C166=11),AND(D166=11,C166=11),AND(D166=25,C166=12)),1,0) -> 0 | C166: 1 | D166: 2 | E166: 7 | F166: 67 | G166: =MAX(0,H166*IF(B166=1,INDEX(Données!$O$31:$O$126,F166),INDEX(Données!$F$31:$F$702,E166*96-96+F166))) -> 6.457162369 | H166: =1+INDEX(DJ!$B$109:$M$139,D166,C166) -> 0.04650232969 | I166: =IF($O$1=1,N166,K166*IF(B166=1,INDEX(Données!$N$31:$N$126,F166),INDEX(Données!$E$31:$E$702,(E166-1)*96+F166))) -> 0 | J166: =IF(AND(E166<=5,B166=0,F166>Données!$U$19*4,F166<=(Données!$U$19+15)*4),1,2) -> 2 | K166: =INDEX('Factures élec'!$L$4:$M$15,C166,J166) -> 
A167: 2022-01-02T16:45:00 | B167: =IF(OR(AND(D167=1,C167=1),AND(D167=Titres!$O$15,C167=Titres!$P$15),AND(D167=1,C167=5),AND(D167=Titres!$O$17,C167=Titres!$P$17),AND(D167=Titres!$O$18,C167=Titres!$P$18),AND(D167=21,C167=7),AND(D167=15,C167=8),AND(D167=1,C167=11),AND(D167=11,C167=11),AND(D167=25,C167=12)),1,0) -> 0 | C167: 1 | D167: 2 | E167: 7 | F167: 68 | G167: =MAX(0,H167*IF(B167=1,INDEX(Données!$O$31:$O$126,F167),INDEX(Données!$F$31:$F$702,E167*96-96+F167))) -> 6.457162369 | H167: =1+INDEX(DJ!$B$109:$M$139,D167,C167) -> 0.04650232969 | I167: =IF($O$1=1,N167,K167*IF(B167=1,INDEX(Données!$N$31:$N$126,F167),INDEX(Données!$E$31:$E$702,(E167-1)*96+F167))) -> 0 | J167: =IF(AND(E167<=5,B167=0,F167>Données!$U$19*4,F167<=(Données!$U$19+15)*4),1,2) -> 2 | K167: =INDEX('Factures élec'!$L$4:$M$15,C167,J167) -> 
A168: 2022-01-02T17:00:00 | B168: =IF(OR(AND(D168=1,C168=1),AND(D168=Titres!$O$15,C168=Titres!$P$15),AND(D168=1,C168=5),AND(D168=Titres!$O$17,C168=Titres!$P$17),AND(D168=Titres!$O$18,C168=Titres!$P$18),AND(D168=21,C168=7),AND(D168=15,C168=8),AND(D168=1,C168=11),AND(D168=11,C168=11),AND(D168=25,C168=12)),1,0) -> 0 | C168: 1 | D168: 2 | E168: 7 | F168: 69 | G168: =MAX(0,H168*IF(B168=1,INDEX(Données!$O$31:$O$126,F168),INDEX(Données!$F$31:$F$702,E168*96-96+F168))) -> 6.575371291 | H168: =1+INDEX(DJ!$B$109:$M$139,D168,C168) -> 0.04650232969 | I168: =IF($O$1=1,N168,K168*IF(B168=1,INDEX(Données!$N$31:$N$126,F168),INDEX(Données!$E$31:$E$702,(E168-1)*96+F168))) -> 0 | J168: =IF(AND(E168<=5,B168=0,F168>Données!$U$19*4,F168<=(Données!$U$19+15)*4),1,2) -> 2 | K168: =INDEX('Factures élec'!$L$4:$M$15,C168,J168) -> 
A169: 2022-01-02T17:15:00 | B169: =IF(OR(AND(D169=1,C169=1),AND(D169=Titres!$O$15,C169=Titres!$P$15),AND(D169=1,C169=5),AND(D169=Titres!$O$17,C169=Titres!$P$17),AND(D169=Titres!$O$18,C169=Titres!$P$18),AND(D169=21,C169=7),AND(D169=15,C169=8),AND(D169=1,C169=11),AND(D169=11,C169=11),AND(D169=25,C169=12)),1,0) -> 0 | C169: 1 | D169: 2 | E169: 7 | F169: 70 | G169: =MAX(0,H169*IF(B169=1,INDEX(Données!$O$31:$O$126,F169),INDEX(Données!$F$31:$F$702,E169*96-96+F169))) -> 6.575371291 | H169: =1+INDEX(DJ!$B$109:$M$139,D169,C169) -> 0.04650232969 | I169: =IF($O$1=1,N169,K169*IF(B169=1,INDEX(Données!$N$31:$N$126,F169),INDEX(Données!$E$31:$E$702,(E169-1)*96+F169))) -> 0 | J169: =IF(AND(E169<=5,B169=0,F169>Données!$U$19*4,F169<=(Données!$U$19+15)*4),1,2) -> 2 | K169: =INDEX('Factures élec'!$L$4:$M$15,C169,J169) -> 
A170: 2022-01-02T17:30:00 | B170: =IF(OR(AND(D170=1,C170=1),AND(D170=Titres!$O$15,C170=Titres!$P$15),AND(D170=1,C170=5),AND(D170=Titres!$O$17,C170=Titres!$P$17),AND(D170=Titres!$O$18,C170=Titres!$P$18),AND(D170=21,C170=7),AND(D170=15,C170=8),AND(D170=1,C170=11),AND(D170=11,C170=11),AND(D170=25,C170=12)),1,0) -> 0 | C170: 1 | D170: 2 | E170: 7 | F170: 71 | G170: =MAX(0,H170*IF(B170=1,INDEX(Données!$O$31:$O$126,F170),INDEX(Données!$F$31:$F$702,E170*96-96+F170))) -> 6.575371291 | H170: =1+INDEX(DJ!$B$109:$M$139,D170,C170) -> 0.04650232969 | I170: =IF($O$1=1,N170,K170*IF(B170=1,INDEX(Données!$N$31:$N$126,F170),INDEX(Données!$E$31:$E$702,(E170-1)*96+F170))) -> 0 | J170: =IF(AND(E170<=5,B170=0,F170>Données!$U$19*4,F170<=(Données!$U$19+15)*4),1,2) -> 2 | K170: =INDEX('Factures élec'!$L$4:$M$15,C170,J170) -> 
A171: 2022-01-02T17:45:00 | B171: =IF(OR(AND(D171=1,C171=1),AND(D171=Titres!$O$15,C171=Titres!$P$15),AND(D171=1,C171=5),AND(D171=Titres!$O$17,C171=Titres!$P$17),AND(D171=Titres!$O$18,C171=Titres!$P$18),AND(D171=21,C171=7),AND(D171=15,C171=8),AND(D171=1,C171=11),AND(D171=11,C171=11),AND(D171=25,C171=12)),1,0) -> 0 | C171: 1 | D171: 2 | E171: 7 | F171: 72 | G171: =MAX(0,H171*IF(B171=1,INDEX(Données!$O$31:$O$126,F171),INDEX(Données!$F$31:$F$702,E171*96-96+F171))) -> 6.575371291 | H171: =1+INDEX(DJ!$B$109:$M$139,D171,C171) -> 0.04650232969 | I171: =IF($O$1=1,N171,K171*IF(B171=1,INDEX(Données!$N$31:$N$126,F171),INDEX(Données!$E$31:$E$702,(E171-1)*96+F171))) -> 0 | J171: =IF(AND(E171<=5,B171=0,F171>Données!$U$19*4,F171<=(Données!$U$19+15)*4),1,2) -> 2 | K171: =INDEX('Factures élec'!$L$4:$M$15,C171,J171) -> 
A172: 2022-01-02T18:00:00 | B172: =IF(OR(AND(D172=1,C172=1),AND(D172=Titres!$O$15,C172=Titres!$P$15),AND(D172=1,C172=5),AND(D172=Titres!$O$17,C172=Titres!$P$17),AND(D172=Titres!$O$18,C172=Titres!$P$18),AND(D172=21,C172=7),AND(D172=15,C172=8),AND(D172=1,C172=11),AND(D172=11,C172=11),AND(D172=25,C172=12)),1,0) -> 0 | C172: 1 | D172: 2 | E172: 7 | F172: 73 | G172: =MAX(0,H172*IF(B172=1,INDEX(Données!$O$31:$O$126,F172),INDEX(Données!$F$31:$F$702,E172*96-96+F172))) -> 6.959550287 | H172: =1+INDEX(DJ!$B$109:$M$139,D172,C172) -> 0.04650232969 | I172: =IF($O$1=1,N172,K172*IF(B172=1,INDEX(Données!$N$31:$N$126,F172),INDEX(Données!$E$31:$E$702,(E172-1)*96+F172))) -> 0 | J172: =IF(AND(E172<=5,B172=0,F172>Données!$U$19*4,F172<=(Données!$U$19+15)*4),1,2) -> 2 | K172: =INDEX('Factures élec'!$L$4:$M$15,C172,J172) -> 
A173: 2022-01-02T18:15:00 | B173: =IF(OR(AND(D173=1,C173=1),AND(D173=Titres!$O$15,C173=Titres!$P$15),AND(D173=1,C173=5),AND(D173=Titres!$O$17,C173=Titres!$P$17),AND(D173=Titres!$O$18,C173=Titres!$P$18),AND(D173=21,C173=7),AND(D173=15,C173=8),AND(D173=1,C173=11),AND(D173=11,C173=11),AND(D173=25,C173=12)),1,0) -> 0 | C173: 1 | D173: 2 | E173: 7 | F173: 74 | G173: =MAX(0,H173*IF(B173=1,INDEX(Données!$O$31:$O$126,F173),INDEX(Données!$F$31:$F$702,E173*96-96+F173))) -> 6.959550287 | H173: =1+INDEX(DJ!$B$109:$M$139,D173,C173) -> 0.04650232969 | I173: =IF($O$1=1,N173,K173*IF(B173=1,INDEX(Données!$N$31:$N$126,F173),INDEX(Données!$E$31:$E$702,(E173-1)*96+F173))) -> 0 | J173: =IF(AND(E173<=5,B173=0,F173>Données!$U$19*4,F173<=(Données!$U$19+15)*4),1,2) -> 2 | K173: =INDEX('Factures élec'!$L$4:$M$15,C173,J173) -> 
A174: 2022-01-02T18:30:00 | B174: =IF(OR(AND(D174=1,C174=1),AND(D174=Titres!$O$15,C174=Titres!$P$15),AND(D174=1,C174=5),AND(D174=Titres!$O$17,C174=Titres!$P$17),AND(D174=Titres!$O$18,C174=Titres!$P$18),AND(D174=21,C174=7),AND(D174=15,C174=8),AND(D174=1,C174=11),AND(D174=11,C174=11),AND(D174=25,C174=12)),1,0) -> 0 | C174: 1 | D174: 2 | E174: 7 | F174: 75 | G174: =MAX(0,H174*IF(B174=1,INDEX(Données!$O$31:$O$126,F174),INDEX(Données!$F$31:$F$702,E174*96-96+F174))) -> 6.959550287 | H174: =1+INDEX(DJ!$B$109:$M$139,D174,C174) -> 0.04650232969 | I174: =IF($O$1=1,N174,K174*IF(B174=1,INDEX(Données!$N$31:$N$126,F174),INDEX(Données!$E$31:$E$702,(E174-1)*96+F174))) -> 0 | J174: =IF(AND(E174<=5,B174=0,F174>Données!$U$19*4,F174<=(Données!$U$19+15)*4),1,2) -> 2 | K174: =INDEX('Factures élec'!$L$4:$M$15,C174,J174) -> 
A175: 2022-01-02T18:45:00 | B175: =IF(OR(AND(D175=1,C175=1),AND(D175=Titres!$O$15,C175=Titres!$P$15),AND(D175=1,C175=5),AND(D175=Titres!$O$17,C175=Titres!$P$17),AND(D175=Titres!$O$18,C175=Titres!$P$18),AND(D175=21,C175=7),AND(D175=15,C175=8),AND(D175=1,C175=11),AND(D175=11,C175=11),AND(D175=25,C175=12)),1,0) -> 0 | C175: 1 | D175: 2 | E175: 7 | F175: 76 | G175: =MAX(0,H175*IF(B175=1,INDEX(Données!$O$31:$O$126,F175),INDEX(Données!$F$31:$F$702,E175*96-96+F175))) -> 6.959550287 | H175: =1+INDEX(DJ!$B$109:$M$139,D175,C175) -> 0.04650232969 | I175: =IF($O$1=1,N175,K175*IF(B175=1,INDEX(Données!$N$31:$N$126,F175),INDEX(Données!$E$31:$E$702,(E175-1)*96+F175))) -> 0 | J175: =IF(AND(E175<=5,B175=0,F175>Données!$U$19*4,F175<=(Données!$U$19+15)*4),1,2) -> 2 | K175: =INDEX('Factures élec'!$L$4:$M$15,C175,J175) -> 
A176: 2022-01-02T19:00:00 | B176: =IF(OR(AND(D176=1,C176=1),AND(D176=Titres!$O$15,C176=Titres!$P$15),AND(D176=1,C176=5),AND(D176=Titres!$O$17,C176=Titres!$P$17),AND(D176=Titres!$O$18,C176=Titres!$P$18),AND(D176=21,C176=7),AND(D176=15,C176=8),AND(D176=1,C176=11),AND(D176=11,C176=11),AND(D176=25,C176=12)),1,0) -> 0 | C176: 1 | D176: 2 | E176: 7 | F176: 77 | G176: =MAX(0,H176*IF(B176=1,INDEX(Données!$O$31:$O$126,F176),INDEX(Données!$F$31:$F$702,E176*96-96+F176))) -> 6.619699637 | H176: =1+INDEX(DJ!$B$109:$M$139,D176,C176) -> 0.04650232969 | I176: =IF($O$1=1,N176,K176*IF(B176=1,INDEX(Données!$N$31:$N$126,F176),INDEX(Données!$E$31:$E$702,(E176-1)*96+F176))) -> 0 | J176: =IF(AND(E176<=5,B176=0,F176>Données!$U$19*4,F176<=(Données!$U$19+15)*4),1,2) -> 2 | K176: =INDEX('Factures élec'!$L$4:$M$15,C176,J176) -> 
A177: 2022-01-02T19:15:00 | B177: =IF(OR(AND(D177=1,C177=1),AND(D177=Titres!$O$15,C177=Titres!$P$15),AND(D177=1,C177=5),AND(D177=Titres!$O$17,C177=Titres!$P$17),AND(D177=Titres!$O$18,C177=Titres!$P$18),AND(D177=21,C177=7),AND(D177=15,C177=8),AND(D177=1,C177=11),AND(D177=11,C177=11),AND(D177=25,C177=12)),1,0) -> 0 | C177: 1 | D177: 2 | E177: 7 | F177: 78 | G177: =MAX(0,H177*IF(B177=1,INDEX(Données!$O$31:$O$126,F177),INDEX(Données!$F$31:$F$702,E177*96-96+F177))) -> 6.619699637 | H177: =1+INDEX(DJ!$B$109:$M$139,D177,C177) -> 0.04650232969 | I177: =IF($O$1=1,N177,K177*IF(B177=1,INDEX(Données!$N$31:$N$126,F177),INDEX(Données!$E$31:$E$702,(E177-1)*96+F177))) -> 0 | J177: =IF(AND(E177<=5,B177=0,F177>Données!$U$19*4,F177<=(Données!$U$19+15)*4),1,2) -> 2 | K177: =INDEX('Factures élec'!$L$4:$M$15,C177,J177) -> 
A178: 2022-01-02T19:30:00 | B178: =IF(OR(AND(D178=1,C178=1),AND(D178=Titres!$O$15,C178=Titres!$P$15),AND(D178=1,C178=5),AND(D178=Titres!$O$17,C178=Titres!$P$17),AND(D178=Titres!$O$18,C178=Titres!$P$18),AND(D178=21,C178=7),AND(D178=15,C178=8),AND(D178=1,C178=11),AND(D178=11,C178=11),AND(D178=25,C178=12)),1,0) -> 0 | C178: 1 | D178: 2 | E178: 7 | F178: 79 | G178: =MAX(0,H178*IF(B178=1,INDEX(Données!$O$31:$O$126,F178),INDEX(Données!$F$31:$F$702,E178*96-96+F178))) -> 6.619699637 | H178: =1+INDEX(DJ!$B$109:$M$139,D178,C178) -> 0.04650232969 | I178: =IF($O$1=1,N178,K178*IF(B178=1,INDEX(Données!$N$31:$N$126,F178),INDEX(Données!$E$31:$E$702,(E178-1)*96+F178))) -> 0 | J178: =IF(AND(E178<=5,B178=0,F178>Données!$U$19*4,F178<=(Données!$U$19+15)*4),1,2) -> 2 | K178: =INDEX('Factures élec'!$L$4:$M$15,C178,J178) -> 
A179: 2022-01-02T19:45:00 | B179: =IF(OR(AND(D179=1,C179=1),AND(D179=Titres!$O$15,C179=Titres!$P$15),AND(D179=1,C179=5),AND(D179=Titres!$O$17,C179=Titres!$P$17),AND(D179=Titres!$O$18,C179=Titres!$P$18),AND(D179=21,C179=7),AND(D179=15,C179=8),AND(D179=1,C179=11),AND(D179=11,C179=11),AND(D179=25,C179=12)),1,0) -> 0 | C179: 1 | D179: 2 | E179: 7 | F179: 80 | G179: =MAX(0,H179*IF(B179=1,INDEX(Données!$O$31:$O$126,F179),INDEX(Données!$F$31:$F$702,E179*96-96+F179))) -> 6.619699637 | H179: =1+INDEX(DJ!$B$109:$M$139,D179,C179) -> 0.04650232969 | I179: =IF($O$1=1,N179,K179*IF(B179=1,INDEX(Données!$N$31:$N$126,F179),INDEX(Données!$E$31:$E$702,(E179-1)*96+F179))) -> 0 | J179: =IF(AND(E179<=5,B179=0,F179>Données!$U$19*4,F179<=(Données!$U$19+15)*4),1,2) -> 2 | K179: =INDEX('Factures élec'!$L$4:$M$15,C179,J179) -> 
A180: 2022-01-02T20:00:00 | B180: =IF(OR(AND(D180=1,C180=1),AND(D180=Titres!$O$15,C180=Titres!$P$15),AND(D180=1,C180=5),AND(D180=Titres!$O$17,C180=Titres!$P$17),AND(D180=Titres!$O$18,C180=Titres!$P$18),AND(D180=21,C180=7),AND(D180=15,C180=8),AND(D180=1,C180=11),AND(D180=11,C180=11),AND(D180=25,C180=12)),1,0) -> 0 | C180: 1 | D180: 2 | E180: 7 | F180: 81 | G180: =MAX(0,H180*IF(B180=1,INDEX(Données!$O$31:$O$126,F180),INDEX(Données!$F$31:$F$702,E180*96-96+F180))) -> 6.26507287 | H180: =1+INDEX(DJ!$B$109:$M$139,D180,C180) -> 0.04650232969 | I180: =IF($O$1=1,N180,K180*IF(B180=1,INDEX(Données!$N$31:$N$126,F180),INDEX(Données!$E$31:$E$702,(E180-1)*96+F180))) -> 0 | J180: =IF(AND(E180<=5,B180=0,F180>Données!$U$19*4,F180<=(Données!$U$19+15)*4),1,2) -> 2 | K180: =INDEX('Factures élec'!$L$4:$M$15,C180,J180) -> 
A181: 2022-01-02T20:15:00 | B181: =IF(OR(AND(D181=1,C181=1),AND(D181=Titres!$O$15,C181=Titres!$P$15),AND(D181=1,C181=5),AND(D181=Titres!$O$17,C181=Titres!$P$17),AND(D181=Titres!$O$18,C181=Titres!$P$18),AND(D181=21,C181=7),AND(D181=15,C181=8),AND(D181=1,C181=11),AND(D181=11,C181=11),AND(D181=25,C181=12)),1,0) -> 0 | C181: 1 | D181: 2 | E181: 7 | F181: 82 | G181: =MAX(0,H181*IF(B181=1,INDEX(Données!$O$31:$O$126,F181),INDEX(Données!$F$31:$F$702,E181*96-96+F181))) -> 6.26507287 | H181: =1+INDEX(DJ!$B$109:$M$139,D181,C181) -> 0.04650232969 | I181: =IF($O$1=1,N181,K181*IF(B181=1,INDEX(Données!$N$31:$N$126,F181),INDEX(Données!$E$31:$E$702,(E181-1)*96+F181))) -> 0 | J181: =IF(AND(E181<=5,B181=0,F181>Données!$U$19*4,F181<=(Données!$U$19+15)*4),1,2) -> 2 | K181: =INDEX('Factures élec'!$L$4:$M$15,C181,J181) -> 
A182: 2022-01-02T20:30:00 | B182: =IF(OR(AND(D182=1,C182=1),AND(D182=Titres!$O$15,C182=Titres!$P$15),AND(D182=1,C182=5),AND(D182=Titres!$O$17,C182=Titres!$P$17),AND(D182=Titres!$O$18,C182=Titres!$P$18),AND(D182=21,C182=7),AND(D182=15,C182=8),AND(D182=1,C182=11),AND(D182=11,C182=11),AND(D182=25,C182=12)),1,0) -> 0 | C182: 1 | D182: 2 | E182: 7 | F182: 83 | G182: =MAX(0,H182*IF(B182=1,INDEX(Données!$O$31:$O$126,F182),INDEX(Données!$F$31:$F$702,E182*96-96+F182))) -> 6.26507287 | H182: =1+INDEX(DJ!$B$109:$M$139,D182,C182) -> 0.04650232969 | I182: =IF($O$1=1,N182,K182*IF(B182=1,INDEX(Données!$N$31:$N$126,F182),INDEX(Données!$E$31:$E$702,(E182-1)*96+F182))) -> 0 | J182: =IF(AND(E182<=5,B182=0,F182>Données!$U$19*4,F182<=(Données!$U$19+15)*4),1,2) -> 2 | K182: =INDEX('Factures élec'!$L$4:$M$15,C182,J182) -> 
A183: 2022-01-02T20:45:00 | B183: =IF(OR(AND(D183=1,C183=1),AND(D183=Titres!$O$15,C183=Titres!$P$15),AND(D183=1,C183=5),AND(D183=Titres!$O$17,C183=Titres!$P$17),AND(D183=Titres!$O$18,C183=Titres!$P$18),AND(D183=21,C183=7),AND(D183=15,C183=8),AND(D183=1,C183=11),AND(D183=11,C183=11),AND(D183=25,C183=12)),1,0) -> 0 | C183: 1 | D183: 2 | E183: 7 | F183: 84 | G183: =MAX(0,H183*IF(B183=1,INDEX(Données!$O$31:$O$126,F183),INDEX(Données!$F$31:$F$702,E183*96-96+F183))) -> 6.26507287 | H183: =1+INDEX(DJ!$B$109:$M$139,D183,C183) -> 0.04650232969 | I183: =IF($O$1=1,N183,K183*IF(B183=1,INDEX(Données!$N$31:$N$126,F183),INDEX(Données!$E$31:$E$702,(E183-1)*96+F183))) -> 0 | J183: =IF(AND(E183<=5,B183=0,F183>Données!$U$19*4,F183<=(Données!$U$19+15)*4),1,2) -> 2 | K183: =INDEX('Factures élec'!$L$4:$M$15,C183,J183) -> 
A184: 2022-01-02T21:00:00 | B184: =IF(OR(AND(D184=1,C184=1),AND(D184=Titres!$O$15,C184=Titres!$P$15),AND(D184=1,C184=5),AND(D184=Titres!$O$17,C184=Titres!$P$17),AND(D184=Titres!$O$18,C184=Titres!$P$18),AND(D184=21,C184=7),AND(D184=15,C184=8),AND(D184=1,C184=11),AND(D184=11,C184=11),AND(D184=25,C184=12)),1,0) -> 0 | C184: 1 | D184: 2 | E184: 7 | F184: 85 | G184: =MAX(0,H184*IF(B184=1,INDEX(Données!$O$31:$O$126,F184),INDEX(Données!$F$31:$F$702,E184*96-96+F184))) -> 6.279848986 | H184: =1+INDEX(DJ!$B$109:$M$139,D184,C184) -> 0.04650232969 | I184: =IF($O$1=1,N184,K184*IF(B184=1,INDEX(Données!$N$31:$N$126,F184),INDEX(Données!$E$31:$E$702,(E184-1)*96+F184))) -> 0 | J184: =IF(AND(E184<=5,B184=0,F184>Données!$U$19*4,F184<=(Données!$U$19+15)*4),1,2) -> 2 | K184: =INDEX('Factures élec'!$L$4:$M$15,C184,J184) -> 
A185: 2022-01-02T21:15:00 | B185: =IF(OR(AND(D185=1,C185=1),AND(D185=Titres!$O$15,C185=Titres!$P$15),AND(D185=1,C185=5),AND(D185=Titres!$O$17,C185=Titres!$P$17),AND(D185=Titres!$O$18,C185=Titres!$P$18),AND(D185=21,C185=7),AND(D185=15,C185=8),AND(D185=1,C185=11),AND(D185=11,C185=11),AND(D185=25,C185=12)),1,0) -> 0 | C185: 1 | D185: 2 | E185: 7 | F185: 86 | G185: =MAX(0,H185*IF(B185=1,INDEX(Données!$O$31:$O$126,F185),INDEX(Données!$F$31:$F$702,E185*96-96+F185))) -> 6.279848986 | H185: =1+INDEX(DJ!$B$109:$M$139,D185,C185) -> 0.04650232969 | I185: =IF($O$1=1,N185,K185*IF(B185=1,INDEX(Données!$N$31:$N$126,F185),INDEX(Données!$E$31:$E$702,(E185-1)*96+F185))) -> 0 | J185: =IF(AND(E185<=5,B185=0,F185>Données!$U$19*4,F185<=(Données!$U$19+15)*4),1,2) -> 2 | K185: =INDEX('Factures élec'!$L$4:$M$15,C185,J185) -> 
A186: 2022-01-02T21:30:00 | B186: =IF(OR(AND(D186=1,C186=1),AND(D186=Titres!$O$15,C186=Titres!$P$15),AND(D186=1,C186=5),AND(D186=Titres!$O$17,C186=Titres!$P$17),AND(D186=Titres!$O$18,C186=Titres!$P$18),AND(D186=21,C186=7),AND(D186=15,C186=8),AND(D186=1,C186=11),AND(D186=11,C186=11),AND(D186=25,C186=12)),1,0) -> 0 | C186: 1 | D186: 2 | E186: 7 | F186: 87 | G186: =MAX(0,H186*IF(B186=1,INDEX(Données!$O$31:$O$126,F186),INDEX(Données!$F$31:$F$702,E186*96-96+F186))) -> 6.279848986 | H186: =1+INDEX(DJ!$B$109:$M$139,D186,C186) -> 0.04650232969 | I186: =IF($O$1=1,N186,K186*IF(B186=1,INDEX(Données!$N$31:$N$126,F186),INDEX(Données!$E$31:$E$702,(E186-1)*96+F186))) -> 0 | J186: =IF(AND(E186<=5,B186=0,F186>Données!$U$19*4,F186<=(Données!$U$19+15)*4),1,2) -> 2 | K186: =INDEX('Factures élec'!$L$4:$M$15,C186,J186) -> 
A187: 2022-01-02T21:45:00 | B187: =IF(OR(AND(D187=1,C187=1),AND(D187=Titres!$O$15,C187=Titres!$P$15),AND(D187=1,C187=5),AND(D187=Titres!$O$17,C187=Titres!$P$17),AND(D187=Titres!$O$18,C187=Titres!$P$18),AND(D187=21,C187=7),AND(D187=15,C187=8),AND(D187=1,C187=11),AND(D187=11,C187=11),AND(D187=25,C187=12)),1,0) -> 0 | C187: 1 | D187: 2 | E187: 7 | F187: 88 | G187: =MAX(0,H187*IF(B187=1,INDEX(Données!$O$31:$O$126,F187),INDEX(Données!$F$31:$F$702,E187*96-96+F187))) -> 6.279848986 | H187: =1+INDEX(DJ!$B$109:$M$139,D187,C187) -> 0.04650232969 | I187: =IF($O$1=1,N187,K187*IF(B187=1,INDEX(Données!$N$31:$N$126,F187),INDEX(Données!$E$31:$E$702,(E187-1)*96+F187))) -> 0 | J187: =IF(AND(E187<=5,B187=0,F187>Données!$U$19*4,F187<=(Données!$U$19+15)*4),1,2) -> 2 | K187: =INDEX('Factures élec'!$L$4:$M$15,C187,J187) -> 
A188: 2022-01-02T22:00:00 | B188: =IF(OR(AND(D188=1,C188=1),AND(D188=Titres!$O$15,C188=Titres!$P$15),AND(D188=1,C188=5),AND(D188=Titres!$O$17,C188=Titres!$P$17),AND(D188=Titres!$O$18,C188=Titres!$P$18),AND(D188=21,C188=7),AND(D188=15,C188=8),AND(D188=1,C188=11),AND(D188=11,C188=11),AND(D188=25,C188=12)),1,0) -> 0 | C188: 1 | D188: 2 | E188: 7 | F188: 89 | G188: =MAX(0,H188*IF(B188=1,INDEX(Données!$O$31:$O$126,F188),INDEX(Données!$F$31:$F$702,E188*96-96+F188))) -> 5.038655304 | H188: =1+INDEX(DJ!$B$109:$M$139,D188,C188) -> 0.04650232969 | I188: =IF($O$1=1,N188,K188*IF(B188=1,INDEX(Données!$N$31:$N$126,F188),INDEX(Données!$E$31:$E$702,(E188-1)*96+F188))) -> 0 | J188: =IF(AND(E188<=5,B188=0,F188>Données!$U$19*4,F188<=(Données!$U$19+15)*4),1,2) -> 2 | K188: =INDEX('Factures élec'!$L$4:$M$15,C188,J188) -> 
A189: 2022-01-02T22:15:00 | B189: =IF(OR(AND(D189=1,C189=1),AND(D189=Titres!$O$15,C189=Titres!$P$15),AND(D189=1,C189=5),AND(D189=Titres!$O$17,C189=Titres!$P$17),AND(D189=Titres!$O$18,C189=Titres!$P$18),AND(D189=21,C189=7),AND(D189=15,C189=8),AND(D189=1,C189=11),AND(D189=11,C189=11),AND(D189=25,C189=12)),1,0) -> 0 | C189: 1 | D189: 2 | E189: 7 | F189: 90 | G189: =MAX(0,H189*IF(B189=1,INDEX(Données!$O$31:$O$126,F189),INDEX(Données!$F$31:$F$702,E189*96-96+F189))) -> 5.038655304 | H189: =1+INDEX(DJ!$B$109:$M$139,D189,C189) -> 0.04650232969 | I189: =IF($O$1=1,N189,K189*IF(B189=1,INDEX(Données!$N$31:$N$126,F189),INDEX(Données!$E$31:$E$702,(E189-1)*96+F189))) -> 0 | J189: =IF(AND(E189<=5,B189=0,F189>Données!$U$19*4,F189<=(Données!$U$19+15)*4),1,2) -> 2 | K189: =INDEX('Factures élec'!$L$4:$M$15,C189,J189) -> 
A190: 2022-01-02T22:30:00 | B190: =IF(OR(AND(D190=1,C190=1),AND(D190=Titres!$O$15,C190=Titres!$P$15),AND(D190=1,C190=5),AND(D190=Titres!$O$17,C190=Titres!$P$17),AND(D190=Titres!$O$18,C190=Titres!$P$18),AND(D190=21,C190=7),AND(D190=15,C190=8),AND(D190=1,C190=11),AND(D190=11,C190=11),AND(D190=25,C190=12)),1,0) -> 0 | C190: 1 | D190: 2 | E190: 7 | F190: 91 | G190: =MAX(0,H190*IF(B190=1,INDEX(Données!$O$31:$O$126,F190),INDEX(Données!$F$31:$F$702,E190*96-96+F190))) -> 5.038655304 | H190: =1+INDEX(DJ!$B$109:$M$139,D190,C190) -> 0.04650232969 | I190: =IF($O$1=1,N190,K190*IF(B190=1,INDEX(Données!$N$31:$N$126,F190),INDEX(Données!$E$31:$E$702,(E190-1)*96+F190))) -> 0 | J190: =IF(AND(E190<=5,B190=0,F190>Données!$U$19*4,F190<=(Données!$U$19+15)*4),1,2) -> 2 | K190: =INDEX('Factures élec'!$L$4:$M$15,C190,J190) -> 
A191: 2022-01-02T22:45:00 | B191: =IF(OR(AND(D191=1,C191=1),AND(D191=Titres!$O$15,C191=Titres!$P$15),AND(D191=1,C191=5),AND(D191=Titres!$O$17,C191=Titres!$P$17),AND(D191=Titres!$O$18,C191=Titres!$P$18),AND(D191=21,C191=7),AND(D191=15,C191=8),AND(D191=1,C191=11),AND(D191=11,C191=11),AND(D191=25,C191=12)),1,0) -> 0 | C191: 1 | D191: 2 | E191: 7 | F191: 92 | G191: =MAX(0,H191*IF(B191=1,INDEX(Données!$O$31:$O$126,F191),INDEX(Données!$F$31:$F$702,E191*96-96+F191))) -> 5.038655304 | H191: =1+INDEX(DJ!$B$109:$M$139,D191,C191) -> 0.04650232969 | I191: =IF($O$1=1,N191,K191*IF(B191=1,INDEX(Données!$N$31:$N$126,F191),INDEX(Données!$E$31:$E$702,(E191-1)*96+F191))) -> 0 | J191: =IF(AND(E191<=5,B191=0,F191>Données!$U$19*4,F191<=(Données!$U$19+15)*4),1,2) -> 2 | K191: =INDEX('Factures élec'!$L$4:$M$15,C191,J191) -> 
